Workbook

Sheet Master20180614
A1: DS Region | B1: SubRegion | C1: CSB | D1: City/County | E1: BI waiver | F1: FIS waiver | G1: CL waiver | H1: All waivers | I1: SIS L1 | J1: SIS L2 | K1: SIS L3 | L1: SIS L4 | M1: SIS L5 | N1: SIS L6 | O1: SIS L7 | P1: SIS Default | Q1: Benefits Planning | R1: Community Coaching | S1: Community Engagement | T1: Community Guide | U1: Electronic Home-Based Services | V1: Employment and Community Transportation | W1: Independent Living Supports | X1: In-home Supports | Y1: Peer Mentoring | Z1: Shared Living | AA1: Supported Living | AB1: Crisis Support Services | AC1: Private Duty Nursing | AD1: Skilled Nursing | AE1: Sponsored Residential
A2: Eastern | B2: 5-B | C2: EAST | D2: Accomack County | E2: 0 | F2: 2 | G2: 63 | H2: 65 | I2: 8 | J2: 30 | K2: 1 | L2: 15 | M2: 0 | N2: 5 | O2: 1 | P2: 5 | Q2: 0 | R2: 0 | S2: 1 | T2: 0 | U2: 0 | V2: 0 | W2: 0 | X2: 1 | Y2: 0 | Z2: 0 | AA2: 1 | AB2: 0 | AC2: 0 | AD2: 0 | AE2: 1
A3: Western | B3: 1-A | C3: RTEN | D3: Albemarle County | E3: 1 | F3: 29 | G3: 82 | H3: 112 | I3: 6 | J3: 58 | K3: 1 | L3: 30 | M3: 2 | N3: 7 | O3: 4 | P3: 4 | Q3: 0 | R3: 2 | S3: 3 | T3: 0 | U3: 0 | V3: 0 | W3: 0 | X3: 3 | Y3: 0 | Z3: 0 | AA3: 0 | AB3: 0 | AC3: 1 | AD3: 3 | AE3: 3
A4: Northern | B4: 2-A | C4: ALEX | D4: Alexandria City | E4: 4 | F4: 8 | G4: 82 | H4: 94 | I4: 11 | J4: 36 | K4: 1 | L4: 32 | M4: 1 | N4: 4 | O4: 6 | P4: 3 | Q4: 0 | R4: 0 | S4: 1 | T4: 0 | U4: 0 | V4: 0 | W4: 0 | X4: 1 | Y4: 0 | Z4: 0 | AA4: 1 | AB4: 0 | AC4: 2 | AD4: 2 | AE4: 0
A5: Western | B5: 1-C | C5: ALLE | D5: Alleghany County | E5: 1 | F5: 10 | G5: 37 | H5: 48 | I5: 6 | J5: 23 | K5: 1 | L5: 10 | M5: 0 | N5: 5 | O5: 2 | P5: 1 | Q5: 0 | R5: 1 | S5: 1 | T5: 0 | U5: 0 | V5: 0 | W5: 0 | X5: 2 | Y5: 0 | Z5: 0 | AA5: 0 | AB5: 0 | AC5: 0 | AD5: 0 | AE5: 0
A6: Central | B6: 4-B | C6: CROS | D6: Amelia County | E6: 0 | F6: 1 | G6: 11 | H6: 12 | I6: 0 | J6: 6 | K6: 0 | L6: 4 | M6: 0 | N6: 1 | O6: 0 | P6: 1 | Q6: 0 | R6: 0 | S6: 0 | T6: 0 | U6: 0 | V6: 0 | W6: 0 | X6: 0 | Y6: 0 | Z6: 0 | AA6: 0 | AB6: 0 | AC6: 0 | AD6: 0 | AE6: 0
A7: Western | B7: 1-D | C7: HORI | D7: Amherst County | E7: 0 | F7: 10 | G7: 137 | H7: 147 | I7: 3 | J7: 42 | K7: 4 | L7: 70 | M7: 2 | N7: 15 | O7: 5 | P7: 6 | Q7: 0 | R7: 0 | S7: 2 | T7: 0 | U7: 0 | V7: 0 | W7: 0 | X7: 0 | Y7: 0 | Z7: 0 | AA7: 0 | AB7: 0 | AC7: 0 | AD7: 1 | AE7: 2
A8: Western | B8: 1-D | C8: HORI | D8: Appomattox County | E8: 1 | F8: 7 | G8: 27 | H8: 35 | I8: 3 | J8: 15 | K8: 3 | L8: 9 | M8: 2 | N8: 0 | O8: 1 | P8: 2 | Q8: 0 | R8: 1 | S8: 0 | T8: 0 | U8: 0 | V8: 0 | W8: 0 | X8: 1 | Y8: 0 | Z8: 0 | AA8: 0 | AB8: 0 | AC8: 0 | AD8: 0 | AE8: 1
A9: Northern | B9: 2-A | C9: ARLI | D9: Arlington County | E9: 3 | F9: 22 | G9: 112 | H9: 137 | I9: 14 | J9: 46 | K9: 9 | L9: 50 | M9: 0 | N9: 8 | O9: 6 | P9: 4 | Q9: 0 | R9: 0 | S9: 0 | T9: 0 | U9: 0 | V9: 0 | W9: 0 | X9: 0 | Y9: 0 | Z9: 0 | AA9: 0 | AB9: 0 | AC9: 0 | AD9: 0 | AE9: 0
A10: Western | B10: 1-B | C10: VLY | D10: Augusta County | E10: 0 | F10: 13 | G10: 135 | H10: 148 | I10: 3 | J10: 52 | K10: 10 | L10: 46 | M10: 2 | N10: 18 | O10: 7 | P10: 10 | Q10: 0 | R10: 0 | S10: 1 | T10: 0 | U10: 0 | V10: 0 | W10: 0 | X10: 1 | Y10: 0 | Z10: 0 | AA10: 0 | AB10: 0 | AC10: 1 | AD10: 0 | AE10: 2
A11: Western | B11: 1-C | C11: ROC | D11: Bath County | E11: 0 | F11: 1 | G11: 7 | H11: 8 | I11: 2 | J11: 0 | K11: 1 | L11: 2 | M11: 0 | N11: 3 | O11: 0 | P11: 0 | Q11: 0 | R11: 0 | S11: 0 | T11: 0 | U11: 0 | V11: 0 | W11: 0 | X11: 0 | Y11: 0 | Z11: 0 | AA11: 0 | AB11: 0 | AC11: 0 | AD11: 0 | AE11: 0
A12: Western | B12: 1-D | C12: HORI | D12: Bedford County | E12: 1 | F12: 21 | G12: 152 | H12: 174 | I12: 4 | J12: 46 | K12: 5 | L12: 80 | M12: 4 | N12: 20 | O12: 6 | P12: 9 | Q12: 0 | R12: 1 | S12: 4 | T12: 0 | U12: 0 | V12: 0 | W12: 0 | X12: 2 | Y12: 0 | Z12: 0 | AA12: 0 | AB12: 0 | AC12: 0 | AD12: 1 | AE12: 6
A13: Southwestern | B13: 3-C | C13: MTRG | D13: Bland County | E13: 0 | F13: 2 | G13: 10 | H13: 12 | I13: 0 | J13: 1 | K13: 0 | L13: 8 | M13: 0 | N13: 2 | O13: 0 | P13: 1 | Q13: 0 | R13: 0 | S13: 0 | T13: 0 | U13: 0 | V13: 0 | W13: 0 | X13: 0 | Y13: 0 | Z13: 0 | AA13: 0 | AB13: 0 | AC13: 0 | AD13: 0 | AE13: 0
A14: Southwestern | B14: 3-A | C14: BLUE | D14: Botetourt County | E14: 0 | F14: 8 | G14: 37 | H14: 45 | I14: 0 | J14: 15 | K14: 0 | L14: 20 | M14: 1 | N14: 7 | O14: 2 | P14: 0 | Q14: 0 | R14: 0 | S14: 0 | T14: 0 | U14: 0 | V14: 0 | W14: 0 | X14: 0 | Y14: 0 | Z14: 0 | AA14: 0 | AB14: 0 | AC14: 0 | AD14: 1 | AE14: 0
A15: Southwestern | B15: 3-D | C15: HIGH | D15: Bristol City | E15: 1 | F15: 1 | G15: 38 | H15: 40 | I15: 1 | J15: 16 | K15: 1 | L15: 14 | M15: 1 | N15: 5 | O15: 0 | P15: 2 | Q15: 0 | R15: 0 | S15: 0 | T15: 0 | U15: 0 | V15: 0 | W15: 0 | X15: 1 | Y15: 0 | Z15: 0 | AA15: 0 | AB15: 0 | AC15: 0 | AD15: 0 | AE15: 0
A16: Central | B16: 4-D | C16: SS | D16: Brunswick County | E16: 0 | F16: 0 | G16: 35 | H16: 35 | I16: 4 | J16: 18 | K16: 1 | L16: 8 | M16: 0 | N16: 3 | O16: 0 | P16: 1 | Q16: 0 | R16: 0 | S16: 1 | T16: 0 | U16: 0 | V16: 0 | W16: 0 | X16: 0 | Y16: 0 | Z16: 0 | AA16: 0 | AB16: 0 | AC16: 0 | AD16: 0 | AE16: 0
A17: Southwestern | B17: 3-D | C17: CMT | D17: Buchanan County | E17: 0 | F17: 3 | G17: 31 | H17: 34 | I17: 1 | J17: 15 | K17: 0 | L17: 10 | M17: 0 | N17: 6 | O17: 1 | P17: 1 | Q17: 0 | R17: 0 | S17: 0 | T17: 0 | U17: 0 | V17: 0 | W17: 0 | X17: 0 | Y17: 0 | Z17: 0 | AA17: 0 | AB17: 0 | AC17: 0 | AD17: 0 | AE17: 0
A18: Central | B18: 4-B | C18: CROS | D18: Buckingham County | E18: 0 | F18: 2 | G18: 14 | H18: 16 | I18: 1 | J18: 5 | K18: 0 | L18: 8 | M18: 0 | N18: 1 | O18: 0 | P18: 1 | Q18: 0 | R18: 0 | S18: 0 | T18: 0 | U18: 0 | V18: 0 | W18: 0 | X18: 0 | Y18: 0 | Z18: 0 | AA18: 0 | AB18: 0 | AC18: 0 | AD18: 0 | AE18: 0
A19: Western | B19: 1-C | C19: ROC | D19: Buena Vista City | E19: 0 | F19: 0 | G19: 7 | H19: 7 | I19: 0 | J19: 3 | K19: 0 | L19: 3 | M19: 0 | N19: 0 | O19: 1 | P19: 0 | Q19: 0 | R19: 0 | S19: 0 | T19: 0 | U19: 0 | V19: 0 | W19: 0 | X19: 0 | Y19: 0 | Z19: 0 | AA19: 0 | AB19: 0 | AC19: 0 | AD19: 0 | AE19: 0
A20: Western | B20: 1-D | C20: HORI | D20: Campbell County | E20: 1 | F20: 23 | G20: 123 | H20: 147 | I20: 8 | J20: 43 | K20: 6 | L20: 54 | M20: 5 | N20: 13 | O20: 8 | P20: 10 | Q20: 0 | R20: 0 | S20: 0 | T20: 0 | U20: 0 | V20: 0 | W20: 0 | X20: 0 | Y20: 0 | Z20: 0 | AA20: 0 | AB20: 0 | AC20: 0 | AD20: 0 | AE20: 0
A21: Northern | B21: 2-C | C21: RapA | D21: Caroline County | E21: 2 | F21: 6 | G21: 38 | H21: 46 | I21: 3 | J21: 18 | K21: 1 | L21: 16 | M21: 0 | N21: 1 | O21: 2 | P21: 5 | Q21: 0 | R21: 0 | S21: 1 | T21: 0 | U21: 0 | V21: 0 | W21: 0 | X21: 0 | Y21: 0 | Z21: 0 | AA21: 0 | AB21: 0 | AC21: 0 | AD21: 0 | AE21: 0
A22: Southwestern | B22: 3-B | C22: MTRG | D22: Carroll County | E22: 2 | F22: 5 | G22: 149 | H22: 156 | I22: 1 | J22: 38 | K22: 9 | L22: 64 | M22: 7 | N22: 12 | O22: 24 | P22: 1 | Q22: 0 | R22: 0 | S22: 0 | T22: 0 | U22: 0 | V22: 0 | W22: 0 | X22: 0 | Y22: 0 | Z22: 0 | AA22: 0 | AB22: 0 | AC22: 0 | AD22: 0 | AE22: 1
A23: Central | B23: 4-A | C23: HENR | D23: Charles City County | E23: 0 | F23: 1 | G23: 5 | H23: 6 | I23: 0 | J23: 4 | K23: 0 | L23: 2 | M23: 0 | N23: 0 | O23: 0 | P23: 0 | Q23: 0 | R23: 0 | S23: 1 | T23: 0 | U23: 0 | V23: 0 | W23: 0 | X23: 0 | Y23: 0 | Z23: 0 | AA23: 0 | AB23: 0 | AC23: 0 | AD23: 0 | AE23: 0
A24: Central | B24: 4-C | C24: CROS | D24: Charlotte County | E24: 0 | F24: 5 | G24: 29 | H24: 34 | I24: 5 | J24: 9 | K24: 5 | L24: 8 | M24: 0 | N24: 3 | O24: 3 | P24: 1 | Q24: 0 | R24: 0 | S24: 1 | T24: 0 | U24: 0 | V24: 0 | W24: 0 | X24: 0 | Y24: 0 | Z24: 0 | AA24: 0 | AB24: 0 | AC24: 0 | AD24: 0 | AE24: 0
A25: Western | B25: 1-A | C25: RTEN | D25: Charlottesville City | E25: 2 | F25: 8 | G25: 80 | H25: 90 | I25: 6 | J25: 40 | K25: 2 | L25: 29 | M25: 0 | N25: 8 | O25: 0 | P25: 5 | Q25: 0 | R25: 0 | S25: 0 | T25: 0 | U25: 0 | V25: 0 | W25: 0 | X25: 0 | Y25: 0 | Z25: 0 | AA25: 0 | AB25: 0 | AC25: 0 | AD25: 0 | AE25: 0
A26: Eastern | B26: 5-D | C26: CHSP | D26: Chesapeake City | E26: 8 | F26: 57 | G26: 263 | H26: 328 | I26: 20 | J26: 121 | K26: 13 | L26: 108 | M26: 3 | N26: 29 | O26: 20 | P26: 14 | Q26: 0 | R26: 3 | S26: 5 | T26: 0 | U26: 0 | V26: 0 | W26: 0 | X26: 3 | Y26: 0 | Z26: 0 | AA26: 0 | AB26: 0 | AC26: 5 | AD26: 2 | AE26: 4
A27: Central | B27: 4-A | C27: CHST | D27: Chesterfield County | E27: 21 | F27: 65 | G27: 879 | H27: 965 | I27: 61 | J27: 337 | K27: 71 | L27: 290 | M27: 12 | N27: 74 | O27: 76 | P27: 44 | Q27: 0 | R27: 2 | S27: 11 | T27: 0 | U27: 0 | V27: 0 | W27: 0 | X27: 4 | Y27: 0 | Z27: 0 | AA27: 2 | AB27: 1 | AC27: 4 | AD27: 5 | AE27: 4
A28: Northern | B28: 2-D | C28: NW | D28: Clarke County | E28: 0 | F28: 2 | G28: 12 | H28: 14 | I28: 0 | J28: 10 | K28: 0 | L28: 2 | M28: 0 | N28: 0 | O28: 1 | P28: 1 | Q28: 0 | R28: 0 | S28: 0 | T28: 0 | U28: 0 | V28: 0 | W28: 0 | X28: 0 | Y28: 0 | Z28: 0 | AA28: 0 | AB28: 0 | AC28: 0 | AD28: 0 | AE28: 0
A29: Central | B29: 4-A | C29: D19 | D29: Colonial Heights City | E29: 1 | F29: 2 | G29: 13 | H29: 16 | I29: 4 | J29: 6 | K29: 0 | L29: 2 | M29: 0 | N29: 1 | O29: 1 | P29: 2 | Q29: 0 | R29: 0 | S29: 1 | T29: 0 | U29: 0 | V29: 0 | W29: 0 | X29: 2 | Y29: 0 | Z29: 0 | AA29: 0 | AB29: 0 | AC29: 0 | AD29: 0 | AE29: 1
A30: Western | B30: 1-C | C30: ALLE | D30: Covington City | E30: 0 | F30: 0 | G30: 11 | H30: 11 | I30: 1 | J30: 7 | K30: 1 | L30: 0 | M30: 1 | N30: 1 | O30: 0 | P30: 0 | Q30: 0 | R30: 1 | S30: 1 | T30: 0 | U30: 0 | V30: 0 | W30: 0 | X30: 1 | Y30: 0 | Z30: 0 | AA30: 0 | AB30: 0 | AC30: 0 | AD30: 1 | AE30: 0
A31: Southwestern | B31: 3-A | C31: BLUE | D31: Craig County | E31: 0 | F31: 2 | G31: 5 | H31: 7 | I31: 0 | J31: 3 | K31: 0 | L31: 0 | M31: 0 | N31: 1 | O31: 2 | P31: 1 | Q31: 0 | R31: 0 | S31: 0 | T31: 0 | U31: 0 | V31: 0 | W31: 0 | X31: 1 | Y31: 0 | Z31: 0 | AA31: 0 | AB31: 0 | AC31: 0 | AD31: 0 | AE31: 0
A32: Northern | B32: 2-B | C32: RapR | D32: Culpeper County | E32: 0 | F32: 8 | G32: 77 | H32: 85 | I32: 16 | J32: 40 | K32: 1 | L32: 15 | M32: 0 | N32: 5 | O32: 4 | P32: 4 | Q32: 0 | R32: 1 | S32: 2 | T32: 0 | U32: 0 | V32: 0 | W32: 0 | X32: 0 | Y32: 0 | Z32: 0 | AA32: 0 | AB32: 0 | AC32: 0 | AD32: 1 | AE32: 0
A33: Central | B33: 4-B | C33: CROS | D33: Cumberland County | E33: 1 | F33: 1 | G33: 27 | H33: 29 | I33: 1 | J33: 14 | K33: 1 | L33: 13 | M33: 0 | N33: 0 | O33: 0 | P33: 0 | Q33: 0 | R33: 0 | S33: 1 | T33: 0 | U33: 0 | V33: 0 | W33: 0 | X33: 0 | Y33: 0 | Z33: 0 | AA33: 0 | AB33: 0 | AC33: 0 | AD33: 0 | AE33: 0
A34: Southwestern | B34: 3-B | C34: DANV | D34: Danville City | E34: 7 | F34: 12 | G34: 144 | H34: 163 | I34: 21 | J34: 61 | K34: 3 | L34: 60 | M34: 2 | N34: 11 | O34: 1 | P34: 4 | Q34: 0 | R34: 1 | S34: 3 | T34: 0 | U34: 0 | V34: 0 | W34: 0 | X34: 7 | Y34: 0 | Z34: 0 | AA34: 1 | AB34: 0 | AC34: 1 | AD34: 2 | AE34: 2
A35: Southwestern | B35: 3-D | C35: DCBH | D35: Dickenson County | E35: 0 | F35: 0 | G35: 27 | H35: 27 | I35: 2 | J35: 11 | K35: 0 | L35: 8 | M35: 1 | N35: 2 | O35: 1 | P35: 2 | Q35: 0 | R35: 0 | S35: 1 | T35: 0 | U35: 0 | V35: 0 | W35: 0 | X35: 0 | Y35: 0 | Z35: 0 | AA35: 0 | AB35: 0 | AC35: 0 | AD35: 0 | AE35: 0
A36: Central | B36: 4-D | C36: D19 | D36: Dinwiddie County | E36: 0 | F36: 4 | G36: 64 | H36: 68 | I36: 0 | J36: 22 | K36: 6 | L36: 20 | M36: 2 | N36: 5 | O36: 10 | P36: 3 | Q36: 0 | R36: 0 | S36: 0 | T36: 0 | U36: 0 | V36: 0 | W36: 0 | X36: 0 | Y36: 0 | Z36: 0 | AA36: 0 | AB36: 0 | AC36: 0 | AD36: 0 | AE36: 0
A37: Central | B37: 4-C | C37: D19 | D37: Emporia City | E37: 0 | F37: 2 | G37: 3 | H37: 5 | I37: 0 | J37: 1 | K37: 0 | L37: 2 | M37: 0 | N37: 2 | O37: 0 | P37: 0 | Q37: 0 | R37: 0 | S37: 0 | T37: 0 | U37: 0 | V37: 0 | W37: 0 | X37: 0 | Y37: 0 | Z37: 0 | AA37: 0 | AB37: 0 | AC37: 1 | AD37: 1 | AE37: 0
A38: Eastern | B38: 5-A | C38: MPNN | D38: Essex County | E38: 0 | F38: 1 | G38: 16 | H38: 17 | I38: 2 | J38: 5 | K38: 1 | L38: 6 | M38: 1 | N38: 1 | O38: 0 | P38: 1 | Q38: 0 | R38: 0 | S38: 0 | T38: 0 | U38: 0 | V38: 0 | W38: 0 | X38: 0 | Y38: 0 | Z38: 0 | AA38: 0 | AB38: 0 | AC38: 0 | AD38: 0 | AE38: 0
A39: Northern | B39: 2-A | C39: FFFC | D39: Fairfax City | E39: 0 | F39: 0 | G39: 6 | H39: 6 | I39: 0 | J39: 2 | K39: 0 | L39: 4 | M39: 0 | N39: 0 | O39: 0 | P39: 0 | Q39: 0 | R39: 0 | S39: 0 | T39: 0 | U39: 0 | V39: 0 | W39: 0 | X39: 0 | Y39: 0 | Z39: 0 | AA39: 0 | AB39: 0 | AC39: 0 | AD39: 0 | AE39: 0
A40: Northern | B40: 2-A | C40: FFFC | D40: Fairfax County | E40: 18 | F40: 216 | G40: 837 | H40: 1071 | I40: 67 | J40: 361 | K40: 45 | L40: 356 | M40: 17 | N40: 84 | O40: 80 | P40: 61 | Q40: 0 | R40: 5 | S40: 8 | T40: 0 | U40: 0 | V40: 0 | W40: 1 | X40: 12 | Y40: 0 | Z40: 0 | AA40: 2 | AB40: 3 | AC40: 30 | AD40: 21 | AE40: 1
A41: Northern | B41: 2-A | C41: FFFC | D41: Falls Church City | E41: 0 | F41: 0 | G41: 2 | H41: 2 | I41: 0 | J41: 0 | K41: 0 | L41: 0 | M41: 0 | N41: 0 | O41: 0 | P41: 2 | Q41: 0 | R41: 0 | S41: 0 | T41: 0 | U41: 0 | V41: 0 | W41: 0 | X41: 0 | Y41: 0 | Z41: 0 | AA41: 0 | AB41: 0 | AC41: 2 | AD41: 1 | AE41: 0
A42: Northern | B42: 2-B | C42: RapR | D42: Fauquier County | E42: 0 | F42: 16 | G42: 58 | H42: 74 | I42: 6 | J42: 33 | K42: 1 | L42: 22 | M42: 0 | N42: 12 | O42: 0 | P42: 0 | Q42: 0 | R42: 0 | S42: 0 | T42: 0 | U42: 0 | V42: 0 | W42: 0 | X42: 1 | Y42: 0 | Z42: 0 | AA42: 0 | AB42: 0 | AC42: 1 | AD42: 2 | AE42: 0
A43: Southwestern | B43: 3-C | C43: NRV | D43: Floyd County | E43: 0 | F43: 7 | G43: 47 | H43: 54 | I43: 2 | J43: 10 | K43: 2 | L43: 18 | M43: 1 | N43: 11 | O43: 10 | P43: 0 | Q43: 0 | R43: 2 | S43: 2 | T43: 0 | U43: 0 | V43: 0 | W43: 0 | X43: 2 | Y43: 0 | Z43: 0 | AA43: 0 | AB43: 0 | AC43: 1 | AD43: 1 | AE43: 1
A44: Western | B44: 1-A | C44: RTEN | D44: Fluvanna County | E44: 1 | F44: 2 | G44: 16 | H44: 19 | I44: 1 | J44: 8 | K44: 0 | L44: 5 | M44: 0 | N44: 4 | O44: 1 | P44: 0 | Q44: 0 | R44: 0 | S44: 0 | T44: 0 | U44: 0 | V44: 0 | W44: 0 | X44: 0 | Y44: 0 | Z44: 0 | AA44: 0 | AB44: 0 | AC44: 0 | AD44: 0 | AE44: 0
A45: Eastern | B45: 5-D | C45: WT | D45: Franklin City | E45: 0 | F45: 1 | G45: 25 | H45: 26 | I45: 1 | J45: 7 | K45: 0 | L45: 14 | M45: 0 | N45: 3 | O45: 1 | P45: 0 | Q45: 0 | R45: 1 | S45: 2 | T45: 0 | U45: 0 | V45: 0 | W45: 0 | X45: 1 | Y45: 0 | Z45: 0 | AA45: 0 | AB45: 0 | AC45: 2 | AD45: 2 | AE45: 1
A46: Southwestern | B46: 3-A | C46: PDMT | D46: Franklin County | E46: 6 | F46: 11 | G46: 89 | H46: 106 | I46: 6 | J46: 39 | K46: 6 | L46: 25 | M46: 2 | N46: 15 | O46: 9 | P46: 4 | Q46: 0 | R46: 0 | S46: 1 | T46: 0 | U46: 0 | V46: 0 | W46: 0 | X46: 0 | Y46: 0 | Z46: 0 | AA46: 0 | AB46: 0 | AC46: 0 | AD46: 0 | AE46: 0
A47: Northern | B47: 2-D | C47: NW | D47: Frederick County | E47: 3 | F47: 23 | G47: 110 | H47: 136 | I47: 10 | J47: 55 | K47: 12 | L47: 34 | M47: 0 | N47: 7 | O47: 11 | P47: 7 | Q47: 0 | R47: 1 | S47: 2 | T47: 0 | U47: 0 | V47: 0 | W47: 0 | X47: 1 | Y47: 0 | Z47: 0 | AA47: 0 | AB47: 0 | AC47: 0 | AD47: 2 | AE47: 1
A48: Northern | B48: 2-C | C48: RapA | D48: Fredericksburg City | E48: 0 | F48: 3 | G48: 46 | H48: 49 | I48: 6 | J48: 17 | K48: 1 | L48: 13 | M48: 3 | N48: 5 | O48: 3 | P48: 1 | Q48: 0 | R48: 1 | S48: 1 | T48: 0 | U48: 0 | V48: 0 | W48: 0 | X48: 1 | Y48: 0 | Z48: 0 | AA48: 1 | AB48: 0 | AC48: 3 | AD48: 0 | AE48: 2
A49: Southwestern | B49: 3-B | C49: MTRG | D49: Galax City | E49: 0 | F49: 1 | G49: 28 | H49: 29 | I49: 1 | J49: 9 | K49: 3 | L49: 9 | M49: 1 | N49: 1 | O49: 4 | P49: 1 | Q49: 0 | R49: 2 | S49: 1 | T49: 0 | U49: 0 | V49: 0 | W49: 0 | X49: 1 | Y49: 0 | Z49: 0 | AA49: 0 | AB49: 0 | AC49: 0 | AD49: 0 | AE49: 3
A50: Southwestern | B50: 3-A | C50: NRV | D50: Giles County | E50: 0 | F50: 4 | G50: 31 | H50: 35 | I50: 0 | J50: 10 | K50: 2 | L50: 8 | M50: 0 | N50: 8 | O50: 7 | P50: 0 | Q50: 0 | R50: 0 | S50: 0 | T50: 0 | U50: 0 | V50: 0 | W50: 0 | X50: 0 | Y50: 0 | Z50: 0 | AA50: 0 | AB50: 0 | AC50: 0 | AD50: 0 | AE50: 0
A51: Eastern | B51: 5-A | C51: MPNN | D51: Gloucester County | E51: 0 | F51: 7 | G51: 73 | H51: 80 | I51: 6 | J51: 29 | K51: 2 | L51: 15 | M51: 5 | N51: 20 | O51: 1 | P51: 2 | Q51: 0 | R51: 1 | S51: 1 | T51: 0 | U51: 0 | V51: 0 | W51: 0 | X51: 1 | Y51: 0 | Z51: 0 | AA51: 0 | AB51: 0 | AC51: 3 | AD51: 2 | AE51: 0
A52: Central | B52: 4-B | C52: GOOC | D52: Goochland County | E52: 1 | F52: 6 | G52: 19 | H52: 26 | I52: 0 | J52: 11 | K52: 2 | L52: 8 | M52: 0 | N52: 4 | O52: 1 | P52: 0 | Q52: 0 | R52: 0 | S52: 1 | T52: 0 | U52: 0 | V52: 0 | W52: 0 | X52: 1 | Y52: 0 | Z52: 0 | AA52: 0 | AB52: 0 | AC52: 0 | AD52: 0 | AE52: 1
A53: Southwestern | B53: 3-B | C53: MTRG | D53: Grayson County | E53: 1 | F53: 0 | G53: 33 | H53: 34 | I53: 1 | J53: 11 | K53: 2 | L53: 16 | M53: 0 | N53: 4 | O53: 0 | P53: 0 | Q53: 0 | R53: 0 | S53: 0 | T53: 0 | U53: 0 | V53: 0 | W53: 0 | X53: 0 | Y53: 0 | Z53: 0 | AA53: 0 | AB53: 0 | AC53: 0 | AD53: 0 | AE53: 0
A54: Western | B54: 1-A | C54: RTEN | D54: Greene County | E54: 0 | F54: 6 | G54: 16 | H54: 22 | I54: 1 | J54: 11 | K54: 1 | L54: 5 | M54: 0 | N54: 4 | O54: 0 | P54: 0 | Q54: 0 | R54: 0 | S54: 0 | T54: 0 | U54: 0 | V54: 0 | W54: 0 | X54: 0 | Y54: 0 | Z54: 0 | AA54: 0 | AB54: 0 | AC54: 0 | AD54: 0 | AE54: 0
A55: Central | B55: 4-D | C55: D19 | D55: Greensville County | E55: 0 | F55: 0 | G55: 11 | H55: 11 | I55: 0 | J55: 4 | K55: 0 | L55: 6 | M55: 0 | N55: 1 | O55: 0 | P55: 0 | Q55: 0 | R55: 0 | S55: 0 | T55: 0 | U55: 0 | V55: 0 | W55: 0 | X55: 0 | Y55: 0 | Z55: 0 | AA55: 0 | AB55: 0 | AC55: 0 | AD55: 0 | AE55: 0
A56: Central | B56: 4-C | C56: SS | D56: Halifax County | E56: 1 | F56: 8 | G56: 67 | H56: 76 | I56: 8 | J56: 38 | K56: 9 | L56: 14 | M56: 3 | N56: 2 | O56: 1 | P56: 1 | Q56: 0 | R56: 0 | S56: 1 | T56: 0 | U56: 0 | V56: 0 | W56: 0 | X56: 0 | Y56: 0 | Z56: 0 | AA56: 0 | AB56: 0 | AC56: 0 | AD56: 0 | AE56: 0
A57: Eastern | B57: 5-C | C57: HAMP | D57: Hampton City | E57: 10 | F57: 25 | G57: 235 | H57: 270 | I57: 17 | J57: 111 | K57: 11 | L57: 89 | M57: 0 | N57: 27 | O57: 9 | P57: 6 | Q57: 0 | R57: 2 | S57: 5 | T57: 0 | U57: 0 | V57: 0 | W57: 0 | X57: 4 | Y57: 0 | Z57: 0 | AA57: 1 | AB57: 1 | AC57: 2 | AD57: 2 | AE57: 5
A58: Central | B58: 4-A | C58: HANO | D58: Hanover County | E58: 15 | F58: 37 | G58: 159 | H58: 211 | I58: 14 | J58: 77 | K58: 9 | L58: 54 | M58: 4 | N58: 21 | O58: 14 | P58: 18 | Q58: 0 | R58: 0 | S58: 4 | T58: 0 | U58: 0 | V58: 0 | W58: 0 | X58: 1 | Y58: 0 | Z58: 0 | AA58: 1 | AB58: 0 | AC58: 2 | AD58: 1 | AE58: 0
A59: Western | B59: 1-B | C59: HARR | D59: Harrisonburg City | E59: 1 | F59: 10 | G59: 61 | H59: 72 | I59: 13 | J59: 29 | K59: 3 | L59: 17 | M59: 1 | N59: 6 | O59: 3 | P59: 0 | Q59: 0 | R59: 0 | S59: 0 | T59: 0 | U59: 0 | V59: 0 | W59: 0 | X59: 0 | Y59: 0 | Z59: 0 | AA59: 0 | AB59: 0 | AC59: 0 | AD59: 0 | AE59: 0
A60: Central | B60: 4-A | C60: HENR | D60: Henrico County | E60: 16 | F60: 98 | G60: 466 | H60: 580 | I60: 42 | J60: 256 | K60: 33 | L60: 155 | M60: 4 | N60: 26 | O60: 34 | P60: 30 | Q60: 0 | R60: 4 | S60: 9 | T60: 0 | U60: 0 | V60: 0 | W60: 2 | X60: 7 | Y60: 0 | Z60: 0 | AA60: 3 | AB60: 0 | AC60: 2 | AD60: 2 | AE60: 4
A61: Southwestern | B61: 3-B | C61: PDMT | D61: Henry County | E61: 2 | F61: 5 | G61: 76 | H61: 83 | I61: 10 | J61: 41 | K61: 1 | L61: 20 | M61: 2 | N61: 4 | O61: 1 | P61: 4 | Q61: 0 | R61: 0 | S61: 0 | T61: 0 | U61: 0 | V61: 0 | W61: 0 | X61: 0 | Y61: 0 | Z61: 0 | AA61: 0 | AB61: 0 | AC61: 0 | AD61: 0 | AE61: 0
A62: Western | B62: 1-B | C62: VLY | D62: Highland County | E62: 0 | F62: 0 | G62: 5 | H62: 5 | I62: 0 | J62: 2 | K62: 0 | L62: 2 | M62: 0 | N62: 1 | O62: 0 | P62: 0 | Q62: 0 | R62: 0 | S62: 0 | T62: 0 | U62: 0 | V62: 0 | W62: 0 | X62: 0 | Y62: 0 | Z62: 0 | AA62: 0 | AB62: 0 | AC62: 0 | AD62: 0 | AE62: 0
A63: Central | B63: 4-D | C63: D19 | D63: Hopewell City | E63: 0 | F63: 2 | G63: 25 | H63: 27 | I63: 2 | J63: 11 | K63: 3 | L63: 7 | M63: 0 | N63: 1 | O63: 3 | P63: 0 | Q63: 0 | R63: 0 | S63: 0 | T63: 0 | U63: 0 | V63: 0 | W63: 0 | X63: 0 | Y63: 0 | Z63: 0 | AA63: 0 | AB63: 0 | AC63: 0 | AD63: 0 | AE63: 0
A64: Eastern | B64: 5-D | C64: WT | D64: Isle of Wight County | E64: 2 | F64: 2 | G64: 22 | H64: 26 | I64: 1 | J64: 9 | K64: 0 | L64: 13 | M64: 1 | N64: 1 | O64: 0 | P64: 1 | Q64: 0 | R64: 1 | S64: 2 | T64: 0 | U64: 0 | V64: 0 | W64: 0 | X64: 0 | Y64: 0 | Z64: 0 | AA64: 0 | AB64: 0 | AC64: 0 | AD64: 0 | AE64: 0
A65: Eastern | B65: 5-C | C65: COLO | D65: James City County | E65: 1 | F65: 9 | G65: 31 | H65: 41 | I65: 2 | J65: 14 | K65: 2 | L65: 16 | M65: 1 | N65: 3 | O65: 2 | P65: 1 | Q65: 0 | R65: 0 | S65: 0 | T65: 0 | U65: 0 | V65: 0 | W65: 0 | X65: 0 | Y65: 0 | Z65: 0 | AA65: 0 | AB65: 0 | AC65: 0 | AD65: 0 | AE65: 1
A66: Eastern | B66: 5-A | C66: MPNN | D66: King and Queen County | E66: 1 | F66: 0 | G66: 5 | H66: 6 | I66: 0 | J66: 3 | K66: 0 | L66: 1 | M66: 0 | N66: 2 | O66: 0 | P66: 0 | Q66: 0 | R66: 0 | S66: 0 | T66: 0 | U66: 0 | V66: 0 | W66: 0 | X66: 0 | Y66: 0 | Z66: 0 | AA66: 0 | AB66: 0 | AC66: 0 | AD66: 0 | AE66: 0
A67: Northern | B67: 2-C | C67: RapA | D67: King George County | E67: 0 | F67: 5 | G67: 19 | H67: 24 | I67: 2 | J67: 9 | K67: 1 | L67: 9 | M67: 0 | N67: 1 | O67: 0 | P67: 2 | Q67: 0 | R67: 0 | S67: 1 | T67: 0 | U67: 0 | V67: 0 | W67: 0 | X67: 0 | Y67: 0 | Z67: 0 | AA67: 0 | AB67: 0 | AC67: 0 | AD67: 0 | AE67: 0
A68: Eastern | B68: 5-A | C68: MPNN | D68: King William County | E68: 0 | F68: 1 | G68: 24 | H68: 25 | I68: 0 | J68: 2 | K68: 2 | L68: 10 | M68: 3 | N68: 7 | O68: 0 | P68: 1 | Q68: 0 | R68: 0 | S68: 0 | T68: 0 | U68: 0 | V68: 0 | W68: 0 | X68: 0 | Y68: 0 | Z68: 0 | AA68: 0 | AB68: 0 | AC68: 0 | AD68: 0 | AE68: 0
A69: Eastern | B69: 5-A | C69: MPNN | D69: Lancaster County | E69: 0 | F69: 0 | G69: 7 | H69: 7 | I69: 4 | J69: 3 | K69: 0 | L69: 0 | M69: 0 | N69: 0 | O69: 0 | P69: 0 | Q69: 0 | R69: 0 | S69: 0 | T69: 0 | U69: 0 | V69: 0 | W69: 0 | X69: 0 | Y69: 0 | Z69: 0 | AA69: 0 | AB69: 0 | AC69: 0 | AD69: 0 | AE69: 0
A70: Southwestern | B70: 3-D | C70: PLD1 | D70: Lee County | E70: 1 | F70: 3 | G70: 28 | H70: 32 | I70: 4 | J70: 9 | K70: 1 | L70: 12 | M70: 1 | N70: 2 | O70: 1 | P70: 2 | Q70: 0 | R70: 0 | S70: 0 | T70: 0 | U70: 0 | V70: 0 | W70: 0 | X70: 0 | Y70: 0 | Z70: 0 | AA70: 0 | AB70: 0 | AC70: 0 | AD70: 0 | AE70: 0
A71: Western | B71: 1-C | C71: ROC | D71: Lexington City | E71: 0 | F71: 1 | G71: 3 | H71: 4 | I71: 2 | J71: 1 | K71: 0 | L71: 0 | M71: 0 | N71: 0 | O71: 1 | P71: 0 | Q71: 0 | R71: 0 | S71: 1 | T71: 0 | U71: 0 | V71: 0 | W71: 0 | X71: 0 | Y71: 0 | Z71: 0 | AA71: 0 | AB71: 0 | AC71: 0 | AD71: 0 | AE71: 0
A72: Northern | B72: 2-A | C72: LOUD | D72: Loudoun County | E72: 6 | F72: 45 | G72: 167 | H72: 218 | I72: 18 | J72: 79 | K72: 4 | L72: 57 | M72: 4 | N72: 23 | O72: 18 | P72: 15 | Q72: 0 | R72: 0 | S72: 1 | T72: 0 | U72: 0 | V72: 0 | W72: 0 | X72: 1 | Y72: 0 | Z72: 0 | AA72: 0 | AB72: 0 | AC72: 5 | AD72: 0 | AE72: 0
A73: Western | B73: 1-A | C73: RTEN | D73: Louisa County | E73: 3 | F73: 8 | G73: 27 | H73: 38 | I73: 6 | J73: 16 | K73: 1 | L73: 6 | M73: 1 | N73: 1 | O73: 2 | P73: 5 | Q73: 0 | R73: 0 | S73: 0 | T73: 0 | U73: 0 | V73: 0 | W73: 0 | X73: 0 | Y73: 0 | Z73: 0 | AA73: 0 | AB73: 0 | AC73: 0 | AD73: 0 | AE73: 0
A74: Central | B74: 4-C | C74: CROS | D74: Lunenburg County | E74: 1 | F74: 1 | G74: 7 | H74: 9 | I74: 2 | J74: 3 | K74: 0 | L74: 2 | M74: 0 | N74: 1 | O74: 0 | P74: 1 | Q74: 0 | R74: 0 | S74: 0 | T74: 0 | U74: 0 | V74: 0 | W74: 0 | X74: 0 | Y74: 0 | Z74: 0 | AA74: 0 | AB74: 0 | AC74: 0 | AD74: 0 | AE74: 0
A75: Western | B75: 1-D | C75: HORI | D75: Lynchburg City | E75: 1 | F75: 34 | G75: 180 | H75: 215 | I75: 21 | J75: 79 | K75: 11 | L75: 66 | M75: 3 | N75: 21 | O75: 6 | P75: 8 | Q75: 0 | R75: 0 | S75: 4 | T75: 0 | U75: 0 | V75: 0 | W75: 1 | X75: 3 | Y75: 0 | Z75: 0 | AA75: 0 | AB75: 0 | AC75: 0 | AD75: 1 | AE75: 8
A76: Northern | B76: 2-B | C76: RapR | D76: Madison County | E76: 0 | F76: 2 | G76: 10 | H76: 12 | I76: 5 | J76: 6 | K76: 0 | L76: 1 | M76: 0 | N76: 0 | O76: 0 | P76: 0 | Q76: 0 | R76: 0 | S76: 0 | T76: 0 | U76: 0 | V76: 0 | W76: 0 | X76: 0 | Y76: 0 | Z76: 0 | AA76: 0 | AB76: 0 | AC76: 0 | AD76: 0 | AE76: 1
A77: Northern | B77: 2-A | C77: PWC | D77: Manassas City | E77: 0 | F77: 4 | G77: 16 | H77: 20 | I77: 1 | J77: 6 | K77: 2 | L77: 8 | M77: 0 | N77: 1 | O77: 2 | P77: 0 | Q77: 0 | R77: 1 | S77: 1 | T77: 0 | U77: 0 | V77: 0 | W77: 0 | X77: 0 | Y77: 0 | Z77: 0 | AA77: 0 | AB77: 0 | AC77: 0 | AD77: 0 | AE77: 0
A78: Northern | B78: 2-A | C78: PWC | D78: Manassas Park City | E78: 0 | F78: 1 | G78: 3 | H78: 4 | I78: 0 | J78: 2 | K78: 0 | L78: 0 | M78: 0 | N78: 0 | O78: 2 | P78: 0 | Q78: 0 | R78: 0 | S78: 0 | T78: 0 | U78: 0 | V78: 0 | W78: 0 | X78: 0 | Y78: 0 | Z78: 0 | AA78: 0 | AB78: 0 | AC78: 0 | AD78: 0 | AE78: 0
A79: Southwestern | B79: 3-B | C79: PDMT | D79: Martinsville City | E79: 0 | F79: 1 | G79: 40 | H79: 41 | I79: 4 | J79: 27 | K79: 3 | L79: 3 | M79: 0 | N79: 0 | O79: 3 | P79: 1 | Q79: 0 | R79: 0 | S79: 1 | T79: 0 | U79: 0 | V79: 0 | W79: 0 | X79: 1 | Y79: 0 | Z79: 0 | AA79: 0 | AB79: 0 | AC79: 0 | AD79: 0 | AE79: 0
A80: Eastern | B80: 5-A | C80: MPNN | D80: Mathews County | E80: 0 | F80: 0 | G80: 43 | H80: 43 | I80: 1 | J80: 10 | K80: 2 | L80: 28 | M80: 2 | N80: 0 | O80: 0 | P80: 0 | Q80: 0 | R80: 0 | S80: 1 | T80: 0 | U80: 0 | V80: 0 | W80: 0 | X80: 0 | Y80: 0 | Z80: 0 | AA80: 0 | AB80: 0 | AC80: 0 | AD80: 0 | AE80: 0
A81: Central | B81: 4-C | C81: SS | D81: Mecklenburg County | E81: 0 | F81: 3 | G81: 87 | H81: 90 | I81: 3 | J81: 46 | K81: 8 | L81: 24 | M81: 2 | N81: 3 | O81: 3 | P81: 1 | Q81: 0 | R81: 1 | S81: 1 | T81: 0 | U81: 0 | V81: 0 | W81: 0 | X81: 0 | Y81: 0 | Z81: 0 | AA81: 0 | AB81: 0 | AC81: 0 | AD81: 0 | AE81: 1
A82: Eastern | B82: 5-A | C82: MPNN | D82: Middlesex County | E82: 0 | F82: 0 | G82: 24 | H82: 24 | I82: 2 | J82: 10 | K82: 0 | L82: 11 | M82: 0 | N82: 1 | O82: 0 | P82: 0 | Q82: 0 | R82: 0 | S82: 0 | T82: 0 | U82: 0 | V82: 0 | W82: 0 | X82: 0 | Y82: 0 | Z82: 0 | AA82: 0 | AB82: 0 | AC82: 0 | AD82: 0 | AE82: 0
A83: Southwestern | B83: 3-A | C83: NRV | D83: Montgomery County | E83: 0 | F83: 24 | G83: 78 | H83: 102 | I83: 6 | J83: 18 | K83: 11 | L83: 25 | M83: 4 | N83: 18 | O83: 18 | P83: 2 | Q83: 0 | R83: 1 | S83: 3 | T83: 0 | U83: 0 | V83: 0 | W83: 0 | X83: 4 | Y83: 0 | Z83: 0 | AA83: 0 | AB83: 1 | AC83: 2 | AD83: 2 | AE83: 2
A84: Western | B84: 1-A | C84: RTEN | D84: Nelson County | E84: 0 | F84: 6 | G84: 26 | H84: 32 | I84: 2 | J84: 16 | K84: 0 | L84: 10 | M84: 0 | N84: 3 | O84: 0 | P84: 1 | Q84: 0 | R84: 1 | S84: 1 | T84: 0 | U84: 0 | V84: 0 | W84: 0 | X84: 0 | Y84: 0 | Z84: 0 | AA84: 0 | AB84: 0 | AC84: 0 | AD84: 0 | AE84: 0
A85: Central | B85: 4-A | C85: HENR | D85: New Kent County | E85: 0 | F85: 1 | G85: 29 | H85: 30 | I85: 2 | J85: 11 | K85: 1 | L85: 10 | M85: 0 | N85: 2 | O85: 2 | P85: 2 | Q85: 0 | R85: 1 | S85: 1 | T85: 0 | U85: 0 | V85: 0 | W85: 0 | X85: 0 | Y85: 0 | Z85: 0 | AA85: 1 | AB85: 0 | AC85: 0 | AD85: 0 | AE85: 0
A86: Eastern | B86: 5-C | C86: HAMP | D86: Newport News City | E86: 16 | F86: 15 | G86: 190 | H86: 221 | I86: 19 | J86: 79 | K86: 13 | L86: 72 | M86: 1 | N86: 24 | O86: 5 | P86: 8 | Q86: 0 | R86: 1 | S86: 4 | T86: 0 | U86: 0 | V86: 0 | W86: 1 | X86: 8 | Y86: 0 | Z86: 0 | AA86: 0 | AB86: 0 | AC86: 5 | AD86: 8 | AE86: 7
A87: Eastern | B87: 5-D | C87: NORF | D87: Norfolk City | E87: 21 | F87: 60 | G87: 308 | H87: 389 | I87: 55 | J87: 170 | K87: 11 | L87: 100 | M87: 2 | N87: 21 | O87: 11 | P87: 19 | Q87: 0 | R87: 1 | S87: 4 | T87: 0 | U87: 0 | V87: 0 | W87: 1 | X87: 7 | Y87: 0 | Z87: 0 | AA87: 0 | AB87: 0 | AC87: 1 | AD87: 1 | AE87: 2
A88: Eastern | B88: 5-B | C88: EAST | D88: Northampton County | E88: 0 | F88: 1 | G88: 46 | H88: 47 | I88: 6 | J88: 28 | K88: 1 | L88: 7 | M88: 0 | N88: 4 | O88: 0 | P88: 1 | Q88: 0 | R88: 0 | S88: 0 | T88: 0 | U88: 0 | V88: 0 | W88: 0 | X88: 0 | Y88: 0 | Z88: 0 | AA88: 0 | AB88: 0 | AC88: 0 | AD88: 0 | AE88: 0
A89: Eastern | B89: 5-A | C89: MPNN | D89: Northumberland County | E89: 0 | F89: 0 | G89: 7 | H89: 7 | I89: 0 | J89: 2 | K89: 0 | L89: 2 | M89: 0 | N89: 2 | O89: 0 | P89: 1 | Q89: 0 | R89: 0 | S89: 0 | T89: 0 | U89: 0 | V89: 0 | W89: 0 | X89: 0 | Y89: 0 | Z89: 0 | AA89: 0 | AB89: 0 | AC89: 0 | AD89: 0 | AE89: 0
A90: Southwestern | B90: 3-D | C90: PLD1 | D90: Norton City | E90: 0 | F90: 1 | G90: 4 | H90: 5 | I90: 1 | J90: 2 | K90: 0 | L90: 1 | M90: 0 | N90: 1 | O90: 0 | P90: 0 | Q90: 0 | R90: 0 | S90: 1 | T90: 0 | U90: 0 | V90: 0 | W90: 0 | X90: 0 | Y90: 0 | Z90: 0 | AA90: 0 | AB90: 0 | AC90: 0 | AD90: 0 | AE90: 0
A91: Central | B91: 4-C | C91: CROS | D91: Nottoway County | E91: 0 | F91: 2 | G91: 14 | H91: 16 | I91: 0 | J91: 5 | K91: 0 | L91: 10 | M91: 0 | N91: 0 | O91: 0 | P91: 1 | Q91: 0 | R91: 0 | S91: 0 | T91: 0 | U91: 0 | V91: 0 | W91: 0 | X91: 0 | Y91: 0 | Z91: 0 | AA91: 0 | AB91: 0 | AC91: 0 | AD91: 0 | AE91: 0
A92: Northern | B92: 2-B | C92: RapR | D92: Orange County | E92: 0 | F92: 14 | G92: 40 | H92: 54 | I92: 10 | J92: 25 | K92: 3 | L92: 11 | M92: 0 | N92: 4 | O92: 0 | P92: 1 | Q92: 0 | R92: 1 | S92: 1 | T92: 0 | U92: 0 | V92: 0 | W92: 0 | X92: 0 | Y92: 0 | Z92: 0 | AA92: 0 | AB92: 0 | AC92: 0 | AD92: 1 | AE92: 0
A93: Northern | B93: 2-D | C93: NW | D93: Page County | E93: 0 | F93: 7 | G93: 17 | H93: 24 | I93: 2 | J93: 11 | K93: 1 | L93: 6 | M93: 0 | N93: 2 | O93: 0 | P93: 2 | Q93: 0 | R93: 0 | S93: 0 | T93: 0 | U93: 0 | V93: 0 | W93: 0 | X93: 0 | Y93: 0 | Z93: 0 | AA93: 0 | AB93: 0 | AC93: 0 | AD93: 0 | AE93: 0
A94: Southwestern | B94: 3-C | C94: PDMT | D94: Patrick County | E94: 1 | F94: 3 | G94: 27 | H94: 31 | I94: 1 | J94: 13 | K94: 1 | L94: 10 | M94: 2 | N94: 2 | O94: 1 | P94: 1 | Q94: 0 | R94: 0 | S94: 2 | T94: 0 | U94: 0 | V94: 0 | W94: 0 | X94: 0 | Y94: 0 | Z94: 0 | AA94: 0 | AB94: 0 | AC94: 0 | AD94: 0 | AE94: 0
A95: Central | B95: 4-D | C95: D19 | D95: Petersburg City | E95: 1 | F95: 3 | G95: 131 | H95: 135 | I95: 5 | J95: 53 | K95: 11 | L95: 43 | M95: 3 | N95: 8 | O95: 10 | P95: 2 | Q95: 0 | R95: 0 | S95: 2 | T95: 0 | U95: 0 | V95: 0 | W95: 0 | X95: 0 | Y95: 0 | Z95: 0 | AA95: 0 | AB95: 0 | AC95: 0 | AD95: 0 | AE95: 2
A96: Southwestern | B96: 3-B | C96: DANV | D96: Pittsylvania County | E96: 7 | F96: 14 | G96: 141 | H96: 162 | I96: 7 | J96: 73 | K96: 12 | L96: 44 | M96: 2 | N96: 15 | O96: 9 | P96: 0 | Q96: 0 | R96: 1 | S96: 1 | T96: 0 | U96: 0 | V96: 0 | W96: 0 | X96: 0 | Y96: 0 | Z96: 0 | AA96: 0 | AB96: 0 | AC96: 0 | AD96: 0 | AE96: 0
A97: Eastern | B97: 5-C | C97: COLO | D97: Poquoson City | E97: 0 | F97: 2 | G97: 4 | H97: 6 | I97: 1 | J97: 1 | K97: 1 | L97: 2 | M97: 0 | N97: 0 | O97: 0 | P97: 1 | Q97: 0 | R97: 0 | S97: 0 | T97: 0 | U97: 0 | V97: 0 | W97: 0 | X97: 0 | Y97: 0 | Z97: 0 | AA97: 0 | AB97: 0 | AC97: 0 | AD97: 0 | AE97: 0
A98: Eastern | B98: 5-D | C98: PORT | D98: Portsmouth City | E98: 3 | F98: 8 | G98: 263 | H98: 274 | I98: 21 | J98: 110 | K98: 9 | L98: 89 | M98: 3 | N98: 17 | O98: 18 | P98: 7 | Q98: 0 | R98: 2 | S98: 5 | T98: 0 | U98: 0 | V98: 0 | W98: 1 | X98: 4 | Y98: 0 | Z98: 0 | AA98: 0 | AB98: 0 | AC98: 0 | AD98: 2 | AE98: 3
A99: Central | B99: 4-B | C99: GOOC | D99: Powhatan County | E99: 1 | F99: 8 | G99: 18 | H99: 27 | I99: 0 | J99: 10 | K99: 2 | L99: 9 | M99: 0 | N99: 2 | O99: 0 | P99: 4 | Q99: 0 | R99: 0 | S99: 1 | T99: 0 | U99: 0 | V99: 0 | W99: 0 | X99: 1 | Y99: 0 | Z99: 0 | AA99: 0 | AB99: 0 | AC99: 0 | AD99: 0 | AE99: 0
A100: Central | B100: 4-C | C100: CROS | D100: Prince Edward County | E100: 0 | F100: 7 | G100: 70 | H100: 77 | I100: 5 | J100: 35 | K100: 7 | L100: 21 | M100: 0 | N100: 2 | O100: 4 | P100: 3 | Q100: 0 | R100: 0 | S100: 2 | T100: 0 | U100: 0 | V100: 0 | W100: 0 | X100: 3 | Y100: 0 | Z100: 0 | AA100: 0 | AB100: 0 | AC100: 0 | AD100: 0 | AE100: 0
A101: Central | B101: 4-D | C101: D19 | D101: Prince George County | E101: 0 | F101: 3 | G101: 50 | H101: 53 | I101: 3 | J101: 23 | K101: 10 | L101: 10 | M101: 0 | N101: 1 | O101: 5 | P101: 1 | Q101: 0 | R101: 0 | S101: 1 | T101: 0 | U101: 0 | V101: 0 | W101: 0 | X101: 2 | Y101: 0 | Z101: 0 | AA101: 0 | AB101: 0 | AC101: 1 | AD101: 2 | AE101: 0
A102: Northern | B102: 2-A | C102: PWC | D102: Prince William County | E102: 10 | F102: 59 | G102: 355 | H102: 424 | I102: 16 | J102: 140 | K102: 27 | L102: 104 | M102: 10 | N102: 55 | O102: 37 | P102: 35 | Q102: 0 | R102: 2 | S102: 3 | T102: 0 | U102: 0 | V102: 0 | W102: 0 | X102: 5 | Y102: 0 | Z102: 0 | AA102: 0 | AB102: 2 | AC102: 12 | AD102: 11 | AE102: 1
A103: Southwestern | B103: 3-C | C103: NRV | D103: Pulaski County | E103: 0 | F103: 7 | G103: 47 | H103: 54 | I103: 1 | J103: 13 | K103: 0 | L103: 19 | M103: 0 | N103: 10 | O103: 8 | P103: 3 | Q103: 0 | R103: 0 | S103: 0 | T103: 0 | U103: 0 | V103: 0 | W103: 0 | X103: 0 | Y103: 0 | Z103: 0 | AA103: 0 | AB103: 0 | AC103: 0 | AD103: 0 | AE103: 0
A104: Southwestern | B104: 3-C | C104: NRV | D104: Radford City | E104: 0 | F104: 1 | G104: 21 | H104: 22 | I104: 0 | J104: 6 | K104: 1 | L104: 6 | M104: 1 | N104: 3 | O104: 5 | P104: 0 | Q104: 0 | R104: 0 | S104: 2 | T104: 0 | U104: 0 | V104: 0 | W104: 0 | X104: 0 | Y104: 0 | Z104: 0 | AA104: 0 | AB104: 0 | AC104: 0 | AD104: 0 | AE104: 1
A105: Northern | B105: 2-B | C105: RapR | D105: Rappahannock County | E105: 0 | F105: 1 | G105: 5 | H105: 6 | I105: 0 | J105: 2 | K105: 1 | L105: 1 | M105: 0 | N105: 0 | O105: 1 | P105: 1 | Q105: 0 | R105: 0 | S105: 0 | T105: 0 | U105: 0 | V105: 0 | W105: 0 | X105: 0 | Y105: 0 | Z105: 0 | AA105: 0 | AB105: 0 | AC105: 0 | AD105: 0 | AE105: 0
A106: Central | B106: 4-A | C106: RBHA | D106: Richmond City | E106: 10 | F106: 32 | G106: 280 | H106: 322 | I106: 25 | J106: 120 | K106: 10 | L106: 107 | M106: 5 | N106: 29 | O106: 14 | P106: 12 | Q106: 0 | R106: 2 | S106: 2 | T106: 0 | U106: 0 | V106: 0 | W106: 0 | X106: 2 | Y106: 0 | Z106: 0 | AA106: 0 | AB106: 1 | AC106: 3 | AD106: 3 | AE106: 1
A107: Eastern | B107: 5-A | C107: MPNN | D107: Richmond County | E107: 1 | F107: 7 | G107: 42 | H107: 50 | I107: 3 | J107: 23 | K107: 2 | L107: 12 | M107: 0 | N107: 6 | O107: 2 | P107: 2 | Q107: 0 | R107: 0 | S107: 0 | T107: 0 | U107: 0 | V107: 0 | W107: 0 | X107: 0 | Y107: 0 | Z107: 0 | AA107: 0 | AB107: 0 | AC107: 0 | AD107: 0 | AE107: 0
A108: Southwestern | B108: 3-A | C108: BLUE | D108: Roanoke City | E108: 7 | F108: 19 | G108: 122 | H108: 148 | I108: 11 | J108: 49 | K108: 9 | L108: 46 | M108: 2 | N108: 8 | O108: 13 | P108: 10 | Q108: 0 | R108: 0 | S108: 3 | T108: 0 | U108: 0 | V108: 0 | W108: 1 | X108: 0 | Y108: 0 | Z108: 0 | AA108: 0 | AB108: 0 | AC108: 0 | AD108: 1 | AE108: 3
A109: Southwestern | B109: 3-A | C109: BLUE | D109: Roanoke County | E109: 4 | F109: 32 | G109: 175 | H109: 211 | I109: 15 | J109: 62 | K109: 13 | L109: 69 | M109: 5 | N109: 16 | O109: 18 | P109: 13 | Q109: 0 | R109: 1 | S109: 3 | T109: 0 | U109: 0 | V109: 0 | W109: 1 | X109: 3 | Y109: 0 | Z109: 0 | AA109: 0 | AB109: 0 | AC109: 1 | AD109: 2 | AE109: 3
A110: Western | B110: 1-C | C110: ROC | D110: Rockbridge County | E110: 0 | F110: 4 | G110: 55 | H110: 59 | I110: 9 | J110: 15 | K110: 7 | L110: 12 | M110: 0 | N110: 5 | O110: 8 | P110: 3 | Q110: 0 | R110: 0 | S110: 0 | T110: 0 | U110: 0 | V110: 0 | W110: 0 | X110: 0 | Y110: 0 | Z110: 0 | AA110: 0 | AB110: 0 | AC110: 0 | AD110: 0 | AE110: 0
A111: Western | B111: 1-B | C111: HARR | D111: Rockingham County | E111: 4 | F111: 15 | G111: 118 | H111: 137 | I111: 5 | J111: 54 | K111: 1 | L111: 48 | M111: 3 | N111: 15 | O111: 10 | P111: 1 | Q111: 0 | R111: 2 | S111: 3 | T111: 0 | U111: 0 | V111: 0 | W111: 1 | X111: 3 | Y111: 0 | Z111: 0 | AA111: 1 | AB111: 0 | AC111: 0 | AD111: 1 | AE111: 2
A112: Southwestern | B112: 3-D | C112: CMT | D112: Russell County | E112: 1 | F112: 3 | G112: 58 | H112: 62 | I112: 4 | J112: 29 | K112: 2 | L112: 11 | M112: 1 | N112: 9 | O112: 3 | P112: 3 | Q112: 0 | R112: 0 | S112: 0 | T112: 0 | U112: 0 | V112: 0 | W112: 0 | X112: 0 | Y112: 0 | Z112: 0 | AA112: 0 | AB112: 0 | AC112: 0 | AD112: 0 | AE112: 0
A113: Southwestern | B113: 3-A | C113: BLUE | D113: Salem City | E113: 0 | F113: 4 | G113: 21 | H113: 25 | I113: 1 | J113: 7 | K113: 3 | L113: 8 | M113: 0 | N113: 2 | O113: 1 | P113: 3 | Q113: 0 | R113: 1 | S113: 2 | T113: 0 | U113: 0 | V113: 0 | W113: 0 | X113: 2 | Y113: 0 | Z113: 0 | AA113: 0 | AB113: 1 | AC113: 1 | AD113: 3 | AE113: 0
A114: Southwestern | B114: 3-D | C114: PLD1 | D114: Scott County | E114: 1 | F114: 1 | G114: 64 | H114: 66 | I114: 4 | J114: 26 | K114: 1 | L114: 27 | M114: 0 | N114: 3 | O114: 2 | P114: 3 | Q114: 0 | R114: 0 | S114: 0 | T114: 0 | U114: 0 | V114: 0 | W114: 0 | X114: 0 | Y114: 0 | Z114: 0 | AA114: 0 | AB114: 0 | AC114: 0 | AD114: 0 | AE114: 0
A115: Northern | B115: 2-D | C115: NW | D115: Shenandoah County | E115: 5 | F115: 10 | G115: 87 | H115: 102 | I115: 0 | J115: 47 | K115: 4 | L115: 43 | M115: 0 | N115: 3 | O115: 5 | P115: 0 | Q115: 0 | R115: 2 | S115: 3 | T115: 0 | U115: 0 | V115: 0 | W115: 0 | X115: 0 | Y115: 0 | Z115: 0 | AA115: 0 | AB115: 0 | AC115: 0 | AD115: 0 | AE115: 1
A116: Southwestern | B116: 3-D | C116: MTRG | D116: Smyth County | E116: 0 | F116: 2 | G116: 76 | H116: 78 | I116: 2 | J116: 18 | K116: 3 | L116: 34 | M116: 5 | N116: 6 | O116: 2 | P116: 8 | Q116: 0 | R116: 0 | S116: 1 | T116: 0 | U116: 0 | V116: 0 | W116: 0 | X116: 0 | Y116: 0 | Z116: 0 | AA116: 0 | AB116: 0 | AC116: 0 | AD116: 0 | AE116: 1
A117: Eastern | B117: 5-D | C117: WT | D117: Southampton County | E117: 0 | F117: 0 | G117: 17 | H117: 17 | I117: 1 | J117: 6 | K117: 1 | L117: 8 | M117: 0 | N117: 1 | O117: 0 | P117: 0 | Q117: 0 | R117: 0 | S117: 0 | T117: 0 | U117: 0 | V117: 0 | W117: 0 | X117: 0 | Y117: 0 | Z117: 0 | AA117: 0 | AB117: 0 | AC117: 0 | AD117: 0 | AE117: 0
A118: Northern | B118: 2-C | C118: RapA | D118: Spotsylvania County | E118: 3 | F118: 30 | G118: 196 | H118: 229 | I118: 11 | J118: 78 | K118: 8 | L118: 75 | M118: 5 | N118: 22 | O118: 15 | P118: 15 | Q118: 0 | R118: 0 | S118: 4 | T118: 0 | U118: 0 | V118: 0 | W118: 0 | X118: 0 | Y118: 0 | Z118: 0 | AA118: 0 | AB118: 0 | AC118: 0 | AD118: 1 | AE118: 1
A119: Northern | B119: 2-C | C119: RapA | D119: Stafford County | E119: 6 | F119: 36 | G119: 178 | H119: 220 | I119: 15 | J119: 67 | K119: 14 | L119: 72 | M119: 2 | N119: 21 | O119: 18 | P119: 11 | Q119: 0 | R119: 1 | S119: 1 | T119: 0 | U119: 0 | V119: 0 | W119: 0 | X119: 1 | Y119: 0 | Z119: 0 | AA119: 0 | AB119: 0 | AC119: 1 | AD119: 1 | AE119: 0
A120: Western | B120: 1-B | C120: VLY | D120: Staunton City | E120: 0 | F120: 6 | G120: 57 | H120: 63 | I120: 7 | J120: 18 | K120: 4 | L120: 22 | M120: 0 | N120: 8 | O120: 4 | P120: 0 | Q120: 0 | R120: 1 | S120: 2 | T120: 0 | U120: 0 | V120: 0 | W120: 0 | X120: 2 | Y120: 0 | Z120: 0 | AA120: 0 | AB120: 0 | AC120: 0 | AD120: 0 | AE120: 2
A121: Eastern | B121: 5-D | C121: WT | D121: Suffolk City | E121: 0 | F121: 11 | G121: 146 | H121: 157 | I121: 6 | J121: 55 | K121: 9 | L121: 60 | M121: 1 | N121: 16 | O121: 8 | P121: 2 | Q121: 0 | R121: 3 | S121: 3 | T121: 0 | U121: 0 | V121: 0 | W121: 0 | X121: 3 | Y121: 0 | Z121: 0 | AA121: 0 | AB121: 0 | AC121: 1 | AD121: 1 | AE121: 1
A122: Central | B122: 4-D | C122: D19 | D122: Surry County | E122: 0 | F122: 0 | G122: 2 | H122: 2 | I122: 0 | J122: 1 | K122: 0 | L122: 0 | M122: 0 | N122: 1 | O122: 0 | P122: 0 | Q122: 0 | R122: 0 | S122: 0 | T122: 0 | U122: 0 | V122: 0 | W122: 0 | X122: 0 | Y122: 0 | Z122: 0 | AA122: 0 | AB122: 0 | AC122: 0 | AD122: 0 | AE122: 0
A123: Central | B123: 4-D | C123: D19 | D123: Sussex County | E123: 0 | F123: 0 | G123: 34 | H123: 34 | I123: 2 | J123: 17 | K123: 0 | L123: 13 | M123: 0 | N123: 2 | O123: 0 | P123: 0 | Q123: 0 | R123: 0 | S123: 0 | T123: 0 | U123: 0 | V123: 0 | W123: 0 | X123: 0 | Y123: 0 | Z123: 0 | AA123: 0 | AB123: 0 | AC123: 0 | AD123: 0 | AE123: 0
A124: Southwestern | B124: 3-D | C124: CMT | D124: Tazewell County | E124: 1 | F124: 6 | G124: 67 | H124: 74 | I124: 7 | J124: 26 | K124: 3 | L124: 23 | M124: 0 | N124: 8 | O124: 2 | P124: 5 | Q124: 0 | R124: 0 | S124: 1 | T124: 0 | U124: 0 | V124: 0 | W124: 0 | X124: 1 | Y124: 0 | Z124: 0 | AA124: 0 | AB124: 0 | AC124: 2 | AD124: 2 | AE124: 0
A125: Eastern | B125: 5-D | C125: VAB | D125: Virginia Beach City | E125: 13 | F125: 115 | G125: 645 | H125: 773 | I125: 56 | J125: 286 | K125: 29 | L125: 279 | M125: 10 | N125: 62 | O125: 28 | P125: 23 | Q125: 0 | R125: 2 | S125: 6 | T125: 0 | U125: 0 | V125: 0 | W125: 2 | X125: 12 | Y125: 0 | Z125: 0 | AA125: 2 | AB125: 0 | AC125: 7 | AD125: 10 | AE125: 6
A126: Northern | B126: 2-D | C126: NW | D126: Warren County | E126: 1 | F126: 20 | G126: 13 | H126: 34 | I126: 5 | J126: 15 | K126: 3 | L126: 6 | M126: 0 | N126: 4 | O126: 0 | P126: 1 | Q126: 0 | R126: 1 | S126: 1 | T126: 0 | U126: 0 | V126: 0 | W126: 0 | X126: 1 | Y126: 0 | Z126: 0 | AA126: 0 | AB126: 0 | AC126: 0 | AD126: 0 | AE126: 0
A127: Southwestern | B127: 3-D | C127: HIGH | D127: Washington County | E127: 1 | F127: 10 | G127: 80 | H127: 91 | I127: 6 | J127: 27 | K127: 1 | L127: 35 | M127: 1 | N127: 15 | O127: 4 | P127: 2 | Q127: 0 | R127: 0 | S127: 2 | T127: 0 | U127: 0 | V127: 0 | W127: 0 | X127: 0 | Y127: 0 | Z127: 0 | AA127: 0 | AB127: 0 | AC127: 2 | AD127: 2 | AE127: 1
A128: Western | B128: 1-B | C128: VLY | D128: Waynesboro City | E128: 0 | F128: 6 | G128: 69 | H128: 75 | I128: 3 | J128: 28 | K128: 2 | L128: 28 | M128: 0 | N128: 6 | O128: 4 | P128: 4 | Q128: 0 | R128: 0 | S128: 0 | T128: 0 | U128: 0 | V128: 0 | W128: 0 | X128: 0 | Y128: 0 | Z128: 0 | AA128: 0 | AB128: 0 | AC128: 0 | AD128: 0 | AE128: 1
A129: Eastern | B129: 5-A | C129: MPNN | D129: Westmoreland County | E129: 0 | F129: 2 | G129: 14 | H129: 16 | I129: 4 | J129: 2 | K129: 0 | L129: 4 | M129: 0 | N129: 1 | O129: 0 | P129: 5 | Q129: 0 | R129: 0 | S129: 0 | T129: 0 | U129: 0 | V129: 0 | W129: 0 | X129: 0 | Y129: 0 | Z129: 0 | AA129: 0 | AB129: 0 | AC129: 0 | AD129: 0 | AE129: 0
A130: Eastern | B130: 5-C | C130: COLO | D130: Williamsburg City | E130: 0 | F130: 0 | G130: 14 | H130: 14 | I130: 0 | J130: 9 | K130: 0 | L130: 3 | M130: 0 | N130: 0 | O130: 2 | P130: 0 | Q130: 0 | R130: 0 | S130: 1 | T130: 0 | U130: 0 | V130: 0 | W130: 0 | X130: 1 | Y130: 0 | Z130: 0 | AA130: 0 | AB130: 0 | AC130: 0 | AD130: 0 | AE130: 1
A131: Northern | B131: 2-D | C131: NW | D131: Winchester City | E131: 1 | F131: 14 | G131: 79 | H131: 94 | I131: 7 | J131: 49 | K131: 5 | L131: 20 | M131: 0 | N131: 3 | O131: 6 | P131: 4 | Q131: 0 | R131: 2 | S131: 3 | T131: 0 | U131: 0 | V131: 0 | W131: 0 | X131: 0 | Y131: 0 | Z131: 0 | AA131: 1 | AB131: 0 | AC131: 0 | AD131: 1 | AE131: 0
A132: Southwestern | B132: 3-D | C132: PLD1 | D132: Wise County | E132: 0 | F132: 4 | G132: 89 | H132: 93 | I132: 4 | J132: 33 | K132: 4 | L132: 30 | M132: 2 | N132: 6 | O132: 6 | P132: 8 | Q132: 0 | R132: 0 | S132: 5 | T132: 0 | U132: 0 | V132: 0 | W132: 0 | X132: 1 | Y132: 0 | Z132: 0 | AA132: 0 | AB132: 0 | AC132: 1 | AD132: 1 | AE132: 1
A133: Southwestern | B133: 3-C | C133: MTRG | D133: Wythe County | E133: 0 | F133: 7 | G133: 61 | H133: 68 | I133: 3 | J133: 16 | K133: 4 | L133: 24 | M133: 5 | N133: 5 | O133: 6 | P133: 5 | Q133: 0 | R133: 1 | S133: 1 | T133: 0 | U133: 0 | V133: 0 | W133: 0 | X133: 0 | Y133: 0 | Z133: 0 | AA133: 1 | AB133: 0 | AC133: 1 | AD133: 1 | AE133: 1
A134: Eastern | B134: 5-C | C134: COLO | D134: York County | E134: 0 | F134: 8 | G134: 36 | H134: 44 | I134: 4 | J134: 18 | K134: 0 | L134: 16 | M134: 0 | N134: 4 | O134: 0 | P134: 2 | Q134: 0 | R134: 0 | S134: 0 | T134: 0 | U134: 0 | V134: 0 | W134: 0 | X134: 0 | Y134: 0 | Z134: 0 | AA134: 0 | AB134: 0 | AC134: 1 | AD134: 0 | AE134: 0
A136: DS-Regional Totals - Unique
A137: Central | C137: na | D137: na | E137: 69 | F137: 296 | G137: 2500 | H137: 2865 | I137: 187 | J137: 1126 | K137: 174 | L137: 839 | M137: 34 | N137: 201 | O137: 176 | P137: 128 | Q137: 0 | R137: 9 | S137: 32 | T137: 0 | U137: 0 | V137: 0 | W137: 2 | X137: 16 | Y137: 0 | Z137: 0 | AA137: 6 | AB137: 1 | AC137: 12 | AD137: 7 | AE137: 11
A138: Eastern | C138: na | D138: na | E138: 75 | F138: 329 | G138: 2599 | H138: 3003 | I138: 240 | J138: 1158 | K138: 115 | L138: 998 | M138: 34 | N138: 246 | O138: 113 | P138: 99 | Q138: 0 | R138: 13 | S138: 31 | T138: 0 | U138: 0 | V138: 0 | W138: 6 | X138: 38 | Y138: 0 | Z138: 0 | AA138: 4 | AB138: 0 | AC138: 21 | AD138: 17 | AE138: 29
A139: Northern | C139: na | D139: na | E139: 62 | F139: 553 | G139: 2537 | H139: 3152 | I139: 226 | J139: 1152 | K139: 144 | L139: 937 | M139: 42 | N139: 263 | O139: 211 | P139: 177 | Q139: 0 | R139: 14 | S139: 28 | T139: 0 | U139: 0 | V139: 0 | W139: 1 | X139: 19 | Y139: 0 | Z139: 0 | AA139: 5 | AB139: 4 | AC139: 47 | AD139: 13 | AE139: 6
A140: Southwestern | C140: na | D140: na | E140: 44 | F140: 202 | G140: 1971 | H140: 2217 | I140: 128 | J140: 735 | K140: 107 | L140: 723 | M140: 50 | N140: 217 | O140: 166 | P140: 91 | Q140: 0 | R140: 7 | S140: 27 | T140: 0 | U140: 0 | V140: 0 | W140: 2 | X140: 18 | Y140: 0 | Z140: 0 | AA140: 2 | AB140: 1 | AC140: 6 | AD140: 6 | AE140: 10
A141: Western | C141: na | D141: na | E141: 17 | F141: 223 | G141: 1445 | H141: 1685 | I141: 112 | J141: 609 | K141: 68 | L141: 551 | M141: 25 | N141: 173 | O141: 77 | P141: 70 | Q141: 0 | R141: 6 | S141: 15 | T141: 0 | U141: 0 | V141: 0 | W141: 2 | X141: 13 | Y141: 0 | Z141: 0 | AA141: 1 | AB141: 0 | AC141: 2 | AD141: 4 | AE141: 18
A142: Total nonUnique | C142: na | D142: na | E142: =SUM(E137:E141) -> 267 | F142: 1603 | G142: 11052 | H142: 12922 | I142: 893 | J142: 4780 | K142: 608 | L142: 4048 | M142: 185 | N142: 1100 | O142: 743 | P142: 565 | Q142: =SUM(Q137:Q141) -> 0 | R142: =SUM(R137:R141) -> 49 | S142: 133 | T142: 0 | U142: 0 | V142: 0 | W142: 13 | X142: 104 | Y142: 0 | Z142: 0 | AA142: 18 | AB142: 6 | AC142: 88 | AD142: 47 | AE142: 74
A143: Total Unique | C143: na | D143: na | E143: 267 | F143: 1603 | G143: 11052 | H143: 12922 | I143: 893 | J143: 4780 | K143: 608 | L143: 4048 | M143: 185 | N143: 1100 | O143: 743 | P143: 565 | Q143: 0 | R143: 45 | S143: 126 | T143: 0 | U143: 0 | V143: 0 | W143: 13 | X143: 96 | Y143: 0 | Z143: 0 | AA143: 18 | AB143: 6 | AC143: 81 | AD143: 42 | AE143: 64
A144: DS-SubRegional Totals - Unique
A145: Western | B145: 1-A | C145: na | D145: na | E145: 7 | F145: 59 | G145: 247 | H145: 313 | I145: 22 | J145: 149 | K145: 5 | L145: 85 | M145: 3 | N145: 27 | O145: 7 | P145: 15 | Q145: 0 | R145: 1 | S145: 3 | T145: 0 | U145: 0 | V145: 0 | W145: 0 | X145: 3 | Y145: 0 | Z145: 0 | AA145: 0 | AB145: 0 | AC145: 1 | AD145: 2 | AE145: 3
A146: Western | B146: 1-B | C146: na | D146: na | E146: 5 | F146: 50 | G146: 445 | H146: 500 | I146: 31 | J146: 183 | K146: 20 | L146: 163 | M146: 6 | N146: 54 | O146: 28 | P146: 15 | Q146: 0 | R146: 4 | S146: 5 | T146: 0 | U146: 0 | V146: 0 | W146: 1 | X146: 5 | Y146: 0 | Z146: 0 | AA146: 1 | AB146: 0 | AC146: 1 | AD146: 1 | AE146: 6
A147: Western | B147: 1-C | C147: na | D147: na | E147: 1 | F147: 16 | G147: 120 | H147: 137 | I147: 20 | J147: 49 | K147: 10 | L147: 27 | M147: 1 | N147: 14 | O147: 12 | P147: 4 | Q147: 0 | R147: 1 | S147: 2 | T147: 0 | U147: 0 | V147: 0 | W147: 0 | X147: 2 | Y147: 0 | Z147: 0 | AA147: 0 | AB147: 0 | AC147: 0 | AD147: 1 | AE147: 0
A148: Western | B148: 1-D | C148: na | D148: na | E148: 4 | F148: 95 | G148: 619 | H148: 718 | I148: 39 | J148: 225 | K148: 29 | L148: 279 | M148: 16 | N148: 69 | O148: 26 | P148: 35 | Q148: 0 | R148: 1 | S148: 6 | T148: 0 | U148: 0 | V148: 0 | W148: 1 | X148: 4 | Y148: 0 | Z148: 0 | AA148: 0 | AB148: 0 | AC148: 0 | AD148: 1 | AE148: 12
A149: Northern | B149: 2-A | C149: na | D149: na | E149: 41 | F149: 355 | G149: 1580 | H149: 1976 | I149: 127 | J149: 672 | K149: 88 | L149: 611 | M149: 32 | N149: 175 | O149: 151 | P149: 120 | Q149: 0 | R149: 8 | S149: 14 | T149: 0 | U149: 0 | V149: 0 | W149: 1 | X149: 16 | Y149: 0 | Z149: 0 | AA149: 3 | AB149: 4 | AC149: 44 | AD149: 9 | AE149: 2
A150: Northern | B150: 2-B | C150: na | D150: na | F150: 41 | G150: 190 | H150: 231 | I150: 37 | J150: 106 | K150: 6 | L150: 50 | N150: 21 | O150: 5 | P150: 6 | Q150: 0 | R150: 1 | S150: 2 | T150: 0 | U150: 0 | V150: 0 | W150: 0 | X150: 0 | Y150: 0 | Z150: 0 | AA150: 0 | AB150: 0 | AC150: 1 | AD150: 1 | AE150: 0
A151: Northern | B151: 2-C | C151: na | D151: na | E151: 11 | F151: 80 | G151: 477 | H151: 568 | I151: 37 | J151: 189 | K151: 25 | L151: 185 | M151: 10 | N151: 50 | O151: 38 | P151: 34 | Q151: 0 | R151: 1 | S151: 4 | T151: 0 | U151: 0 | V151: 0 | W151: 0 | X151: 1 | Y151: 0 | Z151: 0 | AA151: 1 | AB151: 0 | AC151: 2 | AD151: 0 | AE151: 3
A152: Northern | B152: 2-D | C152: na | D152: na | E152: 10 | F152: 76 | G152: 318 | H152: 404 | I152: 24 | J152: 187 | K152: 25 | L152: 111 | N152: 19 | O152: 23 | P152: 15 | Q152: 0 | R152: 4 | S152: 8 | T152: 0 | U152: 0 | V152: 0 | W152: 0 | X152: 2 | Y152: 0 | Z152: 0 | AA152: 1 | AB152: 0 | AC152: 0 | AD152: 3 | AE152: 1
A153: Southwestern | B153: 3-A | C153: na | D153: na | E153: 17 | F153: 104 | G153: 558 | H153: 679 | I153: 39 | J153: 203 | K153: 44 | L153: 201 | M153: 14 | N153: 75 | O153: 70 | P153: 33 | Q153: 0 | R153: 2 | S153: 11 | T153: 0 | U153: 0 | V153: 0 | W153: 2 | X153: 8 | Y153: 0 | Z153: 0 | AA153: 0 | AB153: 1 | AC153: 3 | AD153: 4 | AE153: 5
A154: Southwestern | B154: 3-B | C154: na | D154: na | E154: 19 | F154: 38 | G154: 611 | H154: 668 | I154: 45 | J154: 260 | K154: 33 | L154: 216 | M154: 14 | N154: 47 | O154: 42 | P154: 11 | Q154: 0 | R154: 5 | S154: 6 | T154: 0 | U154: 0 | V154: 0 | W154: 0 | X154: 9 | Y154: 0 | Z154: 0 | AA154: 1 | AB154: 0 | AC154: 1 | AD154: 2 | AE154: 5
A155: Southwestern | B155: 3-C | C155: na | D155: na | E155: 1 | F155: 27 | G155: 213 | H155: 241 | I155: 7 | J155: 59 | K155: 8 | L155: 85 | M155: 9 | N155: 33 | O155: 30 | P155: 10 | Q155: 0 | R155: 3 | S155: 6 | T155: 0 | U155: 0 | V155: 0 | W155: 0 | X155: 2 | Y155: 0 | Z155: 0 | AA155: 1 | AB155: 0 | AC155: 2 | AD155: 2 | AE155: 3
A156: Southwestern | B156: 3-D | C156: na | D156: na | E156: 6 | F156: 34 | G156: 562 | H156: 602 | I156: 36 | J156: 212 | K156: 16 | L156: 205 | M156: 12 | N156: 63 | O156: 22 | P156: 36 | Q156: 0 | R156: 0 | S156: 10 | T156: 0 | U156: 0 | V156: 0 | W156: 0 | X156: 3 | Y156: 0 | Z156: 0 | AA156: 0 | AB156: 0 | AC156: 4 | AD156: 1 | AE156: 3
A157: Central | B157: 4-A | C157: na | D157: na | E157: 63 | F157: 236 | G157: 1831 | H157: 2130 | I157: 148 | J157: 811 | K157: 124 | L157: 620 | M157: 25 | N157: 153 | O157: 141 | P157: 108 | Q157: 0 | R157: 8 | S157: 25 | T157: 0 | U157: 0 | V157: 0 | W157: 2 | X157: 10 | Y157: 0 | Z157: 0 | AA157: 6 | AB157: 1 | AC157: 10 | AD157: 6 | AE157: 9
A158: Central | B158: 4-B | C158: na | D158: na | E158: 3 | F158: 18 | G158: 89 | H158: 110 | I158: 2 | J158: 46 | K158: 5 | L158: 42 | N158: 8 | O158: 1 | P158: 6 | Q158: 0 | R158: 0 | S158: 2 | T158: 0 | U158: 0 | V158: 0 | W158: 0 | X158: 1 | Y158: 0 | Z158: 0 | AA158: 0 | AB158: 0 | AC158: 0 | AD158: 0 | AE158: 1
A159: Central | B159: 4-C | C159: na | D159: na | E159: 2 | F159: 28 | G159: 277 | H159: 307 | I159: 23 | J159: 137 | K159: 29 | L159: 81 | M159: 5 | N159: 13 | O159: 11 | P159: 8 | Q159: 0 | R159: 1 | S159: 5 | T159: 0 | U159: 0 | V159: 0 | W159: 0 | X159: 3 | Y159: 0 | Z159: 0 | AA159: 0 | AB159: 0 | AC159: 1 | AD159: 0 | AE159: 1
A160: Central | B160: 4-D | C160: na | D160: na | E160: 1 | F160: 12 | G160: 352 | H160: 365 | I160: 16 | J160: 149 | K160: 31 | L160: 107 | M160: 5 | N160: 22 | O160: 28 | P160: 7 | Q160: 0 | R160: 0 | S160: 4 | T160: 0 | U160: 0 | V160: 0 | W160: 0 | X160: 2 | Y160: 0 | Z160: 0 | AA160: 0 | AB160: 0 | AC160: 1 | AD160: 1 | AE160: 3
A161: Eastern | B161: 5-A | C161: na | D161: na | E161: 2 | F161: 18 | G161: 255 | H161: 275 | I161: 22 | J161: 89 | K161: 9 | L161: 89 | M161: 11 | N161: 40 | O161: 3 | P161: 12 | Q161: 0 | R161: 1 | S161: 2 | T161: 0 | U161: 0 | V161: 0 | W161: 0 | X161: 1 | Y161: 0 | Z161: 0 | AA161: 0 | AB161: 0 | AC161: 2 | AD161: 1 | AE161: 0
A162: Eastern | B162: 5-B | C162: na | D162: na | F162: 3 | G162: 109 | H162: 112 | I162: 14 | J162: 58 | K162: 2 | L162: 22 | N162: 9 | O162: 1 | P162: 6 | Q162: 0 | R162: 0 | S162: 1 | T162: 0 | U162: 0 | V162: 0 | W162: 0 | X162: 1 | Y162: 0 | Z162: 0 | AA162: 1 | AB162: 0 | AC162: 0 | AD162: 0 | AE162: 0
A163: Eastern | B163: 5-C | C163: na | D163: na | E163: 27 | F163: 59 | G163: 510 | H163: 596 | I163: 43 | J163: 232 | K163: 27 | L163: 198 | M163: 2 | N163: 58 | O163: 18 | P163: 18 | Q163: 0 | R163: 3 | S163: 10 | T163: 0 | U163: 0 | V163: 0 | W163: 2 | X163: 12 | Y163: 0 | Z163: 0 | AA163: 1 | AB163: 0 | AC163: 7 | AD163: 4 | AE163: 14
A164: Eastern | B164: 5-D | C164: na | D164: na | E164: 47 | F164: 254 | G164: 1689 | H164: 1990 | I164: 161 | J164: 764 | K164: 72 | L164: 671 | M164: 20 | N164: 150 | O164: 86 | P164: 66 | Q164: 0 | R164: 9 | S164: 20 | T164: 0 | U164: 0 | V164: 0 | W164: 4 | X164: 24 | Y164: 0 | Z164: 0 | AA164: 2 | AB164: 0 | AC164: 14 | AD164: 12 | AE164: 15
A165: (Unique) Number of Individuals with approved Jump-Start Service Authorization Lines these 6 months
A166: Number of Individuals | E166: 107 | F166: 554 | G166: 5720 | H166: 6381 | I166: 467 | J166: 2372 | K166: 313 | L166: 1914 | M166: 76 | N166: 634 | O166: 379 | P166: 226 | Q166: 0 | R166: 298 | S166: 2729 | T166: 0 | U166: 0 | V166: 0 | W166: 42 | X166: 1874 | Y166: 0 | Z166: 0 | AA166: 129 | AB166: 19 | AC166: 303 | AD166: 298 | AE166: 1813
A167: Percent of possible Individuals | E167: =E166/E143 -> 0.4007490637 | F167: =F166/F143 -> 0.3456019963 | G167: =G166/G143 -> 0.517553384 | H167: =H166/H143 -> 0.4938090079 | I167: =I166/I143 -> 0.522956327 | J167: 0.4962343096 | K167: 0.5148026316 | L167: 0.472826087 | M167: 0.4108108108 | N167: 0.5763636364 | O167: 0.5100942127 | P167: =P166/P143 -> 0.4
A168: (Unique) Number of (approved Jump-Start) Service Authorization Lines (SALs) these 6 months
A169: Number of Jump-Start Service Authorization Lines | E169: 156 | F169: 943 | G169: 10459 | H169: 11558 | I169: 789 | J169: 4217 | K169: 593 | L169: 3478 | M169: 125 | N169: 1317 | O169: 717 | P169: 322 | Q169: 0 | R169: 424 | S169: 4056 | T169: 0 | U169: 0 | V169: 0 | W169: 53 | X169: 3008 | Y169: 0 | Z169: 0 | AA169: 174 | AB169: 53 | AC169: 608 | AD169: 473 | AE169: 2709
A170: Number of SA Lines per Person | E170: =E169/E166 -> 1.457943925 | F170: =F169/F166 -> 1.702166065 | G170: 1.828496503 | H170: 1.811314841 | I170: 1.689507495 | J170: 1.777824621 | K170: 1.89456869 | L170: 1.817136886 | M170: 1.644736842 | N170: 2.077287066 | O170: 1.89182058 | P170: 1.424778761 | R170: 1.422818792 | S170: 1.486258703 | W170: 1.261904762 | X170: 1.605122732 | AA170: 1.348837209 | AB170: 2.789473684 | AC170: 2.00660066 | AD170: 1.587248322 | AE170: 1.494208494

Sheet Master20181101
A1: DS Region | B1: SubRegion | C1: CSB | D1: City/County | E1: BI waiver | F1: FIS waiver | G1: CL waiver | H1: All waivers | I1: SIS L1 | J1: SIS L2 | K1: SIS L3 | L1: SIS L4 | M1: SIS L5 | N1: SIS L6 | O1: SIS L7 | P1: SIS Default | Q1: Benefits Planning | R1: Community Coaching | S1: Community Engagement | T1: Community Guide | U1: Electronic Home-Based Services | V1: Employment and Community Transportation | W1: Independent Living Supports | X1: In-home Supports | Y1: Peer Mentoring | Z1: Shared Living | AA1: Supported Living | AB1: Crisis Support Services | AC1: Private Duty Nursing | AD1: Skilled Nursing | AE1: Sponsored Residential
A2: Eastern | B2: 5-B | C2: EAST | D2: Accomack County | E2: 0 | F2: 4 | G2: 62 | H2: 66 | I2: 9 | J2: 31 | K2: 1 | L2: 16 | M2: 0 | N2: 4 | O2: 1 | P2: 4 | Q2: 0 | R2: 0 | S2: 1 | T2: 0 | U2: 0 | V2: 0 | W2: 0 | X2: 1 | Y2: 0 | Z2: 0 | AA2: 1 | AB2: 0 | AC2: 0 | AD2: 0 | AE2: 0
A3: Western | B3: 1-A | C3: RTEN | D3: Albemarle County | E3: 1 | F3: 28 | G3: 85 | H3: 114 | I3: 7 | J3: 58 | K3: 1 | L3: 34 | M3: 1 | N3: 7 | O3: 2 | P3: 4 | Q3: 0 | R3: 0 | S3: 3 | T3: 0 | U3: 0 | V3: 0 | W3: 0 | X3: 3 | Y3: 0 | Z3: 0 | AA3: 0 | AB3: 0 | AC3: 1 | AD3: 2 | AE3: 3
A4: Northern | B4: 2-A | C4: ALEX | D4: Alexandria City | E4: 4 | F4: 8 | G4: 81 | H4: 93 | I4: 10 | J4: 37 | K4: 2 | L4: 31 | M4: 1 | N4: 4 | O4: 6 | P4: 2 | Q4: 0 | R4: 0 | S4: 1 | T4: 0 | U4: 0 | V4: 0 | W4: 0 | X4: 1 | Y4: 0 | Z4: 0 | AA4: 1 | AB4: 0 | AC4: 2 | AD4: 0 | AE4: 0
A5: Western | B5: 1-C | C5: ALLE | D5: Alleghany County | E5: 1 | F5: 11 | G5: 34 | H5: 46 | I5: 6 | J5: 20 | K5: 1 | L5: 11 | M5: 0 | N5: 5 | O5: 2 | P5: 1 | Q5: 0 | R5: 1 | S5: 1 | T5: 0 | U5: 0 | V5: 0 | W5: 0 | X5: 2 | Y5: 0 | Z5: 0 | AA5: 0 | AB5: 0 | AC5: 0 | AD5: 0 | AE5: 0
A6: Central | B6: 4-B | C6: CROS | D6: Amelia County | E6: 0 | F6: 1 | G6: 13 | H6: 14 | I6: 1 | J6: 5 | K6: 0 | L6: 7 | M6: 0 | N6: 1 | O6: 0 | P6: 0 | Q6: 0 | R6: 0 | S6: 0 | T6: 0 | U6: 0 | V6: 0 | W6: 0 | X6: 0 | Y6: 0 | Z6: 0 | AA6: 0 | AB6: 0 | AC6: 0 | AD6: 0 | AE6: 0
A7: Western | B7: 1-D | C7: HORI | D7: Amherst County | E7: 0 | F7: 9 | G7: 144 | H7: 153 | I7: 4 | J7: 41 | K7: 4 | L7: 71 | M7: 4 | N7: 18 | O7: 9 | P7: 2 | Q7: 0 | R7: 1 | S7: 1 | T7: 0 | U7: 0 | V7: 0 | W7: 0 | X7: 0 | Y7: 0 | Z7: 0 | AA7: 0 | AB7: 0 | AC7: 0 | AD7: 2 | AE7: 2
A8: Western | B8: 1-D | C8: HORI | D8: Appomattox County | E8: 1 | F8: 7 | G8: 25 | H8: 33 | I8: 3 | J8: 14 | K8: 3 | L8: 9 | M8: 1 | N8: 2 | O8: 1 | P8: 0 | Q8: 0 | R8: 1 | S8: 1 | T8: 0 | U8: 0 | V8: 0 | W8: 0 | X8: 1 | Y8: 0 | Z8: 0 | AA8: 0 | AB8: 0 | AC8: 0 | AD8: 0 | AE8: 1
A9: Northern | B9: 2-A | C9: ARLI | D9: Arlington County | E9: 3 | F9: 23 | G9: 115 | H9: 141 | I9: 15 | J9: 47 | K9: 8 | L9: 51 | M9: 1 | N9: 9 | O9: 8 | P9: 2 | Q9: 0 | R9: 0 | S9: 0 | T9: 0 | U9: 0 | V9: 0 | W9: 0 | X9: 0 | Y9: 0 | Z9: 0 | AA9: 0 | AB9: 0 | AC9: 0 | AD9: 0 | AE9: 0
A10: Western | B10: 1-B | C10: VLY | D10: Augusta County | E10: 0 | F10: 16 | G10: 131 | H10: 147 | I10: 5 | J10: 49 | K10: 7 | L10: 46 | M10: 1 | N10: 23 | O10: 8 | P10: 8 | Q10: 0 | R10: 1 | S10: 1 | T10: 0 | U10: 0 | V10: 0 | W10: 0 | X10: 1 | Y10: 0 | Z10: 0 | AA10: 0 | AB10: 0 | AC10: 0 | AD10: 0 | AE10: 2
A11: Western | B11: 1-C | C11: ROC | D11: Bath County | E11: 0 | F11: 1 | G11: 8 | H11: 9 | I11: 2 | J11: 0 | K11: 2 | L11: 2 | M11: 0 | N11: 3 | O11: 0 | P11: 0 | Q11: 0 | R11: 0 | S11: 0 | T11: 0 | U11: 0 | V11: 0 | W11: 0 | X11: 0 | Y11: 0 | Z11: 0 | AA11: 0 | AB11: 0 | AC11: 0 | AD11: 0 | AE11: 0
A12: Western | B12: 1-D | C12: HORI | D12: Bedford County | E12: 1 | F12: 25 | G12: 156 | H12: 182 | I12: 4 | J12: 43 | K12: 5 | L12: 82 | M12: 4 | N12: 28 | O12: 6 | P12: 10 | Q12: 0 | R12: 0 | S12: 5 | T12: 0 | U12: 0 | V12: 0 | W12: 0 | X12: 5 | Y12: 0 | Z12: 0 | AA12: 0 | AB12: 0 | AC12: 0 | AD12: 2 | AE12: 4
A13: Southwestern | B13: 3-C | C13: MTRG | D13: Bland County | E13: 0 | F13: 2 | G13: 11 | H13: 13 | I13: 0 | J13: 1 | K13: 0 | L13: 8 | M13: 0 | N13: 3 | O13: 0 | P13: 1 | Q13: 0 | R13: 0 | S13: 0 | T13: 0 | U13: 0 | V13: 0 | W13: 0 | X13: 0 | Y13: 0 | Z13: 0 | AA13: 0 | AB13: 0 | AC13: 0 | AD13: 0 | AE13: 0
A14: Southwestern | B14: 3-A | C14: BLUE | D14: Botetourt County | E14: 0 | F14: 8 | G14: 34 | H14: 42 | I14: 0 | J14: 12 | K14: 0 | L14: 19 | M14: 1 | N14: 7 | O14: 2 | P14: 1 | Q14: 0 | R14: 0 | S14: 1 | T14: 0 | U14: 0 | V14: 0 | W14: 0 | X14: 0 | Y14: 0 | Z14: 0 | AA14: 0 | AB14: 0 | AC14: 0 | AD14: 1 | AE14: 0
A15: Southwestern | B15: 3-D | C15: HIGH | D15: Bristol City | E15: 1 | F15: 2 | G15: 42 | H15: 45 | I15: 2 | J15: 14 | K15: 2 | L15: 20 | M15: 1 | N15: 5 | O15: 0 | P15: 1 | Q15: 0 | R15: 0 | S15: 0 | T15: 0 | U15: 0 | V15: 0 | W15: 0 | X15: 1 | Y15: 0 | Z15: 0 | AA15: 0 | AB15: 0 | AC15: 0 | AD15: 0 | AE15: 0
A16: Central | B16: 4-D | C16: SS | D16: Brunswick County | E16: 0 | F16: 1 | G16: 34 | H16: 35 | I16: 3 | J16: 19 | K16: 1 | L16: 8 | M16: 0 | N16: 3 | O16: 0 | P16: 1 | Q16: 0 | R16: 0 | S16: 1 | T16: 0 | U16: 0 | V16: 0 | W16: 0 | X16: 0 | Y16: 0 | Z16: 0 | AA16: 0 | AB16: 0 | AC16: 0 | AD16: 0 | AE16: 0
A17: Southwestern | B17: 3-D | C17: CMT | D17: Buchanan County | E17: 0 | F17: 3 | G17: 28 | H17: 31 | I17: 1 | J17: 12 | K17: 0 | L17: 12 | M17: 0 | N17: 5 | O17: 1 | P17: 0 | Q17: 0 | R17: 0 | S17: 0 | T17: 0 | U17: 0 | V17: 0 | W17: 0 | X17: 0 | Y17: 0 | Z17: 0 | AA17: 0 | AB17: 0 | AC17: 0 | AD17: 0 | AE17: 0
A18: Central | B18: 4-B | C18: CROS | D18: Buckingham County | E18: 0 | F18: 2 | G18: 14 | H18: 16 | I18: 1 | J18: 5 | K18: 0 | L18: 8 | M18: 0 | N18: 1 | O18: 0 | P18: 1 | Q18: 0 | R18: 0 | S18: 0 | T18: 0 | U18: 0 | V18: 0 | W18: 0 | X18: 0 | Y18: 0 | Z18: 0 | AA18: 0 | AB18: 0 | AC18: 0 | AD18: 0 | AE18: 0
A19: Western | B19: 1-C | C19: ROC | D19: Buena Vista City | E19: 0 | F19: 0 | G19: 7 | H19: 7 | I19: 0 | J19: 2 | K19: 0 | L19: 4 | M19: 0 | N19: 0 | O19: 1 | P19: 0 | Q19: 0 | R19: 0 | S19: 0 | T19: 0 | U19: 0 | V19: 0 | W19: 0 | X19: 0 | Y19: 0 | Z19: 0 | AA19: 0 | AB19: 0 | AC19: 0 | AD19: 0 | AE19: 0
A20: Western | B20: 1-D | C20: HORI | D20: Campbell County | E20: 1 | F20: 22 | G20: 130 | H20: 153 | I20: 8 | J20: 44 | K20: 7 | L20: 57 | M20: 6 | N20: 16 | O20: 8 | P20: 7 | Q20: 0 | R20: 0 | S20: 0 | T20: 0 | U20: 0 | V20: 0 | W20: 0 | X20: 0 | Y20: 0 | Z20: 0 | AA20: 0 | AB20: 0 | AC20: 0 | AD20: 0 | AE20: 0
A21: Northern | B21: 2-C | C21: RapA | D21: Caroline County | E21: 1 | F21: 7 | G21: 41 | H21: 49 | I21: 3 | J21: 21 | K21: 1 | L21: 17 | M21: 0 | N21: 2 | O21: 3 | P21: 2 | Q21: 0 | R21: 0 | S21: 1 | T21: 0 | U21: 0 | V21: 0 | W21: 0 | X21: 0 | Y21: 0 | Z21: 0 | AA21: 0 | AB21: 0 | AC21: 0 | AD21: 0 | AE21: 0
A22: Southwestern | B22: 3-B | C22: MTRG | D22: Carroll County | E22: 2 | F22: 7 | G22: 177 | H22: 186 | I22: 0 | J22: 36 | K22: 6 | L22: 75 | M22: 11 | N22: 20 | O22: 34 | P22: 4 | Q22: 0 | R22: 0 | S22: 0 | T22: 0 | U22: 0 | V22: 0 | W22: 0 | X22: 0 | Y22: 0 | Z22: 0 | AA22: 0 | AB22: 0 | AC22: 0 | AD22: 0 | AE22: 1
A23: Central | B23: 4-A | C23: HENR | D23: Charles City County | E23: 0 | F23: 1 | G23: 3 | H23: 4 | I23: 0 | J23: 3 | K23: 0 | L23: 1 | M23: 0 | N23: 0 | O23: 0 | P23: 0 | Q23: 0 | R23: 0 | S23: 1 | T23: 0 | U23: 0 | V23: 0 | W23: 0 | X23: 0 | Y23: 0 | Z23: 0 | AA23: 0 | AB23: 0 | AC23: 0 | AD23: 0 | AE23: 0
A24: Central | B24: 4-C | C24: CROS | D24: Charlotte County | E24: 0 | F24: 4 | G24: 29 | H24: 33 | I24: 5 | J24: 9 | K24: 4 | L24: 8 | M24: 0 | N24: 3 | O24: 3 | P24: 1 | Q24: 0 | R24: 0 | S24: 2 | T24: 0 | U24: 0 | V24: 0 | W24: 0 | X24: 0 | Y24: 0 | Z24: 0 | AA24: 0 | AB24: 0 | AC24: 0 | AD24: 0 | AE24: 0
A25: Western | B25: 1-A | C25: RTEN | D25: Charlottesville City | E25: 4 | F25: 7 | G25: 83 | H25: 94 | I25: 7 | J25: 42 | K25: 1 | L25: 28 | M25: 1 | N25: 10 | O25: 0 | P25: 5 | Q25: 0 | R25: 0 | S25: 0 | T25: 0 | U25: 0 | V25: 0 | W25: 0 | X25: 0 | Y25: 0 | Z25: 0 | AA25: 0 | AB25: 0 | AC25: 0 | AD25: 0 | AE25: 0
A26: Eastern | B26: 5-D | C26: CHSP | D26: Chesapeake City | E26: 9 | F26: 57 | G26: 270 | H26: 336 | I26: 18 | J26: 114 | K26: 15 | L26: 116 | M26: 3 | N26: 30 | O26: 21 | P26: 19 | Q26: 0 | R26: 4 | S26: 6 | T26: 0 | U26: 0 | V26: 0 | W26: 0 | X26: 5 | Y26: 0 | Z26: 0 | AA26: 0 | AB26: 0 | AC26: 9 | AD26: 4 | AE26: 4
A27: Central | B27: 4-A | C27: CHST | D27: Chesterfield County | E27: 25 | F27: 68 | G27: 896 | H27: 989 | I27: 61 | J27: 340 | K27: 65 | L27: 316 | M27: 19 | N27: 76 | O27: 72 | P27: 40 | Q27: 0 | R27: 3 | S27: 11 | T27: 0 | U27: 0 | V27: 0 | W27: 0 | X27: 5 | Y27: 0 | Z27: 0 | AA27: 3 | AB27: 1 | AC27: 6 | AD27: 2 | AE27: 4
A28: Northern | B28: 2-D | C28: NW | D28: Clarke County | E28: 0 | F28: 2 | G28: 13 | H28: 15 | I28: 1 | J28: 8 | K28: 1 | L28: 3 | M28: 0 | N28: 0 | O28: 1 | P28: 1 | Q28: 0 | R28: 0 | S28: 0 | T28: 0 | U28: 0 | V28: 0 | W28: 0 | X28: 0 | Y28: 0 | Z28: 0 | AA28: 0 | AB28: 0 | AC28: 0 | AD28: 0 | AE28: 0
A29: Central | B29: 4-A | C29: D19 | D29: Colonial Heights City | E29: 1 | F29: 2 | G29: 14 | H29: 17 | I29: 3 | J29: 6 | K29: 0 | L29: 2 | M29: 1 | N29: 1 | O29: 1 | P29: 3 | Q29: 0 | R29: 0 | S29: 2 | T29: 0 | U29: 0 | V29: 0 | W29: 0 | X29: 1 | Y29: 0 | Z29: 0 | AA29: 0 | AB29: 0 | AC29: 0 | AD29: 0 | AE29: 1
A30: Western | B30: 1-C | C30: ALLE | D30: Covington City | E30: 0 | F30: 0 | G30: 13 | H30: 13 | I30: 1 | J30: 7 | K30: 1 | L30: 0 | M30: 1 | N30: 1 | O30: 0 | P30: 2 | Q30: 0 | R30: 1 | S30: 1 | T30: 0 | U30: 0 | V30: 0 | W30: 0 | X30: 2 | Y30: 0 | Z30: 0 | AA30: 0 | AB30: 0 | AC30: 0 | AD30: 1 | AE30: 0
A31: Southwestern | B31: 3-A | C31: BLUE | D31: Craig County | E31: 1 | F31: 2 | G31: 5 | H31: 8 | I31: 0 | J31: 3 | K31: 0 | L31: 0 | M31: 0 | N31: 1 | O31: 2 | P31: 2 | Q31: 0 | R31: 0 | S31: 0 | T31: 0 | U31: 0 | V31: 0 | W31: 0 | X31: 1 | Y31: 0 | Z31: 0 | AA31: 0 | AB31: 0 | AC31: 0 | AD31: 0 | AE31: 0
A32: Northern | B32: 2-B | C32: RapR | D32: Culpeper County | E32: 2 | F32: 6 | G32: 81 | H32: 89 | I32: 17 | J32: 41 | K32: 1 | L32: 18 | M32: 0 | N32: 5 | O32: 4 | P32: 3 | Q32: 0 | R32: 1 | S32: 2 | T32: 0 | U32: 0 | V32: 0 | W32: 0 | X32: 0 | Y32: 0 | Z32: 0 | AA32: 0 | AB32: 0 | AC32: 0 | AD32: 1 | AE32: 0
A33: Central | B33: 4-B | C33: CROS | D33: Cumberland County | E33: 1 | F33: 2 | G33: 27 | H33: 30 | I33: 2 | J33: 12 | K33: 1 | L33: 14 | M33: 0 | N33: 0 | O33: 0 | P33: 1 | Q33: 0 | R33: 0 | S33: 1 | T33: 0 | U33: 0 | V33: 0 | W33: 0 | X33: 0 | Y33: 0 | Z33: 0 | AA33: 0 | AB33: 0 | AC33: 0 | AD33: 0 | AE33: 0
A34: Southwestern | B34: 3-B | C34: DANV | D34: Danville City | E34: 10 | F34: 13 | G34: 146 | H34: 169 | I34: 22 | J34: 61 | K34: 3 | L34: 61 | M34: 2 | N34: 11 | O34: 3 | P34: 6 | Q34: 0 | R34: 2 | S34: 3 | T34: 0 | U34: 0 | V34: 0 | W34: 1 | X34: 9 | Y34: 0 | Z34: 0 | AA34: 1 | AB34: 0 | AC34: 1 | AD34: 2 | AE34: 2
A35: Southwestern | B35: 3-D | C35: DCBH | D35: Dickenson County | E35: 0 | F35: 1 | G35: 28 | H35: 29 | I35: 2 | J35: 11 | K35: 0 | L35: 9 | M35: 1 | N35: 2 | O35: 1 | P35: 3 | Q35: 0 | R35: 0 | S35: 1 | T35: 0 | U35: 0 | V35: 0 | W35: 0 | X35: 0 | Y35: 0 | Z35: 0 | AA35: 0 | AB35: 0 | AC35: 0 | AD35: 0 | AE35: 0
A36: Central | B36: 4-D | C36: D19 | D36: Dinwiddie County | E36: 0 | F36: 4 | G36: 63 | H36: 67 | I36: 0 | J36: 21 | K36: 7 | L36: 20 | M36: 2 | N36: 6 | O36: 7 | P36: 4 | Q36: 0 | R36: 0 | S36: 0 | T36: 0 | U36: 0 | V36: 0 | W36: 0 | X36: 0 | Y36: 0 | Z36: 0 | AA36: 0 | AB36: 0 | AC36: 0 | AD36: 0 | AE36: 0
A37: Central | B37: 4-C | C37: D19 | D37: Emporia City | E37: 0 | F37: 2 | G37: 3 | H37: 5 | I37: 0 | J37: 0 | K37: 0 | L37: 2 | M37: 0 | N37: 2 | O37: 0 | P37: 1 | Q37: 0 | R37: 0 | S37: 0 | T37: 0 | U37: 0 | V37: 0 | W37: 0 | X37: 0 | Y37: 0 | Z37: 0 | AA37: 0 | AB37: 0 | AC37: 1 | AD37: 0 | AE37: 0
A38: Eastern | B38: 5-A | C38: MPNN | D38: Essex County | E38: 0 | F38: 1 | G38: 17 | H38: 18 | I38: 3 | J38: 6 | K38: 1 | L38: 5 | M38: 1 | N38: 1 | O38: 0 | P38: 1 | Q38: 0 | R38: 0 | S38: 0 | T38: 0 | U38: 0 | V38: 0 | W38: 0 | X38: 0 | Y38: 0 | Z38: 0 | AA38: 0 | AB38: 0 | AC38: 0 | AD38: 0 | AE38: 0
A39: Northern | B39: 2-A | C39: FFFC | D39: Fairfax City | E39: 0 | F39: 0 | G39: 6 | H39: 6 | I39: 0 | J39: 2 | K39: 0 | L39: 4 | M39: 0 | N39: 0 | O39: 0 | P39: 0 | Q39: 0 | R39: 0 | S39: 0 | T39: 0 | U39: 0 | V39: 0 | W39: 0 | X39: 0 | Y39: 0 | Z39: 0 | AA39: 0 | AB39: 0 | AC39: 0 | AD39: 0 | AE39: 0
A40: Northern | B40: 2-A | C40: FFFC | D40: Fairfax County | E40: 20 | F40: 250 | G40: 838 | H40: 1108 | I40: 68 | J40: 342 | K40: 43 | L40: 385 | M40: 18 | N40: 80 | O40: 79 | P40: 93 | Q40: 0 | R40: 8 | S40: 8 | T40: 0 | U40: 0 | V40: 0 | W40: 2 | X40: 17 | Y40: 0 | Z40: 0 | AA40: 2 | AB40: 1 | AC40: 39 | AD40: 3 | AE40: 1
A41: Northern | B41: 2-A | C41: FFFC | D41: Falls Church City | E41: 0 | F41: 0 | G41: 1 | H41: 1 | I41: 0 | J41: 0 | K41: 1 | L41: 0 | M41: 0 | N41: 0 | O41: 0 | P41: 0 | Q41: 0 | R41: 0 | S41: 0 | T41: 0 | U41: 0 | V41: 0 | W41: 0 | X41: 0 | Y41: 0 | Z41: 0 | AA41: 0 | AB41: 0 | AC41: 2 | AD41: 0 | AE41: 0
A42: Northern | B42: 2-B | C42: RapR | D42: Fauquier County | E42: 0 | F42: 16 | G42: 59 | H42: 75 | I42: 6 | J42: 33 | K42: 1 | L42: 21 | M42: 0 | N42: 12 | O42: 2 | P42: 0 | Q42: 0 | R42: 0 | S42: 0 | T42: 0 | U42: 0 | V42: 0 | W42: 0 | X42: 0 | Y42: 0 | Z42: 0 | AA42: 0 | AB42: 0 | AC42: 2 | AD42: 1 | AE42: 0
A43: Southwestern | B43: 3-C | C43: NRV | D43: Floyd County | E43: 0 | F43: 6 | G43: 45 | H43: 51 | I43: 2 | J43: 11 | K43: 1 | L43: 16 | M43: 1 | N43: 10 | O43: 10 | P43: 0 | Q43: 0 | R43: 2 | S43: 2 | T43: 0 | U43: 0 | V43: 0 | W43: 0 | X43: 3 | Y43: 0 | Z43: 0 | AA43: 0 | AB43: 0 | AC43: 1 | AD43: 2 | AE43: 2
A44: Western | B44: 1-A | C44: RTEN | D44: Fluvanna County | E44: 1 | F44: 2 | G44: 16 | H44: 19 | I44: 1 | J44: 8 | K44: 0 | L44: 5 | M44: 0 | N44: 4 | O44: 1 | P44: 0 | Q44: 0 | R44: 0 | S44: 0 | T44: 0 | U44: 0 | V44: 0 | W44: 0 | X44: 0 | Y44: 0 | Z44: 0 | AA44: 0 | AB44: 0 | AC44: 0 | AD44: 0 | AE44: 0
A45: Eastern | B45: 5-D | C45: WT | D45: Franklin City | E45: 0 | F45: 1 | G45: 26 | H45: 27 | I45: 1 | J45: 6 | K45: 0 | L45: 15 | M45: 0 | N45: 4 | O45: 1 | P45: 0 | Q45: 0 | R45: 1 | S45: 2 | T45: 0 | U45: 0 | V45: 0 | W45: 0 | X45: 1 | Y45: 0 | Z45: 0 | AA45: 0 | AB45: 0 | AC45: 2 | AD45: 1 | AE45: 1
A46: Southwestern | B46: 3-A | C46: PDMT | D46: Franklin County | E46: 6 | F46: 11 | G46: 89 | H46: 106 | I46: 5 | J46: 38 | K46: 5 | L46: 26 | M46: 2 | N46: 18 | O46: 9 | P46: 3 | Q46: 0 | R46: 0 | S46: 1 | T46: 0 | U46: 0 | V46: 0 | W46: 0 | X46: 0 | Y46: 0 | Z46: 0 | AA46: 0 | AB46: 0 | AC46: 0 | AD46: 0 | AE46: 0
A47: Northern | B47: 2-D | C47: NW | D47: Frederick County | E47: 3 | F47: 24 | G47: 106 | H47: 133 | I47: 9 | J47: 54 | K47: 10 | L47: 35 | M47: 0 | N47: 8 | O47: 11 | P47: 6 | Q47: 0 | R47: 1 | S47: 2 | T47: 0 | U47: 0 | V47: 0 | W47: 0 | X47: 1 | Y47: 0 | Z47: 0 | AA47: 0 | AB47: 0 | AC47: 0 | AD47: 4 | AE47: 2
A48: Northern | B48: 2-C | C48: RapA | D48: Fredericksburg City | E48: 0 | F48: 3 | G48: 47 | H48: 50 | I48: 8 | J48: 17 | K48: 0 | L48: 15 | M48: 2 | N48: 4 | O48: 3 | P48: 1 | Q48: 0 | R48: 1 | S48: 1 | T48: 0 | U48: 0 | V48: 0 | W48: 0 | X48: 2 | Y48: 0 | Z48: 0 | AA48: 1 | AB48: 0 | AC48: 1 | AD48: 0 | AE48: 2
A49: Southwestern | B49: 3-B | C49: MTRG | D49: Galax City | E49: 0 | F49: 1 | G49: 29 | H49: 30 | I49: 1 | J49: 7 | K49: 3 | L49: 10 | M49: 1 | N49: 2 | O49: 5 | P49: 1 | Q49: 0 | R49: 2 | S49: 1 | T49: 0 | U49: 0 | V49: 0 | W49: 0 | X49: 2 | Y49: 0 | Z49: 0 | AA49: 0 | AB49: 0 | AC49: 0 | AD49: 0 | AE49: 3
A50: Southwestern | B50: 3-A | C50: NRV | D50: Giles County | E50: 0 | F50: 3 | G50: 32 | H50: 35 | I50: 0 | J50: 8 | K50: 2 | L50: 9 | M50: 0 | N50: 9 | O50: 6 | P50: 1 | Q50: 0 | R50: 0 | S50: 0 | T50: 0 | U50: 0 | V50: 0 | W50: 0 | X50: 0 | Y50: 0 | Z50: 0 | AA50: 0 | AB50: 0 | AC50: 0 | AD50: 0 | AE50: 0
A51: Eastern | B51: 5-A | C51: MPNN | D51: Gloucester County | E51: 0 | F51: 7 | G51: 77 | H51: 84 | I51: 6 | J51: 32 | K51: 2 | L51: 14 | M51: 5 | N51: 19 | O51: 1 | P51: 5 | Q51: 0 | R51: 1 | S51: 1 | T51: 0 | U51: 0 | V51: 0 | W51: 0 | X51: 1 | Y51: 0 | Z51: 0 | AA51: 0 | AB51: 0 | AC51: 2 | AD51: 2 | AE51: 0
A52: Central | B52: 4-B | C52: GOOC | D52: Goochland County | E52: 1 | F52: 6 | G52: 17 | H52: 24 | I52: 0 | J52: 10 | K52: 2 | L52: 7 | M52: 0 | N52: 4 | O52: 1 | P52: 0 | Q52: 0 | R52: 0 | S52: 1 | T52: 0 | U52: 0 | V52: 0 | W52: 0 | X52: 2 | Y52: 0 | Z52: 0 | AA52: 0 | AB52: 0 | AC52: 0 | AD52: 0 | AE52: 1
A53: Southwestern | B53: 3-B | C53: MTRG | D53: Grayson County | E53: 1 | F53: 0 | G53: 35 | H53: 36 | I53: 1 | J53: 12 | K53: 3 | L53: 16 | M53: 0 | N53: 4 | O53: 0 | P53: 0 | Q53: 0 | R53: 0 | S53: 0 | T53: 0 | U53: 0 | V53: 0 | W53: 0 | X53: 0 | Y53: 0 | Z53: 0 | AA53: 0 | AB53: 0 | AC53: 0 | AD53: 0 | AE53: 0
A54: Western | B54: 1-A | C54: RTEN | D54: Greene County | E54: 0 | F54: 6 | G54: 15 | H54: 21 | I54: 1 | J54: 8 | K54: 1 | L54: 7 | M54: 1 | N54: 3 | O54: 0 | P54: 0 | Q54: 0 | R54: 0 | S54: 0 | T54: 0 | U54: 0 | V54: 0 | W54: 0 | X54: 0 | Y54: 0 | Z54: 0 | AA54: 0 | AB54: 0 | AC54: 0 | AD54: 0 | AE54: 0
A55: Central | B55: 4-D | C55: D19 | D55: Greensville County | E55: 0 | F55: 1 | G55: 11 | H55: 12 | I55: 0 | J55: 4 | K55: 0 | L55: 6 | M55: 0 | N55: 1 | O55: 0 | P55: 1 | Q55: 0 | R55: 0 | S55: 0 | T55: 0 | U55: 0 | V55: 0 | W55: 0 | X55: 0 | Y55: 0 | Z55: 0 | AA55: 0 | AB55: 0 | AC55: 0 | AD55: 0 | AE55: 0
A56: Central | B56: 4-C | C56: SS | D56: Halifax County | E56: 1 | F56: 9 | G56: 70 | H56: 80 | I56: 8 | J56: 38 | K56: 9 | L56: 16 | M56: 3 | N56: 2 | O56: 2 | P56: 2 | Q56: 0 | R56: 0 | S56: 1 | T56: 0 | U56: 0 | V56: 0 | W56: 0 | X56: 0 | Y56: 0 | Z56: 0 | AA56: 0 | AB56: 0 | AC56: 0 | AD56: 0 | AE56: 0
A57: Eastern | B57: 5-C | C57: HAMP | D57: Hampton City | E57: 11 | F57: 32 | G57: 241 | H57: 284 | I57: 17 | J57: 120 | K57: 12 | L57: 86 | M57: 0 | N57: 28 | O57: 9 | P57: 12 | Q57: 0 | R57: 2 | S57: 6 | T57: 0 | U57: 0 | V57: 0 | W57: 0 | X57: 5 | Y57: 0 | Z57: 0 | AA57: 1 | AB57: 0 | AC57: 1 | AD57: 1 | AE57: 6
A58: Central | B58: 4-A | C58: HANO | D58: Hanover County | E58: 16 | F58: 41 | G58: 159 | H58: 216 | I58: 18 | J58: 73 | K58: 11 | L58: 60 | M58: 4 | N58: 23 | O58: 15 | P58: 12 | Q58: 0 | R58: 0 | S58: 4 | T58: 0 | U58: 0 | V58: 0 | W58: 0 | X58: 1 | Y58: 0 | Z58: 0 | AA58: 1 | AB58: 0 | AC58: 1 | AD58: 0 | AE58: 1
A59: Western | B59: 1-B | C59: HARR | D59: Harrisonburg City | E59: 3 | F59: 11 | G59: 57 | H59: 71 | I59: 12 | J59: 26 | K59: 3 | L59: 20 | M59: 0 | N59: 5 | O59: 2 | P59: 3 | Q59: 0 | R59: 0 | S59: 0 | T59: 0 | U59: 0 | V59: 0 | W59: 0 | X59: 0 | Y59: 0 | Z59: 0 | AA59: 0 | AB59: 0 | AC59: 0 | AD59: 0 | AE59: 0
A60: Central | B60: 4-A | C60: HENR | D60: Henrico County | E60: 17 | F60: 103 | G60: 473 | H60: 593 | I60: 43 | J60: 249 | K60: 32 | L60: 171 | M60: 4 | N60: 31 | O60: 40 | P60: 23 | Q60: 1 | R60: 3 | S60: 8 | T60: 0 | U60: 0 | V60: 0 | W60: 2 | X60: 11 | Y60: 0 | Z60: 0 | AA60: 2 | AB60: 0 | AC60: 2 | AD60: 1 | AE60: 5
A61: Southwestern | B61: 3-B | C61: PDMT | D61: Henry County | E61: 3 | F61: 5 | G61: 85 | H61: 93 | I61: 11 | J61: 42 | K61: 1 | L61: 23 | M61: 2 | N61: 5 | O61: 4 | P61: 5 | Q61: 0 | R61: 0 | S61: 0 | T61: 0 | U61: 0 | V61: 0 | W61: 0 | X61: 0 | Y61: 0 | Z61: 0 | AA61: 0 | AB61: 0 | AC61: 0 | AD61: 0 | AE61: 0
A62: Western | B62: 1-B | C62: VLY | D62: Highland County | E62: 0 | F62: 0 | G62: 7 | H62: 7 | I62: 0 | J62: 2 | K62: 0 | L62: 4 | M62: 0 | N62: 1 | O62: 0 | P62: 0 | Q62: 0 | R62: 0 | S62: 0 | T62: 0 | U62: 0 | V62: 0 | W62: 0 | X62: 0 | Y62: 0 | Z62: 0 | AA62: 0 | AB62: 0 | AC62: 0 | AD62: 0 | AE62: 0
A63: Central | B63: 4-D | C63: D19 | D63: Hopewell City | E63: 0 | F63: 2 | G63: 23 | H63: 25 | I63: 2 | J63: 10 | K63: 3 | L63: 6 | M63: 1 | N63: 1 | O63: 2 | P63: 0 | Q63: 0 | R63: 0 | S63: 0 | T63: 0 | U63: 0 | V63: 0 | W63: 0 | X63: 0 | Y63: 0 | Z63: 0 | AA63: 0 | AB63: 0 | AC63: 0 | AD63: 0 | AE63: 1
A64: Eastern | B64: 5-D | C64: WT | D64: Isle of Wight County | E64: 2 | F64: 2 | G64: 21 | H64: 25 | I64: 1 | J64: 10 | K64: 0 | L64: 12 | M64: 1 | N64: 1 | O64: 0 | P64: 0 | Q64: 0 | R64: 1 | S64: 2 | T64: 0 | U64: 0 | V64: 0 | W64: 0 | X64: 0 | Y64: 0 | Z64: 0 | AA64: 0 | AB64: 0 | AC64: 0 | AD64: 1 | AE64: 0
A65: Eastern | B65: 5-C | C65: COLO | D65: James City County | E65: 1 | F65: 13 | G65: 33 | H65: 47 | I65: 4 | J65: 16 | K65: 2 | L65: 16 | M65: 1 | N65: 3 | O65: 2 | P65: 3 | Q65: 0 | R65: 0 | S65: 0 | T65: 0 | U65: 0 | V65: 0 | W65: 0 | X65: 0 | Y65: 0 | Z65: 0 | AA65: 0 | AB65: 0 | AC65: 0 | AD65: 0 | AE65: 1
A66: Eastern | B66: 5-A | C66: MPNN | D66: King and Queen County | E66: 1 | F66: 0 | G66: 5 | H66: 6 | I66: 0 | J66: 3 | K66: 0 | L66: 1 | M66: 0 | N66: 2 | O66: 0 | P66: 0 | Q66: 0 | R66: 0 | S66: 0 | T66: 0 | U66: 0 | V66: 0 | W66: 0 | X66: 0 | Y66: 0 | Z66: 0 | AA66: 0 | AB66: 0 | AC66: 0 | AD66: 0 | AE66: 0
A67: Northern | B67: 2-C | C67: RapA | D67: King George County | E67: 0 | F67: 6 | G67: 18 | H67: 24 | I67: 2 | J67: 7 | K67: 0 | L67: 11 | M67: 0 | N67: 1 | O67: 1 | P67: 2 | Q67: 0 | R67: 0 | S67: 1 | T67: 0 | U67: 0 | V67: 0 | W67: 0 | X67: 0 | Y67: 0 | Z67: 0 | AA67: 0 | AB67: 0 | AC67: 0 | AD67: 0 | AE67: 0
A68: Eastern | B68: 5-A | C68: MPNN | D68: King William County | E68: 0 | F68: 1 | G68: 24 | H68: 25 | I68: 0 | J68: 3 | K68: 2 | L68: 10 | M68: 2 | N68: 8 | O68: 0 | P68: 0 | Q68: 0 | R68: 0 | S68: 0 | T68: 0 | U68: 0 | V68: 0 | W68: 0 | X68: 0 | Y68: 0 | Z68: 0 | AA68: 0 | AB68: 0 | AC68: 0 | AD68: 0 | AE68: 0
A69: Eastern | B69: 5-A | C69: MPNN | D69: Lancaster County | E69: 0 | F69: 0 | G69: 8 | H69: 8 | I69: 4 | J69: 3 | K69: 1 | L69: 0 | M69: 0 | N69: 0 | O69: 0 | P69: 0 | Q69: 0 | R69: 0 | S69: 0 | T69: 0 | U69: 0 | V69: 0 | W69: 0 | X69: 0 | Y69: 0 | Z69: 0 | AA69: 0 | AB69: 0 | AC69: 0 | AD69: 0 | AE69: 0
A70: Southwestern | B70: 3-D | C70: PLD1 | D70: Lee County | E70: 1 | F70: 3 | G70: 27 | H70: 31 | I70: 3 | J70: 11 | K70: 1 | L70: 12 | M70: 1 | N70: 2 | O70: 0 | P70: 1 | Q70: 0 | R70: 0 | S70: 0 | T70: 0 | U70: 0 | V70: 0 | W70: 0 | X70: 0 | Y70: 0 | Z70: 0 | AA70: 0 | AB70: 0 | AC70: 0 | AD70: 0 | AE70: 0
A71: Western | B71: 1-C | C71: ROC | D71: Lexington City | E71: 0 | F71: 0 | G71: 4 | H71: 4 | I71: 2 | J71: 1 | K71: 0 | L71: 0 | M71: 0 | N71: 0 | O71: 1 | P71: 0 | Q71: 0 | R71: 0 | S71: 1 | T71: 0 | U71: 0 | V71: 0 | W71: 0 | X71: 0 | Y71: 0 | Z71: 0 | AA71: 0 | AB71: 0 | AC71: 0 | AD71: 0 | AE71: 0
A72: Northern | B72: 2-A | C72: LOUD | D72: Loudoun County | E72: 7 | F72: 51 | G72: 167 | H72: 225 | I72: 16 | J72: 71 | K72: 5 | L72: 61 | M72: 4 | N72: 23 | O72: 26 | P72: 19 | Q72: 0 | R72: 0 | S72: 1 | T72: 0 | U72: 0 | V72: 0 | W72: 0 | X72: 2 | Y72: 0 | Z72: 0 | AA72: 0 | AB72: 0 | AC72: 7 | AD72: 0 | AE72: 0
A73: Western | B73: 1-A | C73: RTEN | D73: Louisa County | E73: 3 | F73: 6 | G73: 26 | H73: 35 | I73: 5 | J73: 16 | K73: 1 | L73: 8 | M73: 1 | N73: 1 | O73: 2 | P73: 1 | Q73: 0 | R73: 0 | S73: 0 | T73: 0 | U73: 0 | V73: 0 | W73: 0 | X73: 0 | Y73: 0 | Z73: 0 | AA73: 0 | AB73: 0 | AC73: 0 | AD73: 0 | AE73: 0
A74: Central | B74: 4-C | C74: CROS | D74: Lunenburg County | E74: 1 | F74: 1 | G74: 7 | H74: 9 | I74: 1 | J74: 4 | K74: 0 | L74: 3 | M74: 0 | N74: 1 | O74: 0 | P74: 0 | Q74: 0 | R74: 0 | S74: 0 | T74: 0 | U74: 0 | V74: 0 | W74: 0 | X74: 0 | Y74: 0 | Z74: 0 | AA74: 0 | AB74: 0 | AC74: 0 | AD74: 0 | AE74: 0
A75: Western | B75: 1-D | C75: HORI | D75: Lynchburg City | E75: 1 | F75: 36 | G75: 175 | H75: 212 | I75: 20 | J75: 78 | K75: 10 | L75: 67 | M75: 3 | N75: 21 | O75: 7 | P75: 6 | Q75: 0 | R75: 0 | S75: 2 | T75: 0 | U75: 0 | V75: 0 | W75: 1 | X75: 3 | Y75: 0 | Z75: 0 | AA75: 0 | AB75: 0 | AC75: 0 | AD75: 2 | AE75: 8
A76: Northern | B76: 2-B | C76: RapR | D76: Madison County | E76: 0 | F76: 1 | G76: 10 | H76: 11 | I76: 4 | J76: 6 | K76: 0 | L76: 1 | M76: 0 | N76: 0 | O76: 0 | P76: 0 | Q76: 0 | R76: 0 | S76: 0 | T76: 0 | U76: 0 | V76: 0 | W76: 0 | X76: 0 | Y76: 0 | Z76: 0 | AA76: 0 | AB76: 0 | AC76: 0 | AD76: 0 | AE76: 0
A77: Northern | B77: 2-A | C77: PWC | D77: Manassas City | E77: 0 | F77: 4 | G77: 14 | H77: 18 | I77: 0 | J77: 7 | K77: 1 | L77: 7 | M77: 0 | N77: 1 | O77: 2 | P77: 0 | Q77: 0 | R77: 1 | S77: 1 | T77: 0 | U77: 0 | V77: 0 | W77: 0 | X77: 0 | Y77: 0 | Z77: 0 | AA77: 0 | AB77: 0 | AC77: 0 | AD77: 0 | AE77: 0
A78: Northern | B78: 2-A | C78: PWC | D78: Manassas Park City | E78: 0 | F78: 1 | G78: 2 | H78: 3 | I78: 0 | J78: 2 | K78: 0 | L78: 0 | M78: 0 | N78: 0 | O78: 1 | P78: 0 | Q78: 0 | R78: 0 | S78: 0 | T78: 0 | U78: 0 | V78: 0 | W78: 0 | X78: 0 | Y78: 0 | Z78: 0 | AA78: 0 | AB78: 0 | AC78: 0 | AD78: 0 | AE78: 0
A79: Southwestern | B79: 3-B | C79: PDMT | D79: Martinsville City | E79: 0 | F79: 1 | G79: 31 | H79: 32 | I79: 3 | J79: 17 | K79: 1 | L79: 7 | M79: 0 | N79: 1 | O79: 3 | P79: 0 | Q79: 0 | R79: 0 | S79: 1 | T79: 0 | U79: 0 | V79: 0 | W79: 0 | X79: 1 | Y79: 0 | Z79: 0 | AA79: 0 | AB79: 0 | AC79: 0 | AD79: 0 | AE79: 0
A80: Eastern | B80: 5-A | C80: MPNN | D80: Mathews County | E80: 0 | F80: 0 | G80: 37 | H80: 37 | I80: 0 | J80: 13 | K80: 1 | L80: 22 | M80: 1 | N80: 0 | O80: 0 | P80: 0 | Q80: 0 | R80: 0 | S80: 0 | T80: 0 | U80: 0 | V80: 0 | W80: 0 | X80: 0 | Y80: 0 | Z80: 0 | AA80: 0 | AB80: 0 | AC80: 0 | AD80: 0 | AE80: 0
A81: Central | B81: 4-C | C81: SS | D81: Mecklenburg County | E81: 0 | F81: 5 | G81: 88 | H81: 93 | I81: 4 | J81: 45 | K81: 7 | L81: 27 | M81: 1 | N81: 3 | O81: 2 | P81: 4 | Q81: 0 | R81: 1 | S81: 1 | T81: 0 | U81: 0 | V81: 0 | W81: 0 | X81: 0 | Y81: 0 | Z81: 0 | AA81: 0 | AB81: 0 | AC81: 0 | AD81: 1 | AE81: 1
A82: Eastern | B82: 5-A | C82: MPNN | D82: Middlesex County | E82: 0 | F82: 1 | G82: 24 | H82: 25 | I82: 3 | J82: 11 | K82: 0 | L82: 10 | M82: 0 | N82: 1 | O82: 0 | P82: 0 | Q82: 0 | R82: 0 | S82: 0 | T82: 0 | U82: 0 | V82: 0 | W82: 0 | X82: 0 | Y82: 0 | Z82: 0 | AA82: 0 | AB82: 0 | AC82: 0 | AD82: 0 | AE82: 0
A83: Southwestern | B83: 3-A | C83: NRV | D83: Montgomery County | E83: 0 | F83: 27 | G83: 78 | H83: 105 | I83: 7 | J83: 18 | K83: 10 | L83: 26 | M83: 4 | N83: 18 | O83: 21 | P83: 1 | Q83: 0 | R83: 1 | S83: 3 | T83: 0 | U83: 0 | V83: 0 | W83: 0 | X83: 5 | Y83: 0 | Z83: 0 | AA83: 0 | AB83: 1 | AC83: 4 | AD83: 2 | AE83: 3
A84: Western | B84: 1-A | C84: RTEN | D84: Nelson County | E84: 0 | F84: 6 | G84: 26 | H84: 32 | I84: 3 | J84: 13 | K84: 0 | L84: 12 | M84: 0 | N84: 3 | O84: 1 | P84: 0 | Q84: 0 | R84: 1 | S84: 1 | T84: 0 | U84: 0 | V84: 0 | W84: 0 | X84: 0 | Y84: 0 | Z84: 0 | AA84: 0 | AB84: 0 | AC84: 0 | AD84: 0 | AE84: 0
A85: Central | B85: 4-A | C85: HENR | D85: New Kent County | E85: 0 | F85: 2 | G85: 26 | H85: 28 | I85: 1 | J85: 11 | K85: 1 | L85: 10 | M85: 0 | N85: 2 | O85: 1 | P85: 2 | Q85: 0 | R85: 1 | S85: 1 | T85: 0 | U85: 0 | V85: 0 | W85: 0 | X85: 0 | Y85: 0 | Z85: 0 | AA85: 1 | AB85: 0 | AC85: 0 | AD85: 0 | AE85: 0
A86: Eastern | B86: 5-C | C86: HAMP | D86: Newport News City | E86: 14 | F86: 15 | G86: 197 | H86: 226 | I86: 16 | J86: 76 | K86: 13 | L86: 79 | M86: 1 | N86: 25 | O86: 6 | P86: 10 | Q86: 0 | R86: 1 | S86: 4 | T86: 0 | U86: 0 | V86: 0 | W86: 2 | X86: 9 | Y86: 0 | Z86: 0 | AA86: 0 | AB86: 0 | AC86: 5 | AD86: 4 | AE86: 7
A87: Eastern | B87: 5-D | C87: NORF | D87: Norfolk City | E87: 22 | F87: 61 | G87: 294 | H87: 377 | I87: 50 | J87: 162 | K87: 12 | L87: 101 | M87: 2 | N87: 16 | O87: 13 | P87: 21 | Q87: 0 | R87: 1 | S87: 5 | T87: 0 | U87: 0 | V87: 0 | W87: 1 | X87: 6 | Y87: 0 | Z87: 0 | AA87: 0 | AB87: 0 | AC87: 1 | AD87: 0 | AE87: 2
A88: Eastern | B88: 5-B | C88: EAST | D88: Northampton County | E88: 0 | F88: 1 | G88: 45 | H88: 46 | I88: 6 | J88: 26 | K88: 1 | L88: 8 | M88: 0 | N88: 4 | O88: 0 | P88: 1 | Q88: 0 | R88: 0 | S88: 0 | T88: 0 | U88: 0 | V88: 0 | W88: 0 | X88: 0 | Y88: 0 | Z88: 0 | AA88: 0 | AB88: 0 | AC88: 0 | AD88: 0 | AE88: 0
A89: Eastern | B89: 5-A | C89: MPNN | D89: Northumberland County | E89: 0 | F89: 0 | G89: 7 | H89: 7 | I89: 0 | J89: 3 | K89: 0 | L89: 2 | M89: 0 | N89: 1 | O89: 0 | P89: 1 | Q89: 0 | R89: 0 | S89: 0 | T89: 0 | U89: 0 | V89: 0 | W89: 0 | X89: 0 | Y89: 0 | Z89: 0 | AA89: 0 | AB89: 0 | AC89: 0 | AD89: 0 | AE89: 0
A90: Southwestern | B90: 3-D | C90: PLD1 | D90: Norton City | E90: 0 | F90: 1 | G90: 4 | H90: 5 | I90: 1 | J90: 2 | K90: 0 | L90: 1 | M90: 0 | N90: 1 | O90: 0 | P90: 0 | Q90: 0 | R90: 0 | S90: 1 | T90: 0 | U90: 0 | V90: 0 | W90: 0 | X90: 0 | Y90: 0 | Z90: 0 | AA90: 0 | AB90: 0 | AC90: 0 | AD90: 0 | AE90: 0
A91: Central | B91: 4-C | C91: CROS | D91: Nottoway County | E91: 0 | F91: 2 | G91: 16 | H91: 18 | I91: 0 | J91: 5 | K91: 0 | L91: 11 | M91: 0 | N91: 0 | O91: 0 | P91: 2 | Q91: 0 | R91: 0 | S91: 0 | T91: 0 | U91: 0 | V91: 0 | W91: 0 | X91: 0 | Y91: 0 | Z91: 0 | AA91: 0 | AB91: 0 | AC91: 0 | AD91: 0 | AE91: 0
A92: Northern | B92: 2-B | C92: RapR | D92: Orange County | E92: 0 | F92: 15 | G92: 39 | H92: 54 | I92: 10 | J92: 25 | K92: 2 | L92: 12 | M92: 0 | N92: 4 | O92: 0 | P92: 1 | Q92: 0 | R92: 1 | S92: 1 | T92: 0 | U92: 0 | V92: 0 | W92: 0 | X92: 0 | Y92: 0 | Z92: 0 | AA92: 0 | AB92: 0 | AC92: 0 | AD92: 1 | AE92: 0
A93: Northern | B93: 2-D | C93: NW | D93: Page County | E93: 0 | F93: 7 | G93: 18 | H93: 25 | I93: 3 | J93: 11 | K93: 1 | L93: 7 | M93: 0 | N93: 2 | O93: 0 | P93: 1 | Q93: 0 | R93: 0 | S93: 0 | T93: 0 | U93: 0 | V93: 0 | W93: 0 | X93: 0 | Y93: 0 | Z93: 0 | AA93: 0 | AB93: 0 | AC93: 0 | AD93: 0 | AE93: 0
A94: Southwestern | B94: 3-C | C94: PDMT | D94: Patrick County | E94: 1 | F94: 4 | G94: 26 | H94: 31 | I94: 0 | J94: 15 | K94: 0 | L94: 9 | M94: 2 | N94: 2 | O94: 1 | P94: 2 | Q94: 0 | R94: 0 | S94: 1 | T94: 0 | U94: 0 | V94: 0 | W94: 0 | X94: 0 | Y94: 0 | Z94: 0 | AA94: 0 | AB94: 0 | AC94: 0 | AD94: 0 | AE94: 0
A95: Central | B95: 4-D | C95: D19 | D95: Petersburg City | E95: 1 | F95: 4 | G95: 133 | H95: 138 | I95: 4 | J95: 51 | K95: 14 | L95: 45 | M95: 3 | N95: 10 | O95: 9 | P95: 2 | Q95: 0 | R95: 0 | S95: 1 | T95: 0 | U95: 0 | V95: 0 | W95: 0 | X95: 0 | Y95: 0 | Z95: 0 | AA95: 0 | AB95: 0 | AC95: 0 | AD95: 0 | AE95: 2
A96: Southwestern | B96: 3-B | C96: DANV | D96: Pittsylvania County | E96: 10 | F96: 14 | G96: 140 | H96: 164 | I96: 5 | J96: 72 | K96: 13 | L96: 42 | M96: 2 | N96: 15 | O96: 9 | P96: 6 | Q96: 0 | R96: 1 | S96: 1 | T96: 0 | U96: 0 | V96: 0 | W96: 0 | X96: 0 | Y96: 0 | Z96: 0 | AA96: 0 | AB96: 0 | AC96: 0 | AD96: 0 | AE96: 0
A97: Eastern | B97: 5-C | C97: COLO | D97: Poquoson City | E97: 0 | F97: 2 | G97: 4 | H97: 6 | I97: 1 | J97: 0 | K97: 1 | L97: 4 | M97: 0 | N97: 0 | O97: 0 | P97: 0 | Q97: 0 | R97: 0 | S97: 0 | T97: 0 | U97: 0 | V97: 0 | W97: 0 | X97: 0 | Y97: 0 | Z97: 0 | AA97: 0 | AB97: 0 | AC97: 0 | AD97: 0 | AE97: 0
A98: Eastern | B98: 5-D | C98: PORT | D98: Portsmouth City | E98: 3 | F98: 8 | G98: 269 | H98: 280 | I98: 21 | J98: 104 | K98: 13 | L98: 95 | M98: 4 | N98: 17 | O98: 12 | P98: 14 | Q98: 0 | R98: 1 | S98: 5 | T98: 0 | U98: 0 | V98: 0 | W98: 1 | X98: 5 | Y98: 0 | Z98: 0 | AA98: 1 | AB98: 0 | AC98: 0 | AD98: 2 | AE98: 2
A99: Central | B99: 4-B | C99: GOOC | D99: Powhatan County | E99: 1 | F99: 8 | G99: 22 | H99: 31 | I99: 0 | J99: 11 | K99: 3 | L99: 11 | M99: 0 | N99: 2 | O99: 0 | P99: 4 | Q99: 0 | R99: 0 | S99: 2 | T99: 0 | U99: 0 | V99: 0 | W99: 0 | X99: 2 | Y99: 0 | Z99: 0 | AA99: 0 | AB99: 0 | AC99: 0 | AD99: 0 | AE99: 0
A100: Central | B100: 4-C | C100: CROS | D100: Prince Edward County | E100: 0 | F100: 7 | G100: 69 | H100: 76 | I100: 6 | J100: 33 | K100: 9 | L100: 19 | M100: 1 | N100: 1 | O100: 3 | P100: 4 | Q100: 0 | R100: 0 | S100: 2 | T100: 0 | U100: 0 | V100: 0 | W100: 0 | X100: 4 | Y100: 0 | Z100: 0 | AA100: 0 | AB100: 0 | AC100: 0 | AD100: 0 | AE100: 0
A101: Central | B101: 4-D | C101: D19 | D101: Prince George County | E101: 0 | F101: 4 | G101: 54 | H101: 58 | I101: 2 | J101: 22 | K101: 10 | L101: 12 | M101: 0 | N101: 1 | O101: 8 | P101: 3 | Q101: 0 | R101: 0 | S101: 2 | T101: 0 | U101: 0 | V101: 0 | W101: 0 | X101: 2 | Y101: 0 | Z101: 0 | AA101: 0 | AB101: 0 | AC101: 1 | AD101: 1 | AE101: 1
A102: Northern | B102: 2-A | C102: PWC | D102: Prince William County | E102: 11 | F102: 64 | G102: 368 | H102: 443 | I102: 15 | J102: 138 | K102: 29 | L102: 121 | M102: 11 | N102: 59 | O102: 34 | P102: 36 | Q102: 0 | R102: 2 | S102: 3 | T102: 0 | U102: 0 | V102: 0 | W102: 0 | X102: 6 | Y102: 0 | Z102: 0 | AA102: 0 | AB102: 3 | AC102: 14 | AD102: 7 | AE102: 1
A103: Southwestern | B103: 3-C | C103: NRV | D103: Pulaski County | E103: 0 | F103: 11 | G103: 47 | H103: 58 | I103: 1 | J103: 10 | K103: 2 | L103: 16 | M103: 0 | N103: 11 | O103: 13 | P103: 5 | Q103: 0 | R103: 0 | S103: 0 | T103: 0 | U103: 0 | V103: 0 | W103: 0 | X103: 0 | Y103: 0 | Z103: 0 | AA103: 0 | AB103: 0 | AC103: 0 | AD103: 0 | AE103: 0
A104: Southwestern | B104: 3-C | C104: NRV | D104: Radford City | E104: 0 | F104: 1 | G104: 16 | H104: 17 | I104: 0 | J104: 2 | K104: 1 | L104: 4 | M104: 2 | N104: 3 | O104: 5 | P104: 0 | Q104: 0 | R104: 0 | S104: 1 | T104: 0 | U104: 0 | V104: 0 | W104: 0 | X104: 0 | Y104: 0 | Z104: 0 | AA104: 0 | AB104: 0 | AC104: 0 | AD104: 0 | AE104: 0
A105: Northern | B105: 2-B | C105: RapR | D105: Rappahannock County | E105: 0 | F105: 1 | G105: 5 | H105: 6 | I105: 0 | J105: 2 | K105: 1 | L105: 1 | M105: 0 | N105: 0 | O105: 1 | P105: 1 | Q105: 0 | R105: 0 | S105: 0 | T105: 0 | U105: 0 | V105: 0 | W105: 0 | X105: 0 | Y105: 0 | Z105: 0 | AA105: 0 | AB105: 0 | AC105: 0 | AD105: 0 | AE105: 0
A106: Central | B106: 4-A | C106: RBHA | D106: Richmond City | E106: 12 | F106: 31 | G106: 275 | H106: 318 | I106: 27 | J106: 109 | K106: 11 | L106: 108 | M106: 8 | N106: 30 | O106: 14 | P106: 11 | Q106: 0 | R106: 2 | S106: 2 | T106: 0 | U106: 0 | V106: 0 | W106: 0 | X106: 1 | Y106: 0 | Z106: 0 | AA106: 0 | AB106: 0 | AC106: 6 | AD106: 1 | AE106: 1
A107: Eastern | B107: 5-A | C107: MPNN | D107: Richmond County | E107: 0 | F107: 8 | G107: 46 | H107: 54 | I107: 5 | J107: 20 | K107: 4 | L107: 14 | M107: 0 | N107: 5 | O107: 3 | P107: 3 | Q107: 0 | R107: 0 | S107: 0 | T107: 0 | U107: 0 | V107: 0 | W107: 0 | X107: 0 | Y107: 0 | Z107: 0 | AA107: 0 | AB107: 0 | AC107: 0 | AD107: 0 | AE107: 0
A108: Southwestern | B108: 3-A | C108: BLUE | D108: Roanoke City | E108: 7 | F108: 18 | G108: 114 | H108: 139 | I108: 9 | J108: 47 | K108: 10 | L108: 48 | M108: 2 | N108: 9 | O108: 11 | P108: 3 | Q108: 0 | R108: 1 | S108: 4 | T108: 0 | U108: 0 | V108: 0 | W108: 1 | X108: 1 | Y108: 0 | Z108: 0 | AA108: 0 | AB108: 0 | AC108: 0 | AD108: 1 | AE108: 3
A109: Southwestern | B109: 3-A | C109: BLUE | D109: Roanoke County | E109: 5 | F109: 32 | G109: 180 | H109: 217 | I109: 15 | J109: 62 | K109: 15 | L109: 73 | M109: 5 | N109: 16 | O109: 20 | P109: 11 | Q109: 0 | R109: 0 | S109: 4 | T109: 0 | U109: 0 | V109: 0 | W109: 0 | X109: 4 | Y109: 0 | Z109: 0 | AA109: 0 | AB109: 0 | AC109: 2 | AD109: 2 | AE109: 3
A110: Western | B110: 1-C | C110: ROC | D110: Rockbridge County | E110: 0 | F110: 4 | G110: 55 | H110: 59 | I110: 9 | J110: 13 | K110: 6 | L110: 16 | M110: 0 | N110: 5 | O110: 8 | P110: 2 | Q110: 0 | R110: 0 | S110: 0 | T110: 0 | U110: 0 | V110: 0 | W110: 0 | X110: 0 | Y110: 0 | Z110: 0 | AA110: 0 | AB110: 0 | AC110: 0 | AD110: 0 | AE110: 0
A111: Western | B111: 1-B | C111: HARR | D111: Rockingham County | E111: 3 | F111: 20 | G111: 120 | H111: 143 | I111: 9 | J111: 59 | K111: 2 | L111: 41 | M111: 3 | N111: 17 | O111: 7 | P111: 5 | Q111: 0 | R111: 2 | S111: 3 | T111: 0 | U111: 0 | V111: 0 | W111: 1 | X111: 4 | Y111: 0 | Z111: 0 | AA111: 1 | AB111: 0 | AC111: 0 | AD111: 0 | AE111: 2
A112: Southwestern | B112: 3-D | C112: CMT | D112: Russell County | E112: 0 | F112: 2 | G112: 58 | H112: 60 | I112: 3 | J112: 29 | K112: 3 | L112: 13 | M112: 0 | N112: 7 | O112: 3 | P112: 2 | Q112: 0 | R112: 0 | S112: 0 | T112: 0 | U112: 0 | V112: 0 | W112: 0 | X112: 0 | Y112: 0 | Z112: 0 | AA112: 0 | AB112: 0 | AC112: 0 | AD112: 0 | AE112: 0
A113: Southwestern | B113: 3-A | C113: BLUE | D113: Salem City | E113: 0 | F113: 4 | G113: 21 | H113: 25 | I113: 1 | J113: 9 | K113: 4 | L113: 5 | M113: 0 | N113: 2 | O113: 1 | P113: 3 | Q113: 0 | R113: 1 | S113: 2 | T113: 0 | U113: 0 | V113: 0 | W113: 0 | X113: 4 | Y113: 0 | Z113: 0 | AA113: 0 | AB113: 0 | AC113: 1 | AD113: 3 | AE113: 0
A114: Southwestern | B114: 3-D | C114: PLD1 | D114: Scott County | E114: 1 | F114: 1 | G114: 64 | H114: 66 | I114: 4 | J114: 25 | K114: 1 | L114: 30 | M114: 0 | N114: 3 | O114: 2 | P114: 1 | Q114: 0 | R114: 0 | S114: 0 | T114: 0 | U114: 0 | V114: 0 | W114: 0 | X114: 0 | Y114: 0 | Z114: 0 | AA114: 0 | AB114: 0 | AC114: 0 | AD114: 0 | AE114: 0
A115: Northern | B115: 2-D | C115: NW | D115: Shenandoah County | E115: 2 | F115: 12 | G115: 91 | H115: 105 | I115: 0 | J115: 48 | K115: 4 | L115: 43 | M115: 0 | N115: 5 | O115: 4 | P115: 1 | Q115: 0 | R115: 1 | S115: 2 | T115: 0 | U115: 0 | V115: 0 | W115: 0 | X115: 0 | Y115: 0 | Z115: 0 | AA115: 0 | AB115: 0 | AC115: 0 | AD115: 0 | AE115: 1
A116: Southwestern | B116: 3-D | C116: MTRG | D116: Smyth County | E116: 0 | F116: 3 | G116: 73 | H116: 76 | I116: 2 | J116: 18 | K116: 2 | L116: 35 | M116: 4 | N116: 6 | O116: 2 | P116: 7 | Q116: 0 | R116: 0 | S116: 1 | T116: 0 | U116: 0 | V116: 0 | W116: 0 | X116: 0 | Y116: 0 | Z116: 0 | AA116: 0 | AB116: 0 | AC116: 0 | AD116: 0 | AE116: 1
A117: Eastern | B117: 5-D | C117: WT | D117: Southampton County | E117: 0 | F117: 0 | G117: 18 | H117: 18 | I117: 1 | J117: 6 | K117: 1 | L117: 8 | M117: 0 | N117: 1 | O117: 0 | P117: 1 | Q117: 0 | R117: 0 | S117: 0 | T117: 0 | U117: 0 | V117: 0 | W117: 0 | X117: 0 | Y117: 0 | Z117: 0 | AA117: 0 | AB117: 0 | AC117: 0 | AD117: 0 | AE117: 0
A118: Northern | B118: 2-C | C118: RapA | D118: Spotsylvania County | E118: 3 | F118: 31 | G118: 206 | H118: 240 | I118: 16 | J118: 81 | K118: 12 | L118: 73 | M118: 7 | N118: 23 | O118: 17 | P118: 11 | Q118: 0 | R118: 0 | S118: 3 | T118: 0 | U118: 0 | V118: 0 | W118: 0 | X118: 0 | Y118: 0 | Z118: 0 | AA118: 0 | AB118: 0 | AC118: 0 | AD118: 0 | AE118: 1
A119: Northern | B119: 2-C | C119: RapA | D119: Stafford County | E119: 5 | F119: 37 | G119: 167 | H119: 209 | I119: 16 | J119: 66 | K119: 12 | L119: 68 | M119: 2 | N119: 22 | O119: 15 | P119: 8 | Q119: 0 | R119: 0 | S119: 0 | T119: 0 | U119: 0 | V119: 0 | W119: 0 | X119: 0 | Y119: 0 | Z119: 0 | AA119: 0 | AB119: 0 | AC119: 0 | AD119: 0 | AE119: 0
A120: Western | B120: 1-B | C120: VLY | D120: Staunton City | E120: 0 | F120: 8 | G120: 56 | H120: 64 | I120: 5 | J120: 18 | K120: 4 | L120: 22 | M120: 0 | N120: 7 | O120: 4 | P120: 4 | Q120: 0 | R120: 1 | S120: 2 | T120: 0 | U120: 0 | V120: 0 | W120: 0 | X120: 2 | Y120: 0 | Z120: 0 | AA120: 0 | AB120: 0 | AC120: 0 | AD120: 1 | AE120: 2
A121: Eastern | B121: 5-D | C121: WT | D121: Suffolk City | E121: 0 | F121: 14 | G121: 153 | H121: 167 | I121: 6 | J121: 53 | K121: 7 | L121: 65 | M121: 1 | N121: 18 | O121: 12 | P121: 5 | Q121: 0 | R121: 2 | S121: 3 | T121: 0 | U121: 0 | V121: 0 | W121: 0 | X121: 4 | Y121: 0 | Z121: 0 | AA121: 0 | AB121: 0 | AC121: 1 | AD121: 1 | AE121: 0
A122: Central | B122: 4-D | C122: D19 | D122: Surry County | E122: 0 | F122: 0 | G122: 2 | H122: 2 | I122: 0 | J122: 1 | K122: 0 | L122: 0 | M122: 0 | N122: 1 | O122: 0 | P122: 0 | Q122: 0 | R122: 0 | S122: 0 | T122: 0 | U122: 0 | V122: 0 | W122: 0 | X122: 0 | Y122: 0 | Z122: 0 | AA122: 0 | AB122: 0 | AC122: 0 | AD122: 0 | AE122: 0
A123: Central | B123: 4-D | C123: D19 | D123: Sussex County | E123: 0 | F123: 0 | G123: 35 | H123: 35 | I123: 2 | J123: 16 | K123: 1 | L123: 15 | M123: 0 | N123: 1 | O123: 0 | P123: 0 | Q123: 0 | R123: 0 | S123: 0 | T123: 0 | U123: 0 | V123: 0 | W123: 0 | X123: 0 | Y123: 0 | Z123: 0 | AA123: 0 | AB123: 0 | AC123: 0 | AD123: 0 | AE123: 0
A124: Southwestern | B124: 3-D | C124: CMT | D124: Tazewell County | E124: 1 | F124: 6 | G124: 64 | H124: 71 | I124: 7 | J124: 29 | K124: 1 | L124: 19 | M124: 0 | N124: 9 | O124: 2 | P124: 4 | Q124: 0 | R124: 0 | S124: 1 | T124: 0 | U124: 0 | V124: 0 | W124: 0 | X124: 1 | Y124: 0 | Z124: 0 | AA124: 0 | AB124: 0 | AC124: 2 | AD124: 0 | AE124: 0
A125: Eastern | B125: 5-D | C125: VAB | D125: Virginia Beach City | E125: 16 | F125: 114 | G125: 644 | H125: 774 | I125: 51 | J125: 273 | K125: 29 | L125: 288 | M125: 12 | N125: 59 | O125: 29 | P125: 33 | Q125: 0 | R125: 3 | S125: 5 | T125: 0 | U125: 0 | V125: 0 | W125: 3 | X125: 14 | Y125: 0 | Z125: 0 | AA125: 2 | AB125: 0 | AC125: 7 | AD125: 8 | AE125: 7
A126: Northern | B126: 2-D | C126: NW | D126: Warren County | E126: 1 | F126: 20 | G126: 13 | H126: 34 | I126: 5 | J126: 16 | K126: 2 | L126: 6 | M126: 0 | N126: 4 | O126: 0 | P126: 1 | Q126: 0 | R126: 1 | S126: 1 | T126: 0 | U126: 0 | V126: 0 | W126: 0 | X126: 2 | Y126: 0 | Z126: 0 | AA126: 0 | AB126: 0 | AC126: 0 | AD126: 0 | AE126: 0
A127: Southwestern | B127: 3-D | C127: HIGH | D127: Washington County | E127: 1 | F127: 8 | G127: 79 | H127: 88 | I127: 4 | J127: 28 | K127: 0 | L127: 34 | M127: 2 | N127: 16 | O127: 3 | P127: 1 | Q127: 0 | R127: 0 | S127: 2 | T127: 0 | U127: 0 | V127: 0 | W127: 0 | X127: 1 | Y127: 0 | Z127: 0 | AA127: 0 | AB127: 0 | AC127: 3 | AD127: 1 | AE127: 1
A128: Western | B128: 1-B | C128: VLY | D128: Waynesboro City | E128: 0 | F128: 3 | G128: 69 | H128: 72 | I128: 3 | J128: 27 | K128: 3 | L128: 27 | M128: 0 | N128: 5 | O128: 4 | P128: 3 | Q128: 0 | R128: 0 | S128: 0 | T128: 0 | U128: 0 | V128: 0 | W128: 0 | X128: 0 | Y128: 0 | Z128: 0 | AA128: 0 | AB128: 0 | AC128: 0 | AD128: 0 | AE128: 1
A129: Eastern | B129: 5-A | C129: MPNN | D129: Westmoreland County | E129: 0 | F129: 2 | G129: 11 | H129: 13 | I129: 3 | J129: 2 | K129: 1 | L129: 4 | M129: 0 | N129: 0 | O129: 0 | P129: 3 | Q129: 0 | R129: 0 | S129: 0 | T129: 0 | U129: 0 | V129: 0 | W129: 0 | X129: 0 | Y129: 0 | Z129: 0 | AA129: 0 | AB129: 0 | AC129: 0 | AD129: 0 | AE129: 0
A130: Eastern | B130: 5-C | C130: COLO | D130: Williamsburg City | E130: 0 | F130: 1 | G130: 13 | H130: 14 | I130: 0 | J130: 11 | K130: 0 | L130: 1 | M130: 0 | N130: 0 | O130: 2 | P130: 0 | Q130: 0 | R130: 0 | S130: 1 | T130: 0 | U130: 0 | V130: 0 | W130: 0 | X130: 1 | Y130: 0 | Z130: 0 | AA130: 0 | AB130: 0 | AC130: 0 | AD130: 0 | AE130: 1
A131: Northern | B131: 2-D | C131: NW | D131: Winchester City | E131: 1 | F131: 14 | G131: 77 | H131: 92 | I131: 6 | J131: 45 | K131: 3 | L131: 21 | M131: 0 | N131: 4 | O131: 9 | P131: 4 | Q131: 0 | R131: 1 | S131: 3 | T131: 0 | U131: 0 | V131: 0 | W131: 0 | X131: 0 | Y131: 0 | Z131: 0 | AA131: 1 | AB131: 0 | AC131: 0 | AD131: 1 | AE131: 0
A132: Southwestern | B132: 3-D | C132: PLD1 | D132: Wise County | E132: 0 | F132: 4 | G132: 93 | H132: 97 | I132: 5 | J132: 37 | K132: 4 | L132: 29 | M132: 2 | N132: 6 | O132: 5 | P132: 9 | Q132: 0 | R132: 0 | S132: 4 | T132: 0 | U132: 0 | V132: 0 | W132: 0 | X132: 1 | Y132: 0 | Z132: 0 | AA132: 0 | AB132: 0 | AC132: 1 | AD132: 0 | AE132: 1
A133: Southwestern | B133: 3-C | C133: MTRG | D133: Wythe County | E133: 0 | F133: 7 | G133: 65 | H133: 72 | I133: 3 | J133: 11 | K133: 3 | L133: 25 | M133: 7 | N133: 8 | O133: 11 | P133: 4 | Q133: 0 | R133: 1 | S133: 1 | T133: 0 | U133: 0 | V133: 0 | W133: 0 | X133: 0 | Y133: 0 | Z133: 0 | AA133: 1 | AB133: 0 | AC133: 1 | AD133: 1 | AE133: 1
A134: Eastern | B134: 5-C | C134: COLO | D134: York County | E134: 0 | F134: 7 | G134: 40 | H134: 47 | I134: 4 | J134: 16 | K134: 0 | L134: 17 | M134: 0 | N134: 4 | O134: 0 | P134: 6 | Q134: 0 | R134: 0 | S134: 0 | T134: 0 | U134: 0 | V134: 0 | W134: 0 | X134: 0 | Y134: 0 | Z134: 0 | AA134: 0 | AB134: 0 | AC134: 1 | AD134: 0 | AE134: 0
A136: DS-Regional Totals - Unique
A137: Central | C137: na | D137: na | E137: 75 | F137: 314 | G137: 2518 | H137: 2907 | I137: 187 | J137: 1098 | K137: 177 | L137: 900 | M137: 41 | N137: 210 | O137: 175 | P137: 119 | Q137: 1 | R137: 10 | S137: 35 | T137: 0 | U137: 0 | V137: 0 | W137: 2 | X137: 17 | Y137: 0 | Z137: 0 | AA137: 6 | AB137: 1 | AC137: 12 | AD137: 6 | AE137: 12
A138: Eastern | C138: na | D138: na | E138: 79 | F138: 346 | G138: 2619 | H138: 3044 | I138: 230 | J138: 1131 | K138: 121 | L138: 1024 | M138: 38 | N138: 244 | O138: 115 | P138: 141 | Q138: 0 | R138: 14 | S138: 32 | T138: 0 | U138: 0 | V138: 0 | W138: 7 | X138: 41 | Y138: 0 | Z138: 0 | AA138: 5 | AB138: 0 | AC138: 22 | AD138: 16 | AE138: 30
A139: Northern | C139: na | D139: na | E139: 64 | F139: 604 | G139: 2562 | H139: 3230 | I139: 231 | J139: 1126 | K139: 141 | L139: 997 | M139: 48 | N139: 271 | O139: 221 | P139: 195 | Q139: 0 | R139: 16 | S139: 28 | T139: 0 | U139: 0 | V139: 0 | W139: 2 | X139: 20 | Y139: 0 | Z139: 0 | AA139: 5 | AB139: 4 | AC139: 45 | AD139: 11 | AE139: 6
A140: Southwestern | C140: na | D140: na | E140: 52 | F140: 212 | G140: 2004 | H140: 2268 | I140: 124 | J140: 714 | K140: 104 | L140: 751 | M140: 56 | N140: 239 | O140: 193 | P140: 87 | Q140: 0 | R140: 8 | S140: 25 | T140: 0 | U140: 0 | V140: 0 | W140: 2 | X140: 19 | Y140: 0 | Z140: 0 | AA140: 2 | AB140: 1 | AC140: 6 | AD140: 6 | AE140: 10
A141: Western | C141: na | D141: na | E141: 20 | F141: 231 | G141: 1450 | H141: 1701 | I141: 119 | J141: 589 | K141: 66 | L141: 567 | M141: 26 | N141: 188 | O141: 78 | P141: 68 | Q141: 0 | R141: 6 | S141: 15 | T141: 0 | U141: 0 | V141: 0 | W141: 2 | X141: 13 | Y141: 0 | Z141: 0 | AA141: 1 | AB141: 0 | AC141: 1 | AD141: 4 | AE141: 17
A142: Total nonUnique | C142: na | D142: na | E142: =SUM(E137:E141) -> 290 | F142: 1707 | G142: 11153 | H142: 13150 | I142: 891 | J142: 4658 | K142: 609 | L142: 4239 | M142: 209 | N142: 1152 | O142: 782 | P142: 610 | Q142: =SUM(Q137:Q141) -> 1 | R142: =SUM(R137:R141) -> 54 | S142: 135 | T142: 0 | U142: 0 | V142: 0 | W142: 15 | X142: 110 | Y142: 0 | Z142: 0 | AA142: 19 | AB142: 6 | AC142: 86 | AD142: 43 | AE142: 75
A143: Total Unique | C143: na | D143: na | E143: 290 | F143: 1707 | G143: 11153 | H143: 13150 | I143: 891 | J143: 4658 | K143: 609 | L143: 4239 | M143: 209 | N143: 1152 | O143: 782 | P143: 610 | Q143: 1 | R143: 50 | S143: 128 | T143: 0 | U143: 0 | V143: 0 | W143: 15 | X143: 101 | Y143: 0 | Z143: 0 | AA143: 19 | AB143: 6 | AC143: 80 | AD143: 38 | AE143: 65

Sheet Master20190430
A1: DS Region | B1: SubRegion | C1: CSB | D1: City/County | E1: BI waiver | F1: FIS waiver | G1: CL waiver | H1: All waivers | I1: SIS L1 | J1: SIS L2 | K1: SIS L3 | L1: SIS L4 | M1: SIS L5 | N1: SIS L6 | O1: SIS L7 | P1: SIS Default | Q1: Benefits Planning | R1: Community Coaching | S1: Community Engagement | T1: Community Guide | U1: Electronic Home-Based Services | V1: Employment and Community Transportation | W1: Independent Living Supports | X1: In-home Supports | Y1: Peer Mentoring | Z1: Shared Living | AA1: Supported Living | AB1: Crisis Support Services | AC1: Private Duty Nursing | AD1: Skilled Nursing | AE1: Sponsored Residential | AF1: Total Unique
A2: Eastern | B2: 5-B | C2: EAST | D2: Accomack County | E2: 0 | F2: 4 | G2: 62 | H2: 66 | I2: 9 | J2: 30 | K2: 1 | L2: 18 | M2: 0 | N2: 5 | O2: 1 | P2: 2 | Q2: 0 | R2: 0 | S2: 2 | T2: 0 | U2: 0 | V2: 0 | W2: 0 | X2: 1 | Y2: 0 | Z2: 0 | AA2: 1 | AB2: 0 | AC2: 0 | AD2: 0 | AE2: 0 | AF2: 2
A3: Western | B3: 1-A | C3: RTEN | D3: Albemarle County | E3: 3 | F3: 32 | G3: 87 | H3: 122 | I3: 8 | J3: 56 | K3: 2 | L3: 36 | M3: 2 | N3: 7 | O3: 1 | P3: 10 | Q3: 0 | R3: 1 | S3: 3 | T3: 0 | U3: 0 | V3: 0 | W3: 1 | X3: 3 | Y3: 0 | Z3: 0 | AA3: 0 | AB3: 0 | AC3: 1 | AD3: 2 | AE3: 3 | AF3: 5
A4: Northern | B4: 2-A | C4: ALEX | D4: Alexandria City | E4: 4 | F4: 12 | G4: 80 | H4: 96 | I4: 11 | J4: 34 | K4: 3 | L4: 34 | M4: 2 | N4: 2 | O4: 6 | P4: 4 | Q4: 0 | R4: 0 | S4: 1 | T4: 0 | U4: 0 | V4: 0 | W4: 0 | X4: 1 | Y4: 0 | Z4: 0 | AA4: 1 | AB4: 0 | AC4: 2 | AD4: 0 | AE4: 0 | AF4: 3
A5: Western | B5: 1-C | C5: ALLE | D5: Alleghany County | E5: 1 | F5: 10 | G5: 35 | H5: 46 | I5: 7 | J5: 19 | K5: 1 | L5: 11 | M5: 0 | N5: 4 | O5: 2 | P5: 2 | Q5: 0 | R5: 1 | S5: 1 | T5: 0 | U5: 0 | V5: 0 | W5: 0 | X5: 2 | Y5: 0 | Z5: 0 | AA5: 0 | AB5: 0 | AC5: 0 | AD5: 0 | AE5: 0 | AF5: 2
A6: Central | B6: 4-B | C6: CROS | D6: Amelia County | E6: 0 | F6: 1 | G6: 13 | H6: 14 | I6: 1 | J6: 5 | K6: 0 | L6: 6 | M6: 0 | N6: 2 | O6: 0 | P6: 0 | Q6: 0 | R6: 0 | S6: 0 | T6: 0 | U6: 0 | V6: 0 | W6: 0 | X6: 0 | Y6: 0 | Z6: 0 | AA6: 0 | AB6: 0 | AC6: 0 | AD6: 0 | AE6: 0 | AF6: 0
A7: Western | B7: 1-D | C7: HORI | D7: Amherst County | E7: 0 | F7: 11 | G7: 152 | H7: 163 | I7: 4 | J7: 38 | K7: 4 | L7: 76 | M7: 4 | N7: 19 | O7: 12 | P7: 6 | Q7: 0 | R7: 1 | S7: 2 | T7: 0 | U7: 0 | V7: 0 | W7: 0 | X7: 0 | Y7: 0 | Z7: 0 | AA7: 0 | AB7: 0 | AC7: 0 | AD7: 1 | AE7: 3 | AF7: 3
A8: Western | B8: 1-D | C8: HORI | D8: Appomattox County | E8: 0 | F8: 9 | G8: 25 | H8: 34 | I8: 1 | J8: 11 | K8: 3 | L8: 9 | M8: 2 | N8: 5 | O8: 1 | P8: 2 | Q8: 0 | R8: 1 | S8: 1 | T8: 0 | U8: 0 | V8: 0 | W8: 0 | X8: 1 | Y8: 0 | Z8: 0 | AA8: 0 | AB8: 0 | AC8: 0 | AD8: 0 | AE8: 1 | AF8: 2
A9: Northern | B9: 2-A | C9: ARLI | D9: Arlington County | E9: 5 | F9: 32 | G9: 115 | H9: 152 | I9: 14 | J9: 48 | K9: 8 | L9: 55 | M9: 1 | N9: 10 | O9: 6 | P9: 10 | Q9: 0 | R9: 0 | S9: 0 | T9: 0 | U9: 0 | V9: 0 | W9: 0 | X9: 0 | Y9: 0 | Z9: 0 | AA9: 0 | AB9: 0 | AC9: 0 | AD9: 0 | AE9: 0 | AF9: 0
A10: Western | B10: 1-B | C10: VLY | D10: Augusta County | E10: 0 | F10: 17 | G10: 132 | H10: 149 | I10: 5 | J10: 48 | K10: 3 | L10: 44 | M10: 1 | N10: 26 | O10: 10 | P10: 12 | Q10: 0 | R10: 1 | S10: 1 | T10: 0 | U10: 0 | V10: 0 | W10: 0 | X10: 1 | Y10: 0 | Z10: 0 | AA10: 0 | AB10: 0 | AC10: 0 | AD10: 0 | AE10: 2 | AF10: 2
A11: Western | B11: 1-C | C11: ROC | D11: Bath County | E11: 0 | F11: 1 | G11: 8 | H11: 9 | I11: 2 | J11: 0 | K11: 2 | L11: 4 | M11: 0 | N11: 1 | O11: 0 | P11: 0 | Q11: 0 | R11: 0 | S11: 0 | T11: 0 | U11: 0 | V11: 0 | W11: 0 | X11: 0 | Y11: 0 | Z11: 0 | AA11: 0 | AB11: 0 | AC11: 0 | AD11: 0 | AE11: 0 | AF11: 0
A12: Western | B12: 1-D | C12: HORI | D12: Bedford County | E12: 1 | F12: 26 | G12: 156 | H12: 183 | I12: 5 | J12: 39 | K12: 6 | L12: 81 | M12: 4 | N12: 33 | O12: 8 | P12: 7 | Q12: 0 | R12: 0 | S12: 5 | T12: 0 | U12: 0 | V12: 0 | W12: 0 | X12: 2 | Y12: 0 | Z12: 0 | AA12: 0 | AB12: 0 | AC12: 0 | AD12: 1 | AE12: 4 | AF12: 6
A13: Southwestern | B13: 3-C | C13: MTRG | D13: Bland County | E13: 0 | F13: 1 | G13: 11 | H13: 12 | I13: 0 | J13: 1 | K13: 0 | L13: 7 | M13: 0 | N13: 3 | O13: 1 | P13: 0 | Q13: 0 | R13: 0 | S13: 0 | T13: 0 | U13: 0 | V13: 0 | W13: 0 | X13: 0 | Y13: 0 | Z13: 0 | AA13: 0 | AB13: 0 | AC13: 0 | AD13: 0 | AE13: 0 | AF13: 0
A14: Southwestern | B14: 3-A | C14: BLUE | D14: Botetourt County | E14: 0 | F14: 11 | G14: 35 | H14: 46 | I14: 0 | J14: 12 | K14: 0 | L14: 19 | M14: 1 | N14: 10 | O14: 2 | P14: 2 | Q14: 0 | R14: 1 | S14: 1 | T14: 0 | U14: 0 | V14: 0 | W14: 0 | X14: 0 | Y14: 0 | Z14: 0 | AA14: 0 | AB14: 0 | AC14: 0 | AD14: 1 | AE14: 0 | AF14: 1
A15: Southwestern | B15: 3-D | C15: HIGH | D15: Bristol City | E15: 1 | F15: 2 | G15: 43 | H15: 46 | I15: 2 | J15: 13 | K15: 2 | L15: 22 | M15: 1 | N15: 5 | O15: 0 | P15: 1 | Q15: 0 | R15: 0 | S15: 1 | T15: 0 | U15: 0 | V15: 0 | W15: 0 | X15: 1 | Y15: 0 | Z15: 0 | AA15: 0 | AB15: 0 | AC15: 0 | AD15: 0 | AE15: 0 | AF15: 1
A16: Central | B16: 4-D | C16: SS | D16: Brunswick County | E16: 0 | F16: 0 | G16: 35 | H16: 35 | I16: 3 | J16: 19 | K16: 1 | L16: 9 | M16: 0 | N16: 3 | O16: 0 | P16: 0 | Q16: 0 | R16: 0 | S16: 1 | T16: 0 | U16: 0 | V16: 0 | W16: 0 | X16: 0 | Y16: 0 | Z16: 0 | AA16: 0 | AB16: 0 | AC16: 0 | AD16: 0 | AE16: 0 | AF16: 1
A17: Southwestern | B17: 3-D | C17: CMT | D17: Buchanan County | E17: 0 | F17: 4 | G17: 29 | H17: 33 | I17: 1 | J17: 12 | K17: 0 | L17: 12 | M17: 1 | N17: 4 | O17: 1 | P17: 2 | Q17: 0 | R17: 0 | S17: 0 | T17: 0 | U17: 0 | V17: 0 | W17: 0 | X17: 0 | Y17: 0 | Z17: 0 | AA17: 0 | AB17: 0 | AC17: 0 | AD17: 0 | AE17: 0 | AF17: 0
A18: Central | B18: 4-B | C18: CROS | D18: Buckingham County | E18: 1 | F18: 2 | G18: 14 | H18: 17 | I18: 1 | J18: 6 | K18: 0 | L18: 7 | M18: 1 | N18: 1 | O18: 0 | P18: 1 | Q18: 0 | R18: 0 | S18: 0 | T18: 0 | U18: 0 | V18: 0 | W18: 0 | X18: 0 | Y18: 0 | Z18: 0 | AA18: 0 | AB18: 0 | AC18: 0 | AD18: 0 | AE18: 0 | AF18: 0
A19: Western | B19: 1-C | C19: ROC | D19: Buena Vista City | E19: 0 | F19: 0 | G19: 8 | H19: 8 | I19: 0 | J19: 3 | K19: 0 | L19: 4 | M19: 0 | N19: 0 | O19: 1 | P19: 0 | Q19: 0 | R19: 0 | S19: 0 | T19: 0 | U19: 0 | V19: 0 | W19: 0 | X19: 0 | Y19: 0 | Z19: 0 | AA19: 0 | AB19: 0 | AC19: 0 | AD19: 0 | AE19: 0 | AF19: 0
A20: Western | B20: 1-D | C20: HORI | D20: Campbell County | E20: 2 | F20: 24 | G20: 131 | H20: 157 | I20: 7 | J20: 36 | K20: 8 | L20: 61 | M20: 8 | N20: 19 | O20: 11 | P20: 7 | Q20: 0 | R20: 0 | S20: 0 | T20: 0 | U20: 0 | V20: 0 | W20: 0 | X20: 0 | Y20: 0 | Z20: 0 | AA20: 0 | AB20: 0 | AC20: 0 | AD20: 0 | AE20: 0 | AF20: 0
A21: Northern | B21: 2-C | C21: RapA | D21: Caroline County | E21: 1 | F21: 8 | G21: 41 | H21: 50 | I21: 3 | J21: 19 | K21: 1 | L21: 18 | M21: 1 | N21: 3 | O21: 4 | P21: 1 | Q21: 0 | R21: 0 | S21: 1 | T21: 0 | U21: 0 | V21: 0 | W21: 0 | X21: 0 | Y21: 0 | Z21: 0 | AA21: 0 | AB21: 0 | AC21: 0 | AD21: 0 | AE21: 0 | AF21: 1
A22: Southwestern | B22: 3-B | C22: MTRG | D22: Carroll County | E22: 2 | F22: 9 | G22: 177 | H22: 188 | I22: 0 | J22: 30 | K22: 5 | L22: 73 | M22: 12 | N22: 20 | O22: 41 | P22: 7 | Q22: 0 | R22: 0 | S22: 0 | T22: 0 | U22: 0 | V22: 0 | W22: 0 | X22: 0 | Y22: 0 | Z22: 0 | AA22: 0 | AB22: 0 | AC22: 0 | AD22: 0 | AE22: 1 | AF22: 1
A23: Central | B23: 4-A | C23: HENR | D23: Charles City County | E23: 0 | F23: 1 | G23: 3 | H23: 4 | I23: 0 | J23: 3 | K23: 0 | L23: 1 | M23: 0 | N23: 0 | O23: 0 | P23: 0 | Q23: 0 | R23: 0 | S23: 1 | T23: 0 | U23: 0 | V23: 0 | W23: 0 | X23: 0 | Y23: 0 | Z23: 0 | AA23: 0 | AB23: 0 | AC23: 0 | AD23: 0 | AE23: 0 | AF23: 1
A24: Central | B24: 4-C | C24: CROS | D24: Charlotte County | E24: 0 | F24: 5 | G24: 28 | H24: 33 | I24: 3 | J24: 9 | K24: 4 | L24: 8 | M24: 0 | N24: 3 | O24: 3 | P24: 3 | Q24: 0 | R24: 0 | S24: 2 | T24: 0 | U24: 0 | V24: 0 | W24: 0 | X24: 0 | Y24: 0 | Z24: 0 | AA24: 0 | AB24: 0 | AC24: 0 | AD24: 0 | AE24: 0 | AF24: 2
A25: Western | B25: 1-A | C25: RTEN | D25: Charlottesville City | E25: 4 | F25: 10 | G25: 76 | H25: 90 | I25: 5 | J25: 43 | K25: 1 | L25: 23 | M25: 1 | N25: 11 | O25: 0 | P25: 6 | Q25: 0 | R25: 0 | S25: 0 | T25: 0 | U25: 0 | V25: 0 | W25: 0 | X25: 0 | Y25: 0 | Z25: 0 | AA25: 0 | AB25: 0 | AC25: 0 | AD25: 0 | AE25: 0 | AF25: 0
A26: Eastern | B26: 5-D | C26: CHSP | D26: Chesapeake City | E26: 7 | F26: 69 | G26: 276 | H26: 352 | I26: 15 | J26: 101 | K26: 12 | L26: 145 | M26: 6 | N26: 33 | O26: 21 | P26: 19 | Q26: 0 | R26: 5 | S26: 6 | T26: 0 | U26: 0 | V26: 0 | W26: 0 | X26: 5 | Y26: 0 | Z26: 0 | AA26: 0 | AB26: 0 | AC26: 8 | AD26: 2 | AE26: 5 | AF26: 20
A27: Central | B27: 4-A | C27: CHST | D27: Chesterfield County | E27: 25 | F27: 83 | G27: 913 | H27: 1021 | I27: 63 | J27: 335 | K27: 51 | L27: 341 | M27: 23 | N27: 77 | O27: 73 | P27: 58 | Q27: 0 | R27: 4 | S27: 11 | T27: 0 | U27: 0 | V27: 0 | W27: 0 | X27: 3 | Y27: 0 | Z27: 0 | AA27: 3 | AB27: 1 | AC27: 4 | AD27: 3 | AE27: 5 | AF27: 21
A28: Northern | B28: 2-D | C28: NW | D28: Clarke County | E28: 0 | F28: 7 | G28: 13 | H28: 20 | I28: 1 | J28: 10 | K28: 1 | L28: 2 | M28: 0 | N28: 0 | O28: 1 | P28: 5 | Q28: 0 | R28: 0 | S28: 0 | T28: 0 | U28: 0 | V28: 0 | W28: 0 | X28: 0 | Y28: 0 | Z28: 0 | AA28: 0 | AB28: 0 | AC28: 0 | AD28: 0 | AE28: 0 | AF28: 0
A29: Central | B29: 4-A | C29: D19 | D29: Colonial Heights City | E29: 1 | F29: 3 | G29: 15 | H29: 19 | I29: 4 | J29: 7 | K29: 0 | L29: 4 | M29: 1 | N29: 1 | O29: 1 | P29: 1 | Q29: 0 | R29: 0 | S29: 2 | T29: 0 | U29: 0 | V29: 0 | W29: 0 | X29: 1 | Y29: 0 | Z29: 0 | AA29: 0 | AB29: 0 | AC29: 0 | AD29: 0 | AE29: 1 | AF29: 3
A30: Western | B30: 1-C | C30: ALLE | D30: Covington City | E30: 0 | F30: 0 | G30: 14 | H30: 14 | I30: 1 | J30: 7 | K30: 1 | L30: 0 | M30: 1 | N30: 1 | O30: 0 | P30: 3 | Q30: 0 | R30: 1 | S30: 1 | T30: 0 | U30: 0 | V30: 0 | W30: 0 | X30: 1 | Y30: 0 | Z30: 0 | AA30: 0 | AB30: 0 | AC30: 0 | AD30: 1 | AE30: 0 | AF30: 1
A31: Southwestern | B31: 3-A | C31: BLUE | D31: Craig County | E31: 1 | F31: 2 | G31: 5 | H31: 8 | I31: 1 | J31: 3 | K31: 0 | L31: 0 | M31: 0 | N31: 1 | O31: 2 | P31: 1 | Q31: 0 | R31: 0 | S31: 0 | T31: 0 | U31: 0 | V31: 0 | W31: 0 | X31: 1 | Y31: 0 | Z31: 0 | AA31: 0 | AB31: 0 | AC31: 0 | AD31: 0 | AE31: 0 | AF31: 1
A32: Northern | B32: 2-B | C32: RapR | D32: Culpeper County | E32: 2 | F32: 8 | G32: 82 | H32: 92 | I32: 15 | J32: 42 | K32: 1 | L32: 18 | M32: 1 | N32: 4 | O32: 5 | P32: 6 | Q32: 0 | R32: 1 | S32: 2 | T32: 0 | U32: 0 | V32: 0 | W32: 0 | X32: 0 | Y32: 0 | Z32: 0 | AA32: 0 | AB32: 0 | AC32: 0 | AD32: 1 | AE32: 0 | AF32: 2
A33: Central | B33: 4-B | C33: CROS | D33: Cumberland County | E33: 1 | F33: 2 | G33: 24 | H33: 27 | I33: 2 | J33: 8 | K33: 0 | L33: 15 | M33: 1 | N33: 0 | O33: 0 | P33: 1 | Q33: 0 | R33: 0 | S33: 1 | T33: 0 | U33: 0 | V33: 0 | W33: 0 | X33: 0 | Y33: 0 | Z33: 0 | AA33: 0 | AB33: 0 | AC33: 0 | AD33: 0 | AE33: 0 | AF33: 1
A34: Southwestern | B34: 3-B | C34: DANV | D34: Danville City | E34: 13 | F34: 17 | G34: 147 | H34: 177 | I34: 20 | J34: 56 | K34: 4 | L34: 65 | M34: 1 | N34: 13 | O34: 3 | P34: 15 | Q34: 0 | R34: 2 | S34: 3 | T34: 0 | U34: 0 | V34: 0 | W34: 2 | X34: 7 | Y34: 0 | Z34: 0 | AA34: 1 | AB34: 0 | AC34: 1 | AD34: 2 | AE34: 2 | AF34: 8
A35: Southwestern | B35: 3-D | C35: DCBH | D35: Dickenson County | E35: 0 | F35: 2 | G35: 28 | H35: 30 | I35: 1 | J35: 10 | K35: 0 | L35: 10 | M35: 1 | N35: 2 | O35: 1 | P35: 5 | Q35: 0 | R35: 0 | S35: 1 | T35: 0 | U35: 0 | V35: 0 | W35: 0 | X35: 0 | Y35: 0 | Z35: 0 | AA35: 0 | AB35: 0 | AC35: 0 | AD35: 0 | AE35: 0 | AF35: 1
A36: Central | B36: 4-D | C36: D19 | D36: Dinwiddie County | E36: 0 | F36: 3 | G36: 62 | H36: 65 | I36: 1 | J36: 16 | K36: 6 | L36: 28 | M36: 3 | N36: 4 | O36: 4 | P36: 3 | Q36: 0 | R36: 0 | S36: 0 | T36: 0 | U36: 0 | V36: 0 | W36: 0 | X36: 0 | Y36: 0 | Z36: 0 | AA36: 0 | AB36: 0 | AC36: 0 | AD36: 0 | AE36: 0 | AF36: 0
A37: Central | B37: 4-C | C37: D19 | D37: Emporia City | E37: 0 | F37: 3 | G37: 3 | H37: 6 | I37: 0 | J37: 0 | K37: 0 | L37: 2 | M37: 0 | N37: 2 | O37: 0 | P37: 2 | Q37: 0 | R37: 0 | S37: 0 | T37: 0 | U37: 0 | V37: 0 | W37: 0 | X37: 0 | Y37: 0 | Z37: 0 | AA37: 0 | AB37: 0 | AC37: 1 | AD37: 0 | AE37: 0 | AF37: 1
A38: Eastern | B38: 5-A | C38: MPNN | D38: Essex County | E38: 0 | F38: 3 | G38: 17 | H38: 20 | I38: 3 | J38: 6 | K38: 1 | L38: 5 | M38: 1 | N38: 1 | O38: 0 | P38: 3 | Q38: 0 | R38: 0 | S38: 0 | T38: 0 | U38: 0 | V38: 0 | W38: 0 | X38: 0 | Y38: 0 | Z38: 0 | AA38: 0 | AB38: 0 | AC38: 0 | AD38: 0 | AE38: 0 | AF38: 0
A39: Northern | B39: 2-A | C39: FFFC | D39: Fairfax City | E39: 0 | F39: 0 | G39: 5 | H39: 5 | I39: 0 | J39: 2 | K39: 0 | L39: 3 | M39: 0 | N39: 0 | O39: 0 | P39: 0 | Q39: 0 | R39: 0 | S39: 0 | T39: 0 | U39: 0 | V39: 0 | W39: 0 | X39: 0 | Y39: 0 | Z39: 0 | AA39: 0 | AB39: 0 | AC39: 0 | AD39: 0 | AE39: 0 | AF39: 0
A40: Northern | B40: 2-A | C40: FFFC | D40: Fairfax County | E40: 19 | F40: 287 | G40: 864 | H40: 1170 | I40: 71 | J40: 324 | K40: 53 | L40: 407 | M40: 23 | N40: 87 | O40: 74 | P40: 131 | Q40: 0 | R40: 7 | S40: 8 | T40: 0 | U40: 0 | V40: 0 | W40: 2 | X40: 12 | Y40: 0 | Z40: 0 | AA40: 2 | AB40: 2 | AC40: 29 | AD40: 3 | AE40: 2 | AF40: 43
A41: Northern | B41: 2-A | C41: FFFC | D41: Falls Church City | E41: 0 | F41: 1 | G41: 1 | H41: 2 | I41: 0 | J41: 0 | K41: 1 | L41: 0 | M41: 0 | N41: 0 | O41: 0 | P41: 1 | Q41: 0 | R41: 0 | S41: 0 | T41: 0 | U41: 0 | V41: 0 | W41: 0 | X41: 0 | Y41: 0 | Z41: 0 | AA41: 0 | AB41: 0 | AC41: 2 | AD41: 0 | AE41: 0 | AF41: 2
A42: Northern | B42: 2-B | C42: RapR | D42: Fauquier County | E42: 0 | F42: 20 | G42: 56 | H42: 76 | I42: 7 | J42: 32 | K42: 1 | L42: 18 | M42: 1 | N42: 12 | O42: 2 | P42: 3 | Q42: 0 | R42: 0 | S42: 0 | T42: 0 | U42: 0 | V42: 0 | W42: 0 | X42: 0 | Y42: 0 | Z42: 0 | AA42: 0 | AB42: 0 | AC42: 1 | AD42: 1 | AE42: 0 | AF42: 2
A43: Southwestern | B43: 3-C | C43: NRV | D43: Floyd County | E43: 0 | F43: 7 | G43: 48 | H43: 55 | I43: 3 | J43: 11 | K43: 0 | L43: 17 | M43: 1 | N43: 11 | O43: 11 | P43: 1 | Q43: 0 | R43: 2 | S43: 2 | T43: 0 | U43: 0 | V43: 0 | W43: 0 | X43: 2 | Y43: 0 | Z43: 0 | AA43: 0 | AB43: 0 | AC43: 1 | AD43: 1 | AE43: 2 | AF43: 3
A44: Western | B44: 1-A | C44: RTEN | D44: Fluvanna County | E44: 0 | F44: 2 | G44: 16 | H44: 18 | I44: 1 | J44: 8 | K44: 0 | L44: 4 | M44: 0 | N44: 4 | O44: 1 | P44: 0 | Q44: 0 | R44: 0 | S44: 0 | T44: 0 | U44: 0 | V44: 0 | W44: 0 | X44: 0 | Y44: 0 | Z44: 0 | AA44: 0 | AB44: 0 | AC44: 0 | AD44: 0 | AE44: 0 | AF44: 0
A45: Eastern | B45: 5-D | C45: WT | D45: Franklin City | E45: 0 | F45: 0 | G45: 24 | H45: 24 | I45: 0 | J45: 5 | K45: 0 | L45: 15 | M45: 0 | N45: 3 | O45: 1 | P45: 0 | Q45: 0 | R45: 1 | S45: 2 | T45: 0 | U45: 0 | V45: 0 | W45: 0 | X45: 1 | Y45: 0 | Z45: 0 | AA45: 0 | AB45: 0 | AC45: 1 | AD45: 1 | AE45: 1 | AF45: 3
A46: Southwestern | B46: 3-A | C46: PDMT | D46: Franklin County | E46: 5 | F46: 14 | G46: 92 | H46: 111 | I46: 2 | J46: 39 | K46: 4 | L46: 26 | M46: 3 | N46: 20 | O46: 9 | P46: 8 | Q46: 0 | R46: 0 | S46: 1 | T46: 0 | U46: 0 | V46: 0 | W46: 0 | X46: 0 | Y46: 0 | Z46: 0 | AA46: 0 | AB46: 0 | AC46: 0 | AD46: 0 | AE46: 0 | AF46: 1
A47: Northern | B47: 2-D | C47: NW | D47: Frederick County | E47: 3 | F47: 28 | G47: 111 | H47: 142 | I47: 11 | J47: 52 | K47: 10 | L47: 40 | M47: 0 | N47: 10 | O47: 9 | P47: 10 | Q47: 0 | R47: 1 | S47: 2 | T47: 0 | U47: 0 | V47: 0 | W47: 0 | X47: 1 | Y47: 0 | Z47: 0 | AA47: 0 | AB47: 0 | AC47: 0 | AD47: 2 | AE47: 1 | AF47: 2
A48: Northern | B48: 2-C | C48: RapA | D48: Fredericksburg City | E48: 0 | F48: 4 | G48: 46 | H48: 50 | I48: 10 | J48: 16 | K48: 1 | L48: 13 | M48: 4 | N48: 3 | O48: 2 | P48: 1 | Q48: 0 | R48: 1 | S48: 1 | T48: 0 | U48: 0 | V48: 0 | W48: 0 | X48: 1 | Y48: 0 | Z48: 0 | AA48: 1 | AB48: 0 | AC48: 0 | AD48: 0 | AE48: 2 | AF48: 2
A49: Southwestern | B49: 3-B | C49: MTRG | D49: Galax City | E49: 0 | F49: 1 | G49: 30 | H49: 31 | I49: 1 | J49: 8 | K49: 2 | L49: 9 | M49: 1 | N49: 2 | O49: 7 | P49: 1 | Q49: 0 | R49: 2 | S49: 3 | T49: 0 | U49: 0 | V49: 0 | W49: 0 | X49: 1 | Y49: 0 | Z49: 0 | AA49: 0 | AB49: 0 | AC49: 0 | AD49: 0 | AE49: 3 | AF49: 5
A50: Southwestern | B50: 3-A | C50: NRV | D50: Giles County | E50: 0 | F50: 3 | G50: 34 | H50: 37 | I50: 1 | J50: 10 | K50: 2 | L50: 11 | M50: 0 | N50: 8 | O50: 5 | P50: 0 | Q50: 0 | R50: 0 | S50: 0 | T50: 0 | U50: 0 | V50: 0 | W50: 0 | X50: 0 | Y50: 0 | Z50: 0 | AA50: 0 | AB50: 1 | AC50: 0 | AD50: 0 | AE50: 0 | AF50: 1
A51: Eastern | B51: 5-A | C51: MPNN | D51: Gloucester County | E51: 0 | F51: 10 | G51: 74 | H51: 84 | I51: 5 | J51: 30 | K51: 1 | L51: 15 | M51: 7 | N51: 16 | O51: 1 | P51: 9 | Q51: 0 | R51: 1 | S51: 1 | T51: 0 | U51: 0 | V51: 0 | W51: 0 | X51: 1 | Y51: 0 | Z51: 0 | AA51: 0 | AB51: 0 | AC51: 2 | AD51: 1 | AE51: 0 | AF51: 3
A52: Central | B52: 4-B | C52: GOOC | D52: Goochland County | E52: 1 | F52: 6 | G52: 20 | H52: 27 | I52: 0 | J52: 11 | K52: 2 | L52: 8 | M52: 1 | N52: 3 | O52: 1 | P52: 1 | Q52: 0 | R52: 0 | S52: 1 | T52: 0 | U52: 0 | V52: 0 | W52: 0 | X52: 1 | Y52: 0 | Z52: 0 | AA52: 0 | AB52: 0 | AC52: 0 | AD52: 0 | AE52: 1 | AF52: 2
A53: Southwestern | B53: 3-B | C53: MTRG | D53: Grayson County | E53: 1 | F53: 0 | G53: 33 | H53: 34 | I53: 0 | J53: 9 | K53: 2 | L53: 18 | M53: 1 | N53: 4 | O53: 0 | P53: 0 | Q53: 0 | R53: 0 | S53: 0 | T53: 0 | U53: 0 | V53: 0 | W53: 0 | X53: 0 | Y53: 0 | Z53: 0 | AA53: 0 | AB53: 0 | AC53: 0 | AD53: 0 | AE53: 0 | AF53: 0
A54: Western | B54: 1-A | C54: RTEN | D54: Greene County | E54: 0 | F54: 9 | G54: 16 | H54: 25 | I54: 2 | J54: 8 | K54: 1 | L54: 7 | M54: 1 | N54: 3 | O54: 0 | P54: 3 | Q54: 0 | R54: 0 | S54: 0 | T54: 0 | U54: 0 | V54: 0 | W54: 0 | X54: 0 | Y54: 0 | Z54: 0 | AA54: 0 | AB54: 0 | AC54: 0 | AD54: 0 | AE54: 0 | AF54: 0
A55: Central | B55: 4-D | C55: D19 | D55: Greensville County | E55: 0 | F55: 1 | G55: 11 | H55: 12 | I55: 0 | J55: 3 | K55: 0 | L55: 7 | M55: 1 | N55: 1 | O55: 0 | P55: 0 | Q55: 0 | R55: 0 | S55: 0 | T55: 0 | U55: 0 | V55: 0 | W55: 0 | X55: 0 | Y55: 0 | Z55: 0 | AA55: 0 | AB55: 0 | AC55: 0 | AD55: 0 | AE55: 0 | AF55: 0
A56: Central | B56: 4-C | C56: SS | D56: Halifax County | E56: 1 | F56: 9 | G56: 72 | H56: 82 | I56: 8 | J56: 38 | K56: 6 | L56: 21 | M56: 2 | N56: 3 | O56: 1 | P56: 3 | Q56: 0 | R56: 1 | S56: 1 | T56: 0 | U56: 0 | V56: 0 | W56: 0 | X56: 0 | Y56: 0 | Z56: 0 | AA56: 0 | AB56: 0 | AC56: 0 | AD56: 0 | AE56: 0 | AF56: 1
A57: Eastern | B57: 5-C | C57: HAMP | D57: Hampton City | E57: 11 | F57: 39 | G57: 240 | H57: 290 | I57: 12 | J57: 110 | K57: 12 | L57: 99 | M57: 4 | N57: 26 | O57: 12 | P57: 15 | Q57: 0 | R57: 2 | S57: 6 | T57: 0 | U57: 0 | V57: 0 | W57: 0 | X57: 3 | Y57: 0 | Z57: 0 | AA57: 1 | AB57: 0 | AC57: 3 | AD57: 1 | AE57: 6 | AF57: 12
A58: Central | B58: 4-A | C58: HANO | D58: Hanover County | E58: 16 | F58: 46 | G58: 159 | H58: 221 | I58: 17 | J58: 72 | K58: 10 | L58: 63 | M58: 7 | N58: 26 | O58: 15 | P58: 11 | Q58: 0 | R58: 0 | S58: 5 | T58: 0 | U58: 0 | V58: 0 | W58: 0 | X58: 1 | Y58: 0 | Z58: 0 | AA58: 1 | AB58: 0 | AC58: 1 | AD58: 0 | AE58: 1 | AF58: 7
A59: Western | B59: 1-B | C59: HARR | D59: Harrisonburg City | E59: 3 | F59: 12 | G59: 57 | H59: 72 | I59: 17 | J59: 25 | K59: 2 | L59: 17 | M59: 0 | N59: 6 | O59: 2 | P59: 3 | Q59: 0 | R59: 0 | S59: 0 | T59: 0 | U59: 0 | V59: 0 | W59: 0 | X59: 0 | Y59: 0 | Z59: 0 | AA59: 0 | AB59: 0 | AC59: 0 | AD59: 0 | AE59: 0 | AF59: 0
A60: Central | B60: 4-A | C60: HENR | D60: Henrico County | E60: 19 | F60: 113 | G60: 482 | H60: 614 | I60: 45 | J60: 231 | K60: 29 | L60: 204 | M60: 8 | N60: 28 | O60: 34 | P60: 35 | Q60: 1 | R60: 4 | S60: 8 | T60: 0 | U60: 0 | V60: 0 | W60: 2 | X60: 6 | Y60: 0 | Z60: 1 | AA60: 2 | AB60: 0 | AC60: 2 | AD60: 1 | AE60: 5 | AF60: 15
A61: Southwestern | B61: 3-B | C61: PDMT | D61: Henry County | E61: 3 | F61: 9 | G61: 85 | H61: 97 | I61: 9 | J61: 40 | K61: 1 | L61: 24 | M61: 2 | N61: 6 | O61: 6 | P61: 9 | Q61: 0 | R61: 0 | S61: 0 | T61: 0 | U61: 0 | V61: 0 | W61: 0 | X61: 0 | Y61: 0 | Z61: 0 | AA61: 0 | AB61: 0 | AC61: 0 | AD61: 0 | AE61: 0 | AF61: 0
A62: Western | B62: 1-B | C62: VLY | D62: Highland County | E62: 0 | F62: 0 | G62: 6 | H62: 6 | I62: 0 | J62: 1 | K62: 0 | L62: 4 | M62: 0 | N62: 1 | O62: 0 | P62: 0 | Q62: 0 | R62: 0 | S62: 0 | T62: 0 | U62: 0 | V62: 0 | W62: 0 | X62: 0 | Y62: 0 | Z62: 0 | AA62: 0 | AB62: 0 | AC62: 0 | AD62: 0 | AE62: 0 | AF62: 0
A63: Central | B63: 4-D | C63: D19 | D63: Hopewell City | E63: 0 | F63: 4 | G63: 27 | H63: 31 | I63: 1 | J63: 10 | K63: 4 | L63: 9 | M63: 1 | N63: 0 | O63: 3 | P63: 3 | Q63: 0 | R63: 0 | S63: 0 | T63: 0 | U63: 0 | V63: 0 | W63: 0 | X63: 0 | Y63: 0 | Z63: 0 | AA63: 0 | AB63: 0 | AC63: 0 | AD63: 0 | AE63: 0 | AF63: 0
A64: Eastern | B64: 5-D | C64: WT | D64: Isle of Wight County | E64: 2 | F64: 4 | G64: 24 | H64: 30 | I64: 2 | J64: 11 | K64: 0 | L64: 14 | M64: 1 | N64: 0 | O64: 0 | P64: 2 | Q64: 0 | R64: 1 | S64: 2 | T64: 0 | U64: 0 | V64: 0 | W64: 0 | X64: 0 | Y64: 0 | Z64: 0 | AA64: 0 | AB64: 0 | AC64: 0 | AD64: 1 | AE64: 0 | AF64: 2
A65: Eastern | B65: 5-C | C65: COLO | D65: James City County | E65: 1 | F65: 16 | G65: 35 | H65: 52 | I65: 2 | J65: 15 | K65: 2 | L65: 18 | M65: 1 | N65: 3 | O65: 2 | P65: 9 | Q65: 0 | R65: 0 | S65: 0 | T65: 0 | U65: 0 | V65: 0 | W65: 0 | X65: 0 | Y65: 0 | Z65: 0 | AA65: 0 | AB65: 0 | AC65: 0 | AD65: 0 | AE65: 1 | AF65: 1
A66: Eastern | B66: 5-A | C66: MPNN | D66: King and Queen County | E66: 1 | F66: 0 | G66: 5 | H66: 6 | I66: 0 | J66: 3 | K66: 0 | L66: 1 | M66: 0 | N66: 2 | O66: 0 | P66: 0 | Q66: 0 | R66: 0 | S66: 0 | T66: 0 | U66: 0 | V66: 0 | W66: 0 | X66: 0 | Y66: 0 | Z66: 0 | AA66: 0 | AB66: 0 | AC66: 0 | AD66: 0 | AE66: 0 | AF66: 0
A67: Northern | B67: 2-C | C67: RapA | D67: King George County | E67: 0 | F67: 7 | G67: 17 | H67: 24 | I67: 2 | J67: 9 | K67: 0 | L67: 10 | M67: 0 | N67: 1 | O67: 1 | P67: 1 | Q67: 0 | R67: 0 | S67: 1 | T67: 0 | U67: 0 | V67: 0 | W67: 0 | X67: 0 | Y67: 0 | Z67: 0 | AA67: 0 | AB67: 0 | AC67: 0 | AD67: 0 | AE67: 0 | AF67: 1
A68: Eastern | B68: 5-A | C68: MPNN | D68: King William County | E68: 0 | F68: 4 | G68: 25 | H68: 29 | I68: 0 | J68: 4 | K68: 2 | L68: 9 | M68: 2 | N68: 10 | O68: 0 | P68: 2 | Q68: 0 | R68: 0 | S68: 0 | T68: 0 | U68: 0 | V68: 0 | W68: 0 | X68: 0 | Y68: 0 | Z68: 0 | AA68: 0 | AB68: 0 | AC68: 0 | AD68: 0 | AE68: 0 | AF68: 0
A69: Eastern | B69: 5-A | C69: MPNN | D69: Lancaster County | E69: 0 | F69: 0 | G69: 6 | H69: 6 | I69: 3 | J69: 3 | K69: 0 | L69: 0 | M69: 0 | N69: 0 | O69: 0 | P69: 0 | Q69: 0 | R69: 0 | S69: 0 | T69: 0 | U69: 0 | V69: 0 | W69: 0 | X69: 0 | Y69: 0 | Z69: 0 | AA69: 0 | AB69: 0 | AC69: 0 | AD69: 0 | AE69: 0 | AF69: 0
A70: Southwestern | B70: 3-D | C70: PLD1 | D70: Lee County | E70: 1 | F70: 4 | G70: 27 | H70: 32 | I70: 2 | J70: 14 | K70: 0 | L70: 12 | M70: 1 | N70: 2 | O70: 0 | P70: 1 | Q70: 0 | R70: 0 | S70: 0 | T70: 0 | U70: 0 | V70: 0 | W70: 0 | X70: 0 | Y70: 0 | Z70: 0 | AA70: 0 | AB70: 0 | AC70: 0 | AD70: 0 | AE70: 0 | AF70: 0
A71: Western | B71: 1-C | C71: ROC | D71: Lexington City | E71: 0 | F71: 0 | G71: 4 | H71: 4 | I71: 2 | J71: 1 | K71: 0 | L71: 0 | M71: 0 | N71: 0 | O71: 1 | P71: 0 | Q71: 0 | R71: 0 | S71: 1 | T71: 0 | U71: 0 | V71: 0 | W71: 0 | X71: 0 | Y71: 0 | Z71: 0 | AA71: 0 | AB71: 0 | AC71: 0 | AD71: 0 | AE71: 0 | AF71: 1
A72: Northern | B72: 2-A | C72: LOUD | D72: Loudoun County | E72: 7 | F72: 63 | G72: 168 | H72: 238 | I72: 20 | J72: 65 | K72: 6 | L72: 71 | M72: 5 | N72: 25 | O72: 20 | P72: 26 | Q72: 0 | R72: 0 | S72: 1 | T72: 0 | U72: 0 | V72: 0 | W72: 0 | X72: 3 | Y72: 0 | Z72: 0 | AA72: 0 | AB72: 0 | AC72: 6 | AD72: 0 | AE72: 0 | AF72: 8
A73: Western | B73: 1-A | C73: RTEN | D73: Louisa County | E73: 2 | F73: 10 | G73: 27 | H73: 39 | I73: 4 | J73: 15 | K73: 1 | L73: 8 | M73: 1 | N73: 2 | O73: 2 | P73: 6 | Q73: 0 | R73: 0 | S73: 0 | T73: 0 | U73: 0 | V73: 0 | W73: 0 | X73: 0 | Y73: 0 | Z73: 0 | AA73: 0 | AB73: 0 | AC73: 0 | AD73: 0 | AE73: 0 | AF73: 0
A74: Central | B74: 4-C | C74: CROS | D74: Lunenburg County | E74: 1 | F74: 2 | G74: 7 | H74: 10 | I74: 0 | J74: 5 | K74: 0 | L74: 3 | M74: 0 | N74: 1 | O74: 0 | P74: 1 | Q74: 0 | R74: 0 | S74: 0 | T74: 0 | U74: 0 | V74: 0 | W74: 0 | X74: 0 | Y74: 0 | Z74: 0 | AA74: 0 | AB74: 0 | AC74: 0 | AD74: 0 | AE74: 0 | AF74: 0
A75: Western | B75: 1-D | C75: HORI | D75: Lynchburg City | E75: 1 | F75: 39 | G75: 178 | H75: 218 | I75: 19 | J75: 77 | K75: 7 | L75: 67 | M75: 5 | N75: 24 | O75: 8 | P75: 11 | Q75: 0 | R75: 0 | S75: 2 | T75: 0 | U75: 0 | V75: 0 | W75: 1 | X75: 2 | Y75: 0 | Z75: 0 | AA75: 0 | AB75: 0 | AC75: 0 | AD75: 1 | AE75: 9 | AF75: 9
A76: Northern | B76: 2-B | C76: RapR | D76: Madison County | E76: 0 | F76: 2 | G76: 15 | H76: 17 | I76: 2 | J76: 8 | K76: 1 | L76: 4 | M76: 0 | N76: 0 | O76: 0 | P76: 2 | Q76: 0 | R76: 0 | S76: 0 | T76: 0 | U76: 0 | V76: 0 | W76: 0 | X76: 0 | Y76: 0 | Z76: 0 | AA76: 0 | AB76: 0 | AC76: 0 | AD76: 0 | AE76: 0 | AF76: 0
A77: Northern | B77: 2-A | C77: PWC | D77: Manassas City | E77: 0 | F77: 2 | G77: 14 | H77: 16 | I77: 0 | J77: 9 | K77: 0 | L77: 5 | M77: 0 | N77: 0 | O77: 2 | P77: 0 | Q77: 0 | R77: 1 | S77: 1 | T77: 0 | U77: 0 | V77: 0 | W77: 0 | X77: 0 | Y77: 0 | Z77: 0 | AA77: 0 | AB77: 0 | AC77: 0 | AD77: 0 | AE77: 0 | AF77: 1
A78: Northern | B78: 2-A | C78: PWC | D78: Manassas Park City | E78: 0 | F78: 1 | G78: 2 | H78: 3 | I78: 0 | J78: 2 | K78: 0 | L78: 0 | M78: 0 | N78: 0 | O78: 1 | P78: 0 | Q78: 0 | R78: 0 | S78: 0 | T78: 0 | U78: 0 | V78: 0 | W78: 0 | X78: 0 | Y78: 0 | Z78: 0 | AA78: 0 | AB78: 0 | AC78: 0 | AD78: 0 | AE78: 0 | AF78: 0
A79: Southwestern | B79: 3-B | C79: PDMT | D79: Martinsville City | E79: 0 | F79: 1 | G79: 32 | H79: 33 | I79: 1 | J79: 19 | K79: 2 | L79: 5 | M79: 1 | N79: 1 | O79: 3 | P79: 1 | Q79: 0 | R79: 0 | S79: 2 | T79: 0 | U79: 0 | V79: 0 | W79: 0 | X79: 1 | Y79: 0 | Z79: 0 | AA79: 0 | AB79: 0 | AC79: 0 | AD79: 0 | AE79: 0 | AF79: 3
A80: Eastern | B80: 5-A | C80: MPNN | D80: Mathews County | E80: 0 | F80: 0 | G80: 38 | H80: 38 | I80: 0 | J80: 14 | K80: 3 | L80: 20 | M80: 1 | N80: 0 | O80: 0 | P80: 0 | Q80: 0 | R80: 0 | S80: 0 | T80: 0 | U80: 0 | V80: 0 | W80: 0 | X80: 0 | Y80: 0 | Z80: 0 | AA80: 0 | AB80: 0 | AC80: 0 | AD80: 0 | AE80: 0 | AF80: 0
A81: Central | B81: 4-C | C81: SS | D81: Mecklenburg County | E81: 0 | F81: 6 | G81: 87 | H81: 93 | I81: 4 | J81: 45 | K81: 6 | L81: 26 | M81: 1 | N81: 5 | O81: 2 | P81: 4 | Q81: 0 | R81: 1 | S81: 1 | T81: 0 | U81: 0 | V81: 0 | W81: 0 | X81: 0 | Y81: 0 | Z81: 0 | AA81: 0 | AB81: 0 | AC81: 0 | AD81: 1 | AE81: 1 | AF81: 2
A82: Eastern | B82: 5-A | C82: MPNN | D82: Middlesex County | E82: 0 | F82: 1 | G82: 24 | H82: 25 | I82: 3 | J82: 10 | K82: 0 | L82: 11 | M82: 0 | N82: 1 | O82: 0 | P82: 0 | Q82: 0 | R82: 0 | S82: 0 | T82: 0 | U82: 0 | V82: 0 | W82: 0 | X82: 0 | Y82: 0 | Z82: 0 | AA82: 0 | AB82: 0 | AC82: 0 | AD82: 0 | AE82: 0 | AF82: 0
A83: Southwestern | B83: 3-A | C83: NRV | D83: Montgomery County | E83: 1 | F83: 31 | G83: 81 | H83: 113 | I83: 8 | J83: 17 | K83: 11 | L83: 27 | M83: 5 | N83: 19 | O83: 24 | P83: 2 | Q83: 0 | R83: 1 | S83: 3 | T83: 0 | U83: 0 | V83: 0 | W83: 0 | X83: 3 | Y83: 0 | Z83: 0 | AA83: 0 | AB83: 1 | AC83: 2 | AD83: 2 | AE83: 2 | AF83: 4
A84: Western | B84: 1-A | C84: RTEN | D84: Nelson County | E84: 0 | F84: 6 | G84: 26 | H84: 32 | I84: 3 | J84: 13 | K84: 0 | L84: 12 | M84: 0 | N84: 3 | O84: 1 | P84: 0 | Q84: 0 | R84: 1 | S84: 1 | T84: 0 | U84: 0 | V84: 0 | W84: 0 | X84: 0 | Y84: 0 | Z84: 0 | AA84: 0 | AB84: 0 | AC84: 0 | AD84: 0 | AE84: 0 | AF84: 1
A85: Central | B85: 4-A | C85: HENR | D85: New Kent County | E85: 0 | F85: 3 | G85: 25 | H85: 28 | I85: 0 | J85: 11 | K85: 1 | L85: 11 | M85: 1 | N85: 2 | O85: 0 | P85: 2 | Q85: 0 | R85: 1 | S85: 1 | T85: 0 | U85: 0 | V85: 0 | W85: 0 | X85: 0 | Y85: 0 | Z85: 0 | AA85: 1 | AB85: 0 | AC85: 0 | AD85: 0 | AE85: 0 | AF85: 1
A86: Eastern | B86: 5-C | C86: HAMP | D86: Newport News City | E86: 14 | F86: 25 | G86: 204 | H86: 243 | I86: 14 | J86: 78 | K86: 12 | L86: 84 | M86: 0 | N86: 30 | O86: 6 | P86: 19 | Q86: 0 | R86: 1 | S86: 4 | T86: 0 | U86: 0 | V86: 0 | W86: 2 | X86: 8 | Y86: 0 | Z86: 0 | AA86: 0 | AB86: 0 | AC86: 5 | AD86: 3 | AE86: 7 | AF86: 20
A87: Eastern | B87: 5-D | C87: NORF | D87: Norfolk City | E87: 22 | F87: 71 | G87: 287 | H87: 380 | I87: 41 | J87: 134 | K87: 9 | L87: 127 | M87: 4 | N87: 20 | O87: 13 | P87: 32 | Q87: 0 | R87: 1 | S87: 5 | T87: 0 | U87: 0 | V87: 0 | W87: 1 | X87: 5 | Y87: 0 | Z87: 0 | AA87: 0 | AB87: 0 | AC87: 2 | AD87: 1 | AE87: 2 | AF87: 11
A88: Eastern | B88: 5-B | C88: EAST | D88: Northampton County | E88: 0 | F88: 1 | G88: 44 | H88: 45 | I88: 6 | J88: 25 | K88: 1 | L88: 9 | M88: 0 | N88: 4 | O88: 0 | P88: 0 | Q88: 0 | R88: 0 | S88: 0 | T88: 0 | U88: 0 | V88: 0 | W88: 0 | X88: 0 | Y88: 0 | Z88: 0 | AA88: 0 | AB88: 0 | AC88: 0 | AD88: 0 | AE88: 0 | AF88: 0
A89: Eastern | B89: 5-A | C89: MPNN | D89: Northumberland County | E89: 0 | F89: 0 | G89: 7 | H89: 7 | I89: 0 | J89: 3 | K89: 0 | L89: 2 | M89: 0 | N89: 1 | O89: 0 | P89: 1 | Q89: 0 | R89: 0 | S89: 0 | T89: 0 | U89: 0 | V89: 0 | W89: 0 | X89: 0 | Y89: 0 | Z89: 0 | AA89: 0 | AB89: 0 | AC89: 0 | AD89: 0 | AE89: 0 | AF89: 0
A90: Southwestern | B90: 3-D | C90: PLD1 | D90: Norton City | E90: 0 | F90: 1 | G90: 3 | H90: 4 | I90: 1 | J90: 1 | K90: 0 | L90: 1 | M90: 0 | N90: 1 | O90: 0 | P90: 0 | Q90: 0 | R90: 0 | S90: 1 | T90: 0 | U90: 0 | V90: 0 | W90: 0 | X90: 0 | Y90: 0 | Z90: 0 | AA90: 0 | AB90: 0 | AC90: 0 | AD90: 0 | AE90: 0 | AF90: 1
A91: Central | B91: 4-C | C91: CROS | D91: Nottoway County | E91: 0 | F91: 4 | G91: 16 | H91: 20 | I91: 0 | J91: 5 | K91: 0 | L91: 10 | M91: 1 | N91: 0 | O91: 0 | P91: 4 | Q91: 0 | R91: 0 | S91: 0 | T91: 0 | U91: 0 | V91: 0 | W91: 0 | X91: 0 | Y91: 0 | Z91: 0 | AA91: 0 | AB91: 0 | AC91: 0 | AD91: 0 | AE91: 0 | AF91: 0
A92: Northern | B92: 2-B | C92: RapR | D92: Orange County | E92: 0 | F92: 16 | G92: 40 | H92: 56 | I92: 12 | J92: 24 | K92: 2 | L92: 12 | M92: 0 | N92: 4 | O92: 0 | P92: 2 | Q92: 0 | R92: 1 | S92: 0 | T92: 0 | U92: 0 | V92: 0 | W92: 0 | X92: 0 | Y92: 0 | Z92: 0 | AA92: 0 | AB92: 0 | AC92: 0 | AD92: 1 | AE92: 0 | AF92: 1
A93: Northern | B93: 2-D | C93: NW | D93: Page County | E93: 0 | F93: 7 | G93: 19 | H93: 26 | I93: 3 | J93: 11 | K93: 1 | L93: 7 | M93: 0 | N93: 2 | O93: 1 | P93: 1 | Q93: 0 | R93: 0 | S93: 0 | T93: 0 | U93: 0 | V93: 0 | W93: 0 | X93: 0 | Y93: 0 | Z93: 0 | AA93: 0 | AB93: 0 | AC93: 0 | AD93: 0 | AE93: 0 | AF93: 0
A94: Southwestern | B94: 3-C | C94: PDMT | D94: Patrick County | E94: 1 | F94: 4 | G94: 23 | H94: 28 | I94: 0 | J94: 14 | K94: 0 | L94: 9 | M94: 2 | N94: 2 | O94: 0 | P94: 1 | Q94: 0 | R94: 0 | S94: 1 | T94: 0 | U94: 0 | V94: 0 | W94: 0 | X94: 0 | Y94: 0 | Z94: 0 | AA94: 0 | AB94: 0 | AC94: 0 | AD94: 0 | AE94: 0 | AF94: 1
A95: Central | B95: 4-D | C95: D19 | D95: Petersburg City | E95: 1 | F95: 6 | G95: 135 | H95: 142 | I95: 2 | J95: 47 | K95: 9 | L95: 46 | M95: 10 | N95: 12 | O95: 10 | P95: 6 | Q95: 0 | R95: 0 | S95: 1 | T95: 0 | U95: 0 | V95: 0 | W95: 0 | X95: 0 | Y95: 0 | Z95: 0 | AA95: 0 | AB95: 0 | AC95: 0 | AD95: 0 | AE95: 2 | AF95: 3
A96: Southwestern | B96: 3-B | C96: DANV | D96: Pittsylvania County | E96: 11 | F96: 15 | G96: 138 | H96: 164 | I96: 5 | J96: 75 | K96: 11 | L96: 37 | M96: 3 | N96: 13 | O96: 9 | P96: 11 | Q96: 0 | R96: 1 | S96: 1 | T96: 0 | U96: 0 | V96: 0 | W96: 0 | X96: 0 | Y96: 0 | Z96: 0 | AA96: 0 | AB96: 0 | AC96: 0 | AD96: 0 | AE96: 0 | AF96: 1
A97: Eastern | B97: 5-C | C97: COLO | D97: Poquoson City | E97: 0 | F97: 2 | G97: 2 | H97: 4 | I97: 1 | J97: 0 | K97: 1 | L97: 2 | M97: 0 | N97: 0 | O97: 0 | P97: 0 | Q97: 0 | R97: 0 | S97: 0 | T97: 0 | U97: 0 | V97: 0 | W97: 0 | X97: 0 | Y97: 0 | Z97: 0 | AA97: 0 | AB97: 0 | AC97: 0 | AD97: 0 | AE97: 0 | AF97: 0
A98: Eastern | B98: 5-D | C98: PORT | D98: Portsmouth City | E98: 3 | F98: 8 | G98: 266 | H98: 277 | I98: 18 | J98: 92 | K98: 14 | L98: 111 | M98: 8 | N98: 14 | O98: 10 | P98: 10 | Q98: 0 | R98: 1 | S98: 6 | T98: 0 | U98: 0 | V98: 0 | W98: 1 | X98: 5 | Y98: 0 | Z98: 0 | AA98: 1 | AB98: 0 | AC98: 1 | AD98: 2 | AE98: 3 | AF98: 15
A99: Central | B99: 4-B | C99: GOOC | D99: Powhatan County | E99: 1 | F99: 11 | G99: 24 | H99: 36 | I99: 0 | J99: 11 | K99: 2 | L99: 11 | M99: 1 | N99: 3 | O99: 2 | P99: 6 | Q99: 0 | R99: 0 | S99: 2 | T99: 0 | U99: 0 | V99: 0 | W99: 0 | X99: 1 | Y99: 0 | Z99: 0 | AA99: 0 | AB99: 0 | AC99: 0 | AD99: 0 | AE99: 0 | AF99: 2
A100: Central | B100: 4-C | C100: CROS | D100: Prince Edward County | E100: 0 | F100: 6 | G100: 69 | H100: 75 | I100: 7 | J100: 34 | K100: 5 | L100: 20 | M100: 2 | N100: 1 | O100: 1 | P100: 5 | Q100: 0 | R100: 0 | S100: 2 | T100: 0 | U100: 0 | V100: 0 | W100: 0 | X100: 3 | Y100: 0 | Z100: 0 | AA100: 0 | AB100: 0 | AC100: 0 | AD100: 0 | AE100: 0 | AF100: 3
A101: Central | B101: 4-D | C101: D19 | D101: Prince George County | E101: 0 | F101: 5 | G101: 58 | H101: 63 | I101: 1 | J101: 17 | K101: 7 | L101: 23 | M101: 1 | N101: 1 | O101: 9 | P101: 4 | Q101: 0 | R101: 0 | S101: 3 | T101: 0 | U101: 0 | V101: 0 | W101: 0 | X101: 2 | Y101: 0 | Z101: 0 | AA101: 0 | AB101: 0 | AC101: 1 | AD101: 1 | AE101: 1 | AF101: 7
A102: Northern | B102: 2-A | C102: PWC | D102: Prince William County | E102: 10 | F102: 86 | G102: 365 | H102: 461 | I102: 12 | J102: 140 | K102: 26 | L102: 142 | M102: 10 | N102: 56 | O102: 27 | P102: 48 | Q102: 1 | R102: 2 | S102: 3 | T102: 0 | U102: 0 | V102: 0 | W102: 0 | X102: 4 | Y102: 0 | Z102: 0 | AA102: 0 | AB102: 4 | AC102: 11 | AD102: 6 | AE102: 1 | AF102: 21
A103: Southwestern | B103: 3-C | C103: NRV | D103: Pulaski County | E103: 0 | F103: 17 | G103: 44 | H103: 61 | I103: 1 | J103: 8 | K103: 3 | L103: 14 | M103: 0 | N103: 10 | O103: 15 | P103: 10 | Q103: 0 | R103: 0 | S103: 0 | T103: 0 | U103: 0 | V103: 0 | W103: 0 | X103: 0 | Y103: 0 | Z103: 0 | AA103: 0 | AB103: 0 | AC103: 0 | AD103: 0 | AE103: 0 | AF103: 0
A104: Southwestern | B104: 3-C | C104: NRV | D104: Radford City | E104: 0 | F104: 1 | G104: 17 | H104: 18 | I104: 0 | J104: 2 | K104: 1 | L104: 5 | M104: 2 | N104: 3 | O104: 5 | P104: 0 | Q104: 0 | R104: 1 | S104: 1 | T104: 0 | U104: 0 | V104: 0 | W104: 0 | X104: 0 | Y104: 0 | Z104: 0 | AA104: 0 | AB104: 1 | AC104: 0 | AD104: 0 | AE104: 0 | AF104: 2
A105: Northern | B105: 2-B | C105: RapR | D105: Rappahannock County | E105: 0 | F105: 1 | G105: 6 | H105: 7 | I105: 0 | J105: 2 | K105: 0 | L105: 2 | M105: 0 | N105: 0 | O105: 1 | P105: 2 | Q105: 0 | R105: 0 | S105: 0 | T105: 0 | U105: 0 | V105: 0 | W105: 0 | X105: 0 | Y105: 0 | Z105: 0 | AA105: 0 | AB105: 0 | AC105: 0 | AD105: 0 | AE105: 0 | AF105: 0
A106: Central | B106: 4-A | C106: RBHA | D106: Richmond City | E106: 12 | F106: 37 | G106: 275 | H106: 324 | I106: 25 | J106: 98 | K106: 8 | L106: 131 | M106: 7 | N106: 29 | O106: 11 | P106: 15 | Q106: 0 | R106: 2 | S106: 2 | T106: 0 | U106: 0 | V106: 0 | W106: 0 | X106: 1 | Y106: 0 | Z106: 0 | AA106: 0 | AB106: 0 | AC106: 3 | AD106: 1 | AE106: 1 | AF106: 6
A107: Eastern | B107: 5-A | C107: MPNN | D107: Richmond County | E107: 0 | F107: 14 | G107: 41 | H107: 55 | I107: 5 | J107: 16 | K107: 4 | L107: 14 | M107: 0 | N107: 6 | O107: 4 | P107: 6 | Q107: 0 | R107: 0 | S107: 0 | T107: 0 | U107: 0 | V107: 0 | W107: 0 | X107: 0 | Y107: 0 | Z107: 0 | AA107: 0 | AB107: 0 | AC107: 0 | AD107: 0 | AE107: 0 | AF107: 0
A108: Southwestern | B108: 3-A | C108: BLUE | D108: Roanoke City | E108: 8 | F108: 23 | G108: 116 | H108: 147 | I108: 9 | J108: 45 | K108: 11 | L108: 47 | M108: 2 | N108: 10 | O108: 12 | P108: 11 | Q108: 0 | R108: 1 | S108: 5 | T108: 0 | U108: 0 | V108: 0 | W108: 1 | X108: 1 | Y108: 0 | Z108: 0 | AA108: 0 | AB108: 0 | AC108: 0 | AD108: 1 | AE108: 3 | AF108: 7
A109: Southwestern | B109: 3-A | C109: BLUE | D109: Roanoke County | E109: 5 | F109: 36 | G109: 178 | H109: 219 | I109: 18 | J109: 52 | K109: 15 | L109: 77 | M109: 5 | N109: 15 | O109: 19 | P109: 18 | Q109: 0 | R109: 0 | S109: 4 | T109: 0 | U109: 0 | V109: 0 | W109: 1 | X109: 3 | Y109: 0 | Z109: 0 | AA109: 0 | AB109: 0 | AC109: 1 | AD109: 1 | AE109: 3 | AF109: 7
A110: Western | B110: 1-C | C110: ROC | D110: Rockbridge County | E110: 0 | F110: 6 | G110: 57 | H110: 63 | I110: 9 | J110: 10 | K110: 6 | L110: 19 | M110: 0 | N110: 6 | O110: 8 | P110: 5 | Q110: 0 | R110: 0 | S110: 0 | T110: 0 | U110: 0 | V110: 0 | W110: 0 | X110: 0 | Y110: 0 | Z110: 0 | AA110: 0 | AB110: 0 | AC110: 0 | AD110: 0 | AE110: 0 | AF110: 0
A111: Western | B111: 1-B | C111: HARR | D111: Rockingham County | E111: 3 | F111: 20 | G111: 118 | H111: 141 | I111: 9 | J111: 54 | K111: 3 | L111: 44 | M111: 3 | N111: 17 | O111: 4 | P111: 7 | Q111: 0 | R111: 3 | S111: 3 | T111: 0 | U111: 0 | V111: 0 | W111: 1 | X111: 3 | Y111: 0 | Z111: 0 | AA111: 1 | AB111: 0 | AC111: 0 | AD111: 0 | AE111: 2 | AF111: 4
A112: Southwestern | B112: 3-D | C112: CMT | D112: Russell County | E112: 0 | F112: 3 | G112: 61 | H112: 64 | I112: 3 | J112: 26 | K112: 2 | L112: 16 | M112: 0 | N112: 9 | O112: 5 | P112: 3 | Q112: 0 | R112: 0 | S112: 0 | T112: 0 | U112: 0 | V112: 0 | W112: 0 | X112: 0 | Y112: 0 | Z112: 0 | AA112: 0 | AB112: 0 | AC112: 0 | AD112: 0 | AE112: 0 | AF112: 0
A113: Southwestern | B113: 3-A | C113: BLUE | D113: Salem City | E113: 0 | F113: 4 | G113: 23 | H113: 27 | I113: 2 | J113: 8 | K113: 4 | L113: 10 | M113: 0 | N113: 0 | O113: 0 | P113: 3 | Q113: 0 | R113: 2 | S113: 3 | T113: 0 | U113: 0 | V113: 0 | W113: 0 | X113: 3 | Y113: 0 | Z113: 0 | AA113: 0 | AB113: 0 | AC113: 1 | AD113: 2 | AE113: 0 | AF113: 5
A114: Southwestern | B114: 3-D | C114: PLD1 | D114: Scott County | E114: 1 | F114: 1 | G114: 59 | H114: 61 | I114: 3 | J114: 20 | K114: 1 | L114: 31 | M114: 0 | N114: 3 | O114: 2 | P114: 1 | Q114: 0 | R114: 0 | S114: 0 | T114: 0 | U114: 0 | V114: 0 | W114: 0 | X114: 0 | Y114: 0 | Z114: 0 | AA114: 0 | AB114: 0 | AC114: 0 | AD114: 0 | AE114: 0 | AF114: 0
A115: Northern | B115: 2-D | C115: NW | D115: Shenandoah County | E115: 2 | F115: 14 | G115: 92 | H115: 108 | I115: 2 | J115: 44 | K115: 3 | L115: 47 | M115: 0 | N115: 7 | O115: 1 | P115: 4 | Q115: 0 | R115: 2 | S115: 2 | T115: 0 | U115: 0 | V115: 0 | W115: 0 | X115: 0 | Y115: 0 | Z115: 0 | AA115: 0 | AB115: 0 | AC115: 0 | AD115: 0 | AE115: 1 | AF115: 3
A116: Southwestern | B116: 3-D | C116: MTRG | D116: Smyth County | E116: 0 | F116: 4 | G116: 74 | H116: 78 | I116: 3 | J116: 17 | K116: 2 | L116: 34 | M116: 4 | N116: 7 | O116: 5 | P116: 6 | Q116: 0 | R116: 0 | S116: 1 | T116: 0 | U116: 0 | V116: 0 | W116: 0 | X116: 0 | Y116: 0 | Z116: 0 | AA116: 0 | AB116: 0 | AC116: 0 | AD116: 0 | AE116: 1 | AF116: 1
A117: Eastern | B117: 5-D | C117: WT | D117: Southampton County | E117: 0 | F117: 1 | G117: 19 | H117: 20 | I117: 1 | J117: 6 | K117: 1 | L117: 9 | M117: 1 | N117: 1 | O117: 0 | P117: 1 | Q117: 0 | R117: 0 | S117: 0 | T117: 0 | U117: 0 | V117: 0 | W117: 0 | X117: 0 | Y117: 0 | Z117: 0 | AA117: 0 | AB117: 0 | AC117: 0 | AD117: 0 | AE117: 0 | AF117: 0
A118: Northern | B118: 2-C | C118: RapA | D118: Spotsylvania County | E118: 3 | F118: 41 | G118: 207 | H118: 251 | I118: 19 | J118: 76 | K118: 12 | L118: 81 | M118: 5 | N118: 26 | O118: 13 | P118: 19 | Q118: 1 | R118: 1 | S118: 4 | T118: 0 | U118: 0 | V118: 0 | W118: 0 | X118: 1 | Y118: 0 | Z118: 0 | AA118: 0 | AB118: 0 | AC118: 0 | AD118: 0 | AE118: 1 | AF118: 6
A119: Northern | B119: 2-C | C119: RapA | D119: Stafford County | E119: 4 | F119: 45 | G119: 168 | H119: 217 | I119: 17 | J119: 60 | K119: 13 | L119: 63 | M119: 8 | N119: 23 | O119: 14 | P119: 19 | Q119: 0 | R119: 0 | S119: 1 | T119: 0 | U119: 0 | V119: 0 | W119: 0 | X119: 0 | Y119: 0 | Z119: 0 | AA119: 0 | AB119: 0 | AC119: 2 | AD119: 0 | AE119: 0 | AF119: 3
A120: Western | B120: 1-B | C120: VLY | D120: Staunton City | E120: 0 | F120: 10 | G120: 56 | H120: 66 | I120: 5 | J120: 19 | K120: 5 | L120: 20 | M120: 1 | N120: 7 | O120: 3 | P120: 6 | Q120: 0 | R120: 1 | S120: 2 | T120: 0 | U120: 0 | V120: 0 | W120: 0 | X120: 1 | Y120: 0 | Z120: 0 | AA120: 0 | AB120: 0 | AC120: 0 | AD120: 1 | AE120: 2 | AF120: 2
A121: Eastern | B121: 5-D | C121: WT | D121: Suffolk City | E121: 0 | F121: 16 | G121: 152 | H121: 168 | I121: 7 | J121: 46 | K121: 9 | L121: 66 | M121: 1 | N121: 17 | O121: 10 | P121: 12 | Q121: 0 | R121: 3 | S121: 3 | T121: 0 | U121: 0 | V121: 0 | W121: 0 | X121: 2 | Y121: 0 | Z121: 0 | AA121: 0 | AB121: 0 | AC121: 1 | AD121: 1 | AE121: 1 | AF121: 6
A122: Central | B122: 4-D | C122: D19 | D122: Surry County | E122: 0 | F122: 0 | G122: 3 | H122: 3 | I122: 0 | J122: 1 | K122: 0 | L122: 0 | M122: 0 | N122: 2 | O122: 0 | P122: 0 | Q122: 0 | R122: 0 | S122: 0 | T122: 0 | U122: 0 | V122: 0 | W122: 0 | X122: 0 | Y122: 0 | Z122: 0 | AA122: 0 | AB122: 0 | AC122: 0 | AD122: 0 | AE122: 0 | AF122: 0
A123: Central | B123: 4-D | C123: D19 | D123: Sussex County | E123: 0 | F123: 1 | G123: 36 | H123: 37 | I123: 1 | J123: 11 | K123: 2 | L123: 20 | M123: 1 | N123: 1 | O123: 1 | P123: 0 | Q123: 0 | R123: 0 | S123: 0 | T123: 0 | U123: 0 | V123: 0 | W123: 0 | X123: 0 | Y123: 0 | Z123: 0 | AA123: 0 | AB123: 0 | AC123: 0 | AD123: 0 | AE123: 0 | AF123: 0
A124: Southwestern | B124: 3-D | C124: CMT | D124: Tazewell County | E124: 2 | F124: 10 | G124: 62 | H124: 74 | I124: 6 | J124: 24 | K124: 0 | L124: 23 | M124: 0 | N124: 11 | O124: 1 | P124: 9 | Q124: 0 | R124: 0 | S124: 1 | T124: 0 | U124: 0 | V124: 0 | W124: 0 | X124: 1 | Y124: 0 | Z124: 0 | AA124: 0 | AB124: 0 | AC124: 1 | AD124: 0 | AE124: 0 | AF124: 2
A125: Eastern | B125: 5-D | C125: VAB | D125: Virginia Beach City | E125: 19 | F125: 135 | G125: 658 | H125: 812 | I125: 47 | J125: 250 | K125: 22 | L125: 336 | M125: 13 | N125: 59 | O125: 30 | P125: 55 | Q125: 0 | R125: 3 | S125: 5 | T125: 0 | U125: 0 | V125: 0 | W125: 4 | X125: 15 | Y125: 0 | Z125: 0 | AA125: 2 | AB125: 0 | AC125: 6 | AD125: 6 | AE125: 7 | AF125: 24
A126: Northern | B126: 2-D | C126: NW | D126: Warren County | E126: 1 | F126: 21 | G126: 14 | H126: 36 | I126: 5 | J126: 15 | K126: 3 | L126: 7 | M126: 0 | N126: 3 | O126: 0 | P126: 3 | Q126: 0 | R126: 1 | S126: 1 | T126: 0 | U126: 0 | V126: 0 | W126: 0 | X126: 1 | Y126: 0 | Z126: 0 | AA126: 0 | AB126: 0 | AC126: 0 | AD126: 0 | AE126: 0 | AF126: 2
A127: Southwestern | B127: 3-D | C127: HIGH | D127: Washington County | E127: 1 | F127: 11 | G127: 76 | H127: 88 | I127: 4 | J127: 26 | K127: 0 | L127: 34 | M127: 1 | N127: 15 | O127: 3 | P127: 5 | Q127: 0 | R127: 0 | S127: 2 | T127: 0 | U127: 0 | V127: 0 | W127: 0 | X127: 1 | Y127: 0 | Z127: 0 | AA127: 0 | AB127: 0 | AC127: 2 | AD127: 1 | AE127: 1 | AF127: 4
A128: Western | B128: 1-B | C128: VLY | D128: Waynesboro City | E128: 0 | F128: 5 | G128: 68 | H128: 73 | I128: 4 | J128: 28 | K128: 4 | L128: 23 | M128: 0 | N128: 5 | O128: 4 | P128: 5 | Q128: 0 | R128: 1 | S128: 0 | T128: 0 | U128: 0 | V128: 0 | W128: 0 | X128: 0 | Y128: 0 | Z128: 0 | AA128: 0 | AB128: 0 | AC128: 0 | AD128: 0 | AE128: 1 | AF128: 2
A129: Eastern | B129: 5-A | C129: MPNN | D129: Westmoreland County | E129: 0 | F129: 3 | G129: 12 | H129: 15 | I129: 2 | J129: 5 | K129: 1 | L129: 5 | M129: 0 | N129: 0 | O129: 0 | P129: 2 | Q129: 0 | R129: 0 | S129: 0 | T129: 0 | U129: 0 | V129: 0 | W129: 0 | X129: 0 | Y129: 0 | Z129: 0 | AA129: 0 | AB129: 0 | AC129: 0 | AD129: 0 | AE129: 0 | AF129: 0
A130: Eastern | B130: 5-C | C130: COLO | D130: Williamsburg City | E130: 0 | F130: 2 | G130: 13 | H130: 15 | I130: 0 | J130: 9 | K130: 0 | L130: 2 | M130: 0 | N130: 1 | O130: 2 | P130: 1 | Q130: 0 | R130: 0 | S130: 1 | T130: 0 | U130: 0 | V130: 0 | W130: 0 | X130: 1 | Y130: 0 | Z130: 0 | AA130: 0 | AB130: 0 | AC130: 0 | AD130: 0 | AE130: 1 | AF130: 2
A131: Northern | B131: 2-D | C131: NW | D131: Winchester City | E131: 1 | F131: 15 | G131: 77 | H131: 93 | I131: 7 | J131: 43 | K131: 4 | L131: 21 | M131: 0 | N131: 5 | O131: 7 | P131: 6 | Q131: 0 | R131: 1 | S131: 3 | T131: 0 | U131: 0 | V131: 0 | W131: 0 | X131: 0 | Y131: 0 | Z131: 0 | AA131: 1 | AB131: 0 | AC131: 0 | AD131: 1 | AE131: 0 | AF131: 4
A132: Southwestern | B132: 3-D | C132: PLD1 | D132: Wise County | E132: 0 | F132: 5 | G132: 92 | H132: 97 | I132: 5 | J132: 31 | K132: 4 | L132: 33 | M132: 2 | N132: 6 | O132: 6 | P132: 10 | Q132: 0 | R132: 0 | S132: 5 | T132: 0 | U132: 0 | V132: 0 | W132: 0 | X132: 1 | Y132: 0 | Z132: 0 | AA132: 0 | AB132: 0 | AC132: 1 | AD132: 0 | AE132: 1 | AF132: 6
A133: Southwestern | B133: 3-C | C133: MTRG | D133: Wythe County | E133: 0 | F133: 8 | G133: 69 | H133: 77 | I133: 2 | J133: 12 | K133: 4 | L133: 25 | M133: 8 | N133: 9 | O133: 12 | P133: 5 | Q133: 0 | R133: 1 | S133: 1 | T133: 0 | U133: 0 | V133: 0 | W133: 0 | X133: 0 | Y133: 0 | Z133: 0 | AA133: 1 | AB133: 0 | AC133: 1 | AD133: 1 | AE133: 1 | AF133: 2
A134: Eastern | B134: 5-C | C134: COLO | D134: York County | E134: 0 | F134: 8 | G134: 41 | H134: 49 | I134: 4 | J134: 16 | K134: 0 | L134: 20 | M134: 0 | N134: 5 | O134: 0 | P134: 4 | Q134: 0 | R134: 0 | S134: 0 | T134: 0 | U134: 0 | V134: 0 | W134: 0 | X134: 0 | Y134: 0 | Z134: 0 | AA134: 0 | AB134: 0 | AC134: 1 | AD134: 0 | AE134: 0 | AF134: 1
A136: DS-Regional Totals - non-Unique
A137: Central | C137: na | D137: na | E137: na | F137: na | G137: na | H137: na | I137: na | J137: na | K137: na | L137: na | M137: na | N137: na | O137: na | P137: na | Q137: 1 | R137: 13 | S137: 45 | T137: 0 | U137: 0 | V137: 0 | W137: 2 | X137: 19 | Y137: 0 | Z137: 1 | AA137: 7 | AB137: 1 | AC137: 12 | AD137: 7 | AE137: 18 | AF137: 79
A138: Eastern | C138: na | D138: na | E138: na | F138: na | G138: na | H138: na | I138: na | J138: na | K138: na | L138: na | M138: na | N138: na | O138: na | P138: na | Q138: 0 | R138: 14 | S138: 37 | T138: 0 | U138: 0 | V138: 0 | W138: 8 | X138: 42 | Y138: 0 | Z138: 0 | AA138: 5 | AB138: 0 | AC138: 22 | AD138: 17 | AE138: 29 | AF138: 102
A139: Northern | C139: na | D139: na | E139: na | F139: na | G139: na | H139: na | I139: na | J139: na | K139: na | L139: na | M139: na | N139: na | O139: na | P139: na | Q139: 2 | R139: 19 | S139: 32 | T139: 0 | U139: 0 | V139: 0 | W139: 2 | X139: 24 | Y139: 0 | Z139: 0 | AA139: 5 | AB139: 6 | AC139: 53 | AD139: 15 | AE139: 8 | AF139: 107
A140: Southwestern | C140: na | D140: na | E140: na | F140: na | G140: na | H140: na | I140: na | J140: na | K140: na | L140: na | M140: na | N140: na | O140: na | P140: na | Q140: 0 | R140: 14 | S140: 43 | T140: 0 | U140: 0 | V140: 0 | W140: 4 | X140: 26 | Y140: 0 | Z140: 0 | AA140: 2 | AB140: 3 | AC140: 11 | AD140: 12 | AE140: 20 | AF140: 69
A141: Western | C141: na | D141: na | E141: na | F141: na | G141: na | H141: na | I141: na | J141: na | K141: na | L141: na | M141: na | N141: na | O141: na | P141: na | Q141: 0 | R141: 17 | S141: 29 | T141: 0 | U141: 0 | V141: 0 | W141: 3 | X141: 21 | Y141: 0 | Z141: 0 | AA141: 1 | AB141: 0 | AC141: 9 | AD141: 9 | AE141: 32 | AF141: 60
A142: Total nonUnique | C142: na | D142: na | E142: na | F142: na | G142: na | H142: na | I142: na | J142: na | K142: na | L142: na | M142: na | N142: na | O142: na | P142: na | Q142: =SUM(Q137:Q141) -> 3 | R142: =SUM(R137:R141) -> 77 | S142: 186 | T142: 0 | U142: 0 | V142: 0 | W142: 19 | X142: 132 | Y142: 0 | Z142: 1 | AA142: 20 | AB142: 10 | AC142: 107 | AD142: 60 | AE142: 107 | AF142: 417
A143: DS-Regional Totals - Unique
A144: Central | C144: na | D144: na | E144: 80 | F144: 363 | G144: 2616 | H144: 3059 | I144: 189 | J144: 1058 | K144: 153 | L144: 1034 | M144: 74 | N144: 211 | O144: 171 | P144: 169 | Q144: 1 | R144: 12 | S144: 36 | T144: 0 | U144: 0 | V144: 0 | W144: 2 | X144: 17 | Y144: 0 | Z144: 1 | AA144: 6 | AB144: 1 | AC144: 12 | AD144: 7 | AE144: 12 | AF144: 64
A145: Eastern | C145: na | D145: na | E145: 80 | F145: 436 | G145: 2596 | H145: 3112 | I145: 200 | J145: 1022 | K145: 108 | L145: 1157 | M145: 50 | N145: 258 | O145: 113 | P145: 204 | Q145: 0 | R145: 17 | S145: 33 | T145: 0 | U145: 0 | V145: 0 | W145: 7 | X145: 45 | Y145: 0 | Z145: 0 | AA145: 5 | AB145: 0 | AC145: 26 | AD145: 17 | AE145: 32 | AF145: 106
A146: Northern | C146: na | D146: na | E146: 62 | F146: 728 | G146: 2618 | H146: 3408 | I146: 244 | J146: 1087 | K146: 151 | L146: 1080 | M146: 61 | N146: 283 | O146: 197 | P146: 305 | Q146: 2 | R146: 17 | S146: 29 | T146: 0 | U146: 0 | V146: 0 | W146: 2 | X146: 22 | Y146: 0 | Z146: 0 | AA146: 5 | AB146: 6 | AC146: 50 | AD146: 12 | AE146: 7 | AF146: 96
A147: Southwestern | C147: na | D147: na | E147: 57 | F147: 261 | G147: 1972 | H147: 2290 | I147: 114 | J147: 665 | K147: 93 | L147: 753 | M147: 61 | N147: 245 | O147: 210 | P147: 149 | Q147: 0 | R147: 10 | S147: 29 | T147: 0 | U147: 0 | V147: 0 | W147: 4 | X147: 20 | Y147: 0 | Z147: 0 | AA147: 2 | AB147: 1 | AC147: 6 | AD147: 7 | AE147: 10 | AF147: 42
A148: Western | C148: na | D148: na | E148: 20 | F148: 259 | G148: 1453 | H148: 1732 | I148: 120 | J148: 559 | K148: 60 | L148: 574 | M148: 34 | N148: 204 | O148: 80 | P148: 101 | Q148: 0 | R148: 7 | S148: 15 | T148: 0 | U148: 0 | V148: 0 | W148: 3 | X148: 13 | Y148: 0 | Z148: 0 | AA148: 1 | AB148: 0 | AC148: 1 | AD148: 4 | AE148: 18 | AF148: 27
A149: Total Unique | C149: na | D149: na | E149: 299 | F149: 2047 | G149: 11255 | H149: 13601 | I149: 867 | J149: 4391 | K149: 565 | L149: 4598 | M149: 280 | N149: 1201 | O149: 771 | P149: 928 | Q149: 3 | R149: 59 | S149: 134 | T149: 0 | U149: 0 | V149: 0 | W149: 18 | X149: 108 | Y149: 0 | Z149: 1 | AA149: 19 | AB149: 8 | AC149: 89 | AD149: 41 | AE149: 69 | AF149: 314

Sheet Master20191031
A1: DS Region | B1: SubRegion | C1: CSB | D1: City/County | E1: BI waiver | F1: FIS waiver | G1: CL waiver | H1: All waivers | I1: SIS L1 | J1: SIS L2 | K1: SIS L3 | L1: SIS L4 | M1: SIS L5 | N1: SIS L6 | O1: SIS L7 | P1: SIS Default | Q1: Benefits Planning | R1: Community Coaching | S1: Community Engagement | T1: Community Guide | U1: Electronic Home-Based Services | V1: Employment and Community Transportation | W1: Independent Living Supports | X1: In-home Supports | Y1: Peer Mentoring | Z1: Shared Living | AA1: Supported Living | AB1: Crisis Support Services | AC1: Private Duty Nursing | AD1: Skilled Nursing | AE1: Sponsored Residential | AF1: Total Unique
A2: Eastern | B2: 5-B | C2: EAST | D2: Accomack County | E2: 0 | F2: 4 | G2: 66 | H2: 70 | I2: 5 | J2: 27 | K2: 1 | L2: 25 | M2: 0 | N2: 6 | O2: 1 | P2: 5 | Q2: 0 | R2: 0 | S2: 1 | T2: 0 | U2: 0 | V2: 0 | W2: 0 | X2: 1 | Y2: 0 | Z2: 0 | AA2: 1 | AB2: 0 | AC2: 0 | AD2: 0 | AE2: 0 | AF2: 1
A3: Western | B3: 1-A | C3: RTEN | D3: Albemarle County | E3: 3 | F3: 39 | G3: 94 | H3: 136 | I3: 10 | J3: 52 | K3: 2 | L3: 43 | M3: 3 | N3: 7 | O3: 1 | P3: 18 | Q3: 0 | R3: 3 | S3: 3 | T3: 0 | U3: 0 | V3: 0 | W3: 1 | X3: 3 | Y3: 0 | Z3: 0 | AA3: 0 | AB3: 0 | AC3: 1 | AD3: 1 | AE3: 3 | AF3: 5
A4: Northern | B4: 2-A | C4: ALEX | D4: Alexandria City | E4: 4 | F4: 20 | G4: 76 | H4: 100 | I4: 9 | J4: 37 | K4: 2 | L4: 33 | M4: 2 | N4: 2 | O4: 4 | P4: 11 | Q4: 0 | R4: 0 | S4: 1 | T4: 0 | U4: 0 | V4: 0 | W4: 0 | X4: 2 | Y4: 0 | Z4: 0 | AA4: 1 | AB4: 0 | AC4: 2 | AD4: 0 | AE4: 0 | AF4: 4
A5: Western | B5: 1-C | C5: ALLE | D5: Alleghany County | E5: 1 | F5: 9 | G5: 37 | H5: 47 | I5: 7 | J5: 19 | K5: 1 | L5: 11 | M5: 0 | N5: 4 | O5: 2 | P5: 3 | Q5: 0 | R5: 0 | S5: 1 | T5: 0 | U5: 0 | V5: 0 | W5: 0 | X5: 2 | Y5: 0 | Z5: 0 | AA5: 0 | AB5: 0 | AC5: 0 | AD5: 0 | AE5: 0 | AF5: 2
A6: Central | B6: 4-B | C6: CROS | D6: Amelia County | E6: 0 | F6: 1 | G6: 11 | H6: 12 | I6: 0 | J6: 4 | K6: 0 | L6: 8 | M6: 0 | N6: 0 | O6: 0 | P6: 0 | Q6: 0 | R6: 0 | S6: 0 | T6: 0 | U6: 0 | V6: 0 | W6: 0 | X6: 0 | Y6: 0 | Z6: 0 | AA6: 0 | AB6: 0 | AC6: 0 | AD6: 0 | AE6: 0 | AF6: 0
A7: Western | B7: 1-D | C7: HORI | D7: Amherst County | E7: 0 | F7: 15 | G7: 156 | H7: 171 | I7: 3 | J7: 32 | K7: 5 | L7: 84 | M7: 4 | N7: 19 | O7: 15 | P7: 9 | Q7: 0 | R7: 1 | S7: 2 | T7: 0 | U7: 0 | V7: 0 | W7: 0 | X7: 0 | Y7: 0 | Z7: 0 | AA7: 0 | AB7: 0 | AC7: 0 | AD7: 0 | AE7: 3 | AF7: 3
A8: Western | B8: 1-D | C8: HORI | D8: Appomattox County | E8: 0 | F8: 10 | G8: 27 | H8: 37 | I8: 1 | J8: 10 | K8: 3 | L8: 9 | M8: 3 | N8: 5 | O8: 3 | P8: 3 | Q8: 0 | R8: 0 | S8: 0 | T8: 0 | U8: 0 | V8: 0 | W8: 0 | X8: 1 | Y8: 0 | Z8: 0 | AA8: 0 | AB8: 0 | AC8: 0 | AD8: 0 | AE8: 1 | AF8: 1
A9: Northern | B9: 2-A | C9: ARLI | D9: Arlington County | E9: 5 | F9: 48 | G9: 117 | H9: 170 | I9: 12 | J9: 46 | K9: 7 | L9: 54 | M9: 4 | N9: 11 | O9: 10 | P9: 26 | Q9: 0 | R9: 0 | S9: 0 | T9: 0 | U9: 0 | V9: 0 | W9: 0 | X9: 1 | Y9: 0 | Z9: 0 | AA9: 0 | AB9: 0 | AC9: 0 | AD9: 0 | AE9: 0 | AF9: 1
A10: Western | B10: 1-B | C10: VLY | D10: Augusta County | E10: 1 | F10: 22 | G10: 137 | H10: 160 | I10: 5 | J10: 49 | K10: 3 | L10: 46 | M10: 1 | N10: 26 | O10: 13 | P10: 17 | Q10: 0 | R10: 1 | S10: 1 | T10: 0 | U10: 0 | V10: 0 | W10: 0 | X10: 1 | Y10: 0 | Z10: 0 | AA10: 0 | AB10: 0 | AC10: 0 | AD10: 0 | AE10: 2 | AF10: 2
A11: Western | B11: 1-C | C11: ROC | D11: Bath County | E11: 0 | F11: 1 | G11: 7 | H11: 8 | I11: 2 | J11: 0 | K11: 2 | L11: 3 | M11: 0 | N11: 1 | O11: 0 | P11: 0 | Q11: 0 | R11: 0 | S11: 0 | T11: 0 | U11: 0 | V11: 0 | W11: 0 | X11: 0 | Y11: 0 | Z11: 0 | AA11: 0 | AB11: 0 | AC11: 0 | AD11: 0 | AE11: 0 | AF11: 0
A12: Western | B12: 1-D | C12: HORI | D12: Bedford County | E12: 1 | F12: 29 | G12: 158 | H12: 188 | I12: 4 | J12: 35 | K12: 4 | L12: 76 | M12: 8 | N12: 35 | O12: 13 | P12: 13 | Q12: 0 | R12: 0 | S12: 5 | T12: 0 | U12: 0 | V12: 0 | W12: 0 | X12: 2 | Y12: 0 | Z12: 0 | AA12: 0 | AB12: 0 | AC12: 0 | AD12: 1 | AE12: 4 | AF12: 6
A13: Southwestern | B13: 3-C | C13: MTRG | D13: Bland County | E13: 0 | F13: 2 | G13: 11 | H13: 13 | I13: 0 | J13: 1 | K13: 0 | L13: 7 | M13: 0 | N13: 3 | O13: 1 | P13: 1 | Q13: 0 | R13: 0 | S13: 0 | T13: 0 | U13: 0 | V13: 0 | W13: 0 | X13: 0 | Y13: 0 | Z13: 0 | AA13: 0 | AB13: 0 | AC13: 0 | AD13: 0 | AE13: 0 | AF13: 0
A14: Southwestern | B14: 3-A | C14: BLUE | D14: Botetourt County | E14: 0 | F14: 13 | G14: 34 | H14: 47 | I14: 0 | J14: 11 | K14: 1 | L14: 15 | M14: 1 | N14: 13 | O14: 2 | P14: 4 | Q14: 0 | R14: 1 | S14: 2 | T14: 0 | U14: 0 | V14: 0 | W14: 0 | X14: 0 | Y14: 0 | Z14: 0 | AA14: 0 | AB14: 0 | AC14: 0 | AD14: 1 | AE14: 0 | AF14: 2
A15: Southwestern | B15: 3-D | C15: HIGH | D15: Bristol City | E15: 1 | F15: 3 | G15: 43 | H15: 47 | I15: 2 | J15: 13 | K15: 1 | L15: 20 | M15: 2 | N15: 5 | O15: 0 | P15: 4 | Q15: 0 | R15: 0 | S15: 1 | T15: 0 | U15: 0 | V15: 0 | W15: 0 | X15: 1 | Y15: 0 | Z15: 0 | AA15: 0 | AB15: 0 | AC15: 0 | AD15: 0 | AE15: 0 | AF15: 1
A16: Central | B16: 4-D | C16: SS | D16: Brunswick County | E16: 0 | F16: 0 | G16: 35 | H16: 35 | I16: 3 | J16: 18 | K16: 1 | L16: 9 | M16: 0 | N16: 3 | O16: 0 | P16: 1 | Q16: 0 | R16: 0 | S16: 1 | T16: 0 | U16: 0 | V16: 0 | W16: 0 | X16: 0 | Y16: 0 | Z16: 0 | AA16: 0 | AB16: 0 | AC16: 0 | AD16: 0 | AE16: 0 | AF16: 1
A17: Southwestern | B17: 3-D | C17: CMT | D17: Buchanan County | E17: 0 | F17: 5 | G17: 28 | H17: 33 | I17: 1 | J17: 11 | K17: 0 | L17: 12 | M17: 0 | N17: 4 | O17: 1 | P17: 4 | Q17: 0 | R17: 0 | S17: 0 | T17: 0 | U17: 0 | V17: 0 | W17: 0 | X17: 0 | Y17: 0 | Z17: 0 | AA17: 0 | AB17: 0 | AC17: 0 | AD17: 0 | AE17: 0 | AF17: 0
A18: Central | B18: 4-B | C18: CROS | D18: Buckingham County | E18: 1 | F18: 1 | G18: 15 | H18: 17 | I18: 0 | J18: 8 | K18: 0 | L18: 6 | M18: 1 | N18: 2 | O18: 0 | P18: 0 | Q18: 0 | R18: 0 | S18: 0 | T18: 0 | U18: 0 | V18: 0 | W18: 0 | X18: 0 | Y18: 0 | Z18: 0 | AA18: 0 | AB18: 0 | AC18: 0 | AD18: 0 | AE18: 0 | AF18: 0
A19: Western | B19: 1-C | C19: ROC | D19: Buena Vista City | E19: 0 | F19: 0 | G19: 8 | H19: 8 | I19: 0 | J19: 3 | K19: 0 | L19: 4 | M19: 0 | N19: 0 | O19: 1 | P19: 0 | Q19: 0 | R19: 0 | S19: 0 | T19: 0 | U19: 0 | V19: 0 | W19: 0 | X19: 0 | Y19: 0 | Z19: 0 | AA19: 0 | AB19: 0 | AC19: 0 | AD19: 0 | AE19: 0 | AF19: 0
A20: Western | B20: 1-D | C20: HORI | D20: Campbell County | E20: 2 | F20: 27 | G20: 141 | H20: 170 | I20: 7 | J20: 35 | K20: 9 | L20: 61 | M20: 8 | N20: 25 | O20: 15 | P20: 10 | Q20: 0 | R20: 0 | S20: 0 | T20: 0 | U20: 0 | V20: 0 | W20: 0 | X20: 0 | Y20: 0 | Z20: 0 | AA20: 0 | AB20: 0 | AC20: 0 | AD20: 0 | AE20: 0 | AF20: 0
A21: Northern | B21: 2-C | C21: RapA | D21: Caroline County | E21: 0 | F21: 7 | G21: 43 | H21: 50 | I21: 5 | J21: 17 | K21: 1 | L21: 17 | M21: 2 | N21: 4 | O21: 4 | P21: 0 | Q21: 0 | R21: 0 | S21: 0 | T21: 0 | U21: 0 | V21: 0 | W21: 0 | X21: 0 | Y21: 0 | Z21: 0 | AA21: 0 | AB21: 0 | AC21: 0 | AD21: 0 | AE21: 0 | AF21: 0
A22: Southwestern | B22: 3-B | C22: MTRG | D22: Carroll County | E22: 1 | F22: 11 | G22: 181 | H22: 193 | I22: 0 | J22: 23 | K22: 8 | L22: 74 | M22: 16 | N22: 19 | O22: 45 | P22: 8 | Q22: 0 | R22: 0 | S22: 0 | T22: 0 | U22: 0 | V22: 0 | W22: 0 | X22: 0 | Y22: 0 | Z22: 0 | AA22: 0 | AB22: 0 | AC22: 0 | AD22: 0 | AE22: 1 | AF22: 1
A23: Central | B23: 4-A | C23: HENR | D23: Charles City County | E23: 0 | F23: 1 | G23: 3 | H23: 4 | I23: 0 | J23: 3 | K23: 0 | L23: 1 | M23: 0 | N23: 0 | O23: 0 | P23: 0 | Q23: 0 | R23: 0 | S23: 0 | T23: 0 | U23: 0 | V23: 0 | W23: 0 | X23: 0 | Y23: 0 | Z23: 0 | AA23: 0 | AB23: 0 | AC23: 0 | AD23: 0 | AE23: 0 | AF23: 0
A24: Central | B24: 4-C | C24: CROS | D24: Charlotte County | E24: 0 | F24: 6 | G24: 25 | H24: 31 | I24: 2 | J24: 11 | K24: 3 | L24: 8 | M24: 0 | N24: 2 | O24: 3 | P24: 2 | Q24: 0 | R24: 0 | S24: 2 | T24: 0 | U24: 0 | V24: 0 | W24: 0 | X24: 0 | Y24: 0 | Z24: 0 | AA24: 0 | AB24: 0 | AC24: 0 | AD24: 0 | AE24: 0 | AF24: 2
A25: Western | B25: 1-A | C25: RTEN | D25: Charlottesville City | E25: 3 | F25: 16 | G25: 75 | H25: 94 | I25: 10 | J25: 40 | K25: 0 | L25: 24 | M25: 0 | N25: 12 | O25: 0 | P25: 8 | Q25: 0 | R25: 0 | S25: 0 | T25: 0 | U25: 0 | V25: 0 | W25: 0 | X25: 0 | Y25: 0 | Z25: 0 | AA25: 0 | AB25: 0 | AC25: 0 | AD25: 0 | AE25: 0 | AF25: 0
A26: Eastern | B26: 5-D | C26: CHSP | D26: Chesapeake City | E26: 9 | F26: 85 | G26: 283 | H26: 377 | I26: 14 | J26: 92 | K26: 13 | L26: 164 | M26: 11 | N26: 33 | O26: 20 | P26: 30 | Q26: 0 | R26: 4 | S26: 7 | T26: 0 | U26: 0 | V26: 0 | W26: 1 | X26: 6 | Y26: 0 | Z26: 0 | AA26: 0 | AB26: 0 | AC26: 7 | AD26: 3 | AE26: 5 | AF26: 20
A27: Central | B27: 4-A | C27: CHST | D27: Chesterfield County | E27: 26 | F27: 111 | G27: 949 | H27: 1086 | I27: 70 | J27: 356 | K27: 40 | L27: 362 | M27: 29 | N27: 77 | O27: 76 | P27: 76 | Q27: 0 | R27: 4 | S27: 9 | T27: 0 | U27: 0 | V27: 0 | W27: 1 | X27: 3 | Y27: 0 | Z27: 0 | AA27: 3 | AB27: 0 | AC27: 4 | AD27: 2 | AE27: 5 | AF27: 19
A28: Northern | B28: 2-D | C28: NW | D28: Clarke County | E28: 0 | F28: 5 | G28: 14 | H28: 19 | I28: 1 | J28: 10 | K28: 1 | L28: 3 | M28: 0 | N28: 0 | O28: 1 | P28: 3 | Q28: 0 | R28: 0 | S28: 0 | T28: 0 | U28: 0 | V28: 0 | W28: 0 | X28: 0 | Y28: 0 | Z28: 0 | AA28: 0 | AB28: 0 | AC28: 0 | AD28: 0 | AE28: 0 | AF28: 0
A29: Central | B29: 4-A | C29: D19 | D29: Colonial Heights City | E29: 1 | F29: 5 | G29: 19 | H29: 25 | I29: 4 | J29: 7 | K29: 0 | L29: 4 | M29: 1 | N29: 2 | O29: 2 | P29: 5 | Q29: 0 | R29: 0 | S29: 3 | T29: 0 | U29: 0 | V29: 0 | W29: 0 | X29: 1 | Y29: 0 | Z29: 0 | AA29: 0 | AB29: 0 | AC29: 0 | AD29: 0 | AE29: 1 | AF29: 4
A30: Western | B30: 1-C | C30: ALLE | D30: Covington City | E30: 0 | F30: 0 | G30: 14 | H30: 14 | I30: 1 | J30: 7 | K30: 1 | L30: 1 | M30: 1 | N30: 1 | O30: 0 | P30: 2 | Q30: 0 | R30: 1 | S30: 1 | T30: 0 | U30: 0 | V30: 0 | W30: 0 | X30: 1 | Y30: 0 | Z30: 0 | AA30: 0 | AB30: 0 | AC30: 0 | AD30: 1 | AE30: 0 | AF30: 1
A31: Southwestern | B31: 3-A | C31: BLUE | D31: Craig County | E31: 1 | F31: 2 | G31: 3 | H31: 6 | I31: 1 | J31: 3 | K31: 0 | L31: 0 | M31: 0 | N31: 1 | O31: 1 | P31: 0 | Q31: 0 | R31: 0 | S31: 0 | T31: 0 | U31: 0 | V31: 0 | W31: 0 | X31: 1 | Y31: 0 | Z31: 0 | AA31: 0 | AB31: 0 | AC31: 0 | AD31: 0 | AE31: 0 | AF31: 1
A32: Northern | B32: 2-B | C32: RapR | D32: Culpeper County | E32: 2 | F32: 10 | G32: 82 | H32: 94 | I32: 16 | J32: 43 | K32: 2 | L32: 16 | M32: 1 | N32: 4 | O32: 4 | P32: 8 | Q32: 0 | R32: 1 | S32: 3 | T32: 0 | U32: 0 | V32: 0 | W32: 0 | X32: 0 | Y32: 0 | Z32: 0 | AA32: 0 | AB32: 0 | AC32: 0 | AD32: 1 | AE32: 0 | AF32: 3
A33: Central | B33: 4-B | C33: CROS | D33: Cumberland County | E33: 1 | F33: 1 | G33: 25 | H33: 27 | I33: 1 | J33: 8 | K33: 0 | L33: 15 | M33: 2 | N33: 0 | O33: 0 | P33: 1 | Q33: 0 | R33: 0 | S33: 1 | T33: 0 | U33: 0 | V33: 0 | W33: 0 | X33: 0 | Y33: 0 | Z33: 0 | AA33: 0 | AB33: 0 | AC33: 0 | AD33: 0 | AE33: 0 | AF33: 1
A34: Southwestern | B34: 3-B | C34: DANV | D34: Danville City | E34: 16 | F34: 20 | G34: 153 | H34: 189 | I34: 16 | J34: 44 | K34: 4 | L34: 73 | M34: 2 | N34: 16 | O34: 12 | P34: 22 | Q34: 0 | R34: 1 | S34: 3 | T34: 0 | U34: 0 | V34: 0 | W34: 2 | X34: 7 | Y34: 0 | Z34: 0 | AA34: 1 | AB34: 0 | AC34: 1 | AD34: 1 | AE34: 2 | AF34: 8
A35: Southwestern | B35: 3-D | C35: DCBH | D35: Dickenson County | E35: 0 | F35: 4 | G35: 31 | H35: 35 | I35: 3 | J35: 8 | K35: 1 | L35: 15 | M35: 4 | N35: 1 | O35: 0 | P35: 3 | Q35: 0 | R35: 0 | S35: 1 | T35: 0 | U35: 0 | V35: 0 | W35: 0 | X35: 0 | Y35: 0 | Z35: 0 | AA35: 0 | AB35: 0 | AC35: 0 | AD35: 0 | AE35: 0 | AF35: 1
A36: Central | B36: 4-D | C36: D19 | D36: Dinwiddie County | E36: 0 | F36: 5 | G36: 59 | H36: 64 | I36: 2 | J36: 16 | K36: 4 | L36: 29 | M36: 2 | N36: 5 | O36: 4 | P36: 2 | Q36: 0 | R36: 0 | S36: 0 | T36: 0 | U36: 0 | V36: 0 | W36: 0 | X36: 0 | Y36: 0 | Z36: 0 | AA36: 0 | AB36: 0 | AC36: 0 | AD36: 0 | AE36: 0 | AF36: 0
A37: Central | B37: 4-C | C37: D19 | D37: Emporia City | E37: 0 | F37: 3 | G37: 3 | H37: 6 | I37: 0 | J37: 1 | K37: 0 | L37: 3 | M37: 0 | N37: 1 | O37: 0 | P37: 1 | Q37: 0 | R37: 0 | S37: 0 | T37: 0 | U37: 0 | V37: 0 | W37: 0 | X37: 0 | Y37: 0 | Z37: 0 | AA37: 0 | AB37: 0 | AC37: 1 | AD37: 0 | AE37: 0 | AF37: 1
A38: Eastern | B38: 5-A | C38: MPNN | D38: Essex County | E38: 0 | F38: 3 | G38: 17 | H38: 20 | I38: 4 | J38: 6 | K38: 1 | L38: 7 | M38: 1 | N38: 0 | O38: 0 | P38: 1 | Q38: 0 | R38: 0 | S38: 0 | T38: 0 | U38: 0 | V38: 0 | W38: 0 | X38: 0 | Y38: 0 | Z38: 0 | AA38: 0 | AB38: 0 | AC38: 0 | AD38: 0 | AE38: 0 | AF38: 0
A39: Northern | B39: 2-A | C39: FFFC | D39: Fairfax City | E39: 0 | F39: 1 | G39: 5 | H39: 6 | I39: 0 | J39: 1 | K39: 0 | L39: 2 | M39: 0 | N39: 1 | O39: 1 | P39: 1 | Q39: 0 | R39: 0 | S39: 0 | T39: 0 | U39: 0 | V39: 0 | W39: 0 | X39: 0 | Y39: 0 | Z39: 0 | AA39: 0 | AB39: 0 | AC39: 0 | AD39: 0 | AE39: 0 | AF39: 0
A40: Northern | B40: 2-A | C40: FFFC | D40: Fairfax County | E40: 24 | F40: 310 | G40: 884 | H40: 1218 | I40: 79 | J40: 328 | K40: 50 | L40: 433 | M40: 29 | N40: 99 | O40: 84 | P40: 116 | Q40: 0 | R40: 7 | S40: 7 | T40: 0 | U40: 0 | V40: 0 | W40: 1 | X40: 13 | Y40: 0 | Z40: 0 | AA40: 3 | AB40: 1 | AC40: 25 | AD40: 2 | AE40: 2 | AF40: 42
A41: Northern | B41: 2-A | C41: FFFC | D41: Falls Church City | E41: 0 | F41: 0 | G41: 2 | H41: 2 | I41: 0 | J41: 0 | K41: 0 | L41: 0 | M41: 0 | N41: 0 | O41: 1 | P41: 1 | Q41: 0 | R41: 0 | S41: 0 | T41: 0 | U41: 0 | V41: 0 | W41: 0 | X41: 0 | Y41: 0 | Z41: 0 | AA41: 0 | AB41: 0 | AC41: 2 | AD41: 0 | AE41: 0 | AF41: 2
A42: Northern | B42: 2-B | C42: RapR | D42: Fauquier County | E42: 0 | F42: 25 | G42: 59 | H42: 84 | I42: 9 | J42: 31 | K42: 1 | L42: 20 | M42: 2 | N42: 9 | O42: 2 | P42: 10 | Q42: 0 | R42: 0 | S42: 0 | T42: 0 | U42: 0 | V42: 0 | W42: 0 | X42: 0 | Y42: 0 | Z42: 0 | AA42: 0 | AB42: 0 | AC42: 1 | AD42: 1 | AE42: 0 | AF42: 2
A43: Southwestern | B43: 3-C | C43: NRV | D43: Floyd County | E43: 0 | F43: 7 | G43: 44 | H43: 51 | I43: 2 | J43: 7 | K43: 0 | L43: 18 | M43: 1 | N43: 11 | O43: 12 | P43: 0 | Q43: 0 | R43: 1 | S43: 1 | T43: 0 | U43: 0 | V43: 0 | W43: 0 | X43: 2 | Y43: 0 | Z43: 0 | AA43: 0 | AB43: 0 | AC43: 1 | AD43: 1 | AE43: 2 | AF43: 3
A44: Western | B44: 1-A | C44: RTEN | D44: Fluvanna County | E44: 0 | F44: 5 | G44: 15 | H44: 20 | I44: 1 | J44: 7 | K44: 0 | L44: 3 | M44: 0 | N44: 4 | O44: 1 | P44: 4 | Q44: 0 | R44: 0 | S44: 0 | T44: 0 | U44: 0 | V44: 0 | W44: 0 | X44: 0 | Y44: 0 | Z44: 0 | AA44: 0 | AB44: 0 | AC44: 0 | AD44: 0 | AE44: 0 | AF44: 0
A45: Eastern | B45: 5-D | C45: WT | D45: Franklin City | E45: 0 | F45: 2 | G45: 24 | H45: 26 | I45: 0 | J45: 6 | K45: 0 | L45: 16 | M45: 0 | N45: 2 | O45: 1 | P45: 1 | Q45: 0 | R45: 1 | S45: 2 | T45: 0 | U45: 0 | V45: 0 | W45: 0 | X45: 1 | Y45: 0 | Z45: 0 | AA45: 0 | AB45: 0 | AC45: 1 | AD45: 1 | AE45: 1 | AF45: 3
A46: Southwestern | B46: 3-A | C46: PDMT | D46: Franklin County | E46: 5 | F46: 15 | G46: 91 | H46: 111 | I46: 2 | J46: 33 | K46: 6 | L46: 32 | M46: 5 | N46: 19 | O46: 6 | P46: 8 | Q46: 0 | R46: 0 | S46: 1 | T46: 0 | U46: 0 | V46: 0 | W46: 0 | X46: 0 | Y46: 0 | Z46: 0 | AA46: 0 | AB46: 0 | AC46: 0 | AD46: 0 | AE46: 0 | AF46: 1
A47: Northern | B47: 2-D | C47: NW | D47: Frederick County | E47: 3 | F47: 35 | G47: 113 | H47: 151 | I47: 11 | J47: 53 | K47: 9 | L47: 45 | M47: 1 | N47: 13 | O47: 6 | P47: 13 | Q47: 0 | R47: 1 | S47: 2 | T47: 0 | U47: 0 | V47: 0 | W47: 0 | X47: 1 | Y47: 0 | Z47: 0 | AA47: 0 | AB47: 0 | AC47: 0 | AD47: 2 | AE47: 1 | AF47: 2
A48: Northern | B48: 2-C | C48: RapA | D48: Fredericksburg City | E48: 0 | F48: 7 | G48: 49 | H48: 56 | I48: 10 | J48: 17 | K48: 1 | L48: 15 | M48: 3 | N48: 4 | O48: 1 | P48: 5 | Q48: 0 | R48: 1 | S48: 1 | T48: 0 | U48: 0 | V48: 0 | W48: 0 | X48: 1 | Y48: 0 | Z48: 0 | AA48: 1 | AB48: 0 | AC48: 0 | AD48: 0 | AE48: 2 | AF48: 2
A49: Southwestern | B49: 3-B | C49: MTRG | D49: Galax City | E49: 0 | F49: 1 | G49: 32 | H49: 33 | I49: 1 | J49: 7 | K49: 0 | L49: 10 | M49: 1 | N49: 3 | O49: 10 | P49: 1 | Q49: 0 | R49: 1 | S49: 3 | T49: 0 | U49: 0 | V49: 0 | W49: 0 | X49: 1 | Y49: 0 | Z49: 0 | AA49: 0 | AB49: 0 | AC49: 0 | AD49: 0 | AE49: 3 | AF49: 5
A50: Southwestern | B50: 3-A | C50: NRV | D50: Giles County | E50: 1 | F50: 4 | G50: 32 | H50: 37 | I50: 0 | J50: 8 | K50: 3 | L50: 12 | M50: 0 | N50: 8 | O50: 4 | P50: 2 | Q50: 0 | R50: 1 | S50: 0 | T50: 0 | U50: 0 | V50: 0 | W50: 0 | X50: 0 | Y50: 0 | Z50: 0 | AA50: 0 | AB50: 1 | AC50: 0 | AD50: 0 | AE50: 0 | AF50: 1
A51: Eastern | B51: 5-A | C51: MPNN | D51: Gloucester County | E51: 0 | F51: 11 | G51: 82 | H51: 93 | I51: 5 | J51: 27 | K51: 0 | L51: 21 | M51: 9 | N51: 15 | O51: 2 | P51: 14 | Q51: 0 | R51: 1 | S51: 1 | T51: 0 | U51: 0 | V51: 0 | W51: 0 | X51: 1 | Y51: 0 | Z51: 0 | AA51: 0 | AB51: 0 | AC51: 2 | AD51: 1 | AE51: 0 | AF51: 3
A52: Central | B52: 4-B | C52: GOOC | D52: Goochland County | E52: 1 | F52: 6 | G52: 19 | H52: 26 | I52: 0 | J52: 11 | K52: 0 | L52: 8 | M52: 1 | N52: 3 | O52: 2 | P52: 1 | Q52: 0 | R52: 0 | S52: 1 | T52: 0 | U52: 0 | V52: 0 | W52: 0 | X52: 1 | Y52: 0 | Z52: 0 | AA52: 0 | AB52: 0 | AC52: 0 | AD52: 0 | AE52: 1 | AF52: 2
A53: Southwestern | B53: 3-B | C53: MTRG | D53: Grayson County | E53: 1 | F53: 0 | G53: 33 | H53: 34 | I53: 0 | J53: 9 | K53: 1 | L53: 18 | M53: 1 | N53: 4 | O53: 0 | P53: 1 | Q53: 0 | R53: 0 | S53: 0 | T53: 0 | U53: 0 | V53: 0 | W53: 0 | X53: 0 | Y53: 0 | Z53: 0 | AA53: 0 | AB53: 0 | AC53: 0 | AD53: 0 | AE53: 0 | AF53: 0
A54: Western | B54: 1-A | C54: RTEN | D54: Greene County | E54: 0 | F54: 8 | G54: 16 | H54: 24 | I54: 4 | J54: 5 | K54: 1 | L54: 7 | M54: 1 | N54: 3 | O54: 0 | P54: 3 | Q54: 0 | R54: 0 | S54: 0 | T54: 0 | U54: 0 | V54: 0 | W54: 0 | X54: 0 | Y54: 0 | Z54: 0 | AA54: 0 | AB54: 0 | AC54: 0 | AD54: 0 | AE54: 0 | AF54: 0
A55: Central | B55: 4-D | C55: D19 | D55: Greensville County | E55: 0 | F55: 1 | G55: 9 | H55: 10 | I55: 0 | J55: 2 | K55: 0 | L55: 6 | M55: 1 | N55: 1 | O55: 0 | P55: 0 | Q55: 0 | R55: 0 | S55: 0 | T55: 0 | U55: 0 | V55: 0 | W55: 0 | X55: 0 | Y55: 0 | Z55: 0 | AA55: 0 | AB55: 0 | AC55: 0 | AD55: 0 | AE55: 0 | AF55: 0
A56: Central | B56: 4-C | C56: SS | D56: Halifax County | E56: 1 | F56: 11 | G56: 73 | H56: 85 | I56: 8 | J56: 38 | K56: 6 | L56: 21 | M56: 3 | N56: 3 | O56: 2 | P56: 4 | Q56: 0 | R56: 1 | S56: 1 | T56: 0 | U56: 0 | V56: 0 | W56: 0 | X56: 0 | Y56: 0 | Z56: 0 | AA56: 0 | AB56: 0 | AC56: 0 | AD56: 0 | AE56: 0 | AF56: 1
A57: Eastern | B57: 5-C | C57: HAMP | D57: Hampton City | E57: 11 | F57: 48 | G57: 240 | H57: 299 | I57: 9 | J57: 77 | K57: 9 | L57: 126 | M57: 12 | N57: 26 | O57: 17 | P57: 23 | Q57: 0 | R57: 4 | S57: 6 | T57: 0 | U57: 0 | V57: 0 | W57: 0 | X57: 3 | Y57: 0 | Z57: 0 | AA57: 1 | AB57: 0 | AC57: 1 | AD57: 1 | AE57: 6 | AF57: 11
A58: Central | B58: 4-A | C58: HANO | D58: Hanover County | E58: 17 | F58: 46 | G58: 162 | H58: 225 | I58: 20 | J58: 65 | K58: 9 | L58: 74 | M58: 8 | N58: 28 | O58: 14 | P58: 7 | Q58: 0 | R58: 0 | S58: 4 | T58: 0 | U58: 0 | V58: 0 | W58: 0 | X58: 1 | Y58: 0 | Z58: 0 | AA58: 1 | AB58: 0 | AC58: 1 | AD58: 0 | AE58: 1 | AF58: 7
A59: Western | B59: 1-B | C59: HARR | D59: Harrisonburg City | E59: 3 | F59: 15 | G59: 57 | H59: 75 | I59: 20 | J59: 22 | K59: 3 | L59: 17 | M59: 0 | N59: 6 | O59: 1 | P59: 6 | Q59: 0 | R59: 0 | S59: 0 | T59: 0 | U59: 1 | V59: 0 | W59: 0 | X59: 0 | Y59: 0 | Z59: 0 | AA59: 1 | AB59: 0 | AC59: 0 | AD59: 0 | AE59: 0 | AF59: 2
A60: Central | B60: 4-A | C60: HENR | D60: Henrico County | E60: 20 | F60: 117 | G60: 494 | H60: 631 | I60: 50 | J60: 235 | K60: 31 | L60: 221 | M60: 9 | N60: 22 | O60: 42 | P60: 21 | Q60: 2 | R60: 3 | S60: 9 | T60: 0 | U60: 0 | V60: 0 | W60: 2 | X60: 5 | Y60: 0 | Z60: 1 | AA60: 2 | AB60: 0 | AC60: 2 | AD60: 1 | AE60: 5 | AF60: 17
A61: Southwestern | B61: 3-B | C61: PDMT | D61: Henry County | E61: 3 | F61: 14 | G61: 87 | H61: 104 | I61: 7 | J61: 35 | K61: 1 | L61: 34 | M61: 2 | N61: 7 | O61: 6 | P61: 12 | Q61: 0 | R61: 0 | S61: 0 | T61: 0 | U61: 0 | V61: 0 | W61: 0 | X61: 0 | Y61: 0 | Z61: 0 | AA61: 0 | AB61: 0 | AC61: 0 | AD61: 0 | AE61: 0 | AF61: 0
A62: Western | B62: 1-B | C62: VLY | D62: Highland County | E62: 0 | F62: 0 | G62: 8 | H62: 8 | I62: 0 | J62: 1 | K62: 0 | L62: 5 | M62: 0 | N62: 1 | O62: 1 | P62: 0 | Q62: 0 | R62: 0 | S62: 0 | T62: 0 | U62: 0 | V62: 0 | W62: 0 | X62: 0 | Y62: 0 | Z62: 0 | AA62: 0 | AB62: 0 | AC62: 0 | AD62: 0 | AE62: 0 | AF62: 0
A63: Central | B63: 4-D | C63: D19 | D63: Hopewell City | E63: 0 | F63: 4 | G63: 29 | H63: 33 | I63: 1 | J63: 10 | K63: 3 | L63: 10 | M63: 2 | N63: 0 | O63: 5 | P63: 2 | Q63: 0 | R63: 0 | S63: 1 | T63: 0 | U63: 0 | V63: 0 | W63: 0 | X63: 0 | Y63: 0 | Z63: 0 | AA63: 0 | AB63: 0 | AC63: 0 | AD63: 0 | AE63: 0 | AF63: 1
A64: Eastern | B64: 5-D | C64: WT | D64: Isle of Wight County | E64: 1 | F64: 3 | G64: 21 | H64: 25 | I64: 1 | J64: 10 | K64: 0 | L64: 11 | M64: 0 | N64: 0 | O64: 0 | P64: 3 | Q64: 0 | R64: 1 | S64: 2 | T64: 0 | U64: 0 | V64: 0 | W64: 0 | X64: 0 | Y64: 0 | Z64: 0 | AA64: 0 | AB64: 0 | AC64: 0 | AD64: 1 | AE64: 0 | AF64: 2
A65: Eastern | B65: 5-C | C65: COLO | D65: James City County | E65: 1 | F65: 22 | G65: 37 | H65: 60 | I65: 2 | J65: 11 | K65: 2 | L65: 27 | M65: 1 | N65: 3 | O65: 1 | P65: 13 | Q65: 0 | R65: 0 | S65: 0 | T65: 0 | U65: 0 | V65: 0 | W65: 0 | X65: 0 | Y65: 0 | Z65: 0 | AA65: 0 | AB65: 0 | AC65: 0 | AD65: 0 | AE65: 1 | AF65: 1
A66: Eastern | B66: 5-A | C66: MPNN | D66: King and Queen County | E66: 1 | F66: 0 | G66: 6 | H66: 7 | I66: 0 | J66: 2 | K66: 0 | L66: 3 | M66: 1 | N66: 1 | O66: 0 | P66: 0 | Q66: 0 | R66: 0 | S66: 0 | T66: 0 | U66: 0 | V66: 0 | W66: 0 | X66: 0 | Y66: 0 | Z66: 0 | AA66: 0 | AB66: 0 | AC66: 0 | AD66: 0 | AE66: 0 | AF66: 0
A67: Northern | B67: 2-C | C67: RapA | D67: King George County | E67: 0 | F67: 7 | G67: 16 | H67: 23 | I67: 2 | J67: 9 | K67: 0 | L67: 10 | M67: 0 | N67: 1 | O67: 1 | P67: 0 | Q67: 0 | R67: 0 | S67: 1 | T67: 0 | U67: 0 | V67: 0 | W67: 0 | X67: 0 | Y67: 0 | Z67: 0 | AA67: 0 | AB67: 0 | AC67: 0 | AD67: 0 | AE67: 0 | AF67: 1
A68: Eastern | B68: 5-A | C68: MPNN | D68: King William County | E68: 0 | F68: 6 | G68: 24 | H68: 30 | I68: 0 | J68: 6 | K68: 1 | L68: 7 | M68: 3 | N68: 9 | O68: 1 | P68: 3 | Q68: 0 | R68: 0 | S68: 0 | T68: 0 | U68: 0 | V68: 0 | W68: 0 | X68: 0 | Y68: 0 | Z68: 0 | AA68: 0 | AB68: 0 | AC68: 0 | AD68: 0 | AE68: 0 | AF68: 0
A69: Eastern | B69: 5-A | C69: MPNN | D69: Lancaster County | E69: 0 | F69: 0 | G69: 7 | H69: 7 | I69: 4 | J69: 2 | K69: 0 | L69: 1 | M69: 0 | N69: 0 | O69: 0 | P69: 0 | Q69: 0 | R69: 0 | S69: 0 | T69: 0 | U69: 0 | V69: 0 | W69: 0 | X69: 0 | Y69: 0 | Z69: 0 | AA69: 0 | AB69: 0 | AC69: 0 | AD69: 0 | AE69: 0 | AF69: 0
A70: Southwestern | B70: 3-D | C70: PLD1 | D70: Lee County | E70: 1 | F70: 6 | G70: 28 | H70: 35 | I70: 4 | J70: 14 | K70: 0 | L70: 10 | M70: 1 | N70: 2 | O70: 0 | P70: 4 | Q70: 0 | R70: 0 | S70: 0 | T70: 0 | U70: 0 | V70: 0 | W70: 0 | X70: 0 | Y70: 0 | Z70: 0 | AA70: 0 | AB70: 0 | AC70: 0 | AD70: 0 | AE70: 0 | AF70: 0
A71: Western | B71: 1-C | C71: ROC | D71: Lexington City | E71: 0 | F71: 0 | G71: 3 | H71: 3 | I71: 2 | J71: 0 | K71: 0 | L71: 0 | M71: 0 | N71: 0 | O71: 1 | P71: 0 | Q71: 0 | R71: 0 | S71: 1 | T71: 0 | U71: 0 | V71: 0 | W71: 0 | X71: 0 | Y71: 0 | Z71: 0 | AA71: 0 | AB71: 0 | AC71: 0 | AD71: 0 | AE71: 0 | AF71: 1
A72: Northern | B72: 2-A | C72: LOUD | D72: Loudoun County | E72: 8 | F72: 72 | G72: 168 | H72: 248 | I72: 22 | J72: 60 | K72: 9 | L72: 79 | M72: 6 | N72: 28 | O72: 16 | P72: 28 | Q72: 0 | R72: 0 | S72: 1 | T72: 0 | U72: 0 | V72: 0 | W72: 0 | X72: 3 | Y72: 0 | Z72: 0 | AA72: 0 | AB72: 0 | AC72: 6 | AD72: 2 | AE72: 0 | AF72: 8
A73: Western | B73: 1-A | C73: RTEN | D73: Louisa County | E73: 4 | F73: 17 | G73: 32 | H73: 53 | I73: 4 | J73: 18 | K73: 0 | L73: 10 | M73: 1 | N73: 3 | O73: 2 | P73: 15 | Q73: 0 | R73: 0 | S73: 1 | T73: 0 | U73: 0 | V73: 0 | W73: 0 | X73: 0 | Y73: 0 | Z73: 0 | AA73: 0 | AB73: 0 | AC73: 0 | AD73: 0 | AE73: 0 | AF73: 1
A74: Central | B74: 4-C | C74: CROS | D74: Lunenburg County | E74: 1 | F74: 4 | G74: 7 | H74: 12 | I74: 0 | J74: 4 | K74: 0 | L74: 4 | M74: 0 | N74: 1 | O74: 1 | P74: 2 | Q74: 0 | R74: 0 | S74: 0 | T74: 0 | U74: 0 | V74: 0 | W74: 0 | X74: 0 | Y74: 0 | Z74: 0 | AA74: 0 | AB74: 0 | AC74: 0 | AD74: 0 | AE74: 0 | AF74: 0
A75: Western | B75: 1-D | C75: HORI | D75: Lynchburg City | E75: 1 | F75: 42 | G75: 180 | H75: 223 | I75: 16 | J75: 66 | K75: 6 | L75: 74 | M75: 6 | N75: 26 | O75: 10 | P75: 19 | Q75: 0 | R75: 1 | S75: 2 | T75: 0 | U75: 0 | V75: 0 | W75: 1 | X75: 2 | Y75: 0 | Z75: 0 | AA75: 0 | AB75: 0 | AC75: 0 | AD75: 1 | AE75: 9 | AF75: 9
A76: Northern | B76: 2-B | C76: RapR | D76: Madison County | E76: 0 | F76: 3 | G76: 15 | H76: 18 | I76: 4 | J76: 8 | K76: 0 | L76: 5 | M76: 0 | N76: 0 | O76: 0 | P76: 1 | Q76: 0 | R76: 0 | S76: 0 | T76: 0 | U76: 0 | V76: 0 | W76: 0 | X76: 0 | Y76: 0 | Z76: 0 | AA76: 0 | AB76: 0 | AC76: 0 | AD76: 0 | AE76: 0 | AF76: 0
A77: Northern | B77: 2-A | C77: PWC | D77: Manassas City | E77: 0 | F77: 2 | G77: 15 | H77: 17 | I77: 0 | J77: 10 | K77: 0 | L77: 6 | M77: 0 | N77: 0 | O77: 0 | P77: 1 | Q77: 0 | R77: 0 | S77: 1 | T77: 0 | U77: 0 | V77: 0 | W77: 0 | X77: 0 | Y77: 0 | Z77: 0 | AA77: 0 | AB77: 0 | AC77: 0 | AD77: 0 | AE77: 0 | AF77: 1
A78: Northern | B78: 2-A | C78: PWC | D78: Manassas Park City | E78: 0 | F78: 2 | G78: 2 | H78: 4 | I78: 0 | J78: 2 | K78: 0 | L78: 0 | M78: 0 | N78: 0 | O78: 1 | P78: 1 | Q78: 0 | R78: 0 | S78: 0 | T78: 0 | U78: 0 | V78: 0 | W78: 0 | X78: 0 | Y78: 0 | Z78: 0 | AA78: 0 | AB78: 0 | AC78: 0 | AD78: 0 | AE78: 0 | AF78: 0
A79: Southwestern | B79: 3-B | C79: PDMT | D79: Martinsville City | E79: 0 | F79: 5 | G79: 34 | H79: 39 | I79: 3 | J79: 16 | K79: 2 | L79: 7 | M79: 1 | N79: 3 | O79: 2 | P79: 5 | Q79: 0 | R79: 0 | S79: 2 | T79: 0 | U79: 0 | V79: 0 | W79: 0 | X79: 1 | Y79: 0 | Z79: 0 | AA79: 0 | AB79: 0 | AC79: 0 | AD79: 0 | AE79: 0 | AF79: 3
A80: Eastern | B80: 5-A | C80: MPNN | D80: Mathews County | E80: 0 | F80: 2 | G80: 39 | H80: 41 | I80: 0 | J80: 16 | K80: 2 | L80: 19 | M80: 0 | N80: 0 | O80: 0 | P80: 4 | Q80: 0 | R80: 0 | S80: 0 | T80: 0 | U80: 0 | V80: 0 | W80: 0 | X80: 0 | Y80: 0 | Z80: 0 | AA80: 0 | AB80: 0 | AC80: 0 | AD80: 0 | AE80: 0 | AF80: 0
A81: Central | B81: 4-C | C81: SS | D81: Mecklenburg County | E81: 0 | F81: 7 | G81: 88 | H81: 95 | I81: 3 | J81: 39 | K81: 5 | L81: 31 | M81: 2 | N81: 5 | O81: 6 | P81: 4 | Q81: 0 | R81: 1 | S81: 1 | T81: 0 | U81: 0 | V81: 0 | W81: 0 | X81: 0 | Y81: 0 | Z81: 0 | AA81: 0 | AB81: 0 | AC81: 0 | AD81: 1 | AE81: 1 | AF81: 2
A82: Eastern | B82: 5-A | C82: MPNN | D82: Middlesex County | E82: 0 | F82: 2 | G82: 22 | H82: 24 | I82: 2 | J82: 9 | K82: 0 | L82: 10 | M82: 1 | N82: 1 | O82: 0 | P82: 1 | Q82: 0 | R82: 0 | S82: 0 | T82: 0 | U82: 0 | V82: 0 | W82: 0 | X82: 0 | Y82: 0 | Z82: 0 | AA82: 0 | AB82: 0 | AC82: 0 | AD82: 0 | AE82: 0 | AF82: 0
A83: Southwestern | B83: 3-A | C83: NRV | D83: Montgomery County | E83: 0 | F83: 35 | G83: 83 | H83: 118 | I83: 9 | J83: 18 | K83: 11 | L83: 26 | M83: 4 | N83: 21 | O83: 25 | P83: 4 | Q83: 0 | R83: 2 | S83: 3 | T83: 0 | U83: 0 | V83: 0 | W83: 0 | X83: 3 | Y83: 0 | Z83: 0 | AA83: 0 | AB83: 1 | AC83: 2 | AD83: 1 | AE83: 2 | AF83: 4
A84: Western | B84: 1-A | C84: RTEN | D84: Nelson County | E84: 0 | F84: 7 | G84: 29 | H84: 36 | I84: 3 | J84: 13 | K84: 0 | L84: 13 | M84: 0 | N84: 3 | O84: 1 | P84: 3 | Q84: 0 | R84: 1 | S84: 1 | T84: 0 | U84: 0 | V84: 0 | W84: 0 | X84: 0 | Y84: 0 | Z84: 0 | AA84: 0 | AB84: 0 | AC84: 0 | AD84: 0 | AE84: 0 | AF84: 1
A85: Central | B85: 4-A | C85: HENR | D85: New Kent County | E85: 0 | F85: 1 | G85: 24 | H85: 25 | I85: 0 | J85: 9 | K85: 1 | L85: 11 | M85: 2 | N85: 2 | O85: 0 | P85: 0 | Q85: 0 | R85: 0 | S85: 0 | T85: 0 | U85: 0 | V85: 0 | W85: 0 | X85: 0 | Y85: 0 | Z85: 0 | AA85: 1 | AB85: 0 | AC85: 0 | AD85: 0 | AE85: 1 | AF85: 2
A86: Eastern | B86: 5-C | C86: HAMP | D86: Newport News City | E86: 14 | F86: 41 | G86: 211 | H86: 266 | I86: 11 | J86: 65 | K86: 10 | L86: 113 | M86: 5 | N86: 26 | O86: 8 | P86: 28 | Q86: 0 | R86: 1 | S86: 3 | T86: 0 | U86: 0 | V86: 0 | W86: 2 | X86: 8 | Y86: 0 | Z86: 0 | AA86: 0 | AB86: 0 | AC86: 4 | AD86: 3 | AE86: 7 | AF86: 18
A87: Eastern | B87: 5-D | C87: NORF | D87: Norfolk City | E87: 30 | F87: 88 | G87: 290 | H87: 408 | I87: 34 | J87: 127 | K87: 11 | L87: 139 | M87: 9 | N87: 19 | O87: 11 | P87: 58 | Q87: 0 | R87: 0 | S87: 5 | T87: 0 | U87: 0 | V87: 0 | W87: 1 | X87: 5 | Y87: 0 | Z87: 0 | AA87: 0 | AB87: 0 | AC87: 1 | AD87: 0 | AE87: 2 | AF87: 10
A88: Eastern | B88: 5-B | C88: EAST | D88: Northampton County | E88: 0 | F88: 2 | G88: 45 | H88: 47 | I88: 6 | J88: 24 | K88: 1 | L88: 9 | M88: 1 | N88: 4 | O88: 0 | P88: 2 | Q88: 0 | R88: 0 | S88: 0 | T88: 0 | U88: 0 | V88: 0 | W88: 0 | X88: 0 | Y88: 0 | Z88: 0 | AA88: 0 | AB88: 0 | AC88: 0 | AD88: 0 | AE88: 0 | AF88: 0
A89: Eastern | B89: 5-A | C89: MPNN | D89: Northumberland County | E89: 0 | F89: 0 | G89: 7 | H89: 7 | I89: 0 | J89: 3 | K89: 0 | L89: 2 | M89: 0 | N89: 0 | O89: 0 | P89: 2 | Q89: 0 | R89: 0 | S89: 0 | T89: 0 | U89: 0 | V89: 0 | W89: 0 | X89: 0 | Y89: 0 | Z89: 0 | AA89: 0 | AB89: 0 | AC89: 0 | AD89: 0 | AE89: 0 | AF89: 0
A90: Southwestern | B90: 3-D | C90: PLD1 | D90: Norton City | E90: 0 | F90: 1 | G90: 3 | H90: 4 | I90: 1 | J90: 1 | K90: 0 | L90: 1 | M90: 0 | N90: 1 | O90: 0 | P90: 0 | Q90: 0 | R90: 0 | S90: 1 | T90: 0 | U90: 0 | V90: 0 | W90: 0 | X90: 0 | Y90: 0 | Z90: 0 | AA90: 0 | AB90: 0 | AC90: 0 | AD90: 0 | AE90: 0 | AF90: 1
A91: Central | B91: 4-C | C91: CROS | D91: Nottoway County | E91: 0 | F91: 4 | G91: 12 | H91: 16 | I91: 0 | J91: 3 | K91: 1 | L91: 11 | M91: 0 | N91: 0 | O91: 0 | P91: 1 | Q91: 0 | R91: 0 | S91: 0 | T91: 0 | U91: 0 | V91: 0 | W91: 0 | X91: 0 | Y91: 0 | Z91: 0 | AA91: 0 | AB91: 0 | AC91: 0 | AD91: 0 | AE91: 0 | AF91: 0
A92: Northern | B92: 2-B | C92: RapR | D92: Orange County | E92: 1 | F92: 22 | G92: 40 | H92: 63 | I92: 15 | J92: 22 | K92: 2 | L92: 13 | M92: 0 | N92: 4 | O92: 0 | P92: 7 | Q92: 0 | R92: 1 | S92: 0 | T92: 0 | U92: 0 | V92: 0 | W92: 0 | X92: 0 | Y92: 0 | Z92: 0 | AA92: 0 | AB92: 0 | AC92: 0 | AD92: 1 | AE92: 0 | AF92: 1
A93: Northern | B93: 2-D | C93: NW | D93: Page County | E93: 0 | F93: 7 | G93: 20 | H93: 27 | I93: 2 | J93: 12 | K93: 2 | L93: 7 | M93: 0 | N93: 2 | O93: 1 | P93: 1 | Q93: 0 | R93: 0 | S93: 0 | T93: 0 | U93: 0 | V93: 0 | W93: 0 | X93: 0 | Y93: 0 | Z93: 0 | AA93: 0 | AB93: 0 | AC93: 0 | AD93: 0 | AE93: 0 | AF93: 0
A94: Southwestern | B94: 3-C | C94: PDMT | D94: Patrick County | E94: 1 | F94: 4 | G94: 22 | H94: 27 | I94: 0 | J94: 11 | K94: 0 | L94: 9 | M94: 2 | N94: 3 | O94: 0 | P94: 2 | Q94: 0 | R94: 0 | S94: 1 | T94: 0 | U94: 0 | V94: 0 | W94: 0 | X94: 0 | Y94: 0 | Z94: 0 | AA94: 0 | AB94: 0 | AC94: 0 | AD94: 0 | AE94: 0 | AF94: 1
A95: Central | B95: 4-D | C95: D19 | D95: Petersburg City | E95: 1 | F95: 9 | G95: 130 | H95: 140 | I95: 4 | J95: 38 | K95: 4 | L95: 50 | M95: 12 | N95: 11 | O95: 13 | P95: 8 | Q95: 0 | R95: 0 | S95: 1 | T95: 0 | U95: 0 | V95: 0 | W95: 0 | X95: 0 | Y95: 0 | Z95: 0 | AA95: 0 | AB95: 0 | AC95: 0 | AD95: 0 | AE95: 2 | AF95: 3
A96: Southwestern | B96: 3-B | C96: DANV | D96: Pittsylvania County | E96: 12 | F96: 18 | G96: 139 | H96: 169 | I96: 6 | J96: 57 | K96: 9 | L96: 47 | M96: 7 | N96: 12 | O96: 11 | P96: 20 | Q96: 0 | R96: 1 | S96: 2 | T96: 0 | U96: 0 | V96: 0 | W96: 0 | X96: 0 | Y96: 0 | Z96: 0 | AA96: 0 | AB96: 0 | AC96: 0 | AD96: 0 | AE96: 0 | AF96: 2
A97: Eastern | B97: 5-C | C97: COLO | D97: Poquoson City | E97: 0 | F97: 4 | G97: 1 | H97: 5 | I97: 0 | J97: 1 | K97: 1 | L97: 1 | M97: 0 | N97: 0 | O97: 0 | P97: 2 | Q97: 0 | R97: 0 | S97: 0 | T97: 0 | U97: 0 | V97: 0 | W97: 0 | X97: 0 | Y97: 0 | Z97: 0 | AA97: 0 | AB97: 0 | AC97: 0 | AD97: 0 | AE97: 0 | AF97: 0
A98: Eastern | B98: 5-D | C98: PORT | D98: Portsmouth City | E98: 2 | F98: 11 | G98: 271 | H98: 284 | I98: 14 | J98: 82 | K98: 12 | L98: 126 | M98: 8 | N98: 14 | O98: 9 | P98: 19 | Q98: 0 | R98: 1 | S98: 8 | T98: 0 | U98: 0 | V98: 0 | W98: 2 | X98: 5 | Y98: 0 | Z98: 0 | AA98: 1 | AB98: 0 | AC98: 1 | AD98: 1 | AE98: 2 | AF98: 16
A99: Central | B99: 4-B | C99: GOOC | D99: Powhatan County | E99: 1 | F99: 15 | G99: 22 | H99: 38 | I99: 1 | J99: 11 | K99: 0 | L99: 12 | M99: 1 | N99: 6 | O99: 1 | P99: 6 | Q99: 0 | R99: 0 | S99: 2 | T99: 0 | U99: 0 | V99: 0 | W99: 0 | X99: 1 | Y99: 0 | Z99: 0 | AA99: 0 | AB99: 0 | AC99: 0 | AD99: 0 | AE99: 1 | AF99: 3
A100: Central | B100: 4-C | C100: CROS | D100: Prince Edward County | E100: 0 | F100: 5 | G100: 71 | H100: 76 | I100: 7 | J100: 32 | K100: 4 | L100: 30 | M100: 2 | N100: 1 | O100: 0 | P100: 0 | Q100: 0 | R100: 0 | S100: 2 | T100: 0 | U100: 0 | V100: 0 | W100: 0 | X100: 2 | Y100: 0 | Z100: 0 | AA100: 0 | AB100: 0 | AC100: 0 | AD100: 0 | AE100: 0 | AF100: 3
A101: Central | B101: 4-D | C101: D19 | D101: Prince George County | E101: 0 | F101: 7 | G101: 55 | H101: 62 | I101: 3 | J101: 15 | K101: 4 | L101: 25 | M101: 1 | N101: 2 | O101: 8 | P101: 4 | Q101: 0 | R101: 1 | S101: 3 | T101: 0 | U101: 0 | V101: 0 | W101: 0 | X101: 1 | Y101: 0 | Z101: 0 | AA101: 0 | AB101: 0 | AC101: 1 | AD101: 0 | AE101: 2 | AF101: 6
A102: Northern | B102: 2-A | C102: PWC | D102: Prince William County | E102: 10 | F102: 116 | G102: 376 | H102: 502 | I102: 10 | J102: 150 | K102: 26 | L102: 151 | M102: 11 | N102: 55 | O102: 27 | P102: 72 | Q102: 1 | R102: 1 | S102: 2 | T102: 0 | U102: 0 | V102: 0 | W102: 0 | X102: 4 | Y102: 0 | Z102: 0 | AA102: 0 | AB102: 3 | AC102: 13 | AD102: 3 | AE102: 2 | AF102: 22
A103: Southwestern | B103: 3-C | C103: NRV | D103: Pulaski County | E103: 0 | F103: 16 | G103: 46 | H103: 62 | I103: 1 | J103: 8 | K103: 3 | L103: 15 | M103: 0 | N103: 12 | O103: 13 | P103: 10 | Q103: 0 | R103: 0 | S103: 0 | T103: 0 | U103: 0 | V103: 0 | W103: 0 | X103: 0 | Y103: 0 | Z103: 0 | AA103: 0 | AB103: 0 | AC103: 0 | AD103: 0 | AE103: 0 | AF103: 0
A104: Southwestern | B104: 3-C | C104: NRV | D104: Radford City | E104: 0 | F104: 1 | G104: 16 | H104: 17 | I104: 0 | J104: 3 | K104: 0 | L104: 5 | M104: 1 | N104: 3 | O104: 5 | P104: 0 | Q104: 0 | R104: 1 | S104: 1 | T104: 0 | U104: 0 | V104: 0 | W104: 0 | X104: 0 | Y104: 0 | Z104: 0 | AA104: 0 | AB104: 1 | AC104: 0 | AD104: 0 | AE104: 0 | AF104: 2
A105: Northern | B105: 2-B | C105: RapR | D105: Rappahannock County | E105: 0 | F105: 1 | G105: 5 | H105: 6 | I105: 1 | J105: 1 | K105: 0 | L105: 2 | M105: 0 | N105: 0 | O105: 0 | P105: 2 | Q105: 0 | R105: 0 | S105: 0 | T105: 0 | U105: 0 | V105: 0 | W105: 0 | X105: 0 | Y105: 0 | Z105: 0 | AA105: 0 | AB105: 0 | AC105: 0 | AD105: 0 | AE105: 0 | AF105: 0
A106: Central | B106: 4-A | C106: RBHA | D106: Richmond City | E106: 11 | F106: 46 | G106: 253 | H106: 310 | I106: 23 | J106: 85 | K106: 9 | L106: 130 | M106: 7 | N106: 29 | O106: 10 | P106: 17 | Q106: 0 | R106: 2 | S106: 2 | T106: 0 | U106: 0 | V106: 0 | W106: 0 | X106: 1 | Y106: 0 | Z106: 0 | AA106: 0 | AB106: 0 | AC106: 3 | AD106: 1 | AE106: 1 | AF106: 6
A107: Eastern | B107: 5-A | C107: MPNN | D107: Richmond County | E107: 0 | F107: 15 | G107: 49 | H107: 64 | I107: 6 | J107: 21 | K107: 4 | L107: 15 | M107: 1 | N107: 7 | O107: 5 | P107: 5 | Q107: 0 | R107: 0 | S107: 0 | T107: 0 | U107: 0 | V107: 0 | W107: 0 | X107: 0 | Y107: 0 | Z107: 0 | AA107: 0 | AB107: 0 | AC107: 0 | AD107: 0 | AE107: 0 | AF107: 0
A108: Southwestern | B108: 3-A | C108: BLUE | D108: Roanoke City | E108: 9 | F108: 26 | G108: 115 | H108: 150 | I108: 9 | J108: 40 | K108: 8 | L108: 51 | M108: 4 | N108: 11 | O108: 13 | P108: 14 | Q108: 0 | R108: 2 | S108: 5 | T108: 0 | U108: 0 | V108: 0 | W108: 1 | X108: 1 | Y108: 0 | Z108: 0 | AA108: 0 | AB108: 0 | AC108: 0 | AD108: 1 | AE108: 3 | AF108: 7
A109: Southwestern | B109: 3-A | C109: BLUE | D109: Roanoke County | E109: 5 | F109: 43 | G109: 174 | H109: 222 | I109: 15 | J109: 50 | K109: 12 | L109: 76 | M109: 7 | N109: 17 | O109: 21 | P109: 24 | Q109: 0 | R109: 2 | S109: 4 | T109: 0 | U109: 0 | V109: 0 | W109: 1 | X109: 4 | Y109: 0 | Z109: 0 | AA109: 0 | AB109: 0 | AC109: 1 | AD109: 1 | AE109: 4 | AF109: 7
A110: Western | B110: 1-C | C110: ROC | D110: Rockbridge County | E110: 0 | F110: 8 | G110: 57 | H110: 65 | I110: 7 | J110: 12 | K110: 6 | L110: 19 | M110: 2 | N110: 6 | O110: 9 | P110: 4 | Q110: 0 | R110: 0 | S110: 0 | T110: 0 | U110: 0 | V110: 0 | W110: 0 | X110: 0 | Y110: 0 | Z110: 0 | AA110: 0 | AB110: 0 | AC110: 0 | AD110: 0 | AE110: 0 | AF110: 0
A111: Western | B111: 1-B | C111: HARR | D111: Rockingham County | E111: 3 | F111: 25 | G111: 116 | H111: 144 | I111: 10 | J111: 50 | K111: 5 | L111: 44 | M111: 4 | N111: 16 | O111: 4 | P111: 11 | Q111: 0 | R111: 3 | S111: 3 | T111: 0 | U111: 0 | V111: 0 | W111: 1 | X111: 3 | Y111: 0 | Z111: 0 | AA111: 1 | AB111: 0 | AC111: 0 | AD111: 2 | AE111: 2 | AF111: 5
A112: Southwestern | B112: 3-D | C112: CMT | D112: Russell County | E112: 0 | F112: 5 | G112: 63 | H112: 68 | I112: 4 | J112: 27 | K112: 2 | L112: 16 | M112: 0 | N112: 9 | O112: 5 | P112: 5 | Q112: 0 | R112: 0 | S112: 0 | T112: 0 | U112: 0 | V112: 0 | W112: 0 | X112: 0 | Y112: 0 | Z112: 0 | AA112: 0 | AB112: 0 | AC112: 0 | AD112: 0 | AE112: 0 | AF112: 0
A113: Southwestern | B113: 3-A | C113: BLUE | D113: Salem City | E113: 1 | F113: 7 | G113: 26 | H113: 34 | I113: 2 | J113: 7 | K113: 4 | L113: 12 | M113: 1 | N113: 0 | O113: 0 | P113: 8 | Q113: 0 | R113: 2 | S113: 3 | T113: 0 | U113: 0 | V113: 0 | W113: 0 | X113: 3 | Y113: 0 | Z113: 0 | AA113: 0 | AB113: 0 | AC113: 1 | AD113: 3 | AE113: 0 | AF113: 6
A114: Southwestern | B114: 3-D | C114: PLD1 | D114: Scott County | E114: 1 | F114: 2 | G114: 59 | H114: 62 | I114: 3 | J114: 20 | K114: 2 | L114: 30 | M114: 1 | N114: 4 | O114: 1 | P114: 1 | Q114: 0 | R114: 0 | S114: 0 | T114: 0 | U114: 0 | V114: 0 | W114: 0 | X114: 0 | Y114: 0 | Z114: 0 | AA114: 0 | AB114: 0 | AC114: 0 | AD114: 0 | AE114: 0 | AF114: 0
A115: Northern | B115: 2-D | C115: NW | D115: Shenandoah County | E115: 2 | F115: 15 | G115: 87 | H115: 104 | I115: 3 | J115: 39 | K115: 3 | L115: 47 | M115: 0 | N115: 7 | O115: 0 | P115: 5 | Q115: 0 | R115: 1 | S115: 2 | T115: 0 | U115: 0 | V115: 0 | W115: 0 | X115: 0 | Y115: 0 | Z115: 0 | AA115: 0 | AB115: 0 | AC115: 0 | AD115: 0 | AE115: 0 | AF115: 2
A116: Southwestern | B116: 3-D | C116: MTRG | D116: Smyth County | E116: 0 | F116: 8 | G116: 69 | H116: 77 | I116: 2 | J116: 14 | K116: 2 | L116: 35 | M116: 4 | N116: 7 | O116: 1 | P116: 12 | Q116: 0 | R116: 0 | S116: 1 | T116: 0 | U116: 0 | V116: 0 | W116: 0 | X116: 0 | Y116: 0 | Z116: 0 | AA116: 0 | AB116: 0 | AC116: 0 | AD116: 0 | AE116: 1 | AF116: 1
A117: Eastern | B117: 5-D | C117: WT | D117: Southampton County | E117: 0 | F117: 2 | G117: 20 | H117: 22 | I117: 1 | J117: 6 | K117: 0 | L117: 11 | M117: 1 | N117: 1 | O117: 0 | P117: 2 | Q117: 0 | R117: 0 | S117: 0 | T117: 0 | U117: 0 | V117: 0 | W117: 0 | X117: 0 | Y117: 0 | Z117: 0 | AA117: 0 | AB117: 0 | AC117: 0 | AD117: 0 | AE117: 1 | AF117: 1
A118: Northern | B118: 2-C | C118: RapA | D118: Spotsylvania County | E118: 3 | F118: 42 | G118: 208 | H118: 253 | I118: 19 | J118: 77 | K118: 16 | L118: 78 | M118: 6 | N118: 27 | O118: 16 | P118: 14 | Q118: 1 | R118: 1 | S118: 4 | T118: 0 | U118: 0 | V118: 0 | W118: 0 | X118: 1 | Y118: 0 | Z118: 0 | AA118: 0 | AB118: 0 | AC118: 0 | AD118: 0 | AE118: 1 | AF118: 7
A119: Northern | B119: 2-C | C119: RapA | D119: Stafford County | E119: 4 | F119: 52 | G119: 168 | H119: 224 | I119: 15 | J119: 61 | K119: 14 | L119: 68 | M119: 10 | N119: 23 | O119: 17 | P119: 16 | Q119: 0 | R119: 1 | S119: 2 | T119: 0 | U119: 0 | V119: 0 | W119: 0 | X119: 0 | Y119: 0 | Z119: 0 | AA119: 0 | AB119: 0 | AC119: 2 | AD119: 0 | AE119: 0 | AF119: 5
A120: Western | B120: 1-B | C120: VLY | D120: Staunton City | E120: 2 | F120: 15 | G120: 54 | H120: 71 | I120: 6 | J120: 17 | K120: 5 | L120: 17 | M120: 0 | N120: 8 | O120: 3 | P120: 15 | Q120: 0 | R120: 0 | S120: 2 | T120: 0 | U120: 0 | V120: 0 | W120: 0 | X120: 1 | Y120: 0 | Z120: 0 | AA120: 0 | AB120: 0 | AC120: 0 | AD120: 1 | AE120: 2 | AF120: 2
A121: Eastern | B121: 5-D | C121: WT | D121: Suffolk City | E121: 0 | F121: 27 | G121: 153 | H121: 180 | I121: 8 | J121: 41 | K121: 9 | L121: 61 | M121: 8 | N121: 16 | O121: 13 | P121: 24 | Q121: 0 | R121: 4 | S121: 3 | T121: 0 | U121: 1 | V121: 0 | W121: 0 | X121: 2 | Y121: 0 | Z121: 0 | AA121: 0 | AB121: 0 | AC121: 1 | AD121: 1 | AE121: 2 | AF121: 7
A122: Central | B122: 4-D | C122: D19 | D122: Surry County | E122: 0 | F122: 0 | G122: 3 | H122: 3 | I122: 0 | J122: 1 | K122: 0 | L122: 1 | M122: 0 | N122: 1 | O122: 0 | P122: 0 | Q122: 0 | R122: 0 | S122: 0 | T122: 0 | U122: 0 | V122: 0 | W122: 0 | X122: 0 | Y122: 0 | Z122: 0 | AA122: 0 | AB122: 0 | AC122: 0 | AD122: 0 | AE122: 0 | AF122: 0
A123: Central | B123: 4-D | C123: D19 | D123: Sussex County | E123: 0 | F123: 2 | G123: 37 | H123: 39 | I123: 1 | J123: 8 | K123: 3 | L123: 21 | M123: 2 | N123: 2 | O123: 1 | P123: 1 | Q123: 0 | R123: 0 | S123: 0 | T123: 0 | U123: 0 | V123: 0 | W123: 0 | X123: 0 | Y123: 0 | Z123: 0 | AA123: 0 | AB123: 0 | AC123: 0 | AD123: 0 | AE123: 0 | AF123: 0
A124: Southwestern | B124: 3-D | C124: CMT | D124: Tazewell County | E124: 4 | F124: 16 | G124: 63 | H124: 83 | I124: 7 | J124: 24 | K124: 1 | L124: 24 | M124: 0 | N124: 11 | O124: 2 | P124: 14 | Q124: 0 | R124: 0 | S124: 1 | T124: 0 | U124: 0 | V124: 0 | W124: 0 | X124: 1 | Y124: 0 | Z124: 0 | AA124: 0 | AB124: 0 | AC124: 2 | AD124: 0 | AE124: 0 | AF124: 3
A125: Eastern | B125: 5-D | C125: VAB | D125: Virginia Beach City | E125: 21 | F125: 159 | G125: 668 | H125: 848 | I125: 41 | J125: 244 | K125: 18 | L125: 361 | M125: 20 | N125: 59 | O125: 30 | P125: 75 | Q125: 0 | R125: 3 | S125: 4 | T125: 0 | U125: 1 | V125: 0 | W125: 3 | X125: 14 | Y125: 0 | Z125: 0 | AA125: 1 | AB125: 0 | AC125: 6 | AD125: 5 | AE125: 6 | AF125: 23
A126: Northern | B126: 2-D | C126: NW | D126: Warren County | E126: 1 | F126: 22 | G126: 14 | H126: 37 | I126: 6 | J126: 17 | K126: 2 | L126: 7 | M126: 0 | N126: 1 | O126: 0 | P126: 4 | Q126: 0 | R126: 0 | S126: 1 | T126: 0 | U126: 0 | V126: 0 | W126: 0 | X126: 1 | Y126: 0 | Z126: 0 | AA126: 0 | AB126: 0 | AC126: 0 | AD126: 0 | AE126: 0 | AF126: 2
A127: Southwestern | B127: 3-D | C127: HIGH | D127: Washington County | E127: 2 | F127: 13 | G127: 77 | H127: 92 | I127: 4 | J127: 26 | K127: 1 | L127: 33 | M127: 1 | N127: 13 | O127: 4 | P127: 10 | Q127: 0 | R127: 0 | S127: 2 | T127: 0 | U127: 0 | V127: 0 | W127: 0 | X127: 1 | Y127: 0 | Z127: 0 | AA127: 0 | AB127: 0 | AC127: 2 | AD127: 1 | AE127: 1 | AF127: 4
A128: Western | B128: 1-B | C128: VLY | D128: Waynesboro City | E128: 0 | F128: 7 | G128: 66 | H128: 73 | I128: 4 | J128: 24 | K128: 5 | L128: 22 | M128: 0 | N128: 6 | O128: 4 | P128: 8 | Q128: 0 | R128: 0 | S128: 0 | T128: 0 | U128: 0 | V128: 0 | W128: 0 | X128: 0 | Y128: 0 | Z128: 0 | AA128: 0 | AB128: 0 | AC128: 0 | AD128: 0 | AE128: 1 | AF128: 1
A129: Eastern | B129: 5-A | C129: MPNN | D129: Westmoreland County | E129: 0 | F129: 3 | G129: 11 | H129: 14 | I129: 1 | J129: 6 | K129: 0 | L129: 5 | M129: 0 | N129: 0 | O129: 0 | P129: 2 | Q129: 0 | R129: 0 | S129: 0 | T129: 0 | U129: 0 | V129: 0 | W129: 0 | X129: 0 | Y129: 0 | Z129: 0 | AA129: 0 | AB129: 0 | AC129: 0 | AD129: 0 | AE129: 0 | AF129: 0
A130: Eastern | B130: 5-C | C130: COLO | D130: Williamsburg City | E130: 0 | F130: 5 | G130: 16 | H130: 21 | I130: 0 | J130: 9 | K130: 0 | L130: 3 | M130: 0 | N130: 1 | O130: 3 | P130: 5 | Q130: 0 | R130: 0 | S130: 1 | T130: 0 | U130: 0 | V130: 0 | W130: 0 | X130: 1 | Y130: 0 | Z130: 0 | AA130: 0 | AB130: 0 | AC130: 0 | AD130: 0 | AE130: 1 | AF130: 2
A131: Northern | B131: 2-D | C131: NW | D131: Winchester City | E131: 0 | F131: 16 | G131: 77 | H131: 93 | I131: 8 | J131: 39 | K131: 6 | L131: 22 | M131: 0 | N131: 4 | O131: 4 | P131: 10 | Q131: 0 | R131: 1 | S131: 3 | T131: 0 | U131: 0 | V131: 0 | W131: 0 | X131: 0 | Y131: 0 | Z131: 0 | AA131: 1 | AB131: 0 | AC131: 0 | AD131: 0 | AE131: 0 | AF131: 3
A132: Southwestern | B132: 3-D | C132: PLD1 | D132: Wise County | E132: 0 | F132: 5 | G132: 91 | H132: 96 | I132: 5 | J132: 31 | K132: 1 | L132: 40 | M132: 2 | N132: 8 | O132: 3 | P132: 6 | Q132: 0 | R132: 0 | S132: 4 | T132: 0 | U132: 0 | V132: 0 | W132: 0 | X132: 1 | Y132: 0 | Z132: 0 | AA132: 0 | AB132: 0 | AC132: 1 | AD132: 0 | AE132: 1 | AF132: 5
A133: Southwestern | B133: 3-C | C133: MTRG | D133: Wythe County | E133: 0 | F133: 8 | G133: 68 | H133: 76 | I133: 2 | J133: 10 | K133: 3 | L133: 28 | M133: 10 | N133: 10 | O133: 7 | P133: 6 | Q133: 0 | R133: 1 | S133: 1 | T133: 0 | U133: 0 | V133: 0 | W133: 0 | X133: 0 | Y133: 0 | Z133: 0 | AA133: 1 | AB133: 0 | AC133: 1 | AD133: 1 | AE133: 1 | AF133: 2
A134: Eastern | B134: 5-C | C134: COLO | D134: York County | E134: 0 | F134: 16 | G134: 43 | H134: 59 | I134: 5 | J134: 16 | K134: 0 | L134: 19 | M134: 2 | N134: 5 | O134: 1 | P134: 11 | Q134: 0 | R134: 0 | S134: 0 | T134: 0 | U134: 0 | V134: 0 | W134: 0 | X134: 0 | Y134: 0 | Z134: 0 | AA134: 0 | AB134: 0 | AC134: 1 | AD134: 0 | AE134: 0 | AF134: 1
A136: DS-Regional Totals - non-Unique
A137: Central | C137: na | D137: na | E137: na | F137: na | G137: na | H137: na | I137: na | J137: na | K137: na | L137: na | M137: na | N137: na | O137: na | P137: na | Q137: 2 | R137: 12 | S137: 43 | T137: 0 | U137: 0 | V137: 0 | W137: 3 | X137: 16 | Y137: 0 | Z137: 1 | AA137: 7 | AB137: 0 | AC137: 12 | AD137: 5 | AE137: 21 | AF137: 81
A138: Eastern | C138: na | D138: na | E138: na | F138: na | G138: na | H138: na | I138: na | J138: na | K138: na | L138: na | M138: na | N138: na | O138: na | P138: na | Q138: 0 | R138: 20 | S138: 43 | T138: 0 | U138: 2 | V138: 0 | W138: 9 | X138: 47 | Y138: 0 | Z138: 0 | AA138: 4 | AB138: 0 | AC138: 25 | AD138: 17 | AE138: 34 | AF138: 119
A139: Northern | C139: na | D139: na | E139: na | F139: na | G139: na | H139: na | I139: na | J139: na | K139: na | L139: na | M139: na | N139: na | O139: na | P139: na | Q139: 2 | R139: 16 | S139: 31 | T139: 0 | U139: 0 | V139: 0 | W139: 1 | X139: 27 | Y139: 0 | Z139: 0 | AA139: 6 | AB139: 4 | AC139: 51 | AD139: 12 | AE139: 8 | AF139: 110
A140: Southwestern | C140: na | D140: na | E140: na | F140: na | G140: na | H140: na | I140: na | J140: na | K140: na | L140: na | M140: na | N140: na | O140: na | P140: na | Q140: 0 | R140: 16 | S140: 43 | T140: 0 | U140: 0 | V140: 0 | W140: 4 | X140: 27 | Y140: 0 | Z140: 0 | AA140: 2 | AB140: 3 | AC140: 12 | AD140: 11 | AE140: 21 | AF140: 72
A141: Western | C141: na | D141: na | E141: na | F141: na | G141: na | H141: na | I141: na | J141: na | K141: na | L141: na | M141: na | N141: na | O141: na | P141: na | Q141: 0 | R141: 11 | S141: 23 | T141: 0 | U141: 1 | V141: 0 | W141: 3 | X141: 16 | Y141: 0 | Z141: 0 | AA141: 2 | AB141: 0 | AC141: 1 | AD141: 7 | AE141: 27 | AF141: 42
A142: Total nonUnique | C142: na | D142: na | E142: na | F142: na | G142: na | H142: na | I142: na | J142: na | K142: na | L142: na | M142: na | N142: na | O142: na | P142: na | Q142: =SUM(Q2:Q134) -> 4 | R142: =SUM(R2:R134) -> 75 | S142: 183 | T142: 0 | U142: 3 | V142: 0 | W142: 20 | X142: 133 | Y142: 0 | Z142: 1 | AA142: 21 | AB142: 7 | AC142: 101 | AD142: 52 | AE142: 111 | AF142: 424
A143: DS-Regional Totals - Unique
A144: Central | C144: na | D144: na | E144: 81 | F144: 431 | G144: 2582 | H144: 3094 | I144: 209 | J144: 1022 | K144: 125 | L144: 1094 | M144: 86 | N144: 217 | O144: 180 | P144: 161 | Q144: 2 | R144: 11 | S144: 36 | T144: 0 | U144: 0 | V144: 0 | W144: 3 | X144: 14 | Y144: 0 | Z144: 1 | AA144: 6 | AB144: 0 | AC144: 12 | AD144: 5 | AE144: 13 | AF144: 65
A145: Eastern | C145: na | D145: na | E145: 90 | F145: 545 | G145: 2679 | H145: 3314 | I145: 169 | J145: 939 | K145: 93 | L145: 1318 | M145: 100 | N145: 239 | O145: 127 | P145: 329 | Q145: 0 | R145: 18 | S145: 33 | T145: 0 | U145: 2 | V145: 0 | W145: 8 | X145: 44 | Y145: 0 | Z145: 0 | AA145: 4 | AB145: 0 | AC145: 24 | AD145: 15 | AE145: 32 | AF145: 105
A146: Northern | C146: na | D146: na | E146: 67 | F146: 852 | G146: 2645 | H146: 3564 | I146: 257 | J146: 1093 | K146: 150 | L146: 1128 | M146: 75 | N146: 300 | O146: 200 | P146: 361 | Q146: 2 | R146: 13 | S146: 28 | T146: 0 | U146: 0 | V146: 0 | W146: 1 | X146: 25 | Y146: 0 | Z146: 0 | AA146: 6 | AB146: 4 | AC146: 48 | AD146: 10 | AE146: 7 | AF146: 98
A147: Southwestern | C147: na | D147: na | E147: 67 | F147: 318 | G147: 2032 | H147: 2417 | I147: 114 | J147: 595 | K147: 97 | L147: 824 | M147: 82 | N147: 267 | O147: 222 | P147: 216 | Q147: 0 | R147: 11 | S147: 28 | T147: 0 | U147: 0 | V147: 0 | W147: 4 | X147: 20 | Y147: 0 | Z147: 0 | AA147: 2 | AB147: 1 | AC147: 6 | AD147: 6 | AE147: 11 | AF147: 42
A148: Western | C148: na | D148: na | E148: 23 | F148: 318 | G148: 1468 | H148: 1809 | I148: 125 | J148: 522 | K148: 60 | L148: 580 | M148: 39 | N148: 211 | O148: 98 | P148: 174 | Q148: 0 | R148: 8 | S148: 15 | T148: 0 | U148: 1 | V148: 0 | W148: 3 | X148: 13 | Y148: 0 | Z148: 0 | AA148: 2 | AB148: 0 | AC148: 1 | AD148: 5 | AE148: 17 | AF148: 29
A149: Total Unique | C149: na | D149: na | E149: 328 | F149: 2464 | G149: 11406 | H149: 14198 | I149: 874 | J149: 4171 | K149: 525 | L149: 4944 | M149: 382 | N149: 1234 | O149: 827 | P149: 1241 | Q149: 4 | R149: 58 | S149: 133 | T149: 0 | U149: 3 | V149: 0 | W149: 19 | X149: 108 | Y149: 0 | Z149: 1 | AA149: 19 | AB149: 5 | AC149: 85 | AD149: 37 | AE149: 70 | AF149: 317
A150: DS-SubRegional Totals - Unique
A151: Western | B151: 1-A | C151: na | D151: na | E151: 10 | F151: 92 | G151: 261 | H151: 363 | I151: 32 | J151: 135 | K151: 3 | L151: 100 | M151: 5 | N151: 32 | O151: 5 | P151: 51 | Q151: 0 | R151: 3 | S151: 3 | T151: 0 | U151: 0 | V151: 0 | W151: 1 | X151: 3 | Y151: 0 | Z151: 0 | AA151: 0 | AB151: 0 | AC151: 1 | AD151: 1 | AE151: 3 | AF151: 5
A152: Western | B152: 1-B | C152: na | D152: na | E152: 9 | F152: 84 | G152: 438 | H152: 531 | I152: 45 | J152: 163 | K152: 21 | L152: 151 | M152: 5 | N152: 63 | O152: 26 | P152: 57 | Q152: 0 | R152: 4 | S152: 5 | T152: 0 | U152: 1 | V152: 0 | W152: 1 | X152: 5 | Y152: 0 | Z152: 0 | AA152: 2 | AB152: 0 | AC152: 0 | AD152: 3 | AE152: 6 | AF152: 11
A153: Western | B153: 1-C | C153: na | D153: na | E153: 1 | F153: 18 | G153: 126 | H153: 145 | I153: 19 | J153: 41 | K153: 10 | L153: 38 | M153: 3 | N153: 12 | O153: 13 | P153: 9 | Q153: 0 | R153: 1 | S153: 2 | T153: 0 | U153: 0 | V153: 0 | W153: 0 | X153: 2 | Y153: 0 | Z153: 0 | AA153: 0 | AB153: 0 | AC153: 0 | AD153: 1 | AE153: 0 | AF153: 3
A154: Western | B154: 1-D | C154: na | D154: na | E154: 4 | F154: 123 | G154: 662 | H154: 789 | I154: 31 | J154: 178 | K154: 27 | L154: 304 | M154: 29 | N154: 110 | O154: 56 | P154: 54 | Q154: 0 | R154: 2 | S154: 6 | T154: 0 | U154: 0 | V154: 0 | W154: 1 | X154: 4 | Y154: 0 | Z154: 0 | AA154: 0 | AB154: 0 | AC154: 0 | AD154: 1 | AE154: 11 | AF154: 13
A155: Northern | B155: 2-A | C155: na | D155: na | E155: 51 | F155: 571 | G155: 1645 | H155: 2267 | I155: 132 | J155: 634 | K155: 94 | L155: 758 | M155: 52 | N155: 196 | O155: 144 | P155: 257 | Q155: 1 | R155: 8 | S155: 12 | T155: 0 | U155: 0 | V155: 0 | W155: 1 | X155: 21 | Y155: 0 | Z155: 0 | AA155: 4 | AB155: 4 | AC155: 45 | AD155: 7 | AE155: 4 | AF155: 76
A156: Northern | B156: 2-B | C156: na | D156: na | E156: 3 | F156: 61 | G156: 201 | H156: 265 | I156: 45 | J156: 105 | K156: 5 | L156: 56 | M156: 3 | N156: 17 | O156: 6 | P156: 28 | Q156: 0 | R156: 1 | S156: 3 | T156: 0 | U156: 0 | V156: 0 | W156: 0 | X156: 0 | Y156: 0 | Z156: 0 | AA156: 0 | AB156: 0 | AC156: 1 | AD156: 1 | AE156: 0 | AF156: 4
A157: Northern | B157: 2-C | C157: na | D157: na | E157: 7 | F157: 115 | G157: 484 | H157: 606 | I157: 51 | J157: 181 | K157: 32 | L157: 188 | M157: 21 | N157: 59 | O157: 39 | P157: 35 | Q157: 1 | R157: 2 | S157: 6 | T157: 0 | U157: 0 | V157: 0 | W157: 0 | X157: 2 | Y157: 0 | Z157: 0 | AA157: 1 | AB157: 0 | AC157: 2 | AD157: 0 | AE157: 3 | AF157: 12
A158: Northern | B158: 2-D | C158: na | D158: na | E158: 6 | F158: 100 | G158: 325 | H158: 431 | I158: 31 | J158: 170 | K158: 23 | L158: 131 | M158: 1 | N158: 27 | O158: 12 | P158: 36 | Q158: 0 | R158: 3 | S158: 8 | T158: 0 | U158: 0 | V158: 0 | W158: 0 | X158: 2 | Y158: 0 | Z158: 0 | AA158: 1 | AB158: 0 | AC158: 0 | AD158: 2 | AE158: 1 | AF158: 9
A159: Southwestern | B159: 3-A | C159: na | D159: na | E159: 22 | F159: 145 | G159: 558 | H159: 725 | I159: 38 | J159: 170 | K159: 45 | L159: 224 | M159: 22 | N159: 90 | O159: 72 | P159: 64 | Q159: 0 | R159: 7 | S159: 13 | T159: 0 | U159: 0 | V159: 0 | W159: 2 | X159: 10 | Y159: 0 | Z159: 0 | AA159: 0 | AB159: 1 | AC159: 3 | AD159: 4 | AE159: 6 | AF159: 17
A160: Southwestern | B160: 3-B | C160: na | D160: na | E160: 33 | F160: 69 | G160: 659 | H160: 761 | I160: 33 | J160: 191 | K160: 25 | L160: 263 | M160: 30 | N160: 64 | O160: 86 | P160: 69 | Q160: 0 | R160: 3 | S160: 9 | T160: 0 | U160: 0 | V160: 0 | W160: 2 | X160: 9 | Y160: 0 | Z160: 0 | AA160: 1 | AB160: 0 | AC160: 1 | AD160: 1 | AE160: 5 | AF160: 17
A161: Southwestern | B161: 3-C | C161: na | D161: na | E161: 1 | F161: 38 | G161: 207 | H161: 246 | I161: 5 | J161: 40 | K161: 6 | L161: 82 | M161: 14 | N161: 42 | O161: 38 | P161: 19 | Q161: 0 | R161: 3 | S161: 4 | T161: 0 | U161: 0 | V161: 0 | W161: 0 | X161: 2 | Y161: 0 | Z161: 0 | AA161: 1 | AB161: 1 | AC161: 2 | AD161: 2 | AE161: 3 | AF161: 7
A162: Southwestern | B162: 3-D | C162: na | D162: na | E162: 9 | F162: 68 | G162: 555 | H162: 632 | I162: 36 | J162: 189 | K162: 11 | L162: 236 | M162: 15 | N162: 65 | O162: 17 | P162: 63 | Q162: 0 | R162: 0 | S162: 9 | T162: 0 | U162: 0 | V162: 0 | W162: 0 | X162: 3 | Y162: 0 | Z162: 0 | AA162: 0 | AB162: 0 | AC162: 5 | AD162: 1 | AE162: 3 | AF162: 14
A163: Central | B163: 4-A | C163: na | D163: na | E163: 75 | F163: 327 | G163: 1904 | H163: 2306 | I163: 167 | J163: 760 | K163: 90 | L163: 803 | M163: 56 | N163: 160 | O163: 144 | P163: 126 | Q163: 2 | R163: 9 | S163: 27 | T163: 0 | U163: 0 | V163: 0 | W163: 3 | X163: 10 | Y163: 0 | Z163: 1 | AA163: 6 | AB163: 0 | AC163: 10 | AD163: 4 | AE163: 10 | AF163: 50
A164: Central | B164: 4-B | C164: na | D164: na | E164: 4 | F164: 24 | G164: 92 | H164: 120 | I164: 2 | J164: 42 | L164: 49 | M164: 5 | N164: 11 | O164: 3 | P164: 8 | Q164: 0 | R164: 0 | S164: 3 | T164: 0 | U164: 0 | V164: 0 | W164: 0 | X164: 1 | Y164: 0 | Z164: 0 | AA164: 0 | AB164: 0 | AC164: 0 | AD164: 0 | AE164: 2 | AF164: 5
A165: Central | B165: 4-C | C165: na | D165: na | E165: 2 | F165: 40 | G165: 279 | H165: 321 | I165: 20 | J165: 128 | K165: 19 | L165: 108 | M165: 7 | N165: 13 | O165: 12 | P165: 14 | Q165: 0 | R165: 1 | S165: 5 | T165: 0 | U165: 0 | V165: 0 | W165: 0 | X165: 2 | Y165: 0 | Z165: 0 | AA165: 0 | AB165: 0 | AC165: 1 | AD165: 1 | AE165: 1 | AF165: 8
A166: Central | B166: 4-D | C166: na | D166: na | E166: 1 | F166: 28 | G166: 357 | H166: 386 | I166: 14 | J166: 108 | K166: 19 | L166: 151 | M166: 20 | N166: 25 | O166: 31 | P166: 18 | Q166: 0 | R166: 1 | S166: 5 | T166: 0 | U166: 0 | V166: 0 | W166: 0 | X166: 1 | Y166: 0 | Z166: 0 | AA166: 0 | AB166: 0 | AC166: 1 | AD166: 0 | AE166: 4 | AF166: 10
A167: Eastern | B167: 5-A | C167: na | D167: na | E167: 1 | F167: 42 | G167: 264 | H167: 307 | I167: 22 | J167: 98 | K167: 8 | L167: 90 | M167: 16 | N167: 33 | O167: 8 | P167: 32 | Q167: 0 | R167: 1 | S167: 1 | T167: 0 | U167: 0 | V167: 0 | W167: 0 | X167: 1 | Y167: 0 | Z167: 0 | AA167: 0 | AB167: 0 | AC167: 2 | AD167: 1 | AE167: 0 | AF167: 3
A168: Eastern | B168: 5-B | C168: na | D168: na | F168: 6 | G168: 111 | H168: 117 | I168: 11 | J168: 51 | K168: 2 | L168: 34 | M168: 1 | N168: 10 | O168: 1 | P168: 7 | Q168: 0 | R168: 0 | S168: 1 | T168: 0 | U168: 0 | V168: 0 | W168: 0 | X168: 1 | Y168: 0 | Z168: 0 | AA168: 1 | AB168: 0 | AC168: 0 | AD168: 0 | AE168: 0 | AF168: 1
A169: Eastern | B169: 5-C | C169: na | D169: na | E169: 26 | F169: 136 | G169: 548 | H169: 710 | I169: 27 | J169: 179 | K169: 22 | L169: 289 | M169: 20 | N169: 61 | O169: 30 | P169: 82 | Q169: 0 | R169: 5 | S169: 9 | T169: 0 | U169: 0 | V169: 0 | W169: 2 | X169: 12 | Y169: 0 | Z169: 0 | AA169: 1 | AB169: 0 | AC169: 6 | AD169: 4 | AE169: 14 | AF169: 31
A170: Eastern | B170: 5-D | C170: na | D170: na | E170: 63 | F170: 377 | G170: 1730 | H170: 2170 | I170: 113 | J170: 608 | K170: 63 | L170: 889 | M170: 57 | N170: 144 | O170: 84 | P170: 212 | Q170: 0 | R170: 13 | S170: 24 | T170: 0 | U170: 2 | V170: 0 | W170: 6 | X170: 30 | Y170: 0 | Z170: 0 | AA170: 2 | AB170: 0 | AC170: 17 | AD170: 10 | AE170: 18 | AF170: 73
A171: (Unique) Number of Individuals with approved Jump-Start Service Authorization Lines these 6 months
A172: Number of Individuals | E172: 172 | F172: 835 | G172: 6016 | H172: 7023 | I172: 490 | J172: 2174 | K172: 298 | L172: 2366 | M172: 163 | N172: 719 | O172: 469 | P172: 344 | Q172: 119 | R172: 402 | S172: 3086 | T172: 0 | U172: 24 | V172: 0 | W172: 104 | X172: 1886 | Y172: 0 | Z172: 1 | AA172: 146 | AB172: 60 | AC172: 331 | AD172: 293 | AE172: 1987 | AF172: 7023
A173: Percent of possible Individuals | E173: =E172/E149 -> 0.5243902439 | F173: 0.3388798701 | G173: 0.5274416974 | H173: 0.4946471334 | I173: 0.5606407323 | J173: 0.5212179333 | K173: 0.5676190476 | L173: 0.4785598706 | M173: 0.4267015707 | N173: 0.5826580227 | O173: 0.5671100363 | P173: =P172/P149 -> 0.2771958098
A174: (Unique) Number of (approved Jump-Start) Service Authorization Lines (SALs) these 6 months
A175: Number of Jump-Start Service Authorization Lines | E175: 267 | F175: 1479 | G175: 11345 | H175: 13091 | I175: 855 | J175: 3972 | K175: 627 | L175: 4388 | M175: 301 | N175: 1486 | O175: 925 | P175: 537 | Q175: 132 | R175: 564 | S175: 4671 | T175: 0 | U175: 27 | V175: 0 | W175: 149 | X175: 3066 | Y175: 0 | Z175: 1 | AA175: 223 | AB175: 112 | AC175: 708 | AD175: 511 | AE175: 2927 | AF175: 13091
A176: Number of SA Lines per Person | E176: =E175/E172 -> 1.552325581 | F176: =F175/F172 -> 1.771257485 | G176: 1.885804521 | H176: 1.864018226 | I176: 1.744897959 | J176: 1.827046918 | K176: 2.104026846 | L176: 1.854606932 | M176: 1.846625767 | N176: 2.066759388 | O176: 1.97228145 | P176: 1.561046512 | Q176: 1.109243697 | R176: 1.402985075 | S176: 1.513609851 | U176: 1.125 | W176: 1.432692308 | X176: 1.625662778 | Z176: 1 | AA176: 1.52739726 | AB176: 1.866666667 | AC176: 2.13897281 | AD176: 1.744027304 | AE176: 1.473074987 | AF176: 1.864018226

Sheet MasterDelta20181101
A1: DS Region | B1: SubRegion | C1: CSB | D1: City/County | E1: BI waiver | F1: FIS waiver | G1: CL waiver | H1: All waivers | I1: SIS L1 | J1: SIS L2 | K1: SIS L3 | L1: SIS L4 | M1: SIS L5 | N1: SIS L6 | O1: SIS L7 | P1: SIS Default | Q1: Benefits Planning | R1: Community Coaching | S1: Community Engagement | T1: Community Guide | U1: Electronic Home-Based Services | V1: Employment and Community Transportation | W1: Independent Living Supports | X1: In-home Supports | Y1: Peer Mentoring | Z1: Shared Living | AA1: Supported Living | AB1: Crisis Support Services | AC1: Private Duty Nursing | AD1: Skilled Nursing | AE1: Sponsored Residential
A2: Eastern | B2: 5-B | C2: EAST | D2: Accomack County | E2: =Master20181101!E2-Master20180614!E2 -> 0 | F2: =Master20181101!F2-Master20180614!F2 -> 2 | G2: =Master20181101!G2-Master20180614!G2 -> -1 | H2: =Master20181101!H2-Master20180614!H2 -> 1 | I2: =Master20181101!I2-Master20180614!I2 -> 1 | J2: =Master20181101!J2-Master20180614!J2 -> 1 | K2: =Master20181101!K2-Master20180614!K2 -> 0 | L2: =Master20181101!L2-Master20180614!L2 -> 1 | M2: =Master20181101!M2-Master20180614!M2 -> 0 | N2: =Master20181101!N2-Master20180614!N2 -> -1 | O2: =Master20181101!O2-Master20180614!O2 -> 0 | P2: =Master20181101!P2-Master20180614!P2 -> -1 | Q2: =Master20181101!Q2-Master20180614!Q2 -> 0 | R2: =Master20181101!R2-Master20180614!R2 -> 0 | S2: =Master20181101!S2-Master20180614!S2 -> 0 | T2: =Master20181101!T2-Master20180614!T2 -> 0 | U2: =Master20181101!U2-Master20180614!U2 -> 0 | V2: =Master20181101!V2-Master20180614!V2 -> 0 | W2: =Master20181101!W2-Master20180614!W2 -> 0 | X2: =Master20181101!X2-Master20180614!X2 -> 0 | Y2: =Master20181101!Y2-Master20180614!Y2 -> 0 | Z2: =Master20181101!Z2-Master20180614!Z2 -> 0 | AA2: =Master20181101!AA2-Master20180614!AA2 -> 0 | AB2: =Master20181101!AB2-Master20180614!AB2 -> 0 | AC2: =Master20181101!AC2-Master20180614!AC2 -> 0 | AD2: =Master20181101!AD2-Master20180614!AD2 -> 0 | AE2: =Master20181101!AE2-Master20180614!AE2 -> -1
A3: Western | B3: 1-A | C3: RTEN | D3: Albemarle County | E3: =Master20181101!E3-Master20180614!E3 -> 0 | F3: =Master20181101!F3-Master20180614!F3 -> -1 | G3: =Master20181101!G3-Master20180614!G3 -> 3 | H3: =Master20181101!H3-Master20180614!H3 -> 2 | I3: =Master20181101!I3-Master20180614!I3 -> 1 | J3: =Master20181101!J3-Master20180614!J3 -> 0 | K3: =Master20181101!K3-Master20180614!K3 -> 0 | L3: =Master20181101!L3-Master20180614!L3 -> 4 | M3: =Master20181101!M3-Master20180614!M3 -> -1 | N3: =Master20181101!N3-Master20180614!N3 -> 0 | O3: =Master20181101!O3-Master20180614!O3 -> -2 | P3: =Master20181101!P3-Master20180614!P3 -> 0 | Q3: =Master20181101!Q3-Master20180614!Q3 -> 0 | R3: =Master20181101!R3-Master20180614!R3 -> -2 | S3: =Master20181101!S3-Master20180614!S3 -> 0 | T3: =Master20181101!T3-Master20180614!T3 -> 0 | U3: =Master20181101!U3-Master20180614!U3 -> 0 | V3: =Master20181101!V3-Master20180614!V3 -> 0 | W3: =Master20181101!W3-Master20180614!W3 -> 0 | X3: =Master20181101!X3-Master20180614!X3 -> 0 | Y3: =Master20181101!Y3-Master20180614!Y3 -> 0 | Z3: =Master20181101!Z3-Master20180614!Z3 -> 0 | AA3: =Master20181101!AA3-Master20180614!AA3 -> 0 | AB3: =Master20181101!AB3-Master20180614!AB3 -> 0 | AC3: =Master20181101!AC3-Master20180614!AC3 -> 0 | AD3: =Master20181101!AD3-Master20180614!AD3 -> -1 | AE3: =Master20181101!AE3-Master20180614!AE3 -> 0
A4: Northern | B4: 2-A | C4: ALEX | D4: Alexandria City | E4: =Master20181101!E4-Master20180614!E4 -> 0 | F4: =Master20181101!F4-Master20180614!F4 -> 0 | G4: =Master20181101!G4-Master20180614!G4 -> -1 | H4: =Master20181101!H4-Master20180614!H4 -> -1 | I4: =Master20181101!I4-Master20180614!I4 -> -1 | J4: =Master20181101!J4-Master20180614!J4 -> 1 | K4: =Master20181101!K4-Master20180614!K4 -> 1 | L4: =Master20181101!L4-Master20180614!L4 -> -1 | M4: =Master20181101!M4-Master20180614!M4 -> 0 | N4: =Master20181101!N4-Master20180614!N4 -> 0 | O4: =Master20181101!O4-Master20180614!O4 -> 0 | P4: =Master20181101!P4-Master20180614!P4 -> -1 | Q4: =Master20181101!Q4-Master20180614!Q4 -> 0 | R4: =Master20181101!R4-Master20180614!R4 -> 0 | S4: =Master20181101!S4-Master20180614!S4 -> 0 | T4: =Master20181101!T4-Master20180614!T4 -> 0 | U4: =Master20181101!U4-Master20180614!U4 -> 0 | V4: =Master20181101!V4-Master20180614!V4 -> 0 | W4: =Master20181101!W4-Master20180614!W4 -> 0 | X4: =Master20181101!X4-Master20180614!X4 -> 0 | Y4: =Master20181101!Y4-Master20180614!Y4 -> 0 | Z4: =Master20181101!Z4-Master20180614!Z4 -> 0 | AA4: =Master20181101!AA4-Master20180614!AA4 -> 0 | AB4: =Master20181101!AB4-Master20180614!AB4 -> 0 | AC4: =Master20181101!AC4-Master20180614!AC4 -> 0 | AD4: =Master20181101!AD4-Master20180614!AD4 -> -2 | AE4: =Master20181101!AE4-Master20180614!AE4 -> 0
A5: Western | B5: 1-C | C5: ALLE | D5: Alleghany County | E5: =Master20181101!E5-Master20180614!E5 -> 0 | F5: =Master20181101!F5-Master20180614!F5 -> 1 | G5: =Master20181101!G5-Master20180614!G5 -> -3 | H5: =Master20181101!H5-Master20180614!H5 -> -2 | I5: =Master20181101!I5-Master20180614!I5 -> 0 | J5: =Master20181101!J5-Master20180614!J5 -> -3 | K5: =Master20181101!K5-Master20180614!K5 -> 0 | L5: =Master20181101!L5-Master20180614!L5 -> 1 | M5: =Master20181101!M5-Master20180614!M5 -> 0 | N5: =Master20181101!N5-Master20180614!N5 -> 0 | O5: =Master20181101!O5-Master20180614!O5 -> 0 | P5: =Master20181101!P5-Master20180614!P5 -> 0 | Q5: =Master20181101!Q5-Master20180614!Q5 -> 0 | R5: =Master20181101!R5-Master20180614!R5 -> 0 | S5: =Master20181101!S5-Master20180614!S5 -> 0 | T5: =Master20181101!T5-Master20180614!T5 -> 0 | U5: =Master20181101!U5-Master20180614!U5 -> 0 | V5: =Master20181101!V5-Master20180614!V5 -> 0 | W5: =Master20181101!W5-Master20180614!W5 -> 0 | X5: =Master20181101!X5-Master20180614!X5 -> 0 | Y5: =Master20181101!Y5-Master20180614!Y5 -> 0 | Z5: =Master20181101!Z5-Master20180614!Z5 -> 0 | AA5: =Master20181101!AA5-Master20180614!AA5 -> 0 | AB5: =Master20181101!AB5-Master20180614!AB5 -> 0 | AC5: =Master20181101!AC5-Master20180614!AC5 -> 0 | AD5: =Master20181101!AD5-Master20180614!AD5 -> 0 | AE5: =Master20181101!AE5-Master20180614!AE5 -> 0
A6: Central | B6: 4-B | C6: CROS | D6: Amelia County | E6: =Master20181101!E6-Master20180614!E6 -> 0 | F6: =Master20181101!F6-Master20180614!F6 -> 0 | G6: =Master20181101!G6-Master20180614!G6 -> 2 | H6: =Master20181101!H6-Master20180614!H6 -> 2 | I6: =Master20181101!I6-Master20180614!I6 -> 1 | J6: =Master20181101!J6-Master20180614!J6 -> -1 | K6: =Master20181101!K6-Master20180614!K6 -> 0 | L6: =Master20181101!L6-Master20180614!L6 -> 3 | M6: =Master20181101!M6-Master20180614!M6 -> 0 | N6: =Master20181101!N6-Master20180614!N6 -> 0 | O6: =Master20181101!O6-Master20180614!O6 -> 0 | P6: =Master20181101!P6-Master20180614!P6 -> -1 | Q6: =Master20181101!Q6-Master20180614!Q6 -> 0 | R6: =Master20181101!R6-Master20180614!R6 -> 0 | S6: =Master20181101!S6-Master20180614!S6 -> 0 | T6: =Master20181101!T6-Master20180614!T6 -> 0 | U6: =Master20181101!U6-Master20180614!U6 -> 0 | V6: =Master20181101!V6-Master20180614!V6 -> 0 | W6: =Master20181101!W6-Master20180614!W6 -> 0 | X6: =Master20181101!X6-Master20180614!X6 -> 0 | Y6: =Master20181101!Y6-Master20180614!Y6 -> 0 | Z6: =Master20181101!Z6-Master20180614!Z6 -> 0 | AA6: =Master20181101!AA6-Master20180614!AA6 -> 0 | AB6: =Master20181101!AB6-Master20180614!AB6 -> 0 | AC6: =Master20181101!AC6-Master20180614!AC6 -> 0 | AD6: =Master20181101!AD6-Master20180614!AD6 -> 0 | AE6: =Master20181101!AE6-Master20180614!AE6 -> 0
A7: Western | B7: 1-D | C7: HORI | D7: Amherst County | E7: =Master20181101!E7-Master20180614!E7 -> 0 | F7: =Master20181101!F7-Master20180614!F7 -> -1 | G7: =Master20181101!G7-Master20180614!G7 -> 7 | H7: =Master20181101!H7-Master20180614!H7 -> 6 | I7: =Master20181101!I7-Master20180614!I7 -> 1 | J7: =Master20181101!J7-Master20180614!J7 -> -1 | K7: =Master20181101!K7-Master20180614!K7 -> 0 | L7: =Master20181101!L7-Master20180614!L7 -> 1 | M7: =Master20181101!M7-Master20180614!M7 -> 2 | N7: =Master20181101!N7-Master20180614!N7 -> 3 | O7: =Master20181101!O7-Master20180614!O7 -> 4 | P7: =Master20181101!P7-Master20180614!P7 -> -4 | Q7: =Master20181101!Q7-Master20180614!Q7 -> 0 | R7: =Master20181101!R7-Master20180614!R7 -> 1 | S7: =Master20181101!S7-Master20180614!S7 -> -1 | T7: =Master20181101!T7-Master20180614!T7 -> 0 | U7: =Master20181101!U7-Master20180614!U7 -> 0 | V7: =Master20181101!V7-Master20180614!V7 -> 0 | W7: =Master20181101!W7-Master20180614!W7 -> 0 | X7: =Master20181101!X7-Master20180614!X7 -> 0 | Y7: =Master20181101!Y7-Master20180614!Y7 -> 0 | Z7: =Master20181101!Z7-Master20180614!Z7 -> 0 | AA7: =Master20181101!AA7-Master20180614!AA7 -> 0 | AB7: =Master20181101!AB7-Master20180614!AB7 -> 0 | AC7: =Master20181101!AC7-Master20180614!AC7 -> 0 | AD7: =Master20181101!AD7-Master20180614!AD7 -> 1 | AE7: =Master20181101!AE7-Master20180614!AE7 -> 0
A8: Western | B8: 1-D | C8: HORI | D8: Appomattox County | E8: =Master20181101!E8-Master20180614!E8 -> 0 | F8: =Master20181101!F8-Master20180614!F8 -> 0 | G8: =Master20181101!G8-Master20180614!G8 -> -2 | H8: =Master20181101!H8-Master20180614!H8 -> -2 | I8: =Master20181101!I8-Master20180614!I8 -> 0 | J8: =Master20181101!J8-Master20180614!J8 -> -1 | K8: =Master20181101!K8-Master20180614!K8 -> 0 | L8: =Master20181101!L8-Master20180614!L8 -> 0 | M8: =Master20181101!M8-Master20180614!M8 -> -1 | N8: =Master20181101!N8-Master20180614!N8 -> 2 | O8: =Master20181101!O8-Master20180614!O8 -> 0 | P8: =Master20181101!P8-Master20180614!P8 -> -2 | Q8: =Master20181101!Q8-Master20180614!Q8 -> 0 | R8: =Master20181101!R8-Master20180614!R8 -> 0 | S8: =Master20181101!S8-Master20180614!S8 -> 1 | T8: =Master20181101!T8-Master20180614!T8 -> 0 | U8: =Master20181101!U8-Master20180614!U8 -> 0 | V8: =Master20181101!V8-Master20180614!V8 -> 0 | W8: =Master20181101!W8-Master20180614!W8 -> 0 | X8: =Master20181101!X8-Master20180614!X8 -> 0 | Y8: =Master20181101!Y8-Master20180614!Y8 -> 0 | Z8: =Master20181101!Z8-Master20180614!Z8 -> 0 | AA8: =Master20181101!AA8-Master20180614!AA8 -> 0 | AB8: =Master20181101!AB8-Master20180614!AB8 -> 0 | AC8: =Master20181101!AC8-Master20180614!AC8 -> 0 | AD8: =Master20181101!AD8-Master20180614!AD8 -> 0 | AE8: =Master20181101!AE8-Master20180614!AE8 -> 0
A9: Northern | B9: 2-A | C9: ARLI | D9: Arlington County | E9: =Master20181101!E9-Master20180614!E9 -> 0 | F9: =Master20181101!F9-Master20180614!F9 -> 1 | G9: =Master20181101!G9-Master20180614!G9 -> 3 | H9: =Master20181101!H9-Master20180614!H9 -> 4 | I9: =Master20181101!I9-Master20180614!I9 -> 1 | J9: =Master20181101!J9-Master20180614!J9 -> 1 | K9: =Master20181101!K9-Master20180614!K9 -> -1 | L9: =Master20181101!L9-Master20180614!L9 -> 1 | M9: =Master20181101!M9-Master20180614!M9 -> 1 | N9: =Master20181101!N9-Master20180614!N9 -> 1 | O9: =Master20181101!O9-Master20180614!O9 -> 2 | P9: =Master20181101!P9-Master20180614!P9 -> -2 | Q9: =Master20181101!Q9-Master20180614!Q9 -> 0 | R9: =Master20181101!R9-Master20180614!R9 -> 0 | S9: =Master20181101!S9-Master20180614!S9 -> 0 | T9: =Master20181101!T9-Master20180614!T9 -> 0 | U9: =Master20181101!U9-Master20180614!U9 -> 0 | V9: =Master20181101!V9-Master20180614!V9 -> 0 | W9: =Master20181101!W9-Master20180614!W9 -> 0 | X9: =Master20181101!X9-Master20180614!X9 -> 0 | Y9: =Master20181101!Y9-Master20180614!Y9 -> 0 | Z9: =Master20181101!Z9-Master20180614!Z9 -> 0 | AA9: =Master20181101!AA9-Master20180614!AA9 -> 0 | AB9: =Master20181101!AB9-Master20180614!AB9 -> 0 | AC9: =Master20181101!AC9-Master20180614!AC9 -> 0 | AD9: =Master20181101!AD9-Master20180614!AD9 -> 0 | AE9: =Master20181101!AE9-Master20180614!AE9 -> 0
A10: Western | B10: 1-B | C10: VLY | D10: Augusta County | E10: =Master20181101!E10-Master20180614!E10 -> 0 | F10: =Master20181101!F10-Master20180614!F10 -> 3 | G10: =Master20181101!G10-Master20180614!G10 -> -4 | H10: =Master20181101!H10-Master20180614!H10 -> -1 | I10: =Master20181101!I10-Master20180614!I10 -> 2 | J10: =Master20181101!J10-Master20180614!J10 -> -3 | K10: =Master20181101!K10-Master20180614!K10 -> -3 | L10: =Master20181101!L10-Master20180614!L10 -> 0 | M10: =Master20181101!M10-Master20180614!M10 -> -1 | N10: =Master20181101!N10-Master20180614!N10 -> 5 | O10: =Master20181101!O10-Master20180614!O10 -> 1 | P10: =Master20181101!P10-Master20180614!P10 -> -2 | Q10: =Master20181101!Q10-Master20180614!Q10 -> 0 | R10: =Master20181101!R10-Master20180614!R10 -> 1 | S10: =Master20181101!S10-Master20180614!S10 -> 0 | T10: =Master20181101!T10-Master20180614!T10 -> 0 | U10: =Master20181101!U10-Master20180614!U10 -> 0 | V10: =Master20181101!V10-Master20180614!V10 -> 0 | W10: =Master20181101!W10-Master20180614!W10 -> 0 | X10: =Master20181101!X10-Master20180614!X10 -> 0 | Y10: =Master20181101!Y10-Master20180614!Y10 -> 0 | Z10: =Master20181101!Z10-Master20180614!Z10 -> 0 | AA10: =Master20181101!AA10-Master20180614!AA10 -> 0 | AB10: =Master20181101!AB10-Master20180614!AB10 -> 0 | AC10: =Master20181101!AC10-Master20180614!AC10 -> -1 | AD10: =Master20181101!AD10-Master20180614!AD10 -> 0 | AE10: =Master20181101!AE10-Master20180614!AE10 -> 0
A11: Western | B11: 1-C | C11: ROC | D11: Bath County | E11: =Master20181101!E11-Master20180614!E11 -> 0 | F11: =Master20181101!F11-Master20180614!F11 -> 0 | G11: =Master20181101!G11-Master20180614!G11 -> 1 | H11: =Master20181101!H11-Master20180614!H11 -> 1 | I11: =Master20181101!I11-Master20180614!I11 -> 0 | J11: =Master20181101!J11-Master20180614!J11 -> 0 | K11: =Master20181101!K11-Master20180614!K11 -> 1 | L11: =Master20181101!L11-Master20180614!L11 -> 0 | M11: =Master20181101!M11-Master20180614!M11 -> 0 | N11: =Master20181101!N11-Master20180614!N11 -> 0 | O11: =Master20181101!O11-Master20180614!O11 -> 0 | P11: =Master20181101!P11-Master20180614!P11 -> 0 | Q11: =Master20181101!Q11-Master20180614!Q11 -> 0 | R11: =Master20181101!R11-Master20180614!R11 -> 0 | S11: =Master20181101!S11-Master20180614!S11 -> 0 | T11: =Master20181101!T11-Master20180614!T11 -> 0 | U11: =Master20181101!U11-Master20180614!U11 -> 0 | V11: =Master20181101!V11-Master20180614!V11 -> 0 | W11: =Master20181101!W11-Master20180614!W11 -> 0 | X11: =Master20181101!X11-Master20180614!X11 -> 0 | Y11: =Master20181101!Y11-Master20180614!Y11 -> 0 | Z11: =Master20181101!Z11-Master20180614!Z11 -> 0 | AA11: =Master20181101!AA11-Master20180614!AA11 -> 0 | AB11: =Master20181101!AB11-Master20180614!AB11 -> 0 | AC11: =Master20181101!AC11-Master20180614!AC11 -> 0 | AD11: =Master20181101!AD11-Master20180614!AD11 -> 0 | AE11: =Master20181101!AE11-Master20180614!AE11 -> 0
A12: Western | B12: 1-D | C12: HORI | D12: Bedford County | E12: =Master20181101!E12-Master20180614!E12 -> 0 | F12: =Master20181101!F12-Master20180614!F12 -> 4 | G12: =Master20181101!G12-Master20180614!G12 -> 4 | H12: =Master20181101!H12-Master20180614!H12 -> 8 | I12: =Master20181101!I12-Master20180614!I12 -> 0 | J12: =Master20181101!J12-Master20180614!J12 -> -3 | K12: =Master20181101!K12-Master20180614!K12 -> 0 | L12: =Master20181101!L12-Master20180614!L12 -> 2 | M12: =Master20181101!M12-Master20180614!M12 -> 0 | N12: =Master20181101!N12-Master20180614!N12 -> 8 | O12: =Master20181101!O12-Master20180614!O12 -> 0 | P12: =Master20181101!P12-Master20180614!P12 -> 1 | Q12: =Master20181101!Q12-Master20180614!Q12 -> 0 | R12: =Master20181101!R12-Master20180614!R12 -> -1 | S12: =Master20181101!S12-Master20180614!S12 -> 1 | T12: =Master20181101!T12-Master20180614!T12 -> 0 | U12: =Master20181101!U12-Master20180614!U12 -> 0 | V12: =Master20181101!V12-Master20180614!V12 -> 0 | W12: =Master20181101!W12-Master20180614!W12 -> 0 | X12: =Master20181101!X12-Master20180614!X12 -> 3 | Y12: =Master20181101!Y12-Master20180614!Y12 -> 0 | Z12: =Master20181101!Z12-Master20180614!Z12 -> 0 | AA12: =Master20181101!AA12-Master20180614!AA12 -> 0 | AB12: =Master20181101!AB12-Master20180614!AB12 -> 0 | AC12: =Master20181101!AC12-Master20180614!AC12 -> 0 | AD12: =Master20181101!AD12-Master20180614!AD12 -> 1 | AE12: =Master20181101!AE12-Master20180614!AE12 -> -2
A13: Southwestern | B13: 3-C | C13: MTRG | D13: Bland County | E13: =Master20181101!E13-Master20180614!E13 -> 0 | F13: =Master20181101!F13-Master20180614!F13 -> 0 | G13: =Master20181101!G13-Master20180614!G13 -> 1 | H13: =Master20181101!H13-Master20180614!H13 -> 1 | I13: =Master20181101!I13-Master20180614!I13 -> 0 | J13: =Master20181101!J13-Master20180614!J13 -> 0 | K13: =Master20181101!K13-Master20180614!K13 -> 0 | L13: =Master20181101!L13-Master20180614!L13 -> 0 | M13: =Master20181101!M13-Master20180614!M13 -> 0 | N13: =Master20181101!N13-Master20180614!N13 -> 1 | O13: =Master20181101!O13-Master20180614!O13 -> 0 | P13: =Master20181101!P13-Master20180614!P13 -> 0 | Q13: =Master20181101!Q13-Master20180614!Q13 -> 0 | R13: =Master20181101!R13-Master20180614!R13 -> 0 | S13: =Master20181101!S13-Master20180614!S13 -> 0 | T13: =Master20181101!T13-Master20180614!T13 -> 0 | U13: =Master20181101!U13-Master20180614!U13 -> 0 | V13: =Master20181101!V13-Master20180614!V13 -> 0 | W13: =Master20181101!W13-Master20180614!W13 -> 0 | X13: =Master20181101!X13-Master20180614!X13 -> 0 | Y13: =Master20181101!Y13-Master20180614!Y13 -> 0 | Z13: =Master20181101!Z13-Master20180614!Z13 -> 0 | AA13: =Master20181101!AA13-Master20180614!AA13 -> 0 | AB13: =Master20181101!AB13-Master20180614!AB13 -> 0 | AC13: =Master20181101!AC13-Master20180614!AC13 -> 0 | AD13: =Master20181101!AD13-Master20180614!AD13 -> 0 | AE13: =Master20181101!AE13-Master20180614!AE13 -> 0
A14: Southwestern | B14: 3-A | C14: BLUE | D14: Botetourt County | E14: =Master20181101!E14-Master20180614!E14 -> 0 | F14: =Master20181101!F14-Master20180614!F14 -> 0 | G14: =Master20181101!G14-Master20180614!G14 -> -3 | H14: =Master20181101!H14-Master20180614!H14 -> -3 | I14: =Master20181101!I14-Master20180614!I14 -> 0 | J14: =Master20181101!J14-Master20180614!J14 -> -3 | K14: =Master20181101!K14-Master20180614!K14 -> 0 | L14: =Master20181101!L14-Master20180614!L14 -> -1 | M14: =Master20181101!M14-Master20180614!M14 -> 0 | N14: =Master20181101!N14-Master20180614!N14 -> 0 | O14: =Master20181101!O14-Master20180614!O14 -> 0 | P14: =Master20181101!P14-Master20180614!P14 -> 1 | Q14: =Master20181101!Q14-Master20180614!Q14 -> 0 | R14: =Master20181101!R14-Master20180614!R14 -> 0 | S14: =Master20181101!S14-Master20180614!S14 -> 1 | T14: =Master20181101!T14-Master20180614!T14 -> 0 | U14: =Master20181101!U14-Master20180614!U14 -> 0 | V14: =Master20181101!V14-Master20180614!V14 -> 0 | W14: =Master20181101!W14-Master20180614!W14 -> 0 | X14: =Master20181101!X14-Master20180614!X14 -> 0 | Y14: =Master20181101!Y14-Master20180614!Y14 -> 0 | Z14: =Master20181101!Z14-Master20180614!Z14 -> 0 | AA14: =Master20181101!AA14-Master20180614!AA14 -> 0 | AB14: =Master20181101!AB14-Master20180614!AB14 -> 0 | AC14: =Master20181101!AC14-Master20180614!AC14 -> 0 | AD14: =Master20181101!AD14-Master20180614!AD14 -> 0 | AE14: =Master20181101!AE14-Master20180614!AE14 -> 0
A15: Southwestern | B15: 3-D | C15: HIGH | D15: Bristol City | E15: =Master20181101!E15-Master20180614!E15 -> 0 | F15: =Master20181101!F15-Master20180614!F15 -> 1 | G15: =Master20181101!G15-Master20180614!G15 -> 4 | H15: =Master20181101!H15-Master20180614!H15 -> 5 | I15: =Master20181101!I15-Master20180614!I15 -> 1 | J15: =Master20181101!J15-Master20180614!J15 -> -2 | K15: =Master20181101!K15-Master20180614!K15 -> 1 | L15: =Master20181101!L15-Master20180614!L15 -> 6 | M15: =Master20181101!M15-Master20180614!M15 -> 0 | N15: =Master20181101!N15-Master20180614!N15 -> 0 | O15: =Master20181101!O15-Master20180614!O15 -> 0 | P15: =Master20181101!P15-Master20180614!P15 -> -1 | Q15: =Master20181101!Q15-Master20180614!Q15 -> 0 | R15: =Master20181101!R15-Master20180614!R15 -> 0 | S15: =Master20181101!S15-Master20180614!S15 -> 0 | T15: =Master20181101!T15-Master20180614!T15 -> 0 | U15: =Master20181101!U15-Master20180614!U15 -> 0 | V15: =Master20181101!V15-Master20180614!V15 -> 0 | W15: =Master20181101!W15-Master20180614!W15 -> 0 | X15: =Master20181101!X15-Master20180614!X15 -> 0 | Y15: =Master20181101!Y15-Master20180614!Y15 -> 0 | Z15: =Master20181101!Z15-Master20180614!Z15 -> 0 | AA15: =Master20181101!AA15-Master20180614!AA15 -> 0 | AB15: =Master20181101!AB15-Master20180614!AB15 -> 0 | AC15: =Master20181101!AC15-Master20180614!AC15 -> 0 | AD15: =Master20181101!AD15-Master20180614!AD15 -> 0 | AE15: =Master20181101!AE15-Master20180614!AE15 -> 0
A16: Central | B16: 4-D | C16: SS | D16: Brunswick County | E16: =Master20181101!E16-Master20180614!E16 -> 0 | F16: =Master20181101!F16-Master20180614!F16 -> 1 | G16: =Master20181101!G16-Master20180614!G16 -> -1 | H16: =Master20181101!H16-Master20180614!H16 -> 0 | I16: =Master20181101!I16-Master20180614!I16 -> -1 | J16: =Master20181101!J16-Master20180614!J16 -> 1 | K16: =Master20181101!K16-Master20180614!K16 -> 0 | L16: =Master20181101!L16-Master20180614!L16 -> 0 | M16: =Master20181101!M16-Master20180614!M16 -> 0 | N16: =Master20181101!N16-Master20180614!N16 -> 0 | O16: =Master20181101!O16-Master20180614!O16 -> 0 | P16: =Master20181101!P16-Master20180614!P16 -> 0 | Q16: =Master20181101!Q16-Master20180614!Q16 -> 0 | R16: =Master20181101!R16-Master20180614!R16 -> 0 | S16: =Master20181101!S16-Master20180614!S16 -> 0 | T16: =Master20181101!T16-Master20180614!T16 -> 0 | U16: =Master20181101!U16-Master20180614!U16 -> 0 | V16: =Master20181101!V16-Master20180614!V16 -> 0 | W16: =Master20181101!W16-Master20180614!W16 -> 0 | X16: =Master20181101!X16-Master20180614!X16 -> 0 | Y16: =Master20181101!Y16-Master20180614!Y16 -> 0 | Z16: =Master20181101!Z16-Master20180614!Z16 -> 0 | AA16: =Master20181101!AA16-Master20180614!AA16 -> 0 | AB16: =Master20181101!AB16-Master20180614!AB16 -> 0 | AC16: =Master20181101!AC16-Master20180614!AC16 -> 0 | AD16: =Master20181101!AD16-Master20180614!AD16 -> 0 | AE16: =Master20181101!AE16-Master20180614!AE16 -> 0
A17: Southwestern | B17: 3-D | C17: CMT | D17: Buchanan County | E17: =Master20181101!E17-Master20180614!E17 -> 0 | F17: =Master20181101!F17-Master20180614!F17 -> 0 | G17: =Master20181101!G17-Master20180614!G17 -> -3 | H17: =Master20181101!H17-Master20180614!H17 -> -3 | I17: =Master20181101!I17-Master20180614!I17 -> 0 | J17: =Master20181101!J17-Master20180614!J17 -> -3 | K17: =Master20181101!K17-Master20180614!K17 -> 0 | L17: =Master20181101!L17-Master20180614!L17 -> 2 | M17: =Master20181101!M17-Master20180614!M17 -> 0 | N17: =Master20181101!N17-Master20180614!N17 -> -1 | O17: =Master20181101!O17-Master20180614!O17 -> 0 | P17: =Master20181101!P17-Master20180614!P17 -> -1 | Q17: =Master20181101!Q17-Master20180614!Q17 -> 0 | R17: =Master20181101!R17-Master20180614!R17 -> 0 | S17: =Master20181101!S17-Master20180614!S17 -> 0 | T17: =Master20181101!T17-Master20180614!T17 -> 0 | U17: =Master20181101!U17-Master20180614!U17 -> 0 | V17: =Master20181101!V17-Master20180614!V17 -> 0 | W17: =Master20181101!W17-Master20180614!W17 -> 0 | X17: =Master20181101!X17-Master20180614!X17 -> 0 | Y17: =Master20181101!Y17-Master20180614!Y17 -> 0 | Z17: =Master20181101!Z17-Master20180614!Z17 -> 0 | AA17: =Master20181101!AA17-Master20180614!AA17 -> 0 | AB17: =Master20181101!AB17-Master20180614!AB17 -> 0 | AC17: =Master20181101!AC17-Master20180614!AC17 -> 0 | AD17: =Master20181101!AD17-Master20180614!AD17 -> 0 | AE17: =Master20181101!AE17-Master20180614!AE17 -> 0
A18: Central | B18: 4-B | C18: CROS | D18: Buckingham County | E18: =Master20181101!E18-Master20180614!E18 -> 0 | F18: =Master20181101!F18-Master20180614!F18 -> 0 | G18: =Master20181101!G18-Master20180614!G18 -> 0 | H18: =Master20181101!H18-Master20180614!H18 -> 0 | I18: =Master20181101!I18-Master20180614!I18 -> 0 | J18: =Master20181101!J18-Master20180614!J18 -> 0 | K18: =Master20181101!K18-Master20180614!K18 -> 0 | L18: =Master20181101!L18-Master20180614!L18 -> 0 | M18: =Master20181101!M18-Master20180614!M18 -> 0 | N18: =Master20181101!N18-Master20180614!N18 -> 0 | O18: =Master20181101!O18-Master20180614!O18 -> 0 | P18: =Master20181101!P18-Master20180614!P18 -> 0 | Q18: =Master20181101!Q18-Master20180614!Q18 -> 0 | R18: =Master20181101!R18-Master20180614!R18 -> 0 | S18: =Master20181101!S18-Master20180614!S18 -> 0 | T18: =Master20181101!T18-Master20180614!T18 -> 0 | U18: =Master20181101!U18-Master20180614!U18 -> 0 | V18: =Master20181101!V18-Master20180614!V18 -> 0 | W18: =Master20181101!W18-Master20180614!W18 -> 0 | X18: =Master20181101!X18-Master20180614!X18 -> 0 | Y18: =Master20181101!Y18-Master20180614!Y18 -> 0 | Z18: =Master20181101!Z18-Master20180614!Z18 -> 0 | AA18: =Master20181101!AA18-Master20180614!AA18 -> 0 | AB18: =Master20181101!AB18-Master20180614!AB18 -> 0 | AC18: =Master20181101!AC18-Master20180614!AC18 -> 0 | AD18: =Master20181101!AD18-Master20180614!AD18 -> 0 | AE18: =Master20181101!AE18-Master20180614!AE18 -> 0
A19: Western | B19: 1-C | C19: ROC | D19: Buena Vista City | E19: =Master20181101!E19-Master20180614!E19 -> 0 | F19: =Master20181101!F19-Master20180614!F19 -> 0 | G19: =Master20181101!G19-Master20180614!G19 -> 0 | H19: =Master20181101!H19-Master20180614!H19 -> 0 | I19: =Master20181101!I19-Master20180614!I19 -> 0 | J19: =Master20181101!J19-Master20180614!J19 -> -1 | K19: =Master20181101!K19-Master20180614!K19 -> 0 | L19: =Master20181101!L19-Master20180614!L19 -> 1 | M19: =Master20181101!M19-Master20180614!M19 -> 0 | N19: =Master20181101!N19-Master20180614!N19 -> 0 | O19: =Master20181101!O19-Master20180614!O19 -> 0 | P19: =Master20181101!P19-Master20180614!P19 -> 0 | Q19: =Master20181101!Q19-Master20180614!Q19 -> 0 | R19: =Master20181101!R19-Master20180614!R19 -> 0 | S19: =Master20181101!S19-Master20180614!S19 -> 0 | T19: =Master20181101!T19-Master20180614!T19 -> 0 | U19: =Master20181101!U19-Master20180614!U19 -> 0 | V19: =Master20181101!V19-Master20180614!V19 -> 0 | W19: =Master20181101!W19-Master20180614!W19 -> 0 | X19: =Master20181101!X19-Master20180614!X19 -> 0 | Y19: =Master20181101!Y19-Master20180614!Y19 -> 0 | Z19: =Master20181101!Z19-Master20180614!Z19 -> 0 | AA19: =Master20181101!AA19-Master20180614!AA19 -> 0 | AB19: =Master20181101!AB19-Master20180614!AB19 -> 0 | AC19: =Master20181101!AC19-Master20180614!AC19 -> 0 | AD19: =Master20181101!AD19-Master20180614!AD19 -> 0 | AE19: =Master20181101!AE19-Master20180614!AE19 -> 0
A20: Western | B20: 1-D | C20: HORI | D20: Campbell County | E20: =Master20181101!E20-Master20180614!E20 -> 0 | F20: =Master20181101!F20-Master20180614!F20 -> -1 | G20: =Master20181101!G20-Master20180614!G20 -> 7 | H20: =Master20181101!H20-Master20180614!H20 -> 6 | I20: =Master20181101!I20-Master20180614!I20 -> 0 | J20: =Master20181101!J20-Master20180614!J20 -> 1 | K20: =Master20181101!K20-Master20180614!K20 -> 1 | L20: =Master20181101!L20-Master20180614!L20 -> 3 | M20: =Master20181101!M20-Master20180614!M20 -> 1 | N20: =Master20181101!N20-Master20180614!N20 -> 3 | O20: =Master20181101!O20-Master20180614!O20 -> 0 | P20: =Master20181101!P20-Master20180614!P20 -> -3 | Q20: =Master20181101!Q20-Master20180614!Q20 -> 0 | R20: =Master20181101!R20-Master20180614!R20 -> 0 | S20: =Master20181101!S20-Master20180614!S20 -> 0 | T20: =Master20181101!T20-Master20180614!T20 -> 0 | U20: =Master20181101!U20-Master20180614!U20 -> 0 | V20: =Master20181101!V20-Master20180614!V20 -> 0 | W20: =Master20181101!W20-Master20180614!W20 -> 0 | X20: =Master20181101!X20-Master20180614!X20 -> 0 | Y20: =Master20181101!Y20-Master20180614!Y20 -> 0 | Z20: =Master20181101!Z20-Master20180614!Z20 -> 0 | AA20: =Master20181101!AA20-Master20180614!AA20 -> 0 | AB20: =Master20181101!AB20-Master20180614!AB20 -> 0 | AC20: =Master20181101!AC20-Master20180614!AC20 -> 0 | AD20: =Master20181101!AD20-Master20180614!AD20 -> 0 | AE20: =Master20181101!AE20-Master20180614!AE20 -> 0
A21: Northern | B21: 2-C | C21: RapA | D21: Caroline County | E21: =Master20181101!E21-Master20180614!E21 -> -1 | F21: =Master20181101!F21-Master20180614!F21 -> 1 | G21: =Master20181101!G21-Master20180614!G21 -> 3 | H21: =Master20181101!H21-Master20180614!H21 -> 3 | I21: =Master20181101!I21-Master20180614!I21 -> 0 | J21: =Master20181101!J21-Master20180614!J21 -> 3 | K21: =Master20181101!K21-Master20180614!K21 -> 0 | L21: =Master20181101!L21-Master20180614!L21 -> 1 | M21: =Master20181101!M21-Master20180614!M21 -> 0 | N21: =Master20181101!N21-Master20180614!N21 -> 1 | O21: =Master20181101!O21-Master20180614!O21 -> 1 | P21: =Master20181101!P21-Master20180614!P21 -> -3 | Q21: =Master20181101!Q21-Master20180614!Q21 -> 0 | R21: =Master20181101!R21-Master20180614!R21 -> 0 | S21: =Master20181101!S21-Master20180614!S21 -> 0 | T21: =Master20181101!T21-Master20180614!T21 -> 0 | U21: =Master20181101!U21-Master20180614!U21 -> 0 | V21: =Master20181101!V21-Master20180614!V21 -> 0 | W21: =Master20181101!W21-Master20180614!W21 -> 0 | X21: =Master20181101!X21-Master20180614!X21 -> 0 | Y21: =Master20181101!Y21-Master20180614!Y21 -> 0 | Z21: =Master20181101!Z21-Master20180614!Z21 -> 0 | AA21: =Master20181101!AA21-Master20180614!AA21 -> 0 | AB21: =Master20181101!AB21-Master20180614!AB21 -> 0 | AC21: =Master20181101!AC21-Master20180614!AC21 -> 0 | AD21: =Master20181101!AD21-Master20180614!AD21 -> 0 | AE21: =Master20181101!AE21-Master20180614!AE21 -> 0
A22: Southwestern | B22: 3-B | C22: MTRG | D22: Carroll County | E22: =Master20181101!E22-Master20180614!E22 -> 0 | F22: =Master20181101!F22-Master20180614!F22 -> 2 | G22: =Master20181101!G22-Master20180614!G22 -> 28 | H22: =Master20181101!H22-Master20180614!H22 -> 30 | I22: =Master20181101!I22-Master20180614!I22 -> -1 | J22: =Master20181101!J22-Master20180614!J22 -> -2 | K22: =Master20181101!K22-Master20180614!K22 -> -3 | L22: =Master20181101!L22-Master20180614!L22 -> 11 | M22: =Master20181101!M22-Master20180614!M22 -> 4 | N22: =Master20181101!N22-Master20180614!N22 -> 8 | O22: =Master20181101!O22-Master20180614!O22 -> 10 | P22: =Master20181101!P22-Master20180614!P22 -> 3 | Q22: =Master20181101!Q22-Master20180614!Q22 -> 0 | R22: =Master20181101!R22-Master20180614!R22 -> 0 | S22: =Master20181101!S22-Master20180614!S22 -> 0 | T22: =Master20181101!T22-Master20180614!T22 -> 0 | U22: =Master20181101!U22-Master20180614!U22 -> 0 | V22: =Master20181101!V22-Master20180614!V22 -> 0 | W22: =Master20181101!W22-Master20180614!W22 -> 0 | X22: =Master20181101!X22-Master20180614!X22 -> 0 | Y22: =Master20181101!Y22-Master20180614!Y22 -> 0 | Z22: =Master20181101!Z22-Master20180614!Z22 -> 0 | AA22: =Master20181101!AA22-Master20180614!AA22 -> 0 | AB22: =Master20181101!AB22-Master20180614!AB22 -> 0 | AC22: =Master20181101!AC22-Master20180614!AC22 -> 0 | AD22: =Master20181101!AD22-Master20180614!AD22 -> 0 | AE22: =Master20181101!AE22-Master20180614!AE22 -> 0
A23: Central | B23: 4-A | C23: HENR | D23: Charles City County | E23: =Master20181101!E23-Master20180614!E23 -> 0 | F23: =Master20181101!F23-Master20180614!F23 -> 0 | G23: =Master20181101!G23-Master20180614!G23 -> -2 | H23: =Master20181101!H23-Master20180614!H23 -> -2 | I23: =Master20181101!I23-Master20180614!I23 -> 0 | J23: =Master20181101!J23-Master20180614!J23 -> -1 | K23: =Master20181101!K23-Master20180614!K23 -> 0 | L23: =Master20181101!L23-Master20180614!L23 -> -1 | M23: =Master20181101!M23-Master20180614!M23 -> 0 | N23: =Master20181101!N23-Master20180614!N23 -> 0 | O23: =Master20181101!O23-Master20180614!O23 -> 0 | P23: =Master20181101!P23-Master20180614!P23 -> 0 | Q23: =Master20181101!Q23-Master20180614!Q23 -> 0 | R23: =Master20181101!R23-Master20180614!R23 -> 0 | S23: =Master20181101!S23-Master20180614!S23 -> 0 | T23: =Master20181101!T23-Master20180614!T23 -> 0 | U23: =Master20181101!U23-Master20180614!U23 -> 0 | V23: =Master20181101!V23-Master20180614!V23 -> 0 | W23: =Master20181101!W23-Master20180614!W23 -> 0 | X23: =Master20181101!X23-Master20180614!X23 -> 0 | Y23: =Master20181101!Y23-Master20180614!Y23 -> 0 | Z23: =Master20181101!Z23-Master20180614!Z23 -> 0 | AA23: =Master20181101!AA23-Master20180614!AA23 -> 0 | AB23: =Master20181101!AB23-Master20180614!AB23 -> 0 | AC23: =Master20181101!AC23-Master20180614!AC23 -> 0 | AD23: =Master20181101!AD23-Master20180614!AD23 -> 0 | AE23: =Master20181101!AE23-Master20180614!AE23 -> 0
A24: Central | B24: 4-C | C24: CROS | D24: Charlotte County | E24: =Master20181101!E24-Master20180614!E24 -> 0 | F24: =Master20181101!F24-Master20180614!F24 -> -1 | G24: =Master20181101!G24-Master20180614!G24 -> 0 | H24: =Master20181101!H24-Master20180614!H24 -> -1 | I24: =Master20181101!I24-Master20180614!I24 -> 0 | J24: =Master20181101!J24-Master20180614!J24 -> 0 | K24: =Master20181101!K24-Master20180614!K24 -> -1 | L24: =Master20181101!L24-Master20180614!L24 -> 0 | M24: =Master20181101!M24-Master20180614!M24 -> 0 | N24: =Master20181101!N24-Master20180614!N24 -> 0 | O24: =Master20181101!O24-Master20180614!O24 -> 0 | P24: =Master20181101!P24-Master20180614!P24 -> 0 | Q24: =Master20181101!Q24-Master20180614!Q24 -> 0 | R24: =Master20181101!R24-Master20180614!R24 -> 0 | S24: =Master20181101!S24-Master20180614!S24 -> 1 | T24: =Master20181101!T24-Master20180614!T24 -> 0 | U24: =Master20181101!U24-Master20180614!U24 -> 0 | V24: =Master20181101!V24-Master20180614!V24 -> 0 | W24: =Master20181101!W24-Master20180614!W24 -> 0 | X24: =Master20181101!X24-Master20180614!X24 -> 0 | Y24: =Master20181101!Y24-Master20180614!Y24 -> 0 | Z24: =Master20181101!Z24-Master20180614!Z24 -> 0 | AA24: =Master20181101!AA24-Master20180614!AA24 -> 0 | AB24: =Master20181101!AB24-Master20180614!AB24 -> 0 | AC24: =Master20181101!AC24-Master20180614!AC24 -> 0 | AD24: =Master20181101!AD24-Master20180614!AD24 -> 0 | AE24: =Master20181101!AE24-Master20180614!AE24 -> 0
A25: Western | B25: 1-A | C25: RTEN | D25: Charlottesville City | E25: =Master20181101!E25-Master20180614!E25 -> 2 | F25: =Master20181101!F25-Master20180614!F25 -> -1 | G25: =Master20181101!G25-Master20180614!G25 -> 3 | H25: =Master20181101!H25-Master20180614!H25 -> 4 | I25: =Master20181101!I25-Master20180614!I25 -> 1 | J25: =Master20181101!J25-Master20180614!J25 -> 2 | K25: =Master20181101!K25-Master20180614!K25 -> -1 | L25: =Master20181101!L25-Master20180614!L25 -> -1 | M25: =Master20181101!M25-Master20180614!M25 -> 1 | N25: =Master20181101!N25-Master20180614!N25 -> 2 | O25: =Master20181101!O25-Master20180614!O25 -> 0 | P25: =Master20181101!P25-Master20180614!P25 -> 0 | Q25: =Master20181101!Q25-Master20180614!Q25 -> 0 | R25: =Master20181101!R25-Master20180614!R25 -> 0 | S25: =Master20181101!S25-Master20180614!S25 -> 0 | T25: =Master20181101!T25-Master20180614!T25 -> 0 | U25: =Master20181101!U25-Master20180614!U25 -> 0 | V25: =Master20181101!V25-Master20180614!V25 -> 0 | W25: =Master20181101!W25-Master20180614!W25 -> 0 | X25: =Master20181101!X25-Master20180614!X25 -> 0 | Y25: =Master20181101!Y25-Master20180614!Y25 -> 0 | Z25: =Master20181101!Z25-Master20180614!Z25 -> 0 | AA25: =Master20181101!AA25-Master20180614!AA25 -> 0 | AB25: =Master20181101!AB25-Master20180614!AB25 -> 0 | AC25: =Master20181101!AC25-Master20180614!AC25 -> 0 | AD25: =Master20181101!AD25-Master20180614!AD25 -> 0 | AE25: =Master20181101!AE25-Master20180614!AE25 -> 0
A26: Eastern | B26: 5-D | C26: CHSP | D26: Chesapeake City | E26: =Master20181101!E26-Master20180614!E26 -> 1 | F26: =Master20181101!F26-Master20180614!F26 -> 0 | G26: =Master20181101!G26-Master20180614!G26 -> 7 | H26: =Master20181101!H26-Master20180614!H26 -> 8 | I26: =Master20181101!I26-Master20180614!I26 -> -2 | J26: =Master20181101!J26-Master20180614!J26 -> -7 | K26: =Master20181101!K26-Master20180614!K26 -> 2 | L26: =Master20181101!L26-Master20180614!L26 -> 8 | M26: =Master20181101!M26-Master20180614!M26 -> 0 | N26: =Master20181101!N26-Master20180614!N26 -> 1 | O26: =Master20181101!O26-Master20180614!O26 -> 1 | P26: =Master20181101!P26-Master20180614!P26 -> 5 | Q26: =Master20181101!Q26-Master20180614!Q26 -> 0 | R26: =Master20181101!R26-Master20180614!R26 -> 1 | S26: =Master20181101!S26-Master20180614!S26 -> 1 | T26: =Master20181101!T26-Master20180614!T26 -> 0 | U26: =Master20181101!U26-Master20180614!U26 -> 0 | V26: =Master20181101!V26-Master20180614!V26 -> 0 | W26: =Master20181101!W26-Master20180614!W26 -> 0 | X26: =Master20181101!X26-Master20180614!X26 -> 2 | Y26: =Master20181101!Y26-Master20180614!Y26 -> 0 | Z26: =Master20181101!Z26-Master20180614!Z26 -> 0 | AA26: =Master20181101!AA26-Master20180614!AA26 -> 0 | AB26: =Master20181101!AB26-Master20180614!AB26 -> 0 | AC26: =Master20181101!AC26-Master20180614!AC26 -> 4 | AD26: =Master20181101!AD26-Master20180614!AD26 -> 2 | AE26: =Master20181101!AE26-Master20180614!AE26 -> 0
A27: Central | B27: 4-A | C27: CHST | D27: Chesterfield County | E27: =Master20181101!E27-Master20180614!E27 -> 4 | F27: =Master20181101!F27-Master20180614!F27 -> 3 | G27: =Master20181101!G27-Master20180614!G27 -> 17 | H27: =Master20181101!H27-Master20180614!H27 -> 24 | I27: =Master20181101!I27-Master20180614!I27 -> 0 | J27: =Master20181101!J27-Master20180614!J27 -> 3 | K27: =Master20181101!K27-Master20180614!K27 -> -6 | L27: =Master20181101!L27-Master20180614!L27 -> 26 | M27: =Master20181101!M27-Master20180614!M27 -> 7 | N27: =Master20181101!N27-Master20180614!N27 -> 2 | O27: =Master20181101!O27-Master20180614!O27 -> -4 | P27: =Master20181101!P27-Master20180614!P27 -> -4 | Q27: =Master20181101!Q27-Master20180614!Q27 -> 0 | R27: =Master20181101!R27-Master20180614!R27 -> 1 | S27: =Master20181101!S27-Master20180614!S27 -> 0 | T27: =Master20181101!T27-Master20180614!T27 -> 0 | U27: =Master20181101!U27-Master20180614!U27 -> 0 | V27: =Master20181101!V27-Master20180614!V27 -> 0 | W27: =Master20181101!W27-Master20180614!W27 -> 0 | X27: =Master20181101!X27-Master20180614!X27 -> 1 | Y27: =Master20181101!Y27-Master20180614!Y27 -> 0 | Z27: =Master20181101!Z27-Master20180614!Z27 -> 0 | AA27: =Master20181101!AA27-Master20180614!AA27 -> 1 | AB27: =Master20181101!AB27-Master20180614!AB27 -> 0 | AC27: =Master20181101!AC27-Master20180614!AC27 -> 2 | AD27: =Master20181101!AD27-Master20180614!AD27 -> -3 | AE27: =Master20181101!AE27-Master20180614!AE27 -> 0
A28: Northern | B28: 2-D | C28: NW | D28: Clarke County | E28: =Master20181101!E28-Master20180614!E28 -> 0 | F28: =Master20181101!F28-Master20180614!F28 -> 0 | G28: =Master20181101!G28-Master20180614!G28 -> 1 | H28: =Master20181101!H28-Master20180614!H28 -> 1 | I28: =Master20181101!I28-Master20180614!I28 -> 1 | J28: =Master20181101!J28-Master20180614!J28 -> -2 | K28: =Master20181101!K28-Master20180614!K28 -> 1 | L28: =Master20181101!L28-Master20180614!L28 -> 1 | M28: =Master20181101!M28-Master20180614!M28 -> 0 | N28: =Master20181101!N28-Master20180614!N28 -> 0 | O28: =Master20181101!O28-Master20180614!O28 -> 0 | P28: =Master20181101!P28-Master20180614!P28 -> 0 | Q28: =Master20181101!Q28-Master20180614!Q28 -> 0 | R28: =Master20181101!R28-Master20180614!R28 -> 0 | S28: =Master20181101!S28-Master20180614!S28 -> 0 | T28: =Master20181101!T28-Master20180614!T28 -> 0 | U28: =Master20181101!U28-Master20180614!U28 -> 0 | V28: =Master20181101!V28-Master20180614!V28 -> 0 | W28: =Master20181101!W28-Master20180614!W28 -> 0 | X28: =Master20181101!X28-Master20180614!X28 -> 0 | Y28: =Master20181101!Y28-Master20180614!Y28 -> 0 | Z28: =Master20181101!Z28-Master20180614!Z28 -> 0 | AA28: =Master20181101!AA28-Master20180614!AA28 -> 0 | AB28: =Master20181101!AB28-Master20180614!AB28 -> 0 | AC28: =Master20181101!AC28-Master20180614!AC28 -> 0 | AD28: =Master20181101!AD28-Master20180614!AD28 -> 0 | AE28: =Master20181101!AE28-Master20180614!AE28 -> 0
A29: Central | B29: 4-A | C29: D19 | D29: Colonial Heights City | E29: =Master20181101!E29-Master20180614!E29 -> 0 | F29: =Master20181101!F29-Master20180614!F29 -> 0 | G29: =Master20181101!G29-Master20180614!G29 -> 1 | H29: =Master20181101!H29-Master20180614!H29 -> 1 | I29: =Master20181101!I29-Master20180614!I29 -> -1 | J29: =Master20181101!J29-Master20180614!J29 -> 0 | K29: =Master20181101!K29-Master20180614!K29 -> 0 | L29: =Master20181101!L29-Master20180614!L29 -> 0 | M29: =Master20181101!M29-Master20180614!M29 -> 1 | N29: =Master20181101!N29-Master20180614!N29 -> 0 | O29: =Master20181101!O29-Master20180614!O29 -> 0 | P29: =Master20181101!P29-Master20180614!P29 -> 1 | Q29: =Master20181101!Q29-Master20180614!Q29 -> 0 | R29: =Master20181101!R29-Master20180614!R29 -> 0 | S29: =Master20181101!S29-Master20180614!S29 -> 1 | T29: =Master20181101!T29-Master20180614!T29 -> 0 | U29: =Master20181101!U29-Master20180614!U29 -> 0 | V29: =Master20181101!V29-Master20180614!V29 -> 0 | W29: =Master20181101!W29-Master20180614!W29 -> 0 | X29: =Master20181101!X29-Master20180614!X29 -> -1 | Y29: =Master20181101!Y29-Master20180614!Y29 -> 0 | Z29: =Master20181101!Z29-Master20180614!Z29 -> 0 | AA29: =Master20181101!AA29-Master20180614!AA29 -> 0 | AB29: =Master20181101!AB29-Master20180614!AB29 -> 0 | AC29: =Master20181101!AC29-Master20180614!AC29 -> 0 | AD29: =Master20181101!AD29-Master20180614!AD29 -> 0 | AE29: =Master20181101!AE29-Master20180614!AE29 -> 0
A30: Western | B30: 1-C | C30: ALLE | D30: Covington City | E30: =Master20181101!E30-Master20180614!E30 -> 0 | F30: =Master20181101!F30-Master20180614!F30 -> 0 | G30: =Master20181101!G30-Master20180614!G30 -> 2 | H30: =Master20181101!H30-Master20180614!H30 -> 2 | I30: =Master20181101!I30-Master20180614!I30 -> 0 | J30: =Master20181101!J30-Master20180614!J30 -> 0 | K30: =Master20181101!K30-Master20180614!K30 -> 0 | L30: =Master20181101!L30-Master20180614!L30 -> 0 | M30: =Master20181101!M30-Master20180614!M30 -> 0 | N30: =Master20181101!N30-Master20180614!N30 -> 0 | O30: =Master20181101!O30-Master20180614!O30 -> 0 | P30: =Master20181101!P30-Master20180614!P30 -> 2 | Q30: =Master20181101!Q30-Master20180614!Q30 -> 0 | R30: =Master20181101!R30-Master20180614!R30 -> 0 | S30: =Master20181101!S30-Master20180614!S30 -> 0 | T30: =Master20181101!T30-Master20180614!T30 -> 0 | U30: =Master20181101!U30-Master20180614!U30 -> 0 | V30: =Master20181101!V30-Master20180614!V30 -> 0 | W30: =Master20181101!W30-Master20180614!W30 -> 0 | X30: =Master20181101!X30-Master20180614!X30 -> 1 | Y30: =Master20181101!Y30-Master20180614!Y30 -> 0 | Z30: =Master20181101!Z30-Master20180614!Z30 -> 0 | AA30: =Master20181101!AA30-Master20180614!AA30 -> 0 | AB30: =Master20181101!AB30-Master20180614!AB30 -> 0 | AC30: =Master20181101!AC30-Master20180614!AC30 -> 0 | AD30: =Master20181101!AD30-Master20180614!AD30 -> 0 | AE30: =Master20181101!AE30-Master20180614!AE30 -> 0
A31: Southwestern | B31: 3-A | C31: BLUE | D31: Craig County | E31: =Master20181101!E31-Master20180614!E31 -> 1 | F31: =Master20181101!F31-Master20180614!F31 -> 0 | G31: =Master20181101!G31-Master20180614!G31 -> 0 | H31: =Master20181101!H31-Master20180614!H31 -> 1 | I31: =Master20181101!I31-Master20180614!I31 -> 0 | J31: =Master20181101!J31-Master20180614!J31 -> 0 | K31: =Master20181101!K31-Master20180614!K31 -> 0 | L31: =Master20181101!L31-Master20180614!L31 -> 0 | M31: =Master20181101!M31-Master20180614!M31 -> 0 | N31: =Master20181101!N31-Master20180614!N31 -> 0 | O31: =Master20181101!O31-Master20180614!O31 -> 0 | P31: =Master20181101!P31-Master20180614!P31 -> 1 | Q31: =Master20181101!Q31-Master20180614!Q31 -> 0 | R31: =Master20181101!R31-Master20180614!R31 -> 0 | S31: =Master20181101!S31-Master20180614!S31 -> 0 | T31: =Master20181101!T31-Master20180614!T31 -> 0 | U31: =Master20181101!U31-Master20180614!U31 -> 0 | V31: =Master20181101!V31-Master20180614!V31 -> 0 | W31: =Master20181101!W31-Master20180614!W31 -> 0 | X31: =Master20181101!X31-Master20180614!X31 -> 0 | Y31: =Master20181101!Y31-Master20180614!Y31 -> 0 | Z31: =Master20181101!Z31-Master20180614!Z31 -> 0 | AA31: =Master20181101!AA31-Master20180614!AA31 -> 0 | AB31: =Master20181101!AB31-Master20180614!AB31 -> 0 | AC31: =Master20181101!AC31-Master20180614!AC31 -> 0 | AD31: =Master20181101!AD31-Master20180614!AD31 -> 0 | AE31: =Master20181101!AE31-Master20180614!AE31 -> 0
A32: Northern | B32: 2-B | C32: RapR | D32: Culpeper County | E32: =Master20181101!E32-Master20180614!E32 -> 2 | F32: =Master20181101!F32-Master20180614!F32 -> -2 | G32: =Master20181101!G32-Master20180614!G32 -> 4 | H32: =Master20181101!H32-Master20180614!H32 -> 4 | I32: =Master20181101!I32-Master20180614!I32 -> 1 | J32: =Master20181101!J32-Master20180614!J32 -> 1 | K32: =Master20181101!K32-Master20180614!K32 -> 0 | L32: =Master20181101!L32-Master20180614!L32 -> 3 | M32: =Master20181101!M32-Master20180614!M32 -> 0 | N32: =Master20181101!N32-Master20180614!N32 -> 0 | O32: =Master20181101!O32-Master20180614!O32 -> 0 | P32: =Master20181101!P32-Master20180614!P32 -> -1 | Q32: =Master20181101!Q32-Master20180614!Q32 -> 0 | R32: =Master20181101!R32-Master20180614!R32 -> 0 | S32: =Master20181101!S32-Master20180614!S32 -> 0 | T32: =Master20181101!T32-Master20180614!T32 -> 0 | U32: =Master20181101!U32-Master20180614!U32 -> 0 | V32: =Master20181101!V32-Master20180614!V32 -> 0 | W32: =Master20181101!W32-Master20180614!W32 -> 0 | X32: =Master20181101!X32-Master20180614!X32 -> 0 | Y32: =Master20181101!Y32-Master20180614!Y32 -> 0 | Z32: =Master20181101!Z32-Master20180614!Z32 -> 0 | AA32: =Master20181101!AA32-Master20180614!AA32 -> 0 | AB32: =Master20181101!AB32-Master20180614!AB32 -> 0 | AC32: =Master20181101!AC32-Master20180614!AC32 -> 0 | AD32: =Master20181101!AD32-Master20180614!AD32 -> 0 | AE32: =Master20181101!AE32-Master20180614!AE32 -> 0
A33: Central | B33: 4-B | C33: CROS | D33: Cumberland County | E33: =Master20181101!E33-Master20180614!E33 -> 0 | F33: =Master20181101!F33-Master20180614!F33 -> 1 | G33: =Master20181101!G33-Master20180614!G33 -> 0 | H33: =Master20181101!H33-Master20180614!H33 -> 1 | I33: =Master20181101!I33-Master20180614!I33 -> 1 | J33: =Master20181101!J33-Master20180614!J33 -> -2 | K33: =Master20181101!K33-Master20180614!K33 -> 0 | L33: =Master20181101!L33-Master20180614!L33 -> 1 | M33: =Master20181101!M33-Master20180614!M33 -> 0 | N33: =Master20181101!N33-Master20180614!N33 -> 0 | O33: =Master20181101!O33-Master20180614!O33 -> 0 | P33: =Master20181101!P33-Master20180614!P33 -> 1 | Q33: =Master20181101!Q33-Master20180614!Q33 -> 0 | R33: =Master20181101!R33-Master20180614!R33 -> 0 | S33: =Master20181101!S33-Master20180614!S33 -> 0 | T33: =Master20181101!T33-Master20180614!T33 -> 0 | U33: =Master20181101!U33-Master20180614!U33 -> 0 | V33: =Master20181101!V33-Master20180614!V33 -> 0 | W33: =Master20181101!W33-Master20180614!W33 -> 0 | X33: =Master20181101!X33-Master20180614!X33 -> 0 | Y33: =Master20181101!Y33-Master20180614!Y33 -> 0 | Z33: =Master20181101!Z33-Master20180614!Z33 -> 0 | AA33: =Master20181101!AA33-Master20180614!AA33 -> 0 | AB33: =Master20181101!AB33-Master20180614!AB33 -> 0 | AC33: =Master20181101!AC33-Master20180614!AC33 -> 0 | AD33: =Master20181101!AD33-Master20180614!AD33 -> 0 | AE33: =Master20181101!AE33-Master20180614!AE33 -> 0
A34: Southwestern | B34: 3-B | C34: DANV | D34: Danville City | E34: =Master20181101!E34-Master20180614!E34 -> 3 | F34: =Master20181101!F34-Master20180614!F34 -> 1 | G34: =Master20181101!G34-Master20180614!G34 -> 2 | H34: =Master20181101!H34-Master20180614!H34 -> 6 | I34: =Master20181101!I34-Master20180614!I34 -> 1 | J34: =Master20181101!J34-Master20180614!J34 -> 0 | K34: =Master20181101!K34-Master20180614!K34 -> 0 | L34: =Master20181101!L34-Master20180614!L34 -> 1 | M34: =Master20181101!M34-Master20180614!M34 -> 0 | N34: =Master20181101!N34-Master20180614!N34 -> 0 | O34: =Master20181101!O34-Master20180614!O34 -> 2 | P34: =Master20181101!P34-Master20180614!P34 -> 2 | Q34: =Master20181101!Q34-Master20180614!Q34 -> 0 | R34: =Master20181101!R34-Master20180614!R34 -> 1 | S34: =Master20181101!S34-Master20180614!S34 -> 0 | T34: =Master20181101!T34-Master20180614!T34 -> 0 | U34: =Master20181101!U34-Master20180614!U34 -> 0 | V34: =Master20181101!V34-Master20180614!V34 -> 0 | W34: =Master20181101!W34-Master20180614!W34 -> 1 | X34: =Master20181101!X34-Master20180614!X34 -> 2 | Y34: =Master20181101!Y34-Master20180614!Y34 -> 0 | Z34: =Master20181101!Z34-Master20180614!Z34 -> 0 | AA34: =Master20181101!AA34-Master20180614!AA34 -> 0 | AB34: =Master20181101!AB34-Master20180614!AB34 -> 0 | AC34: =Master20181101!AC34-Master20180614!AC34 -> 0 | AD34: =Master20181101!AD34-Master20180614!AD34 -> 0 | AE34: =Master20181101!AE34-Master20180614!AE34 -> 0
A35: Southwestern | B35: 3-D | C35: DCBH | D35: Dickenson County | E35: =Master20181101!E35-Master20180614!E35 -> 0 | F35: =Master20181101!F35-Master20180614!F35 -> 1 | G35: =Master20181101!G35-Master20180614!G35 -> 1 | H35: =Master20181101!H35-Master20180614!H35 -> 2 | I35: =Master20181101!I35-Master20180614!I35 -> 0 | J35: =Master20181101!J35-Master20180614!J35 -> 0 | K35: =Master20181101!K35-Master20180614!K35 -> 0 | L35: =Master20181101!L35-Master20180614!L35 -> 1 | M35: =Master20181101!M35-Master20180614!M35 -> 0 | N35: =Master20181101!N35-Master20180614!N35 -> 0 | O35: =Master20181101!O35-Master20180614!O35 -> 0 | P35: =Master20181101!P35-Master20180614!P35 -> 1 | Q35: =Master20181101!Q35-Master20180614!Q35 -> 0 | R35: =Master20181101!R35-Master20180614!R35 -> 0 | S35: =Master20181101!S35-Master20180614!S35 -> 0 | T35: =Master20181101!T35-Master20180614!T35 -> 0 | U35: =Master20181101!U35-Master20180614!U35 -> 0 | V35: =Master20181101!V35-Master20180614!V35 -> 0 | W35: =Master20181101!W35-Master20180614!W35 -> 0 | X35: =Master20181101!X35-Master20180614!X35 -> 0 | Y35: =Master20181101!Y35-Master20180614!Y35 -> 0 | Z35: =Master20181101!Z35-Master20180614!Z35 -> 0 | AA35: =Master20181101!AA35-Master20180614!AA35 -> 0 | AB35: =Master20181101!AB35-Master20180614!AB35 -> 0 | AC35: =Master20181101!AC35-Master20180614!AC35 -> 0 | AD35: =Master20181101!AD35-Master20180614!AD35 -> 0 | AE35: =Master20181101!AE35-Master20180614!AE35 -> 0
A36: Central | B36: 4-D | C36: D19 | D36: Dinwiddie County | E36: =Master20181101!E36-Master20180614!E36 -> 0 | F36: =Master20181101!F36-Master20180614!F36 -> 0 | G36: =Master20181101!G36-Master20180614!G36 -> -1 | H36: =Master20181101!H36-Master20180614!H36 -> -1 | I36: =Master20181101!I36-Master20180614!I36 -> 0 | J36: =Master20181101!J36-Master20180614!J36 -> -1 | K36: =Master20181101!K36-Master20180614!K36 -> 1 | L36: =Master20181101!L36-Master20180614!L36 -> 0 | M36: =Master20181101!M36-Master20180614!M36 -> 0 | N36: =Master20181101!N36-Master20180614!N36 -> 1 | O36: =Master20181101!O36-Master20180614!O36 -> -3 | P36: =Master20181101!P36-Master20180614!P36 -> 1 | Q36: =Master20181101!Q36-Master20180614!Q36 -> 0 | R36: =Master20181101!R36-Master20180614!R36 -> 0 | S36: =Master20181101!S36-Master20180614!S36 -> 0 | T36: =Master20181101!T36-Master20180614!T36 -> 0 | U36: =Master20181101!U36-Master20180614!U36 -> 0 | V36: =Master20181101!V36-Master20180614!V36 -> 0 | W36: =Master20181101!W36-Master20180614!W36 -> 0 | X36: =Master20181101!X36-Master20180614!X36 -> 0 | Y36: =Master20181101!Y36-Master20180614!Y36 -> 0 | Z36: =Master20181101!Z36-Master20180614!Z36 -> 0 | AA36: =Master20181101!AA36-Master20180614!AA36 -> 0 | AB36: =Master20181101!AB36-Master20180614!AB36 -> 0 | AC36: =Master20181101!AC36-Master20180614!AC36 -> 0 | AD36: =Master20181101!AD36-Master20180614!AD36 -> 0 | AE36: =Master20181101!AE36-Master20180614!AE36 -> 0
A37: Central | B37: 4-C | C37: D19 | D37: Emporia City | E37: =Master20181101!E37-Master20180614!E37 -> 0 | F37: =Master20181101!F37-Master20180614!F37 -> 0 | G37: =Master20181101!G37-Master20180614!G37 -> 0 | H37: =Master20181101!H37-Master20180614!H37 -> 0 | I37: =Master20181101!I37-Master20180614!I37 -> 0 | J37: =Master20181101!J37-Master20180614!J37 -> -1 | K37: =Master20181101!K37-Master20180614!K37 -> 0 | L37: =Master20181101!L37-Master20180614!L37 -> 0 | M37: =Master20181101!M37-Master20180614!M37 -> 0 | N37: =Master20181101!N37-Master20180614!N37 -> 0 | O37: =Master20181101!O37-Master20180614!O37 -> 0 | P37: =Master20181101!P37-Master20180614!P37 -> 1 | Q37: =Master20181101!Q37-Master20180614!Q37 -> 0 | R37: =Master20181101!R37-Master20180614!R37 -> 0 | S37: =Master20181101!S37-Master20180614!S37 -> 0 | T37: =Master20181101!T37-Master20180614!T37 -> 0 | U37: =Master20181101!U37-Master20180614!U37 -> 0 | V37: =Master20181101!V37-Master20180614!V37 -> 0 | W37: =Master20181101!W37-Master20180614!W37 -> 0 | X37: =Master20181101!X37-Master20180614!X37 -> 0 | Y37: =Master20181101!Y37-Master20180614!Y37 -> 0 | Z37: =Master20181101!Z37-Master20180614!Z37 -> 0 | AA37: =Master20181101!AA37-Master20180614!AA37 -> 0 | AB37: =Master20181101!AB37-Master20180614!AB37 -> 0 | AC37: =Master20181101!AC37-Master20180614!AC37 -> 0 | AD37: =Master20181101!AD37-Master20180614!AD37 -> -1 | AE37: =Master20181101!AE37-Master20180614!AE37 -> 0
A38: Eastern | B38: 5-A | C38: MPNN | D38: Essex County | E38: =Master20181101!E38-Master20180614!E38 -> 0 | F38: =Master20181101!F38-Master20180614!F38 -> 0 | G38: =Master20181101!G38-Master20180614!G38 -> 1 | H38: =Master20181101!H38-Master20180614!H38 -> 1 | I38: =Master20181101!I38-Master20180614!I38 -> 1 | J38: =Master20181101!J38-Master20180614!J38 -> 1 | K38: =Master20181101!K38-Master20180614!K38 -> 0 | L38: =Master20181101!L38-Master20180614!L38 -> -1 | M38: =Master20181101!M38-Master20180614!M38 -> 0 | N38: =Master20181101!N38-Master20180614!N38 -> 0 | O38: =Master20181101!O38-Master20180614!O38 -> 0 | P38: =Master20181101!P38-Master20180614!P38 -> 0 | Q38: =Master20181101!Q38-Master20180614!Q38 -> 0 | R38: =Master20181101!R38-Master20180614!R38 -> 0 | S38: =Master20181101!S38-Master20180614!S38 -> 0 | T38: =Master20181101!T38-Master20180614!T38 -> 0 | U38: =Master20181101!U38-Master20180614!U38 -> 0 | V38: =Master20181101!V38-Master20180614!V38 -> 0 | W38: =Master20181101!W38-Master20180614!W38 -> 0 | X38: =Master20181101!X38-Master20180614!X38 -> 0 | Y38: =Master20181101!Y38-Master20180614!Y38 -> 0 | Z38: =Master20181101!Z38-Master20180614!Z38 -> 0 | AA38: =Master20181101!AA38-Master20180614!AA38 -> 0 | AB38: =Master20181101!AB38-Master20180614!AB38 -> 0 | AC38: =Master20181101!AC38-Master20180614!AC38 -> 0 | AD38: =Master20181101!AD38-Master20180614!AD38 -> 0 | AE38: =Master20181101!AE38-Master20180614!AE38 -> 0
A39: Northern | B39: 2-A | C39: FFFC | D39: Fairfax City | E39: =Master20181101!E39-Master20180614!E39 -> 0 | F39: =Master20181101!F39-Master20180614!F39 -> 0 | G39: =Master20181101!G39-Master20180614!G39 -> 0 | H39: =Master20181101!H39-Master20180614!H39 -> 0 | I39: =Master20181101!I39-Master20180614!I39 -> 0 | J39: =Master20181101!J39-Master20180614!J39 -> 0 | K39: =Master20181101!K39-Master20180614!K39 -> 0 | L39: =Master20181101!L39-Master20180614!L39 -> 0 | M39: =Master20181101!M39-Master20180614!M39 -> 0 | N39: =Master20181101!N39-Master20180614!N39 -> 0 | O39: =Master20181101!O39-Master20180614!O39 -> 0 | P39: =Master20181101!P39-Master20180614!P39 -> 0 | Q39: =Master20181101!Q39-Master20180614!Q39 -> 0 | R39: =Master20181101!R39-Master20180614!R39 -> 0 | S39: =Master20181101!S39-Master20180614!S39 -> 0 | T39: =Master20181101!T39-Master20180614!T39 -> 0 | U39: =Master20181101!U39-Master20180614!U39 -> 0 | V39: =Master20181101!V39-Master20180614!V39 -> 0 | W39: =Master20181101!W39-Master20180614!W39 -> 0 | X39: =Master20181101!X39-Master20180614!X39 -> 0 | Y39: =Master20181101!Y39-Master20180614!Y39 -> 0 | Z39: =Master20181101!Z39-Master20180614!Z39 -> 0 | AA39: =Master20181101!AA39-Master20180614!AA39 -> 0 | AB39: =Master20181101!AB39-Master20180614!AB39 -> 0 | AC39: =Master20181101!AC39-Master20180614!AC39 -> 0 | AD39: =Master20181101!AD39-Master20180614!AD39 -> 0 | AE39: =Master20181101!AE39-Master20180614!AE39 -> 0
A40: Northern | B40: 2-A | C40: FFFC | D40: Fairfax County | E40: =Master20181101!E40-Master20180614!E40 -> 2 | F40: =Master20181101!F40-Master20180614!F40 -> 34 | G40: =Master20181101!G40-Master20180614!G40 -> 1 | H40: =Master20181101!H40-Master20180614!H40 -> 37 | I40: =Master20181101!I40-Master20180614!I40 -> 1 | J40: =Master20181101!J40-Master20180614!J40 -> -19 | K40: =Master20181101!K40-Master20180614!K40 -> -2 | L40: =Master20181101!L40-Master20180614!L40 -> 29 | M40: =Master20181101!M40-Master20180614!M40 -> 1 | N40: =Master20181101!N40-Master20180614!N40 -> -4 | O40: =Master20181101!O40-Master20180614!O40 -> -1 | P40: =Master20181101!P40-Master20180614!P40 -> 32 | Q40: =Master20181101!Q40-Master20180614!Q40 -> 0 | R40: =Master20181101!R40-Master20180614!R40 -> 3 | S40: =Master20181101!S40-Master20180614!S40 -> 0 | T40: =Master20181101!T40-Master20180614!T40 -> 0 | U40: =Master20181101!U40-Master20180614!U40 -> 0 | V40: =Master20181101!V40-Master20180614!V40 -> 0 | W40: =Master20181101!W40-Master20180614!W40 -> 1 | X40: =Master20181101!X40-Master20180614!X40 -> 5 | Y40: =Master20181101!Y40-Master20180614!Y40 -> 0 | Z40: =Master20181101!Z40-Master20180614!Z40 -> 0 | AA40: =Master20181101!AA40-Master20180614!AA40 -> 0 | AB40: =Master20181101!AB40-Master20180614!AB40 -> -2 | AC40: =Master20181101!AC40-Master20180614!AC40 -> 9 | AD40: =Master20181101!AD40-Master20180614!AD40 -> -18 | AE40: =Master20181101!AE40-Master20180614!AE40 -> 0
A41: Northern | B41: 2-A | C41: FFFC | D41: Falls Church City | E41: =Master20181101!E41-Master20180614!E41 -> 0 | F41: =Master20181101!F41-Master20180614!F41 -> 0 | G41: =Master20181101!G41-Master20180614!G41 -> -1 | H41: =Master20181101!H41-Master20180614!H41 -> -1 | I41: =Master20181101!I41-Master20180614!I41 -> 0 | J41: =Master20181101!J41-Master20180614!J41 -> 0 | K41: =Master20181101!K41-Master20180614!K41 -> 1 | L41: =Master20181101!L41-Master20180614!L41 -> 0 | M41: =Master20181101!M41-Master20180614!M41 -> 0 | N41: =Master20181101!N41-Master20180614!N41 -> 0 | O41: =Master20181101!O41-Master20180614!O41 -> 0 | P41: =Master20181101!P41-Master20180614!P41 -> -2 | Q41: =Master20181101!Q41-Master20180614!Q41 -> 0 | R41: =Master20181101!R41-Master20180614!R41 -> 0 | S41: =Master20181101!S41-Master20180614!S41 -> 0 | T41: =Master20181101!T41-Master20180614!T41 -> 0 | U41: =Master20181101!U41-Master20180614!U41 -> 0 | V41: =Master20181101!V41-Master20180614!V41 -> 0 | W41: =Master20181101!W41-Master20180614!W41 -> 0 | X41: =Master20181101!X41-Master20180614!X41 -> 0 | Y41: =Master20181101!Y41-Master20180614!Y41 -> 0 | Z41: =Master20181101!Z41-Master20180614!Z41 -> 0 | AA41: =Master20181101!AA41-Master20180614!AA41 -> 0 | AB41: =Master20181101!AB41-Master20180614!AB41 -> 0 | AC41: =Master20181101!AC41-Master20180614!AC41 -> 0 | AD41: =Master20181101!AD41-Master20180614!AD41 -> -1 | AE41: =Master20181101!AE41-Master20180614!AE41 -> 0
A42: Northern | B42: 2-B | C42: RapR | D42: Fauquier County | E42: =Master20181101!E42-Master20180614!E42 -> 0 | F42: =Master20181101!F42-Master20180614!F42 -> 0 | G42: =Master20181101!G42-Master20180614!G42 -> 1 | H42: =Master20181101!H42-Master20180614!H42 -> 1 | I42: =Master20181101!I42-Master20180614!I42 -> 0 | J42: =Master20181101!J42-Master20180614!J42 -> 0 | K42: =Master20181101!K42-Master20180614!K42 -> 0 | L42: =Master20181101!L42-Master20180614!L42 -> -1 | M42: =Master20181101!M42-Master20180614!M42 -> 0 | N42: =Master20181101!N42-Master20180614!N42 -> 0 | O42: =Master20181101!O42-Master20180614!O42 -> 2 | P42: =Master20181101!P42-Master20180614!P42 -> 0 | Q42: =Master20181101!Q42-Master20180614!Q42 -> 0 | R42: =Master20181101!R42-Master20180614!R42 -> 0 | S42: =Master20181101!S42-Master20180614!S42 -> 0 | T42: =Master20181101!T42-Master20180614!T42 -> 0 | U42: =Master20181101!U42-Master20180614!U42 -> 0 | V42: =Master20181101!V42-Master20180614!V42 -> 0 | W42: =Master20181101!W42-Master20180614!W42 -> 0 | X42: =Master20181101!X42-Master20180614!X42 -> -1 | Y42: =Master20181101!Y42-Master20180614!Y42 -> 0 | Z42: =Master20181101!Z42-Master20180614!Z42 -> 0 | AA42: =Master20181101!AA42-Master20180614!AA42 -> 0 | AB42: =Master20181101!AB42-Master20180614!AB42 -> 0 | AC42: =Master20181101!AC42-Master20180614!AC42 -> 1 | AD42: =Master20181101!AD42-Master20180614!AD42 -> -1 | AE42: =Master20181101!AE42-Master20180614!AE42 -> 0
A43: Southwestern | B43: 3-C | C43: NRV | D43: Floyd County | E43: =Master20181101!E43-Master20180614!E43 -> 0 | F43: =Master20181101!F43-Master20180614!F43 -> -1 | G43: =Master20181101!G43-Master20180614!G43 -> -2 | H43: =Master20181101!H43-Master20180614!H43 -> -3 | I43: =Master20181101!I43-Master20180614!I43 -> 0 | J43: =Master20181101!J43-Master20180614!J43 -> 1 | K43: =Master20181101!K43-Master20180614!K43 -> -1 | L43: =Master20181101!L43-Master20180614!L43 -> -2 | M43: =Master20181101!M43-Master20180614!M43 -> 0 | N43: =Master20181101!N43-Master20180614!N43 -> -1 | O43: =Master20181101!O43-Master20180614!O43 -> 0 | P43: =Master20181101!P43-Master20180614!P43 -> 0 | Q43: =Master20181101!Q43-Master20180614!Q43 -> 0 | R43: =Master20181101!R43-Master20180614!R43 -> 0 | S43: =Master20181101!S43-Master20180614!S43 -> 0 | T43: =Master20181101!T43-Master20180614!T43 -> 0 | U43: =Master20181101!U43-Master20180614!U43 -> 0 | V43: =Master20181101!V43-Master20180614!V43 -> 0 | W43: =Master20181101!W43-Master20180614!W43 -> 0 | X43: =Master20181101!X43-Master20180614!X43 -> 1 | Y43: =Master20181101!Y43-Master20180614!Y43 -> 0 | Z43: =Master20181101!Z43-Master20180614!Z43 -> 0 | AA43: =Master20181101!AA43-Master20180614!AA43 -> 0 | AB43: =Master20181101!AB43-Master20180614!AB43 -> 0 | AC43: =Master20181101!AC43-Master20180614!AC43 -> 0 | AD43: =Master20181101!AD43-Master20180614!AD43 -> 1 | AE43: =Master20181101!AE43-Master20180614!AE43 -> 1
A44: Western | B44: 1-A | C44: RTEN | D44: Fluvanna County | E44: =Master20181101!E44-Master20180614!E44 -> 0 | F44: =Master20181101!F44-Master20180614!F44 -> 0 | G44: =Master20181101!G44-Master20180614!G44 -> 0 | H44: =Master20181101!H44-Master20180614!H44 -> 0 | I44: =Master20181101!I44-Master20180614!I44 -> 0 | J44: =Master20181101!J44-Master20180614!J44 -> 0 | K44: =Master20181101!K44-Master20180614!K44 -> 0 | L44: =Master20181101!L44-Master20180614!L44 -> 0 | M44: =Master20181101!M44-Master20180614!M44 -> 0 | N44: =Master20181101!N44-Master20180614!N44 -> 0 | O44: =Master20181101!O44-Master20180614!O44 -> 0 | P44: =Master20181101!P44-Master20180614!P44 -> 0 | Q44: =Master20181101!Q44-Master20180614!Q44 -> 0 | R44: =Master20181101!R44-Master20180614!R44 -> 0 | S44: =Master20181101!S44-Master20180614!S44 -> 0 | T44: =Master20181101!T44-Master20180614!T44 -> 0 | U44: =Master20181101!U44-Master20180614!U44 -> 0 | V44: =Master20181101!V44-Master20180614!V44 -> 0 | W44: =Master20181101!W44-Master20180614!W44 -> 0 | X44: =Master20181101!X44-Master20180614!X44 -> 0 | Y44: =Master20181101!Y44-Master20180614!Y44 -> 0 | Z44: =Master20181101!Z44-Master20180614!Z44 -> 0 | AA44: =Master20181101!AA44-Master20180614!AA44 -> 0 | AB44: =Master20181101!AB44-Master20180614!AB44 -> 0 | AC44: =Master20181101!AC44-Master20180614!AC44 -> 0 | AD44: =Master20181101!AD44-Master20180614!AD44 -> 0 | AE44: =Master20181101!AE44-Master20180614!AE44 -> 0
A45: Eastern | B45: 5-D | C45: WT | D45: Franklin City | E45: =Master20181101!E45-Master20180614!E45 -> 0 | F45: =Master20181101!F45-Master20180614!F45 -> 0 | G45: =Master20181101!G45-Master20180614!G45 -> 1 | H45: =Master20181101!H45-Master20180614!H45 -> 1 | I45: =Master20181101!I45-Master20180614!I45 -> 0 | J45: =Master20181101!J45-Master20180614!J45 -> -1 | K45: =Master20181101!K45-Master20180614!K45 -> 0 | L45: =Master20181101!L45-Master20180614!L45 -> 1 | M45: =Master20181101!M45-Master20180614!M45 -> 0 | N45: =Master20181101!N45-Master20180614!N45 -> 1 | O45: =Master20181101!O45-Master20180614!O45 -> 0 | P45: =Master20181101!P45-Master20180614!P45 -> 0 | Q45: =Master20181101!Q45-Master20180614!Q45 -> 0 | R45: =Master20181101!R45-Master20180614!R45 -> 0 | S45: =Master20181101!S45-Master20180614!S45 -> 0 | T45: =Master20181101!T45-Master20180614!T45 -> 0 | U45: =Master20181101!U45-Master20180614!U45 -> 0 | V45: =Master20181101!V45-Master20180614!V45 -> 0 | W45: =Master20181101!W45-Master20180614!W45 -> 0 | X45: =Master20181101!X45-Master20180614!X45 -> 0 | Y45: =Master20181101!Y45-Master20180614!Y45 -> 0 | Z45: =Master20181101!Z45-Master20180614!Z45 -> 0 | AA45: =Master20181101!AA45-Master20180614!AA45 -> 0 | AB45: =Master20181101!AB45-Master20180614!AB45 -> 0 | AC45: =Master20181101!AC45-Master20180614!AC45 -> 0 | AD45: =Master20181101!AD45-Master20180614!AD45 -> -1 | AE45: =Master20181101!AE45-Master20180614!AE45 -> 0
A46: Southwestern | B46: 3-A | C46: PDMT | D46: Franklin County | E46: =Master20181101!E46-Master20180614!E46 -> 0 | F46: =Master20181101!F46-Master20180614!F46 -> 0 | G46: =Master20181101!G46-Master20180614!G46 -> 0 | H46: =Master20181101!H46-Master20180614!H46 -> 0 | I46: =Master20181101!I46-Master20180614!I46 -> -1 | J46: =Master20181101!J46-Master20180614!J46 -> -1 | K46: =Master20181101!K46-Master20180614!K46 -> -1 | L46: =Master20181101!L46-Master20180614!L46 -> 1 | M46: =Master20181101!M46-Master20180614!M46 -> 0 | N46: =Master20181101!N46-Master20180614!N46 -> 3 | O46: =Master20181101!O46-Master20180614!O46 -> 0 | P46: =Master20181101!P46-Master20180614!P46 -> -1 | Q46: =Master20181101!Q46-Master20180614!Q46 -> 0 | R46: =Master20181101!R46-Master20180614!R46 -> 0 | S46: =Master20181101!S46-Master20180614!S46 -> 0 | T46: =Master20181101!T46-Master20180614!T46 -> 0 | U46: =Master20181101!U46-Master20180614!U46 -> 0 | V46: =Master20181101!V46-Master20180614!V46 -> 0 | W46: =Master20181101!W46-Master20180614!W46 -> 0 | X46: =Master20181101!X46-Master20180614!X46 -> 0 | Y46: =Master20181101!Y46-Master20180614!Y46 -> 0 | Z46: =Master20181101!Z46-Master20180614!Z46 -> 0 | AA46: =Master20181101!AA46-Master20180614!AA46 -> 0 | AB46: =Master20181101!AB46-Master20180614!AB46 -> 0 | AC46: =Master20181101!AC46-Master20180614!AC46 -> 0 | AD46: =Master20181101!AD46-Master20180614!AD46 -> 0 | AE46: =Master20181101!AE46-Master20180614!AE46 -> 0
A47: Northern | B47: 2-D | C47: NW | D47: Frederick County | E47: =Master20181101!E47-Master20180614!E47 -> 0 | F47: =Master20181101!F47-Master20180614!F47 -> 1 | G47: =Master20181101!G47-Master20180614!G47 -> -4 | H47: =Master20181101!H47-Master20180614!H47 -> -3 | I47: =Master20181101!I47-Master20180614!I47 -> -1 | J47: =Master20181101!J47-Master20180614!J47 -> -1 | K47: =Master20181101!K47-Master20180614!K47 -> -2 | L47: =Master20181101!L47-Master20180614!L47 -> 1 | M47: =Master20181101!M47-Master20180614!M47 -> 0 | N47: =Master20181101!N47-Master20180614!N47 -> 1 | O47: =Master20181101!O47-Master20180614!O47 -> 0 | P47: =Master20181101!P47-Master20180614!P47 -> -1 | Q47: =Master20181101!Q47-Master20180614!Q47 -> 0 | R47: =Master20181101!R47-Master20180614!R47 -> 0 | S47: =Master20181101!S47-Master20180614!S47 -> 0 | T47: =Master20181101!T47-Master20180614!T47 -> 0 | U47: =Master20181101!U47-Master20180614!U47 -> 0 | V47: =Master20181101!V47-Master20180614!V47 -> 0 | W47: =Master20181101!W47-Master20180614!W47 -> 0 | X47: =Master20181101!X47-Master20180614!X47 -> 0 | Y47: =Master20181101!Y47-Master20180614!Y47 -> 0 | Z47: =Master20181101!Z47-Master20180614!Z47 -> 0 | AA47: =Master20181101!AA47-Master20180614!AA47 -> 0 | AB47: =Master20181101!AB47-Master20180614!AB47 -> 0 | AC47: =Master20181101!AC47-Master20180614!AC47 -> 0 | AD47: =Master20181101!AD47-Master20180614!AD47 -> 2 | AE47: =Master20181101!AE47-Master20180614!AE47 -> 1
A48: Northern | B48: 2-C | C48: RapA | D48: Fredericksburg City | E48: =Master20181101!E48-Master20180614!E48 -> 0 | F48: =Master20181101!F48-Master20180614!F48 -> 0 | G48: =Master20181101!G48-Master20180614!G48 -> 1 | H48: =Master20181101!H48-Master20180614!H48 -> 1 | I48: =Master20181101!I48-Master20180614!I48 -> 2 | J48: =Master20181101!J48-Master20180614!J48 -> 0 | K48: =Master20181101!K48-Master20180614!K48 -> -1 | L48: =Master20181101!L48-Master20180614!L48 -> 2 | M48: =Master20181101!M48-Master20180614!M48 -> -1 | N48: =Master20181101!N48-Master20180614!N48 -> -1 | O48: =Master20181101!O48-Master20180614!O48 -> 0 | P48: =Master20181101!P48-Master20180614!P48 -> 0 | Q48: =Master20181101!Q48-Master20180614!Q48 -> 0 | R48: =Master20181101!R48-Master20180614!R48 -> 0 | S48: =Master20181101!S48-Master20180614!S48 -> 0 | T48: =Master20181101!T48-Master20180614!T48 -> 0 | U48: =Master20181101!U48-Master20180614!U48 -> 0 | V48: =Master20181101!V48-Master20180614!V48 -> 0 | W48: =Master20181101!W48-Master20180614!W48 -> 0 | X48: =Master20181101!X48-Master20180614!X48 -> 1 | Y48: =Master20181101!Y48-Master20180614!Y48 -> 0 | Z48: =Master20181101!Z48-Master20180614!Z48 -> 0 | AA48: =Master20181101!AA48-Master20180614!AA48 -> 0 | AB48: =Master20181101!AB48-Master20180614!AB48 -> 0 | AC48: =Master20181101!AC48-Master20180614!AC48 -> -2 | AD48: =Master20181101!AD48-Master20180614!AD48 -> 0 | AE48: =Master20181101!AE48-Master20180614!AE48 -> 0
A49: Southwestern | B49: 3-B | C49: MTRG | D49: Galax City | E49: =Master20181101!E49-Master20180614!E49 -> 0 | F49: =Master20181101!F49-Master20180614!F49 -> 0 | G49: =Master20181101!G49-Master20180614!G49 -> 1 | H49: =Master20181101!H49-Master20180614!H49 -> 1 | I49: =Master20181101!I49-Master20180614!I49 -> 0 | J49: =Master20181101!J49-Master20180614!J49 -> -2 | K49: =Master20181101!K49-Master20180614!K49 -> 0 | L49: =Master20181101!L49-Master20180614!L49 -> 1 | M49: =Master20181101!M49-Master20180614!M49 -> 0 | N49: =Master20181101!N49-Master20180614!N49 -> 1 | O49: =Master20181101!O49-Master20180614!O49 -> 1 | P49: =Master20181101!P49-Master20180614!P49 -> 0 | Q49: =Master20181101!Q49-Master20180614!Q49 -> 0 | R49: =Master20181101!R49-Master20180614!R49 -> 0 | S49: =Master20181101!S49-Master20180614!S49 -> 0 | T49: =Master20181101!T49-Master20180614!T49 -> 0 | U49: =Master20181101!U49-Master20180614!U49 -> 0 | V49: =Master20181101!V49-Master20180614!V49 -> 0 | W49: =Master20181101!W49-Master20180614!W49 -> 0 | X49: =Master20181101!X49-Master20180614!X49 -> 1 | Y49: =Master20181101!Y49-Master20180614!Y49 -> 0 | Z49: =Master20181101!Z49-Master20180614!Z49 -> 0 | AA49: =Master20181101!AA49-Master20180614!AA49 -> 0 | AB49: =Master20181101!AB49-Master20180614!AB49 -> 0 | AC49: =Master20181101!AC49-Master20180614!AC49 -> 0 | AD49: =Master20181101!AD49-Master20180614!AD49 -> 0 | AE49: =Master20181101!AE49-Master20180614!AE49 -> 0
A50: Southwestern | B50: 3-A | C50: NRV | D50: Giles County | E50: =Master20181101!E50-Master20180614!E50 -> 0 | F50: =Master20181101!F50-Master20180614!F50 -> -1 | G50: =Master20181101!G50-Master20180614!G50 -> 1 | H50: =Master20181101!H50-Master20180614!H50 -> 0 | I50: =Master20181101!I50-Master20180614!I50 -> 0 | J50: =Master20181101!J50-Master20180614!J50 -> -2 | K50: =Master20181101!K50-Master20180614!K50 -> 0 | L50: =Master20181101!L50-Master20180614!L50 -> 1 | M50: =Master20181101!M50-Master20180614!M50 -> 0 | N50: =Master20181101!N50-Master20180614!N50 -> 1 | O50: =Master20181101!O50-Master20180614!O50 -> -1 | P50: =Master20181101!P50-Master20180614!P50 -> 1 | Q50: =Master20181101!Q50-Master20180614!Q50 -> 0 | R50: =Master20181101!R50-Master20180614!R50 -> 0 | S50: =Master20181101!S50-Master20180614!S50 -> 0 | T50: =Master20181101!T50-Master20180614!T50 -> 0 | U50: =Master20181101!U50-Master20180614!U50 -> 0 | V50: =Master20181101!V50-Master20180614!V50 -> 0 | W50: =Master20181101!W50-Master20180614!W50 -> 0 | X50: =Master20181101!X50-Master20180614!X50 -> 0 | Y50: =Master20181101!Y50-Master20180614!Y50 -> 0 | Z50: =Master20181101!Z50-Master20180614!Z50 -> 0 | AA50: =Master20181101!AA50-Master20180614!AA50 -> 0 | AB50: =Master20181101!AB50-Master20180614!AB50 -> 0 | AC50: =Master20181101!AC50-Master20180614!AC50 -> 0 | AD50: =Master20181101!AD50-Master20180614!AD50 -> 0 | AE50: =Master20181101!AE50-Master20180614!AE50 -> 0
A51: Eastern | B51: 5-A | C51: MPNN | D51: Gloucester County | E51: =Master20181101!E51-Master20180614!E51 -> 0 | F51: =Master20181101!F51-Master20180614!F51 -> 0 | G51: =Master20181101!G51-Master20180614!G51 -> 4 | H51: =Master20181101!H51-Master20180614!H51 -> 4 | I51: =Master20181101!I51-Master20180614!I51 -> 0 | J51: =Master20181101!J51-Master20180614!J51 -> 3 | K51: =Master20181101!K51-Master20180614!K51 -> 0 | L51: =Master20181101!L51-Master20180614!L51 -> -1 | M51: =Master20181101!M51-Master20180614!M51 -> 0 | N51: =Master20181101!N51-Master20180614!N51 -> -1 | O51: =Master20181101!O51-Master20180614!O51 -> 0 | P51: =Master20181101!P51-Master20180614!P51 -> 3 | Q51: =Master20181101!Q51-Master20180614!Q51 -> 0 | R51: =Master20181101!R51-Master20180614!R51 -> 0 | S51: =Master20181101!S51-Master20180614!S51 -> 0 | T51: =Master20181101!T51-Master20180614!T51 -> 0 | U51: =Master20181101!U51-Master20180614!U51 -> 0 | V51: =Master20181101!V51-Master20180614!V51 -> 0 | W51: =Master20181101!W51-Master20180614!W51 -> 0 | X51: =Master20181101!X51-Master20180614!X51 -> 0 | Y51: =Master20181101!Y51-Master20180614!Y51 -> 0 | Z51: =Master20181101!Z51-Master20180614!Z51 -> 0 | AA51: =Master20181101!AA51-Master20180614!AA51 -> 0 | AB51: =Master20181101!AB51-Master20180614!AB51 -> 0 | AC51: =Master20181101!AC51-Master20180614!AC51 -> -1 | AD51: =Master20181101!AD51-Master20180614!AD51 -> 0 | AE51: =Master20181101!AE51-Master20180614!AE51 -> 0
A52: Central | B52: 4-B | C52: GOOC | D52: Goochland County | E52: =Master20181101!E52-Master20180614!E52 -> 0 | F52: =Master20181101!F52-Master20180614!F52 -> 0 | G52: =Master20181101!G52-Master20180614!G52 -> -2 | H52: =Master20181101!H52-Master20180614!H52 -> -2 | I52: =Master20181101!I52-Master20180614!I52 -> 0 | J52: =Master20181101!J52-Master20180614!J52 -> -1 | K52: =Master20181101!K52-Master20180614!K52 -> 0 | L52: =Master20181101!L52-Master20180614!L52 -> -1 | M52: =Master20181101!M52-Master20180614!M52 -> 0 | N52: =Master20181101!N52-Master20180614!N52 -> 0 | O52: =Master20181101!O52-Master20180614!O52 -> 0 | P52: =Master20181101!P52-Master20180614!P52 -> 0 | Q52: =Master20181101!Q52-Master20180614!Q52 -> 0 | R52: =Master20181101!R52-Master20180614!R52 -> 0 | S52: =Master20181101!S52-Master20180614!S52 -> 0 | T52: =Master20181101!T52-Master20180614!T52 -> 0 | U52: =Master20181101!U52-Master20180614!U52 -> 0 | V52: =Master20181101!V52-Master20180614!V52 -> 0 | W52: =Master20181101!W52-Master20180614!W52 -> 0 | X52: =Master20181101!X52-Master20180614!X52 -> 1 | Y52: =Master20181101!Y52-Master20180614!Y52 -> 0 | Z52: =Master20181101!Z52-Master20180614!Z52 -> 0 | AA52: =Master20181101!AA52-Master20180614!AA52 -> 0 | AB52: =Master20181101!AB52-Master20180614!AB52 -> 0 | AC52: =Master20181101!AC52-Master20180614!AC52 -> 0 | AD52: =Master20181101!AD52-Master20180614!AD52 -> 0 | AE52: =Master20181101!AE52-Master20180614!AE52 -> 0
A53: Southwestern | B53: 3-B | C53: MTRG | D53: Grayson County | E53: =Master20181101!E53-Master20180614!E53 -> 0 | F53: =Master20181101!F53-Master20180614!F53 -> 0 | G53: =Master20181101!G53-Master20180614!G53 -> 2 | H53: =Master20181101!H53-Master20180614!H53 -> 2 | I53: =Master20181101!I53-Master20180614!I53 -> 0 | J53: =Master20181101!J53-Master20180614!J53 -> 1 | K53: =Master20181101!K53-Master20180614!K53 -> 1 | L53: =Master20181101!L53-Master20180614!L53 -> 0 | M53: =Master20181101!M53-Master20180614!M53 -> 0 | N53: =Master20181101!N53-Master20180614!N53 -> 0 | O53: =Master20181101!O53-Master20180614!O53 -> 0 | P53: =Master20181101!P53-Master20180614!P53 -> 0 | Q53: =Master20181101!Q53-Master20180614!Q53 -> 0 | R53: =Master20181101!R53-Master20180614!R53 -> 0 | S53: =Master20181101!S53-Master20180614!S53 -> 0 | T53: =Master20181101!T53-Master20180614!T53 -> 0 | U53: =Master20181101!U53-Master20180614!U53 -> 0 | V53: =Master20181101!V53-Master20180614!V53 -> 0 | W53: =Master20181101!W53-Master20180614!W53 -> 0 | X53: =Master20181101!X53-Master20180614!X53 -> 0 | Y53: =Master20181101!Y53-Master20180614!Y53 -> 0 | Z53: =Master20181101!Z53-Master20180614!Z53 -> 0 | AA53: =Master20181101!AA53-Master20180614!AA53 -> 0 | AB53: =Master20181101!AB53-Master20180614!AB53 -> 0 | AC53: =Master20181101!AC53-Master20180614!AC53 -> 0 | AD53: =Master20181101!AD53-Master20180614!AD53 -> 0 | AE53: =Master20181101!AE53-Master20180614!AE53 -> 0
A54: Western | B54: 1-A | C54: RTEN | D54: Greene County | E54: =Master20181101!E54-Master20180614!E54 -> 0 | F54: =Master20181101!F54-Master20180614!F54 -> 0 | G54: =Master20181101!G54-Master20180614!G54 -> -1 | H54: =Master20181101!H54-Master20180614!H54 -> -1 | I54: =Master20181101!I54-Master20180614!I54 -> 0 | J54: =Master20181101!J54-Master20180614!J54 -> -3 | K54: =Master20181101!K54-Master20180614!K54 -> 0 | L54: =Master20181101!L54-Master20180614!L54 -> 2 | M54: =Master20181101!M54-Master20180614!M54 -> 1 | N54: =Master20181101!N54-Master20180614!N54 -> -1 | O54: =Master20181101!O54-Master20180614!O54 -> 0 | P54: =Master20181101!P54-Master20180614!P54 -> 0 | Q54: =Master20181101!Q54-Master20180614!Q54 -> 0 | R54: =Master20181101!R54-Master20180614!R54 -> 0 | S54: =Master20181101!S54-Master20180614!S54 -> 0 | T54: =Master20181101!T54-Master20180614!T54 -> 0 | U54: =Master20181101!U54-Master20180614!U54 -> 0 | V54: =Master20181101!V54-Master20180614!V54 -> 0 | W54: =Master20181101!W54-Master20180614!W54 -> 0 | X54: =Master20181101!X54-Master20180614!X54 -> 0 | Y54: =Master20181101!Y54-Master20180614!Y54 -> 0 | Z54: =Master20181101!Z54-Master20180614!Z54 -> 0 | AA54: =Master20181101!AA54-Master20180614!AA54 -> 0 | AB54: =Master20181101!AB54-Master20180614!AB54 -> 0 | AC54: =Master20181101!AC54-Master20180614!AC54 -> 0 | AD54: =Master20181101!AD54-Master20180614!AD54 -> 0 | AE54: =Master20181101!AE54-Master20180614!AE54 -> 0
A55: Central | B55: 4-D | C55: D19 | D55: Greensville County | E55: =Master20181101!E55-Master20180614!E55 -> 0 | F55: =Master20181101!F55-Master20180614!F55 -> 1 | G55: =Master20181101!G55-Master20180614!G55 -> 0 | H55: =Master20181101!H55-Master20180614!H55 -> 1 | I55: =Master20181101!I55-Master20180614!I55 -> 0 | J55: =Master20181101!J55-Master20180614!J55 -> 0 | K55: =Master20181101!K55-Master20180614!K55 -> 0 | L55: =Master20181101!L55-Master20180614!L55 -> 0 | M55: =Master20181101!M55-Master20180614!M55 -> 0 | N55: =Master20181101!N55-Master20180614!N55 -> 0 | O55: =Master20181101!O55-Master20180614!O55 -> 0 | P55: =Master20181101!P55-Master20180614!P55 -> 1 | Q55: =Master20181101!Q55-Master20180614!Q55 -> 0 | R55: =Master20181101!R55-Master20180614!R55 -> 0 | S55: =Master20181101!S55-Master20180614!S55 -> 0 | T55: =Master20181101!T55-Master20180614!T55 -> 0 | U55: =Master20181101!U55-Master20180614!U55 -> 0 | V55: =Master20181101!V55-Master20180614!V55 -> 0 | W55: =Master20181101!W55-Master20180614!W55 -> 0 | X55: =Master20181101!X55-Master20180614!X55 -> 0 | Y55: =Master20181101!Y55-Master20180614!Y55 -> 0 | Z55: =Master20181101!Z55-Master20180614!Z55 -> 0 | AA55: =Master20181101!AA55-Master20180614!AA55 -> 0 | AB55: =Master20181101!AB55-Master20180614!AB55 -> 0 | AC55: =Master20181101!AC55-Master20180614!AC55 -> 0 | AD55: =Master20181101!AD55-Master20180614!AD55 -> 0 | AE55: =Master20181101!AE55-Master20180614!AE55 -> 0
A56: Central | B56: 4-C | C56: SS | D56: Halifax County | E56: =Master20181101!E56-Master20180614!E56 -> 0 | F56: =Master20181101!F56-Master20180614!F56 -> 1 | G56: =Master20181101!G56-Master20180614!G56 -> 3 | H56: =Master20181101!H56-Master20180614!H56 -> 4 | I56: =Master20181101!I56-Master20180614!I56 -> 0 | J56: =Master20181101!J56-Master20180614!J56 -> 0 | K56: =Master20181101!K56-Master20180614!K56 -> 0 | L56: =Master20181101!L56-Master20180614!L56 -> 2 | M56: =Master20181101!M56-Master20180614!M56 -> 0 | N56: =Master20181101!N56-Master20180614!N56 -> 0 | O56: =Master20181101!O56-Master20180614!O56 -> 1 | P56: =Master20181101!P56-Master20180614!P56 -> 1 | Q56: =Master20181101!Q56-Master20180614!Q56 -> 0 | R56: =Master20181101!R56-Master20180614!R56 -> 0 | S56: =Master20181101!S56-Master20180614!S56 -> 0 | T56: =Master20181101!T56-Master20180614!T56 -> 0 | U56: =Master20181101!U56-Master20180614!U56 -> 0 | V56: =Master20181101!V56-Master20180614!V56 -> 0 | W56: =Master20181101!W56-Master20180614!W56 -> 0 | X56: =Master20181101!X56-Master20180614!X56 -> 0 | Y56: =Master20181101!Y56-Master20180614!Y56 -> 0 | Z56: =Master20181101!Z56-Master20180614!Z56 -> 0 | AA56: =Master20181101!AA56-Master20180614!AA56 -> 0 | AB56: =Master20181101!AB56-Master20180614!AB56 -> 0 | AC56: =Master20181101!AC56-Master20180614!AC56 -> 0 | AD56: =Master20181101!AD56-Master20180614!AD56 -> 0 | AE56: =Master20181101!AE56-Master20180614!AE56 -> 0
A57: Eastern | B57: 5-C | C57: HAMP | D57: Hampton City | E57: =Master20181101!E57-Master20180614!E57 -> 1 | F57: =Master20181101!F57-Master20180614!F57 -> 7 | G57: =Master20181101!G57-Master20180614!G57 -> 6 | H57: =Master20181101!H57-Master20180614!H57 -> 14 | I57: =Master20181101!I57-Master20180614!I57 -> 0 | J57: =Master20181101!J57-Master20180614!J57 -> 9 | K57: =Master20181101!K57-Master20180614!K57 -> 1 | L57: =Master20181101!L57-Master20180614!L57 -> -3 | M57: =Master20181101!M57-Master20180614!M57 -> 0 | N57: =Master20181101!N57-Master20180614!N57 -> 1 | O57: =Master20181101!O57-Master20180614!O57 -> 0 | P57: =Master20181101!P57-Master20180614!P57 -> 6 | Q57: =Master20181101!Q57-Master20180614!Q57 -> 0 | R57: =Master20181101!R57-Master20180614!R57 -> 0 | S57: =Master20181101!S57-Master20180614!S57 -> 1 | T57: =Master20181101!T57-Master20180614!T57 -> 0 | U57: =Master20181101!U57-Master20180614!U57 -> 0 | V57: =Master20181101!V57-Master20180614!V57 -> 0 | W57: =Master20181101!W57-Master20180614!W57 -> 0 | X57: =Master20181101!X57-Master20180614!X57 -> 1 | Y57: =Master20181101!Y57-Master20180614!Y57 -> 0 | Z57: =Master20181101!Z57-Master20180614!Z57 -> 0 | AA57: =Master20181101!AA57-Master20180614!AA57 -> 0 | AB57: =Master20181101!AB57-Master20180614!AB57 -> -1 | AC57: =Master20181101!AC57-Master20180614!AC57 -> -1 | AD57: =Master20181101!AD57-Master20180614!AD57 -> -1 | AE57: =Master20181101!AE57-Master20180614!AE57 -> 1
A58: Central | B58: 4-A | C58: HANO | D58: Hanover County | E58: =Master20181101!E58-Master20180614!E58 -> 1 | F58: =Master20181101!F58-Master20180614!F58 -> 4 | G58: =Master20181101!G58-Master20180614!G58 -> 0 | H58: =Master20181101!H58-Master20180614!H58 -> 5 | I58: =Master20181101!I58-Master20180614!I58 -> 4 | J58: =Master20181101!J58-Master20180614!J58 -> -4 | K58: =Master20181101!K58-Master20180614!K58 -> 2 | L58: =Master20181101!L58-Master20180614!L58 -> 6 | M58: =Master20181101!M58-Master20180614!M58 -> 0 | N58: =Master20181101!N58-Master20180614!N58 -> 2 | O58: =Master20181101!O58-Master20180614!O58 -> 1 | P58: =Master20181101!P58-Master20180614!P58 -> -6 | Q58: =Master20181101!Q58-Master20180614!Q58 -> 0 | R58: =Master20181101!R58-Master20180614!R58 -> 0 | S58: =Master20181101!S58-Master20180614!S58 -> 0 | T58: =Master20181101!T58-Master20180614!T58 -> 0 | U58: =Master20181101!U58-Master20180614!U58 -> 0 | V58: =Master20181101!V58-Master20180614!V58 -> 0 | W58: =Master20181101!W58-Master20180614!W58 -> 0 | X58: =Master20181101!X58-Master20180614!X58 -> 0 | Y58: =Master20181101!Y58-Master20180614!Y58 -> 0 | Z58: =Master20181101!Z58-Master20180614!Z58 -> 0 | AA58: =Master20181101!AA58-Master20180614!AA58 -> 0 | AB58: =Master20181101!AB58-Master20180614!AB58 -> 0 | AC58: =Master20181101!AC58-Master20180614!AC58 -> -1 | AD58: =Master20181101!AD58-Master20180614!AD58 -> -1 | AE58: =Master20181101!AE58-Master20180614!AE58 -> 1
A59: Western | B59: 1-B | C59: HARR | D59: Harrisonburg City | E59: =Master20181101!E59-Master20180614!E59 -> 2 | F59: =Master20181101!F59-Master20180614!F59 -> 1 | G59: =Master20181101!G59-Master20180614!G59 -> -4 | H59: =Master20181101!H59-Master20180614!H59 -> -1 | I59: =Master20181101!I59-Master20180614!I59 -> -1 | J59: =Master20181101!J59-Master20180614!J59 -> -3 | K59: =Master20181101!K59-Master20180614!K59 -> 0 | L59: =Master20181101!L59-Master20180614!L59 -> 3 | M59: =Master20181101!M59-Master20180614!M59 -> -1 | N59: =Master20181101!N59-Master20180614!N59 -> -1 | O59: =Master20181101!O59-Master20180614!O59 -> -1 | P59: =Master20181101!P59-Master20180614!P59 -> 3 | Q59: =Master20181101!Q59-Master20180614!Q59 -> 0 | R59: =Master20181101!R59-Master20180614!R59 -> 0 | S59: =Master20181101!S59-Master20180614!S59 -> 0 | T59: =Master20181101!T59-Master20180614!T59 -> 0 | U59: =Master20181101!U59-Master20180614!U59 -> 0 | V59: =Master20181101!V59-Master20180614!V59 -> 0 | W59: =Master20181101!W59-Master20180614!W59 -> 0 | X59: =Master20181101!X59-Master20180614!X59 -> 0 | Y59: =Master20181101!Y59-Master20180614!Y59 -> 0 | Z59: =Master20181101!Z59-Master20180614!Z59 -> 0 | AA59: =Master20181101!AA59-Master20180614!AA59 -> 0 | AB59: =Master20181101!AB59-Master20180614!AB59 -> 0 | AC59: =Master20181101!AC59-Master20180614!AC59 -> 0 | AD59: =Master20181101!AD59-Master20180614!AD59 -> 0 | AE59: =Master20181101!AE59-Master20180614!AE59 -> 0
A60: Central | B60: 4-A | C60: HENR | D60: Henrico County | E60: =Master20181101!E60-Master20180614!E60 -> 1 | F60: =Master20181101!F60-Master20180614!F60 -> 5 | G60: =Master20181101!G60-Master20180614!G60 -> 7 | H60: =Master20181101!H60-Master20180614!H60 -> 13 | I60: =Master20181101!I60-Master20180614!I60 -> 1 | J60: =Master20181101!J60-Master20180614!J60 -> -7 | K60: =Master20181101!K60-Master20180614!K60 -> -1 | L60: =Master20181101!L60-Master20180614!L60 -> 16 | M60: =Master20181101!M60-Master20180614!M60 -> 0 | N60: =Master20181101!N60-Master20180614!N60 -> 5 | O60: =Master20181101!O60-Master20180614!O60 -> 6 | P60: =Master20181101!P60-Master20180614!P60 -> -7 | Q60: =Master20181101!Q60-Master20180614!Q60 -> 1 | R60: =Master20181101!R60-Master20180614!R60 -> -1 | S60: =Master20181101!S60-Master20180614!S60 -> -1 | T60: =Master20181101!T60-Master20180614!T60 -> 0 | U60: =Master20181101!U60-Master20180614!U60 -> 0 | V60: =Master20181101!V60-Master20180614!V60 -> 0 | W60: =Master20181101!W60-Master20180614!W60 -> 0 | X60: =Master20181101!X60-Master20180614!X60 -> 4 | Y60: =Master20181101!Y60-Master20180614!Y60 -> 0 | Z60: =Master20181101!Z60-Master20180614!Z60 -> 0 | AA60: =Master20181101!AA60-Master20180614!AA60 -> -1 | AB60: =Master20181101!AB60-Master20180614!AB60 -> 0 | AC60: =Master20181101!AC60-Master20180614!AC60 -> 0 | AD60: =Master20181101!AD60-Master20180614!AD60 -> -1 | AE60: =Master20181101!AE60-Master20180614!AE60 -> 1
A61: Southwestern | B61: 3-B | C61: PDMT | D61: Henry County | E61: =Master20181101!E61-Master20180614!E61 -> 1 | F61: =Master20181101!F61-Master20180614!F61 -> 0 | G61: =Master20181101!G61-Master20180614!G61 -> 9 | H61: =Master20181101!H61-Master20180614!H61 -> 10 | I61: =Master20181101!I61-Master20180614!I61 -> 1 | J61: =Master20181101!J61-Master20180614!J61 -> 1 | K61: =Master20181101!K61-Master20180614!K61 -> 0 | L61: =Master20181101!L61-Master20180614!L61 -> 3 | M61: =Master20181101!M61-Master20180614!M61 -> 0 | N61: =Master20181101!N61-Master20180614!N61 -> 1 | O61: =Master20181101!O61-Master20180614!O61 -> 3 | P61: =Master20181101!P61-Master20180614!P61 -> 1 | Q61: =Master20181101!Q61-Master20180614!Q61 -> 0 | R61: =Master20181101!R61-Master20180614!R61 -> 0 | S61: =Master20181101!S61-Master20180614!S61 -> 0 | T61: =Master20181101!T61-Master20180614!T61 -> 0 | U61: =Master20181101!U61-Master20180614!U61 -> 0 | V61: =Master20181101!V61-Master20180614!V61 -> 0 | W61: =Master20181101!W61-Master20180614!W61 -> 0 | X61: =Master20181101!X61-Master20180614!X61 -> 0 | Y61: =Master20181101!Y61-Master20180614!Y61 -> 0 | Z61: =Master20181101!Z61-Master20180614!Z61 -> 0 | AA61: =Master20181101!AA61-Master20180614!AA61 -> 0 | AB61: =Master20181101!AB61-Master20180614!AB61 -> 0 | AC61: =Master20181101!AC61-Master20180614!AC61 -> 0 | AD61: =Master20181101!AD61-Master20180614!AD61 -> 0 | AE61: =Master20181101!AE61-Master20180614!AE61 -> 0
A62: Western | B62: 1-B | C62: VLY | D62: Highland County | E62: =Master20181101!E62-Master20180614!E62 -> 0 | F62: =Master20181101!F62-Master20180614!F62 -> 0 | G62: =Master20181101!G62-Master20180614!G62 -> 2 | H62: =Master20181101!H62-Master20180614!H62 -> 2 | I62: =Master20181101!I62-Master20180614!I62 -> 0 | J62: =Master20181101!J62-Master20180614!J62 -> 0 | K62: =Master20181101!K62-Master20180614!K62 -> 0 | L62: =Master20181101!L62-Master20180614!L62 -> 2 | M62: =Master20181101!M62-Master20180614!M62 -> 0 | N62: =Master20181101!N62-Master20180614!N62 -> 0 | O62: =Master20181101!O62-Master20180614!O62 -> 0 | P62: =Master20181101!P62-Master20180614!P62 -> 0 | Q62: =Master20181101!Q62-Master20180614!Q62 -> 0 | R62: =Master20181101!R62-Master20180614!R62 -> 0 | S62: =Master20181101!S62-Master20180614!S62 -> 0 | T62: =Master20181101!T62-Master20180614!T62 -> 0 | U62: =Master20181101!U62-Master20180614!U62 -> 0 | V62: =Master20181101!V62-Master20180614!V62 -> 0 | W62: =Master20181101!W62-Master20180614!W62 -> 0 | X62: =Master20181101!X62-Master20180614!X62 -> 0 | Y62: =Master20181101!Y62-Master20180614!Y62 -> 0 | Z62: =Master20181101!Z62-Master20180614!Z62 -> 0 | AA62: =Master20181101!AA62-Master20180614!AA62 -> 0 | AB62: =Master20181101!AB62-Master20180614!AB62 -> 0 | AC62: =Master20181101!AC62-Master20180614!AC62 -> 0 | AD62: =Master20181101!AD62-Master20180614!AD62 -> 0 | AE62: =Master20181101!AE62-Master20180614!AE62 -> 0
A63: Central | B63: 4-D | C63: D19 | D63: Hopewell City | E63: =Master20181101!E63-Master20180614!E63 -> 0 | F63: =Master20181101!F63-Master20180614!F63 -> 0 | G63: =Master20181101!G63-Master20180614!G63 -> -2 | H63: =Master20181101!H63-Master20180614!H63 -> -2 | I63: =Master20181101!I63-Master20180614!I63 -> 0 | J63: =Master20181101!J63-Master20180614!J63 -> -1 | K63: =Master20181101!K63-Master20180614!K63 -> 0 | L63: =Master20181101!L63-Master20180614!L63 -> -1 | M63: =Master20181101!M63-Master20180614!M63 -> 1 | N63: =Master20181101!N63-Master20180614!N63 -> 0 | O63: =Master20181101!O63-Master20180614!O63 -> -1 | P63: =Master20181101!P63-Master20180614!P63 -> 0 | Q63: =Master20181101!Q63-Master20180614!Q63 -> 0 | R63: =Master20181101!R63-Master20180614!R63 -> 0 | S63: =Master20181101!S63-Master20180614!S63 -> 0 | T63: =Master20181101!T63-Master20180614!T63 -> 0 | U63: =Master20181101!U63-Master20180614!U63 -> 0 | V63: =Master20181101!V63-Master20180614!V63 -> 0 | W63: =Master20181101!W63-Master20180614!W63 -> 0 | X63: =Master20181101!X63-Master20180614!X63 -> 0 | Y63: =Master20181101!Y63-Master20180614!Y63 -> 0 | Z63: =Master20181101!Z63-Master20180614!Z63 -> 0 | AA63: =Master20181101!AA63-Master20180614!AA63 -> 0 | AB63: =Master20181101!AB63-Master20180614!AB63 -> 0 | AC63: =Master20181101!AC63-Master20180614!AC63 -> 0 | AD63: =Master20181101!AD63-Master20180614!AD63 -> 0 | AE63: =Master20181101!AE63-Master20180614!AE63 -> 1
A64: Eastern | B64: 5-D | C64: WT | D64: Isle of Wight County | E64: =Master20181101!E64-Master20180614!E64 -> 0 | F64: =Master20181101!F64-Master20180614!F64 -> 0 | G64: =Master20181101!G64-Master20180614!G64 -> -1 | H64: =Master20181101!H64-Master20180614!H64 -> -1 | I64: =Master20181101!I64-Master20180614!I64 -> 0 | J64: =Master20181101!J64-Master20180614!J64 -> 1 | K64: =Master20181101!K64-Master20180614!K64 -> 0 | L64: =Master20181101!L64-Master20180614!L64 -> -1 | M64: =Master20181101!M64-Master20180614!M64 -> 0 | N64: =Master20181101!N64-Master20180614!N64 -> 0 | O64: =Master20181101!O64-Master20180614!O64 -> 0 | P64: =Master20181101!P64-Master20180614!P64 -> -1 | Q64: =Master20181101!Q64-Master20180614!Q64 -> 0 | R64: =Master20181101!R64-Master20180614!R64 -> 0 | S64: =Master20181101!S64-Master20180614!S64 -> 0 | T64: =Master20181101!T64-Master20180614!T64 -> 0 | U64: =Master20181101!U64-Master20180614!U64 -> 0 | V64: =Master20181101!V64-Master20180614!V64 -> 0 | W64: =Master20181101!W64-Master20180614!W64 -> 0 | X64: =Master20181101!X64-Master20180614!X64 -> 0 | Y64: =Master20181101!Y64-Master20180614!Y64 -> 0 | Z64: =Master20181101!Z64-Master20180614!Z64 -> 0 | AA64: =Master20181101!AA64-Master20180614!AA64 -> 0 | AB64: =Master20181101!AB64-Master20180614!AB64 -> 0 | AC64: =Master20181101!AC64-Master20180614!AC64 -> 0 | AD64: =Master20181101!AD64-Master20180614!AD64 -> 1 | AE64: =Master20181101!AE64-Master20180614!AE64 -> 0
A65: Eastern | B65: 5-C | C65: COLO | D65: James City County | E65: =Master20181101!E65-Master20180614!E65 -> 0 | F65: =Master20181101!F65-Master20180614!F65 -> 4 | G65: =Master20181101!G65-Master20180614!G65 -> 2 | H65: =Master20181101!H65-Master20180614!H65 -> 6 | I65: =Master20181101!I65-Master20180614!I65 -> 2 | J65: =Master20181101!J65-Master20180614!J65 -> 2 | K65: =Master20181101!K65-Master20180614!K65 -> 0 | L65: =Master20181101!L65-Master20180614!L65 -> 0 | M65: =Master20181101!M65-Master20180614!M65 -> 0 | N65: =Master20181101!N65-Master20180614!N65 -> 0 | O65: =Master20181101!O65-Master20180614!O65 -> 0 | P65: =Master20181101!P65-Master20180614!P65 -> 2 | Q65: =Master20181101!Q65-Master20180614!Q65 -> 0 | R65: =Master20181101!R65-Master20180614!R65 -> 0 | S65: =Master20181101!S65-Master20180614!S65 -> 0 | T65: =Master20181101!T65-Master20180614!T65 -> 0 | U65: =Master20181101!U65-Master20180614!U65 -> 0 | V65: =Master20181101!V65-Master20180614!V65 -> 0 | W65: =Master20181101!W65-Master20180614!W65 -> 0 | X65: =Master20181101!X65-Master20180614!X65 -> 0 | Y65: =Master20181101!Y65-Master20180614!Y65 -> 0 | Z65: =Master20181101!Z65-Master20180614!Z65 -> 0 | AA65: =Master20181101!AA65-Master20180614!AA65 -> 0 | AB65: =Master20181101!AB65-Master20180614!AB65 -> 0 | AC65: =Master20181101!AC65-Master20180614!AC65 -> 0 | AD65: =Master20181101!AD65-Master20180614!AD65 -> 0 | AE65: =Master20181101!AE65-Master20180614!AE65 -> 0
